Workbook

Sheet Data (hidden)
A1: 1 | B1: 2 | C1: 3 | D1: 4 | E1: 5 | F1: 6 | G1: 7 | H1: 8 | I1: 9 | J1: 10 | K1: 11 | L1: 12 | M1: 13 | N1: 14 | O1: 15 | P1: 16 | Q1: 17 | R1: 18 | S1: 19 | T1: 20 | U1: 21 | V1: 22 | W1: 23 | X1: 24 | Y1: 25 | Z1: 26 | AA1: 27 | AB1: 28 | AC1: 29 | AD1: 30 | AE1: 31 | AF1: 32 | AG1: 33 | AH1: 34 | AI1: 35 | AJ1: 36 | AK1: 37 | AL1: 38 | AM1: 39 | AN1: 40 | AO1: 41 | AP1: 42 | AQ1: 43 | AR1: 44 | AS1: 45 | AT1: 46 | AU1: 47 | AV1: 48 | AW1: 49 | AX1: 50 | AY1: 51 | AZ1: 52 | BA1: 53 | BB1: 54 | BC1: 55 | BD1: 56 | BE1: 57 | BF1: 58 | BG1: 59 | BH1: 60 | BI1: 61 | BJ1: 62 | BK1: 63 | BL1: 64 | BM1: 65 | BN1: 66 | BO1: 67 | BP1: 68 | BQ1: 69 | BR1: 70 | BS1: 71 | BT1: 72 | BU1: 73 | BV1: 74 | BW1: 75 | BX1: 76 | BY1: 77 | BZ1: 78 | CA1: 79 | CB1: 80
A2: final list | B2: School Name | C2: Phase | D2: F1 - Pri | E2: F1 -KS3 | F2: F1 - KS4 | G2: F2 - FSM Pri | H2: F2 - FSM Sec | I2: F2 - E6FSM Pri | J2: F2 - E6FSM Sec | K2: F2 - IDACI F - Pri | L2: F2 - IDACI E - Pri | M2: F2 - IDACI D - Pri | N2: F2 - IDACI C - Pri | O2: F2 - IDACI B - Pri | P2: F2 - IDACI A - Pri | Q2: F2 - IDACI F - Sec | R2: F2 - IDACI E - Sec | S2: F2 - IDACI D - Sec | T2: F2 - IDACI C - Sec | U2: F2 - IDACI B - Sec | V2: F2 - IDACI A - Sec | W2: F4 - EAL Pri | X2: F4 - EAL Sec | Y2: F6 - EYFS Pri | Z2: F6 - EYFS Sec | AA2: F7 - Lump Sum | AB2: F8 - Sparsity Pri | AC2: F8 - Sparsity Sec | AD2: F9 - ACA | AE2: F10 - Split Site | AF2: F11 - Rates | AG2: F12 - PFI | AH2: F13 - Exceptional Circumstances | AI2: MFL Rate | AJ2: SBS 20-21 | AK2: Protected Grants 20-21 | AN2: Rates - 21-22 | AO2: Pupils - Oct 20 | AP2: PFI Funding - Future Year? | AR2: Early Years - Base Rate | AS2: Early Years - QTS | AT2: Early Years - Disadvantage | AV2: SRP Des1 Pre | AW2: SRP Des2 Pre | AX2: SRP Des1 Post | AY2: SRP Des2 Post | AZ2: SRP Places Apr - Aug PRE | BA2: SRP Places Apr - Aug POST | BB2: SRP Places Sep - Mar PRE | BC2: SRP Places Sep - Mar Post | BD2: SRP actuals PRE (OCT) | BE2: SRP actuals POST (OCT) | BI2: TPG
A3: 1001 | B3: Northfleet Nursery | C3: 6 | D3: 0 | E3: 0 | F3: 0 | G3: 0 | H3: 0 | I3: 0 | J3: 0 | K3: 0 | L3: 0 | M3: 0 | N3: 0 | O3: 0 | P3: 0 | Q3: 0 | R3: 0 | S3: 0 | T3: 0 | U3: 0 | V3: 0 | W3: 0 | X3: 0 | Y3: 0 | Z3: 0 | AA3: 0 | AB3: 0 | AC3: 0 | AD3: 0 | AE3: 0 | AF3: 0 | AG3: 0 | AH3: 0 | AI3: 0 | AJ3: 0 | AK3: 0 | AL3: 0 | AM3: 0 | AN3: 0 | AO3: 0 | AP3: 0 | AR3: 4.31 | AS3: 0.9 | AT3: 0.18 | BI3: y
A4: 2000 | B4: St Johns Church of England Primary School | C4: 1 | D4: 374 | E4: 0 | F4: 0 | G4: 0.5427807487 | H4: 0 | I4: 0.5614973262 | J4: 0 | K4: 0.05347593583 | L4: 0.2245989305 | M4: 0.08288770053 | N4: 0.2700534759 | O4: 0.1684491979 | P4: 0 | Q4: 0 | R4: 0 | S4: 0 | T4: 0 | U4: 0 | V4: 0 | W4: 0.1406727829 | X4: 0 | Y4: 0.3948339483 | Z4: 0 | AA4: 121386.12 | AB4: 0 | AC4: 0 | AD4: 1 | AE4: 0 | AF4: 24576 | AG4: 0 | AH4: 0 | AI4: 4265 | AJ4: 1684454.125 | AK4: 0 | AL4: 0 | AM4: 0 | AN4: 24576 | AO4: 363 | AP4: 0 | AR4: 4.31 | AS4: 0.9 | AT4: 0.24 | BI4: y
A5: 2002 | B5: Repton Manor Primary School | C5: 1 | D5: 477 | E5: 0 | F5: 0 | G5: 0.1928721174 | H5: 0 | I5: 0.2033542977 | J5: 0 | K5: 0.04421052632 | L5: 0.05263157895 | M5: 0.01894736842 | N5: 0.01473684211 | O5: 0.02736842105 | P5: 0 | Q5: 0 | R5: 0 | S5: 0 | T5: 0 | U5: 0 | V5: 0 | W5: 0.08830548926 | X5: 0 | Y5: 0.225 | Z5: 0 | AA5: 121386.12 | AB5: 0 | AC5: 0 | AD5: 1 | AE5: 0 | AF5: 10650 | AG5: 0 | AH5: 0 | AI5: 4265 | AJ5: 2000330 | AK5: 0 | AL5: 0 | AM5: 0 | AN5: 10650 | AO5: 476 | BI5: n
A6: 2065 | B6: The Discovery School | C6: 1 | D6: 624 | E6: 0 | F6: 0 | G6: 0.05448717949 | H6: 0 | I6: 0.05769230769 | J6: 0 | K6: 0.03205128205 | L6: 0.004807692308 | M6: 0 | N6: 0.004807692308 | O6: 0.008012820513 | P6: 0 | Q6: 0 | R6: 0 | S6: 0 | T6: 0 | U6: 0 | V6: 0 | W6: 0.03738317757 | X6: 0 | Y6: 0.1503759398 | Z6: 0 | AA6: 121386.12 | AB6: 0 | AC6: 0 | AD6: 1 | AE6: 0 | AF6: 75264 | AG6: 0 | AH6: 0 | AI6: 4265 | AJ6: 2645964 | AK6: 0 | AL6: 0 | AM6: 0 | AN6: 75264 | AO6: 615 | BI6: n
A7: 2066 | B7: Maypole Primary School | C7: 1 | D7: 407 | E7: 0 | F7: 0 | G7: 0.1277641278 | H7: 0 | I7: 0.14004914 | J7: 0 | K7: 0.06633906634 | L7: 0.01474201474 | M7: 0.03194103194 | N7: 0.004914004914 | O7: 0.02211302211 | P7: 0 | Q7: 0 | R7: 0 | S7: 0 | T7: 0 | U7: 0 | V7: 0 | W7: 0.06936416185 | X7: 0 | Y7: 0.2567975831 | Z7: 0 | AA7: 121386.12 | AB7: 0 | AC7: 0 | AD7: 1.0373 | AE7: 0 | AF7: 38144 | AG7: 0 | AH7: 0 | AI7: 4265 | AJ7: 1731044 | AK7: 0 | AL7: 0 | AM7: 0 | AN7: 38144 | AO7: 405 | BI7: n
A8: 2079 | B8: Woodlands Primary School | C8: 1 | D8: 639 | E8: 0 | F8: 0 | G8: 0.1846635368 | H8: 0 | I8: 0.1971830986 | J8: 0 | K8: 0.3114241002 | L8: 0.006259780908 | M8: 0.05320813772 | N8: 0 | O8: 0 | P8: 0 | Q8: 0 | R8: 0 | S8: 0 | T8: 0 | U8: 0 | V8: 0 | W8: 0.03649635036 | X8: 0 | Y8: 0.1996303142 | Z8: 0 | AA8: 121386.12 | AB8: 0 | AC8: 0 | AD8: 1 | AE8: 0 | AF8: 57856 | AG8: 0 | AH8: 0 | AI8: 4265 | AJ8: 2720516 | AK8: 0 | AL8: 0 | AM8: 0 | AN8: 57856 | AO8: 637 | BI8: n
A9: 2088 | B9: Crockenhill Primary School | C9: 1 | D9: 203 | E9: 0 | F9: 0 | G9: 0.2857142857 | H9: 0 | I9: 0.2857142857 | J9: 0 | K9: 0.08374384236 | L9: 0.0197044335 | M9: 0 | N9: 0.01477832512 | O9: 0.1083743842 | P9: 0 | Q9: 0 | R9: 0 | S9: 0 | T9: 0 | U9: 0 | V9: 0 | W9: 0.03428571429 | X9: 0 | Y9: 0.2228571429 | Z9: 0 | AA9: 121386.12 | AB9: 0 | AC9: 0 | AD9: 1.0373 | AE9: 0 | AF9: 24116 | AG9: 0 | AH9: 0 | AI9: 4265 | AJ9: 899827.1222 | AK9: 0 | AL9: 0 | AM9: 0 | AN9: 24116 | AO9: 202 | BI9: n
A10: 2089 | B10: The Anthony Roper Primary School | C10: 1 | D10: 299 | E10: 0 | F10: 0 | G10: 0.1003344482 | H10: 0 | I10: 0.110367893 | J10: 0 | K10: 0.1003344482 | L10: 0.003344481605 | M10: 0.01003344482 | N10: 0.01337792642 | O10: 0.01672240803 | P10: 0 | Q10: 0 | R10: 0 | S10: 0 | T10: 0 | U10: 0 | V10: 0 | W10: 0.007874015748 | X10: 0 | Y10: 0.1618257261 | Z10: 0 | AA10: 121386.12 | AB10: 0 | AC10: 0 | AD10: 1.0373 | AE10: 0 | AF10: 6656 | AG10: 0 | AH10: 0 | AI10: 4265 | AJ10: 1256476 | AK10: 0 | AL10: 0 | AM10: 0 | AN10: 6656 | AO10: 299 | BI10: n
A11: 2094 | B11: Cobham Primary School | C11: 1 | D11: 219 | E11: 0 | F11: 0 | G11: 0.05479452055 | H11: 0 | I11: 0.05479452055 | J11: 0 | K11: 0 | L11: 0.009132420091 | M11: 0 | N11: 0.01369863014 | O11: 0 | P11: 0 | Q11: 0 | R11: 0 | S11: 0 | T11: 0 | U11: 0 | V11: 0 | W11: 0.01058201058 | X11: 0 | Y11: 0.167539267 | Z11: 0 | AA11: 121386.12 | AB11: 0 | AC11: 0 | AD11: 1 | AE11: 0 | AF11: 17216 | AG11: 0 | AH11: 0 | AI11: 4265 | AJ11: 932636 | AK11: 0 | AL11: 0 | AM11: 0 | AN11: 17216 | AO11: 219 | BI11: n
A12: 2095 | B12: Cecil Road Primary and Nursery School | C12: 1 | D12: 375 | E12: 0 | F12: 0 | G12: 0.1653333333 | H12: 0 | I12: 0.168 | J12: 0 | K12: 0.2520107239 | L12: 0.1367292225 | M12: 0.02144772118 | N12: 0.01072386059 | O12: 0.008042895442 | P12: 0 | Q12: 0 | R12: 0 | S12: 0 | T12: 0 | U12: 0 | V12: 0 | W12: 0.2142857143 | X12: 0 | Y12: 0.2555205047 | Z12: 0 | AA12: 121386.12 | AB12: 0 | AC12: 0 | AD12: 1 | AE12: 0 | AF12: 34048 | AG12: 0 | AH12: 0 | AI12: 4265 | AJ12: 1614088 | AK12: 0 | AL12: 0 | AM12: 0 | AN12: 34048 | AO12: 378 | AR12: 4.31 | AS12: 0.9 | AT12: 0 | BI12: y
A13: 2109 | B13: Higham Primary School | C13: 1 | D13: 208 | E13: 0 | F13: 0 | G13: 0.09615384615 | H13: 0 | I13: 0.1009615385 | J13: 0 | K13: 0.02415458937 | L13: 0.03381642512 | M13: 0.004830917874 | N13: 0.004830917874 | O13: 0 | P13: 0 | Q13: 0 | R13: 0 | S13: 0 | T13: 0 | U13: 0 | V13: 0 | W13: 0.01123595506 | X13: 0 | Y13: 0.2784090909 | Z13: 0 | AA13: 121386.12 | AB13: 0 | AC13: 0 | AD13: 1 | AE13: 0 | AF13: 22330 | AG13: 0 | AH13: 0 | AI13: 4265 | AJ13: 883410 | AK13: 0 | AL13: 0 | AM13: 0 | AN13: 22330 | AO13: 206 | BI13: n
A14: 2116 | B14: Lawn Primary School | C14: 1 | D14: 188 | E14: 0 | F14: 0 | G14: 0.579787234 | H14: 0 | I14: 0.6010638298 | J14: 0 | K14: 0.02127659574 | L14: 0.03191489362 | M14: 0.1436170213 | N14: 0 | O14: 0.7021276596 | P14: 0 | Q14: 0 | R14: 0 | S14: 0 | T14: 0 | U14: 0 | V14: 0 | W14: 0.248447205 | X14: 0 | Y14: 0.3802816901 | Z14: 0 | AA14: 121386.12 | AB14: 0 | AC14: 0 | AD14: 1 | AE14: 0 | AF14: 20709 | AG14: 0 | AH14: 0 | AI14: 4265 | AJ14: 1023155.94 | AK14: 0 | AL14: 0 | AM14: 0 | AN14: 20709 | AO14: 195 | AR14: 4.31 | AS14: 0.9 | AT14: 0.74 | BI14: y
A15: 2119 | B15: Shears Green Infant School | C15: 1 | D15: 334 | E15: 0 | F15: 0 | G15: 0.1796407186 | H15: 0 | I15: 0.1796407186 | J15: 0 | K15: 0.1317365269 | L15: 0.3383233533 | M15: 0.02395209581 | N15: 0.01497005988 | O15: 0.0119760479 | P15: 0 | Q15: 0 | R15: 0 | S15: 0 | T15: 0 | U15: 0 | V15: 0 | W15: 0.1125541126 | X15: 0 | Y15: 0.2436613166 | Z15: 0 | AA15: 121386.12 | AB15: 0 | AC15: 0 | AD15: 1 | AE15: 0 | AF15: 21760 | AG15: 0 | AH15: 0 | AI15: 4265 | AJ15: 1438780 | AK15: 0 | AL15: 0 | AM15: 0 | AN15: 21760 | AO15: 339 | BI15: n
A16: 2120 | B16: Bean Primary School | C16: 1 | D16: 192 | E16: 0 | F16: 0 | G16: 0.203125 | H16: 0 | I16: 0.2135416667 | J16: 0 | K16: 0.5416666667 | L16: 0.04166666667 | M16: 0 | N16: 0 | O16: 0.01041666667 | P16: 0 | Q16: 0 | R16: 0 | S16: 0 | T16: 0 | U16: 0 | V16: 0 | W16: 0.07878787879 | X16: 0 | Y16: 0.2 | Z16: 0 | AA16: 121386.12 | AB16: 0 | AC16: 0 | AD16: 1.0373 | AE16: 0 | AF16: 16093 | AG16: 0 | AH16: 0 | AI16: 4265 | AJ16: 869818.7306 | AK16: 0 | AL16: 0 | AM16: 0 | AN16: 16093 | AO16: 193 | BI16: n
A17: 2128 | B17: Capel Primary School | C17: 1 | D17: 206 | E17: 0 | F17: 0 | G17: 0.1504854369 | H17: 0 | I17: 0.1553398058 | J17: 0 | K17: 0.1116504854 | L17: 0 | M17: 0.03883495146 | N17: 0.004854368932 | O17: 0 | P17: 0 | Q17: 0 | R17: 0 | S17: 0 | T17: 0 | U17: 0 | V17: 0 | W17: 0.03409090909 | X17: 0 | Y17: 0.2160493827 | Z17: 0 | AA17: 121386.12 | AB17: 0 | AC17: 0 | AD17: 1 | AE17: 0 | AF17: 21457 | AG17: 0 | AH17: 0 | AI17: 4265 | AJ17: 886717 | AK17: 0 | AL17: 0 | AM17: 0 | AN17: 21457 | AO17: 207 | BI17: n
A18: 2130 | B18: Dunton Green Primary School | C18: 1 | D18: 177 | E18: 0 | F18: 0 | G18: 0.3333333333 | H18: 0 | I18: 0.3446327684 | J18: 0 | K18: 0.01694915254 | L18: 0 | M18: 0.005649717514 | N18: 0 | O18: 0 | P18: 0 | Q18: 0 | R18: 0 | S18: 0 | T18: 0 | U18: 0 | V18: 0 | W18: 0.09677419355 | X18: 0 | Y18: 0.2164179104 | Z18: 0 | AA18: 121386.12 | AB18: 0 | AC18: 0 | AD18: 1.0373 | AE18: 0 | AF18: 24576 | AG18: 0 | AH18: 0 | AI18: 4265 | AJ18: 835459.3844 | AK18: 0 | AL18: 0 | AM18: 0 | AN18: 24576 | AO18: 183 | BI18: n
A19: 2132 | B19: Hadlow Primary School | C19: 1 | D19: 178 | E19: 0 | F19: 0 | G19: 0.2752808989 | H19: 0 | I19: 0.2921348315 | J19: 0 | K19: 0.04494382022 | L19: 0.4943820225 | M19: 0.01685393258 | N19: 0 | O19: 0 | P19: 0 | Q19: 0 | R19: 0 | S19: 0 | T19: 0 | U19: 0 | V19: 0 | W19: 0.01863354037 | X19: 0 | Y19: 0.304964539 | Z19: 0 | AA19: 121386.12 | AB19: 0 | AC19: 0 | AD19: 1 | AE19: 0 | AF19: 24326 | AG19: 0 | AH19: 0 | AI19: 4265 | AJ19: 832482.403 | AK19: 0 | AL19: 0 | AM19: 0 | AN19: 24326 | AO19: 185 | BI19: n
A20: 2133 | B20: Halstead Community Primary School | C20: 1 | D20: 62 | E20: 0 | F20: 0 | G20: 0.2903225806 | H20: 0 | I20: 0.2903225806 | J20: 0 | K20: 0.06557377049 | L20: 0.06557377049 | M20: 0 | N20: 0 | O20: 0 | P20: 0 | Q20: 0 | R20: 0 | S20: 0 | T20: 0 | U20: 0 | V20: 0 | W20: 0.01754385965 | X20: 0 | Y20: 0.25 | Z20: 0 | AA20: 121386.12 | AB20: 42104.87325 | AC20: 0 | AD20: 1.0373 | AE20: 0 | AF20: 9481 | AG20: 0 | AH20: 0 | AI20: 4265 | AJ20: 410994.8336 | AK20: 0 | AL20: 0 | AM20: 0 | AN20: 9481 | AO20: 73 | BI20: n
A21: 2134 | B21: Four Elms Primary School | C21: 1 | D21: 108 | E21: 0 | F21: 0 | G21: 0.09259259259 | H21: 0 | I21: 0.09259259259 | J21: 0 | K21: 0.08333333333 | L21: 0 | M21: 0.1944444444 | N21: 0 | O21: 0 | P21: 0 | Q21: 0 | R21: 0 | S21: 0 | T21: 0 | U21: 0 | V21: 0 | W21: 0 | X21: 0 | Y21: 0.3 | Z21: 0 | AA21: 121386.12 | AB21: 30716.05194 | AC21: 0 | AD21: 1.0373 | AE21: 0 | AF21: 13348 | AG21: 0 | AH21: 0 | AI21: 4265 | AJ21: 534510.687 | AK21: 0 | AL21: 0 | AM21: 0 | AN21: 13348 | AO21: 107 | BI21: n
A22: 2136 | B22: Kemsing Primary School | C22: 1 | D22: 170 | E22: 0 | F22: 0 | G22: 0.1411764706 | H22: 0 | I22: 0.1411764706 | J22: 0 | K22: 0.005988023952 | L22: 0 | M22: 0 | N22: 0 | O22: 0.005988023952 | P22: 0 | Q22: 0 | R22: 0 | S22: 0 | T22: 0 | U22: 0 | V22: 0 | W22: 0.01333333333 | X22: 0 | Y22: 0.2426470588 | Z22: 0 | AA22: 121386.12 | AB22: 0 | AC22: 0 | AD22: 1.0373 | AE22: 0 | AF22: 21956 | AG22: 0 | AH22: 0 | AI22: 4265 | AJ22: 833610.2816 | AK22: 0 | AL22: 0 | AM22: 0 | AN22: 21956 | AO22: 187 | BI22: n
A23: 2137 | B23: Leigh Primary School | C23: 1 | D23: 162 | E23: 0 | F23: 0 | G23: 0.1604938272 | H23: 0 | I23: 0.1666666667 | J23: 0 | K23: 0.04938271605 | L23: 0 | M23: 0.006172839506 | N23: 0 | O23: 0 | P23: 0 | Q23: 0 | R23: 0 | S23: 0 | T23: 0 | U23: 0 | V23: 0 | W23: 0 | X23: 0 | Y23: 0.2148148148 | Z23: 0 | AA23: 121386.12 | AB23: 0 | AC23: 0 | AD23: 1.0373 | AE23: 0 | AF23: 12200 | AG23: 0 | AH23: 0 | AI23: 4265 | AJ23: 720150.4448 | AK23: 0 | AL23: 0 | AM23: 0 | AN23: 12200 | AO23: 165 | BI23: n
A24: 2138 | B24: Otford Primary School | C24: 1 | D24: 368 | E24: 0 | F24: 0 | G24: 0.1086956522 | H24: 0 | I24: 0.1114130435 | J24: 0 | K24: 0.02445652174 | L24: 0.005434782609 | M24: 0 | N24: 0 | O24: 0 | P24: 0 | Q24: 0 | R24: 0 | S24: 0 | T24: 0 | U24: 0 | V24: 0 | W24: 0.009523809524 | X24: 0 | Y24: 0.1401869159 | Z24: 0 | AA24: 121386.12 | AB24: 0 | AC24: 0 | AD24: 1.0373 | AE24: 0 | AF24: 29440 | AG24: 0 | AH24: 0 | AI24: 4265 | AJ24: 1642920 | AK24: 0 | AL24: 0 | AM24: 0 | AN24: 29440 | AO24: 386 | BI24: n
A25: 2139 | B25: Pembury School | C25: 1 | D25: 393 | E25: 0 | F25: 0 | G25: 0.1043256997 | H25: 0 | I25: 0.1094147583 | J25: 0 | K25: 0.05612244898 | L25: 0 | M25: 0 | N25: 0.002551020408 | O25: 0 | P25: 0 | Q25: 0 | R25: 0 | S25: 0 | T25: 0 | U25: 0 | V25: 0 | W25: 0.07246376812 | X25: 0 | Y25: 0.1526946108 | Z25: 0 | AA25: 121386.12 | AB25: 0 | AC25: 0 | AD25: 1 | AE25: 0 | AF25: 42496 | AG25: 0 | AH25: 0 | AI25: 4265 | AJ25: 1731216 | AK25: 0 | AL25: 0 | AM25: 0 | AN25: 42496 | AO25: 404 | BI25: n
A26: 2142 | B26: Sandhurst Primary School | C26: 1 | D26: 160 | E26: 0 | F26: 0 | G26: 0.23125 | H26: 0 | I26: 0.24375 | J26: 0 | K26: 0.0625 | L26: 0 | M26: 0 | N26: 0.00625 | O26: 0 | P26: 0 | Q26: 0 | R26: 0 | S26: 0 | T26: 0 | U26: 0 | V26: 0 | W26: 0.02857142857 | X26: 0 | Y26: 0.2347826087 | Z26: 0 | AA26: 121386.12 | AB26: 0 | AC26: 0 | AD26: 1 | AE26: 0 | AF26: 21582 | AG26: 0 | AH26: 0 | AI26: 4265 | AJ26: 687979.8635 | AK26: 0 | AL26: 0 | AM26: 0 | AN26: 21582 | AO26: 152 | BI26: n
A27: 2147 | B27: Weald Community Primary School | C27: 1 | D27: 117 | E27: 0 | F27: 0 | G27: 0.1282051282 | H27: 0 | I27: 0.1282051282 | J27: 0 | K27: 0.01709401709 | L27: 0 | M27: 0.008547008547 | N27: 0.008547008547 | O27: 0 | P27: 0 | Q27: 0 | R27: 0 | S27: 0 | T27: 0 | U27: 0 | V27: 0 | W27: 0.04672897196 | X27: 0 | Y27: 0.2337662338 | Z27: 0 | AA27: 121386.12 | AB27: 24102.54793 | AC27: 0 | AD27: 1.0373 | AE27: 0 | AF27: 15220 | AG27: 0 | AH27: 0 | AI27: 4265 | AJ27: 673305.2102 | AK27: 0 | AL27: 0 | AM27: 0 | AN27: 15220 | AO27: 147 | BI27: n
A28: 2148 | B28: Shoreham Village School | C28: 1 | D28: 92 | E28: 0 | F28: 0 | G28: 0.152173913 | H28: 0 | I28: 0.1847826087 | J28: 0 | K28: 0.04347826087 | L28: 0 | M28: 0.01086956522 | N28: 0 | O28: 0 | P28: 0 | Q28: 0 | R28: 0 | S28: 0 | T28: 0 | U28: 0 | V28: 0 | W28: 0.02597402597 | X28: 0 | Y28: 0.2463768116 | Z28: 0 | AA28: 121386.12 | AB28: 42473.39239 | AC28: 0 | AD28: 1.0373 | AE28: 0 | AF28: 14097 | AG28: 0 | AH28: 0 | AI28: 4265 | AJ28: 500241.3486 | AK28: 0 | AL28: 0 | AM28: 0 | AN28: 14097 | AO28: 98 | BI28: n
A29: 2155 | B29: Slade Primary School and Attached Unit for Children with Hearing Impairment | C29: 1 | D29: 418 | E29: 0 | F29: 0 | G29: 0.1052631579 | H29: 0 | I29: 0.1052631579 | J29: 0 | K29: 0.2153110048 | L29: 0.007177033493 | M29: 0.02631578947 | N29: 0 | O29: 0 | P29: 0 | Q29: 0 | R29: 0 | S29: 0 | T29: 0 | U29: 0 | V29: 0 | W29: 0.1759776536 | X29: 0 | Y29: 0.3046153846 | Z29: 0 | AA29: 121386.12 | AB29: 0 | AC29: 0 | AD29: 1 | AE29: 0 | AF29: 29952 | AG29: 0 | AH29: 0 | AI29: 4265 | AJ29: 1773012 | AK29: 0 | AL29: 0 | AM29: 0 | AN29: 29952 | AO29: 417 | BI29: n
A30: 2156 | B30: Sussex Road Community Primary School | C30: 1 | D30: 448 | E30: 0 | F30: 0 | G30: 0.1339285714 | H30: 0 | I30: 0.1473214286 | J30: 0 | K30: 0.1227678571 | L30: 0.01116071429 | M30: 0.04017857143 | N30: 0 | O30: 0 | P30: 0 | Q30: 0 | R30: 0 | S30: 0 | T30: 0 | U30: 0 | V30: 0 | W30: 0.09020618557 | X30: 0 | Y30: 0.1777188329 | Z30: 0 | AA30: 121386.12 | AB30: 0 | AC30: 0 | AD30: 1 | AE30: 0 | AF30: 44544 | AG30: 0 | AH30: 0 | AI30: 4265 | AJ30: 1887924 | AK30: 0 | AL30: 0 | AM30: 0 | AN30: 44544 | AO30: 441 | BI30: n
A31: 2161 | B31: Boughton Monchelsea Primary School | C31: 1 | D31: 208 | E31: 0 | F31: 0 | G31: 0.1442307692 | H31: 0 | I31: 0.1490384615 | J31: 0 | K31: 0.1634615385 | L31: 0 | M31: 0 | N31: 0.01442307692 | O31: 0.01923076923 | P31: 0 | Q31: 0 | R31: 0 | S31: 0 | T31: 0 | U31: 0 | V31: 0 | W31: 0.01123595506 | X31: 0 | Y31: 0.2429378531 | Z31: 0 | AA31: 121386.12 | AB31: 0 | AC31: 0 | AD31: 1 | AE31: 0 | AF31: 22580 | AG31: 0 | AH31: 0 | AI31: 4265 | AJ31: 883660 | AK31: 0 | AL31: 0 | AM31: 0 | AN31: 22580 | AO31: 206 | BI31: n
A32: 2163 | B32: East Farleigh Primary School | C32: 1 | D32: 205 | E32: 0 | F32: 0 | G32: 0.1073170732 | H32: 0 | I32: 0.1170731707 | J32: 0 | K32: 0.08780487805 | L32: 0.0243902439 | M32: 0.00487804878 | N32: 0 | O32: 0.06829268293 | P32: 0 | Q32: 0 | R32: 0 | S32: 0 | T32: 0 | U32: 0 | V32: 0 | W32: 0.02840909091 | X32: 0 | Y32: 0.224137931 | Z32: 0 | AA32: 121386.12 | AB32: 0 | AC32: 0 | AD32: 1 | AE32: 0 | AF32: 16717 | AG32: 0 | AH32: 0 | AI32: 4265 | AJ32: 865257 | AK32: 0 | AL32: 0 | AM32: 0 | AN32: 16717 | AO32: 203 | BI32: n
A33: 2164 | B33: East Peckham Primary School | C33: 1 | D33: 156 | E33: 0 | F33: 0 | G33: 0.1474358974 | H33: 0 | I33: 0.1602564103 | J33: 0 | K33: 0.5512820513 | L33: 0.04487179487 | M33: 0 | N33: 0 | O33: 0.01923076923 | P33: 0 | Q33: 0 | R33: 0 | S33: 0 | T33: 0 | U33: 0 | V33: 0 | W33: 0.01526717557 | X33: 0 | Y33: 0.1833333333 | Z33: 0 | AA33: 121386.12 | AB33: 0 | AC33: 0 | AD33: 1 | AE33: 0 | AF33: 20709 | AG33: 0 | AH33: 0 | AI33: 4265 | AJ33: 713627.0474 | AK33: 0 | AL33: 0 | AM33: 0 | AN33: 20709 | AO33: 159 | BI33: n
A34: 2165 | B34: Headcorn Primary School | C34: 1 | D34: 350 | E34: 0 | F34: 0 | G34: 0.1657142857 | H34: 0 | I34: 0.1771428571 | J34: 0 | K34: 0.01714285714 | L34: 0 | M34: 0.2628571429 | N34: 0.002857142857 | O34: 0 | P34: 0 | Q34: 0 | R34: 0 | S34: 0 | T34: 0 | U34: 0 | V34: 0 | W34: 0.03436426117 | X34: 0 | Y34: 0.1821305842 | Z34: 0 | AA34: 121386.12 | AB34: 0 | AC34: 0 | AD34: 1 | AE34: 0 | AF34: 40918 | AG34: 0 | AH34: 0 | AI34: 4265 | AJ34: 1403598 | AK34: 0 | AL34: 0 | AM34: 0 | AN34: 40918 | AO34: 326 | BI34: n
A35: 2166 | B35: Hollingbourne Primary School | C35: 1 | D35: 100 | E35: 0 | F35: 0 | G35: 0.17 | H35: 0 | I35: 0.17 | J35: 0 | K35: 0.02 | L35: 0.01 | M35: 0 | N35: 0 | O35: 0 | P35: 0 | Q35: 0 | R35: 0 | S35: 0 | T35: 0 | U35: 0 | V35: 0 | W35: 0.04651162791 | X35: 0 | Y35: 0.3536585366 | Z35: 0 | AA35: 121386.12 | AB35: 36594.72216 | AC35: 0 | AD35: 1 | AE35: 0 | AF35: 13723 | AG35: 0 | AH35: 0 | AI35: 4265 | AJ35: 478569.5217 | AK35: 0 | AL35: 0 | AM35: 0 | AN35: 13723 | AO35: 96 | BI35: n
A36: 2167 | B36: Ightham Primary School | C36: 1 | D36: 200 | E36: 0 | F36: 0 | G36: 0.03 | H36: 0 | I36: 0.03 | J36: 0 | K36: 0.07070707071 | L36: 0 | M36: 0 | N36: 0 | O36: 0 | P36: 0 | Q36: 0 | R36: 0 | S36: 0 | T36: 0 | U36: 0 | V36: 0 | W36: 0.01176470588 | X36: 0 | Y36: 0.1139240506 | Z36: 0 | AA36: 121386.12 | AB36: 0 | AC36: 0 | AD36: 1 | AE36: 0 | AF36: 21457 | AG36: 0 | AH36: 0 | AI36: 4265 | AJ36: 882537 | AK36: 0 | AL36: 0 | AM36: 0 | AN36: 21457 | AO36: 206 | BI36: n
A37: 2168 | B37: Lenham Primary School | C37: 1 | D37: 208 | E37: 0 | F37: 0 | G37: 0.1682692308 | H37: 0 | I37: 0.1730769231 | J37: 0 | K37: 0 | L37: 0.02415458937 | M37: 0.004830917874 | N37: 0 | O37: 0 | P37: 0 | Q37: 0 | R37: 0 | S37: 0 | T37: 0 | U37: 0 | V37: 0 | W37: 0.005617977528 | X37: 0 | Y37: 0.2790697674 | Z37: 0 | AA37: 121386.12 | AB37: 0 | AC37: 0 | AD37: 1 | AE37: 0 | AF37: 18837 | AG37: 0 | AH37: 0 | AI37: 4265 | AJ37: 875737 | AK37: 0 | AL37: 0 | AM37: 0 | AN37: 18837 | AO37: 205 | BI37: n
A38: 2169 | B38: Platts Heath Primary School | C38: 1 | D38: 51 | E38: 0 | F38: 0 | G38: 0.3137254902 | H38: 0 | I38: 0.3725490196 | J38: 0 | K38: 0.07843137255 | L38: 0 | M38: 0 | N38: 0.01960784314 | O38: 0 | P38: 0 | Q38: 0 | R38: 0 | S38: 0 | T38: 0 | U38: 0 | V38: 0 | W38: 0 | X38: 0 | Y38: 0.3703703704 | Z38: 0 | AA38: 121386.12 | AB38: 22290.81525 | AC38: 0 | AD38: 1 | AE38: 0 | AF38: 2345 | AG38: 0 | AH38: 0 | AI38: 4265 | AJ38: 316409.4286 | AK38: 0 | AL38: 0 | AM38: 0 | AN38: 2345 | AO38: 53 | BI38: n
A39: 2171 | B39: Brunswick House Primary School | C39: 1 | D39: 419 | E39: 0 | F39: 0 | G39: 0.214797136 | H39: 0 | I39: 0.2291169451 | J39: 0 | K39: 0.113253012 | L39: 0.002409638554 | M39: 0.002409638554 | N39: 0.009638554217 | O39: 0.004819277108 | P39: 0 | Q39: 0 | R39: 0 | S39: 0 | T39: 0 | U39: 0 | V39: 0 | W39: 0.1364902507 | X39: 0 | Y39: 0.2330383481 | Z39: 0 | AA39: 121386.12 | AB39: 0 | AC39: 0 | AD39: 1 | AE39: 0 | AF39: 66048 | AG39: 0 | AH39: 0 | AI39: 4265 | AJ39: 1813288 | AK39: 0 | AL39: 0 | AM39: 0 | AN39: 66048 | AO39: 418 | BI39: n
A40: 2175 | B40: North Borough Junior School | C40: 1 | D40: 340 | E40: 0 | F40: 0 | G40: 0.2205882353 | H40: 0 | I40: 0.2470588235 | J40: 0 | K40: 0.2911764706 | L40: 0.01764705882 | M40: 0.002941176471 | N40: 0.005882352941 | O40: 0.01470588235 | P40: 0 | Q40: 0 | R40: 0 | S40: 0 | T40: 0 | U40: 0 | V40: 0 | W40: 0.1327433628 | X40: 0 | Y40: 0.2751196172 | Z40: 0 | AA40: 121386.12 | AB40: 0 | AC40: 0 | AD40: 1 | AE40: 0 | AF40: 23328 | AG40: 0 | AH40: 0 | AI40: 4265 | AJ40: 1444528 | AK40: 0 | AL40: 0 | AM40: 0 | AN40: 23328 | AO40: 340 | BI40: n
A41: 2176 | B41: Park Way Primary School | C41: 1 | D41: 309 | E41: 0 | F41: 0 | G41: 0.28802589 | H41: 0 | I41: 0.3106796117 | J41: 0 | K41: 0.2427184466 | L41: 0.2330097087 | M41: 0.02265372168 | N41: 0.009708737864 | O41: 0.09061488673 | P41: 0 | Q41: 0 | R41: 0 | S41: 0 | T41: 0 | U41: 0 | V41: 0 | W41: 0.1590909091 | X41: 0 | Y41: 0.2903225806 | Z41: 0 | AA41: 121386.12 | AB41: 0 | AC41: 0 | AD41: 1 | AE41: 0 | AF41: 28416 | AG41: 0 | AH41: 0 | AI41: 4265 | AJ41: 1353648.293 | AK41: 0 | AL41: 0 | AM41: 0 | AN41: 28416 | AO41: 310 | BI41: n
A42: 2185 | B42: Mereworth Community Primary School | C42: 1 | D42: 209 | E42: 0 | F42: 0 | G42: 0.1626794258 | H42: 0 | I42: 0.1674641148 | J42: 0 | K42: 0.1394230769 | L42: 0.009615384615 | M42: 0.004807692308 | N42: 0.004807692308 | O42: 0.004807692308 | P42: 0 | Q42: 0 | R42: 0 | S42: 0 | T42: 0 | U42: 0 | V42: 0 | W42: 0.005494505495 | X42: 0 | Y42: 0.1868131868 | Z42: 0 | AA42: 121386.12 | AB42: 0 | AC42: 0 | AD42: 1 | AE42: 0 | AF42: 26368 | AG42: 0 | AH42: 0 | AI42: 4265 | AJ42: 887448 | AK42: 0 | AL42: 0 | AM42: 0 | AN42: 26368 | AO42: 206 | BI42: n
A43: 2187 | B43: Offham Primary School | C43: 1 | D43: 213 | E43: 0 | F43: 0 | G43: 0.04694835681 | H43: 0 | I43: 0.04694835681 | J43: 0 | K43: 0.1279620853 | L43: 0.004739336493 | M43: 0 | N43: 0 | O43: 0.01421800948 | P43: 0 | Q43: 0 | R43: 0 | S43: 0 | T43: 0 | U43: 0 | V43: 0 | W43: 0.01092896175 | X43: 0 | Y43: 0.1263736264 | Z43: 0 | AA43: 121386.12 | AB43: 0 | AC43: 0 | AD43: 1 | AE43: 0 | AF43: 23827 | AG43: 0 | AH43: 0 | AI43: 4265 | AJ43: 897447 | AK43: 0 | AL43: 0 | AM43: 0 | AN43: 23827 | AO43: 209 | BI43: n
A44: 2188 | B44: Plaxtol Primary School | C44: 1 | D44: 98 | E44: 0 | F44: 0 | G44: 0.112244898 | H44: 0 | I44: 0.112244898 | J44: 0 | K44: 0.07142857143 | L44: 0 | M44: 0.01020408163 | N44: 0 | O44: 0 | P44: 0 | Q44: 0 | R44: 0 | S44: 0 | T44: 0 | U44: 0 | V44: 0 | W44: 0.01204819277 | X44: 0 | Y44: 0.1625 | Z44: 0 | AA44: 121386.12 | AB44: 38064.38972 | AC44: 0 | AD44: 1 | AE44: 0 | AF44: 13847 | AG44: 0 | AH44: 0 | AI44: 4265 | AJ44: 454715.7205 | AK44: 0 | AL44: 0 | AM44: 0 | AN44: 13847 | AO44: 97 | BI44: n
A45: 2189 | B45: Ryarsh Primary School | C45: 1 | D45: 210 | E45: 0 | F45: 0 | G45: 0.05714285714 | H45: 0 | I45: 0.05714285714 | J45: 0 | K45: 0.0380952381 | L45: 0.009523809524 | M45: 0 | N45: 0 | O45: 0 | P45: 0 | Q45: 0 | R45: 0 | S45: 0 | T45: 0 | U45: 0 | V45: 0 | W45: 0.005555555556 | X45: 0 | Y45: 0.1722222222 | Z45: 0 | AA45: 121386.12 | AB45: 0 | AC45: 0 | AD45: 1 | AE45: 0 | AF45: 17964 | AG45: 0 | AH45: 0 | AI45: 4265 | AJ45: 899944 | AK45: 0 | AL45: 0 | AM45: 0 | AN45: 17964 | AO45: 211 | BI45: n
A46: 2190 | B46: Shipbourne School | C46: 1 | D46: 60 | E46: 0 | F46: 0 | G46: 0.15 | H46: 0 | I46: 0.1666666667 | J46: 0 | K46: 0.1 | L46: 0.05 | M46: 0.05 | N46: 0 | O46: 0 | P46: 0 | Q46: 0 | R46: 0 | S46: 0 | T46: 0 | U46: 0 | V46: 0 | W46: 0.08 | X46: 0 | Y46: 0.07407407407 | Z46: 0 | AA46: 121386.12 | AB46: 0 | AC46: 0 | AD46: 1 | AE46: 0 | AF46: 6737 | AG46: 0 | AH46: 0 | AI46: 4265 | AJ46: 333190.2942 | AK46: 0 | AL46: 0 | AM46: 0 | AN46: 6737 | AO46: 59 | BI46: n
A47: 2192 | B47: Staplehurst School | C47: 1 | D47: 370 | E47: 0 | F47: 0 | G47: 0.1810810811 | H47: 0 | I47: 0.1918918919 | J47: 0 | K47: 0.02162162162 | L47: 0.008108108108 | M47: 0.002702702703 | N47: 0 | O47: 0.002702702703 | P47: 0 | Q47: 0 | R47: 0 | S47: 0 | T47: 0 | U47: 0 | V47: 0 | W47: 0.02194357367 | X47: 0 | Y47: 0.3050314465 | Z47: 0 | AA47: 121386.12 | AB47: 0 | AC47: 0 | AD47: 1 | AE47: 0 | AF47: 37632 | AG47: 0 | AH47: 0 | AI47: 4265 | AJ47: 1496452 | AK47: 0 | AL47: 0 | AM47: 0 | AN47: 37632 | AO47: 349 | BI47: n
A48: 2193 | B48: Sutton Valence Primary School | C48: 1 | D48: 204 | E48: 0 | F48: 0 | G48: 0.1911764706 | H48: 0 | I48: 0.2009803922 | J48: 0 | K48: 0.137254902 | L48: 0.02941176471 | M48: 0.03921568627 | N48: 0.04411764706 | O48: 0.004901960784 | P48: 0 | Q48: 0 | R48: 0 | S48: 0 | T48: 0 | U48: 0 | V48: 0 | W48: 0.04022988506 | X48: 0 | Y48: 0.1935483871 | Z48: 0 | AA48: 121386.12 | AB48: 0 | AC48: 0 | AD48: 1 | AE48: 0 | AF48: 19835 | AG48: 0 | AH48: 0 | AI48: 4265 | AJ48: 872555 | AK48: 0 | AL48: 0 | AM48: 0 | AN48: 19835 | AO48: 204 | BI48: n
A49: 2226 | B49: Eastling Primary School | C49: 1 | D49: 97 | E49: 0 | F49: 0 | G49: 0.175257732 | H49: 0 | I49: 0.175257732 | J49: 0 | K49: 0.1030927835 | L49: 0.01030927835 | M49: 0.01030927835 | N49: 0 | O49: 0.07216494845 | P49: 0 | Q49: 0 | R49: 0 | S49: 0 | T49: 0 | U49: 0 | V49: 0 | W49: 0.02352941176 | X49: 0 | Y49: 0.2352941176 | Z49: 0 | AA49: 121386.12 | AB49: 38799.2235 | AC49: 0 | AD49: 1 | AE49: 0 | AF49: 12974 | AG49: 0 | AH49: 0 | AI49: 4265 | AJ49: 491456.9885 | AK49: 0 | AL49: 0 | AM49: 0 | AN49: 12974 | AO49: 88 | BI49: n
A50: 2227 | B50: Ethelbert Road Primary School | C50: 1 | D50: 209 | E50: 0 | F50: 0 | G50: 0.06698564593 | H50: 0 | I50: 0.07177033493 | J50: 0 | K50: 0.03827751196 | L50: 0.06220095694 | M50: 0.02870813397 | N50: 0.004784688995 | O50: 0.01913875598 | P50: 0 | Q50: 0 | R50: 0 | S50: 0 | T50: 0 | U50: 0 | V50: 0 | W50: 0.0393258427 | X50: 0 | Y50: 0.1899441341 | Z50: 0 | AA50: 121386.12 | AB50: 0 | AC50: 0 | AD50: 1 | AE50: 0 | AF50: 11477 | AG50: 0 | AH50: 0 | AI50: 4265 | AJ50: 880917 | AK50: 0 | AL50: 0 | AM50: 0 | AN50: 11477 | AO50: 208 | BI50: n
A51: 2228 | B51: Davington Primary School | C51: 1 | D51: 413 | E51: 0 | F51: 0 | G51: 0.1937046005 | H51: 0 | I51: 0.1937046005 | J51: 0 | K51: 0.1283292978 | L51: 0.05326876513 | M51: 0.03631961259 | N51: 0 | O51: 0.3631961259 | P51: 0.004842615012 | Q51: 0 | R51: 0 | S51: 0 | T51: 0 | U51: 0 | V51: 0 | W51: 0.0338028169 | X51: 0 | Y51: 0.2732394366 | Z51: 0 | AA51: 121386.12 | AB51: 0 | AC51: 0 | AD51: 1 | AE51: 0 | AF51: 39424 | AG51: 0 | AH51: 0 | AI51: 4265 | AJ51: 1736504 | AK51: 0 | AL51: 0 | AM51: 0 | AN51: 39424 | AO51: 406 | BI51: n
A52: 2231 | B52: Lower Halstow Primary School | C52: 1 | D52: 165 | E52: 0 | F52: 0 | G52: 0.1212121212 | H52: 0 | I52: 0.1393939394 | J52: 0 | K52: 0.06748466258 | L52: 0.1349693252 | M52: 0.006134969325 | N52: 0.0245398773 | O52: 0 | P52: 0 | Q52: 0 | R52: 0 | S52: 0 | T52: 0 | U52: 0 | V52: 0 | W52: 0.007246376812 | X52: 0 | Y52: 0.2293577982 | Z52: 0 | AA52: 121386.12 | AB52: 0 | AC52: 0 | AD52: 1 | AE52: 0 | AF52: 20833 | AG52: 0 | AH52: 0 | AI52: 4265 | AJ52: 712378.463 | AK52: 0 | AL52: 0 | AM52: 0 | AN52: 20833 | AO52: 164 | BI52: n
A53: 2239 | B53: Rodmersham School | C53: 1 | D53: 102 | E53: 0 | F53: 0 | G53: 0.01960784314 | H53: 0 | I53: 0.03921568627 | J53: 0 | K53: 0.04901960784 | L53: 0.06862745098 | M53: 0.03921568627 | N53: 0 | O53: 0.009803921569 | P53: 0.02941176471 | Q53: 0 | R53: 0 | S53: 0 | T53: 0 | U53: 0 | V53: 0 | W53: 0.02272727273 | X53: 0 | Y53: 0.1904761905 | Z53: 0 | AA53: 121386.12 | AB53: 0 | AC53: 0 | AD53: 1 | AE53: 0 | AF53: 5863 | AG53: 0 | AH53: 6870 | AI53: 4265 | AJ53: 478145.0246 | AK53: 0 | AL53: 0 | AM53: 0 | AN53: 5863 | AO53: 101 | BI53: n
A54: 2245 | B54: Rose Street Primary School | C54: 1 | D54: 386 | E54: 0 | F54: 0 | G54: 0.5880829016 | H54: 0 | I54: 0.6062176166 | J54: 0 | K54: 0.03626943005 | L54: 0.002590673575 | M54: 0.002590673575 | N54: 0.1813471503 | O54: 0.3601036269 | P54: 0.3989637306 | Q54: 0 | R54: 0 | S54: 0 | T54: 0 | U54: 0 | V54: 0 | W54: 0.05504587156 | X54: 0 | Y54: 0.32247557 | Z54: 0 | AA54: 121386.12 | AB54: 0 | AC54: 0 | AD54: 1 | AE54: 0 | AF54: 79872 | AG54: 0 | AH54: 0 | AI54: 4265 | AJ54: 1947339.316 | AK54: 0 | AL54: 0 | AM54: 0 | AN54: 79872 | AO54: 396 | AR54: 4.31 | AS54: 0.9 | AT54: 0.6 | BI54: y
A55: 2254 | B55: Canterbury Road Primary School | C55: 1 | D55: 206 | E55: 0 | F55: 0 | G55: 0.2621359223 | H55: 0 | I55: 0.286407767 | J55: 0 | K55: 0.09708737864 | L55: 0.4126213592 | M55: 0.1359223301 | N55: 0.004854368932 | O55: 0.009708737864 | P55: 0.1067961165 | Q55: 0 | R55: 0 | S55: 0 | T55: 0 | U55: 0 | V55: 0 | W55: 0.09090909091 | X55: 0 | Y55: 0.3522727273 | Z55: 0 | AA55: 121386.12 | AB55: 0 | AC55: 0 | AD55: 1 | AE55: 0 | AF55: 29952 | AG55: 0 | AH55: 0 | AI55: 4265 | AJ55: 971311.1718 | AK55: 0 | AL55: 0 | AM55: 0 | AN55: 29952 | AO55: 207 | BI55: n
A56: 2258 | B56: Blean Primary School | C56: 1 | D56: 427 | E56: 0 | F56: 0 | G56: 0.07728337237 | H56: 0 | I56: 0.09133489461 | J56: 0 | K56: 0.0281030445 | L56: 0.03044496487 | M56: 0.009367681499 | N56: 0.05386416862 | O56: 0.0281030445 | P56: 0 | Q56: 0 | R56: 0 | S56: 0 | T56: 0 | U56: 0 | V56: 0 | W56: 0.1195652174 | X56: 0 | Y56: 0.1519337017 | Z56: 0 | AA56: 121386.12 | AB56: 0 | AC56: 0 | AD56: 1 | AE56: 0 | AF56: 37632 | AG56: 0 | AH56: 0 | AI56: 4265 | AJ56: 1835032 | AK56: 0 | AL56: 0 | AM56: 0 | AN56: 37632 | AO56: 430 | BI56: n
A57: 2263 | B57: Herne Bay Infant School | C57: 1 | D57: 265 | E57: 0 | F57: 0 | G57: 0.358490566 | H57: 0 | I57: 0.358490566 | J57: 0 | K57: 0.1471698113 | L57: 0.01886792453 | M57: 0.09433962264 | N57: 0.05283018868 | O57: 0.1509433962 | P57: 0 | Q57: 0 | R57: 0 | S57: 0 | T57: 0 | U57: 0 | V57: 0 | W57: 0.1034482759 | X57: 0 | Y57: 0.2436613166 | Z57: 0 | AA57: 121386.12 | AB57: 0 | AC57: 0 | AD57: 1 | AE57: 0 | AF57: 15968 | AG57: 0 | AH57: 0 | AI57: 4265 | AJ57: 1229818.526 | AK57: 0 | AL57: 0 | AM57: 0 | AN57: 15968 | AO57: 279 | AR57: 4.31 | AS57: 0.9 | AT57: 0 | BI57: y
A58: 2265 | B58: Hoath Primary School | C58: 1 | D58: 95 | E58: 0 | F58: 0 | G58: 0.1263157895 | H58: 0 | I58: 0.1368421053 | J58: 0 | K58: 0.2210526316 | L58: 0.08421052632 | M58: 0 | N58: 0.03157894737 | O58: 0.02105263158 | P58: 0.01052631579 | Q58: 0 | R58: 0 | S58: 0 | T58: 0 | U58: 0 | V58: 0 | W58: 0.025 | X58: 0 | Y58: 0.2467532468 | Z58: 0 | AA58: 121386.12 | AB58: 201.3444553 | AC58: 0 | AD58: 1 | AE58: 0 | AF58: 14346 | AG58: 0 | AH58: 0 | AI58: 4265 | AJ58: 454055.4425 | AK58: 0 | AL58: 0 | AM58: 0 | AN58: 14346 | AO58: 92 | BI58: n
A59: 2268 | B59: Westmeads Community Infant School | C59: 1 | D59: 156 | E59: 0 | F59: 0 | G59: 0.1602564103 | H59: 0 | I59: 0.1730769231 | J59: 0 | K59: 0 | L59: 0.01282051282 | M59: 0.04487179487 | N59: 0 | O59: 0.01923076923 | P59: 0 | Q59: 0 | R59: 0 | S59: 0 | T59: 0 | U59: 0 | V59: 0 | W59: 0.03703703704 | X59: 0 | Y59: 0.2436613166 | Z59: 0 | AA59: 121386.12 | AB59: 0 | AC59: 0 | AD59: 1 | AE59: 0 | AF59: 19711 | AG59: 0 | AH59: 0 | AI59: 4265 | AJ59: 734137.0341 | AK59: 0 | AL59: 0 | AM59: 0 | AN59: 19711 | AO59: 170 | BI59: y
A60: 2269 | B60: Whitstable Junior School | C60: 1 | D60: 255 | E60: 0 | F60: 0 | G60: 0.2117647059 | H60: 0 | I60: 0.2549019608 | J60: 0 | K60: 0 | L60: 0.01176470588 | M60: 0.1019607843 | N60: 0.05098039216 | O60: 0.007843137255 | P60: 0 | Q60: 0 | R60: 0 | S60: 0 | T60: 0 | U60: 0 | V60: 0 | W60: 0.01568627451 | X60: 0 | Y60: 0.2906976744 | Z60: 0 | AA60: 121386.12 | AB60: 0 | AC60: 0 | AD60: 1 | AE60: 0 | AF60: 3866 | AG60: 0 | AH60: 0 | AI60: 4265 | AJ60: 1084737 | AK60: 0 | AL60: 0 | AM60: 0 | AN60: 18837 | AO60: 255 | BI60: n
A61: 2270 | B61: Aldington Primary School | C61: 1 | D61: 202 | E61: 0 | F61: 0 | G61: 0.1336633663 | H61: 0 | I61: 0.1386138614 | J61: 0 | K61: 0.0198019802 | L61: 0.009900990099 | M61: 0.009900990099 | N61: 0 | O61: 0.00495049505 | P61: 0 | Q61: 0 | R61: 0 | S61: 0 | T61: 0 | U61: 0 | V61: 0 | W61: 0.005813953488 | X61: 0 | Y61: 0.282208589 | Z61: 0 | AA61: 121386.12 | AB61: 0 | AC61: 0 | AD61: 1 | AE61: 0 | AF61: 29952 | AG61: 0 | AH61: 0 | AI61: 4265 | AJ61: 870132 | AK61: 0 | AL61: 0 | AM61: 0 | AN61: 29952 | AO61: 201 | BI61: n
A62: 2272 | B62: East Stour Primary School | C62: 1 | D62: 386 | E62: 0 | F62: 0 | G62: 0.4041450777 | H62: 0 | I62: 0.432642487 | J62: 0 | K62: 0.1632124352 | L62: 0.2849740933 | M62: 0.002590673575 | N62: 0.0103626943 | O62: 0.02331606218 | P62: 0 | Q62: 0 | R62: 0 | S62: 0 | T62: 0 | U62: 0 | V62: 0 | W62: 0.1178247734 | X62: 0 | Y62: 0.2823129252 | Z62: 0 | AA62: 121386.12 | AB62: 0 | AC62: 0 | AD62: 1 | AE62: 0 | AF62: 53760 | AG62: 0 | AH62: 0 | AI62: 4265 | AJ62: 1688140 | AK62: 0 | AL62: 0 | AM62: 0 | AN62: 53760 | AO62: 391 | AR62: 4.31 | AS62: 0.9 | AT62: 0.3 | BI62: y
A63: 2275 | B63: Victoria Road Primary School | C63: 1 | D63: 210 | E63: 0 | F63: 0 | G63: 0.2571428571 | H63: 0 | I63: 0.2666666667 | J63: 0 | K63: 0.09047619048 | L63: 0.0619047619 | M63: 0.004761904762 | N63: 0 | O63: 0.05238095238 | P63: 0 | Q63: 0 | R63: 0 | S63: 0 | T63: 0 | U63: 0 | V63: 0 | W63: 0.08333333333 | X63: 0 | Y63: 0.2427745665 | Z63: 0 | AA63: 121386.12 | AB63: 0 | AC63: 0 | AD63: 1 | AE63: 0 | AF63: 15095 | AG63: 0 | AH63: 0 | AI63: 4265 | AJ63: 886828.8037 | AK63: 0 | AL63: 0 | AM63: 0 | AN63: 15095 | AO63: 205 | BI63: n
A64: 2276 | B64: Willesborough Infant School | C64: 1 | D64: 354 | E64: 0 | F64: 0 | G64: 0.1723163842 | H64: 0 | I64: 0.1723163842 | J64: 0 | K64: 0.1242937853 | L64: 0.1440677966 | M64: 0.002824858757 | N64: 0.005649717514 | O64: 0.008474576271 | P64: 0 | Q64: 0 | R64: 0 | S64: 0 | T64: 0 | U64: 0 | V64: 0 | W64: 0.1344537815 | X64: 0 | Y64: 0.2436613166 | Z64: 0 | AA64: 121386.12 | AB64: 0 | AC64: 0 | AD64: 1 | AE64: 0 | AF64: 23079 | AG64: 0 | AH64: 0 | AI64: 4265 | AJ64: 1460999 | AK64: 0 | AL64: 0 | AM64: 0 | AN64: 23079 | AO64: 344 | BI64: n
A65: 2278 | B65: Bethersden Primary School | C65: 1 | D65: 128 | E65: 0 | F65: 0 | G65: 0.21875 | H65: 0 | I65: 0.21875 | J65: 0 | K65: 0.0234375 | L65: 0.015625 | M65: 0 | N65: 0 | O65: 0.0625 | P65: 0 | Q65: 0 | R65: 0 | S65: 0 | T65: 0 | U65: 0 | V65: 0 | W65: 0.02803738318 | X65: 0 | Y65: 0.21 | Z65: 0 | AA65: 121386.12 | AB65: 16019.37637 | AC65: 0 | AD65: 1 | AE65: 0 | AF65: 10978 | AG65: 0 | AH65: 0 | AI65: 4265 | AJ65: 579052.9825 | AK65: 0 | AL65: 0 | AM65: 0 | AN65: 10978 | AO65: 122 | BI65: n
A66: 2279 | B66: Brook Community Primary School | C66: 1 | D66: 85 | E66: 0 | F66: 0 | G66: 0.07058823529 | H66: 0 | I66: 0.1058823529 | J66: 0 | K66: 0.02352941176 | L66: 0.02352941176 | M66: 0 | N66: 0 | O66: 0.02352941176 | P66: 0 | Q66: 0 | R66: 0 | S66: 0 | T66: 0 | U66: 0 | V66: 0 | W66: 0.02631578947 | X66: 0 | Y66: 0.1111111111 | Z66: 0 | AA66: 121386.12 | AB66: 47617.22884 | AC66: 0 | AD66: 1 | AE66: 0 | AF66: 8608 | AG66: 0 | AH66: 0 | AI66: 4265 | AJ66: 451988.6768 | AK66: 0 | AL66: 0 | AM66: 0 | AN66: 8608 | AO66: 95 | BI66: n
A67: 2280 | B67: Challock Primary School | C67: 1 | D67: 209 | E67: 0 | F67: 0 | G67: 0.05741626794 | H67: 0 | I67: 0.05741626794 | J67: 0 | K67: 0 | L67: 0.1052631579 | M67: 0 | N67: 0.03349282297 | O67: 0 | P67: 0 | Q67: 0 | R67: 0 | S67: 0 | T67: 0 | U67: 0 | V67: 0 | W67: 0.02234636872 | X67: 0 | Y67: 0.2011494253 | Z67: 0 | AA67: 121386.12 | AB67: 0 | AC67: 0 | AD67: 1 | AE67: 0 | AF67: 19711 | AG67: 0 | AH67: 0 | AI67: 4265 | AJ67: 876611 | AK67: 0 | AL67: 0 | AM67: 0 | AN67: 19711 | AO67: 205 | BI67: n
A68: 2282 | B68: Great Chart Primary School | C68: 1 | D68: 422 | E68: 0 | F68: 0 | G68: 0.154028436 | H68: 0 | I68: 0.1611374408 | J68: 0 | K68: 0.009478672986 | L68: 0.02606635071 | M68: 0.004739336493 | N68: 0.002369668246 | O68: 0.04739336493 | P68: 0 | Q68: 0 | R68: 0 | S68: 0 | T68: 0 | U68: 0 | V68: 0 | W68: 0.09418282548 | X68: 0 | Y68: 0.1534090909 | Z68: 0 | AA68: 121386.12 | AB68: 0 | AC68: 0 | AD68: 1 | AE68: 0 | AF68: 38656 | AG68: 0 | AH68: 0 | AI68: 4265 | AJ68: 1794256 | AK68: 0 | AL68: 0 | AM68: 0 | AN68: 38656 | AO68: 420 | BI68: n
A69: 2285 | B69: Mersham Primary School | C69: 1 | D69: 177 | E69: 0 | F69: 0 | G69: 0.1412429379 | H69: 0 | I69: 0.1638418079 | J69: 0 | K69: 0.05084745763 | L69: 0.03389830508 | M69: 0 | N69: 0.005649717514 | O69: 0.07344632768 | P69: 0 | Q69: 0 | R69: 0 | S69: 0 | T69: 0 | U69: 0 | V69: 0 | W69: 0.02614379085 | X69: 0 | Y69: 0.2635135135 | Z69: 0 | AA69: 121386.12 | AB69: 0 | AC69: 0 | AD69: 1 | AE69: 0 | AF69: 7859 | AG69: 0 | AH69: 0 | AI69: 4265 | AJ69: 793699 | AK69: 0 | AL69: 0 | AM69: 0 | AN69: 7859 | AO69: 188 | BI69: n
A70: 2289 | B70: Smeeth Community Primary School | C70: 1 | D70: 128 | E70: 0 | F70: 0 | G70: 0.109375 | H70: 0 | I70: 0.125 | J70: 0 | K70: 0.0625 | L70: 0.0234375 | M70: 0 | N70: 0.0078125 | O70: 0 | P70: 0 | Q70: 0 | R70: 0 | S70: 0 | T70: 0 | U70: 0 | V70: 0 | W70: 0.009345794393 | X70: 0 | Y70: 0.2 | Z70: 0 | AA70: 121386.12 | AB70: 0 | AC70: 0 | AD70: 1 | AE70: 0 | AF70: 14845 | AG70: 0 | AH70: 0 | AI70: 4265 | AJ70: 561510.1352 | AK70: 0 | AL70: 0 | AM70: 0 | AN70: 14845 | AO70: 126 | BI70: n
A71: 2298 | B71: Hawkinge Primary School | C71: 1 | D71: 395 | E71: 0 | F71: 0 | G71: 0.1696202532 | H71: 0 | I71: 0.182278481 | J71: 0 | K71: 0.3265822785 | L71: 0.007594936709 | M71: 0.01518987342 | N71: 0.02025316456 | O71: 0.03544303797 | P71: 0 | Q71: 0 | R71: 0 | S71: 0 | T71: 0 | U71: 0 | V71: 0 | W71: 0.0328358209 | X71: 0 | Y71: 0.3176470588 | Z71: 0 | AA71: 121386.12 | AB71: 0 | AC71: 0 | AD71: 1 | AE71: 0 | AF71: 8243 | AG71: 0 | AH71: 0 | AI71: 4265 | AJ71: 1655163 | AK71: 0 | AL71: 0 | AM71: 0 | AN71: 8243 | AO71: 394 | BI71: n
A72: 2300 | B72: Sellindge Primary School | C72: 1 | D72: 118 | E72: 0 | F72: 0 | G72: 0.09322033898 | H72: 0 | I72: 0.09322033898 | J72: 0 | K72: 0.01694915254 | L72: 0 | M72: 0 | N72: 0 | O72: 0 | P72: 0 | Q72: 0 | R72: 0 | S72: 0 | T72: 0 | U72: 0 | V72: 0 | W72: 0 | X72: 0 | Y72: 0.1808510638 | Z72: 0 | AA72: 121386.12 | AB72: 23367.71415 | AC72: 0 | AD72: 1 | AE72: 0 | AF72: 17216 | AG72: 0 | AH72: 0 | AI72: 4265 | AJ72: 513276.2916 | AK72: 0 | AL72: 0 | AM72: 0 | AN72: 17216 | AO72: 110 | BI72: n
A73: 2312 | B73: River Primary School | C73: 1 | D73: 411 | E73: 0 | F73: 0 | G73: 0.1630170316 | H73: 0 | I73: 0.1678832117 | J73: 0 | K73: 0.1536585366 | L73: 0.0512195122 | M73: 0.1170731707 | N73: 0.03414634146 | O73: 0.0243902439 | P73: 0.03902439024 | Q73: 0 | R73: 0 | S73: 0 | T73: 0 | U73: 0 | V73: 0 | W73: 0.01699716714 | X73: 0 | Y73: 0.2171428571 | Z73: 0 | AA73: 121386.12 | AB73: 0 | AC73: 0 | AD73: 1 | AE73: 0 | AF73: 40960 | AG73: 0 | AH73: 0 | AI73: 4265 | AJ73: 1758940 | AK73: 0 | AL73: 0 | AM73: 0 | AN73: 40960 | AO73: 411 | BI73: n
A74: 2318 | B74: Langdon Primary School | C74: 1 | D74: 88 | E74: 0 | F74: 0 | G74: 0.1590909091 | H74: 0 | I74: 0.1590909091 | J74: 0 | K74: 0.1136363636 | L74: 0.1022727273 | M74: 0.03409090909 | N74: 0.04545454545 | O74: 0.04545454545 | P74: 0.01136363636 | Q74: 0 | R74: 0 | S74: 0 | T74: 0 | U74: 0 | V74: 0 | W74: 0 | X74: 0 | Y74: 0.175 | Z74: 0 | AA74: 121386.12 | AB74: 45412.7275 | AC74: 0 | AD74: 1 | AE74: 0 | AF74: 4990 | AG74: 0 | AH74: 0 | AI74: 4265 | AJ74: 466923.1386 | AK74: 0 | AL74: 0 | AM74: 0 | AN74: 4990 | AO74: 87 | BI74: n
A75: 2320 | B75: Eythorne Elvington Community Primary School | C75: 1 | D75: 110 | E75: 0 | F75: 0 | G75: 0.5 | H75: 0 | I75: 0.5 | J75: 0 | K75: 0.01818181818 | L75: 0.5181818182 | M75: 0.009090909091 | N75: 0 | O75: 0.009090909091 | P75: 0.009090909091 | Q75: 0 | R75: 0 | S75: 0 | T75: 0 | U75: 0 | V75: 0 | W75: 0 | X75: 0 | Y75: 0.2613636364 | Z75: 0 | AA75: 121386.12 | AB75: 29246.38438 | AC75: 0 | AD75: 1 | AE75: 0 | AF75: 17340 | AG75: 0 | AH75: 0 | AI75: 4265 | AJ75: 551132.8511 | AK75: 0 | AL75: 0 | AM75: 0 | AN75: 17340 | AO75: 104 | BI75: n
A76: 2321 | B76: Lydden Primary School | C76: 1 | D76: 81 | E76: 0 | F76: 0 | G76: 0.1604938272 | H76: 0 | I76: 0.1728395062 | J76: 0 | K76: 0.07407407407 | L76: 0.1111111111 | M76: 0.07407407407 | N76: 0.02469135802 | O76: 0 | P76: 0 | Q76: 0 | R76: 0 | S76: 0 | T76: 0 | U76: 0 | V76: 0 | W76: 0 | X76: 0 | Y76: 0.1126760563 | Z76: 0 | AA76: 121386.12 | AB76: 28058.89299 | AC76: 0 | AD76: 1 | AE76: 0 | AF76: 8483 | AG76: 0 | AH76: 0 | AI76: 4265 | AJ76: 376528.142 | AK76: 0 | AL76: 0 | AM76: 0 | AN76: 8483 | AO76: 73 | BI76: n
A77: 2322 | B77: Preston Primary School | C77: 1 | D77: 130 | E77: 0 | F77: 0 | G77: 0.1153846154 | H77: 0 | I77: 0.1461538462 | J77: 0 | K77: 0.125 | L77: 0.0078125 | M77: 0 | N77: 0.015625 | O77: 0.015625 | P77: 0 | Q77: 0 | R77: 0 | S77: 0 | T77: 0 | U77: 0 | V77: 0 | W77: 0.02542372881 | X77: 0 | Y77: 0.2136752137 | Z77: 0 | AA77: 121386.12 | AB77: 14549.70881 | AC77: 0 | AD77: 1 | AE77: 0 | AF77: 17964 | AG77: 0 | AH77: 0 | AI77: 4265 | AJ77: 583410.3212 | AK77: 0 | AL77: 0 | AM77: 0 | AN77: 17964 | AO77: 122 | BI77: n
A78: 2326 | B78: Wingham Primary School | C78: 1 | D78: 195 | E78: 0 | F78: 0 | G78: 0.1641025641 | H78: 0 | I78: 0.1743589744 | J78: 0 | K78: 0.1333333333 | L78: 0.01538461538 | M78: 0 | N78: 0.02564102564 | O78: 0 | P78: 0 | Q78: 0 | R78: 0 | S78: 0 | T78: 0 | U78: 0 | V78: 0 | W78: 0.02312138728 | X78: 0 | Y78: 0.2215909091 | Z78: 0 | AA78: 121386.12 | AB78: 0 | AC78: 0 | AD78: 1 | AE78: 0 | AF78: 31232 | AG78: 0 | AH78: 0 | AI78: 4265 | AJ78: 829612 | AK78: 0 | AL78: 0 | AM78: 0 | AN78: 31232 | AO78: 191 | BI78: n
A79: 2328 | B79: St Mildred's Primary Infant School | C79: 1 | D79: 270 | E79: 0 | F79: 0 | G79: 0.2222222222 | H79: 0 | I79: 0.2259259259 | J79: 0 | K79: 0.05185185185 | L79: 0.06666666667 | M79: 0.07777777778 | N79: 0.01111111111 | O79: 0.02962962963 | P79: 0.003703703704 | Q79: 0 | R79: 0 | S79: 0 | T79: 0 | U79: 0 | V79: 0 | W79: 0.08888888889 | X79: 0 | Y79: 0.2436613166 | Z79: 0 | AA79: 121386.12 | AB79: 0 | AC79: 0 | AD79: 1 | AE79: 0 | AF79: 24950 | AG79: 0 | AH79: 0 | AI79: 4265 | AJ79: 1135361.341 | AK79: 0 | AL79: 0 | AM79: 0 | AN79: 24950 | AO79: 265 | BI79: n
A80: 2329 | B80: Callis Grange Nursery and Infant School | C80: 1 | D80: 257 | E80: 0 | F80: 0 | G80: 0.2490272374 | H80: 0 | I80: 0.2529182879 | J80: 0 | K80: 0.01167315175 | L80: 0.3657587549 | M80: 0.0233463035 | N80: 0.03112840467 | O80: 0.04280155642 | P80: 0.04280155642 | Q80: 0 | R80: 0 | S80: 0 | T80: 0 | U80: 0 | V80: 0 | W80: 0.07514450867 | X80: 0 | Y80: 0.2436613166 | Z80: 0 | AA80: 121386.12 | AB80: 0 | AC80: 0 | AD80: 1 | AE80: 0 | AF80: 43520 | AG80: 0 | AH80: 0 | AI80: 4265 | AJ80: 1167940 | AK80: 0 | AL80: 0 | AM80: 0 | AN80: 43520 | AO80: 269 | AR80: 4.31 | AS80: 0.9 | AT80: 0 | BI80: y
A81: 2337 | B81: St Crispin's Community Primary Infant School | C81: 1 | D81: 268 | E81: 0 | F81: 0 | G81: 0.2835820896 | H81: 0 | I81: 0.2985074627 | J81: 0 | K81: 0.08955223881 | L81: 0.2425373134 | M81: 0.003731343284 | N81: 0.04850746269 | O81: 0.007462686567 | P81: 0.007462686567 | Q81: 0 | R81: 0 | S81: 0 | T81: 0 | U81: 0 | V81: 0 | W81: 0.01694915254 | X81: 0 | Y81: 0.2436613166 | Z81: 0 | AA81: 121386.12 | AB81: 0 | AC81: 0 | AD81: 1 | AE81: 0 | AF81: 20085 | AG81: 0 | AH81: 0 | AI81: 4265 | AJ81: 1115432.837 | AK81: 0 | AL81: 0 | AM81: 0 | AN81: 20085 | AO81: 261 | BI81: n
A82: 2340 | B82: Ellington Infant School | C82: 1 | D82: 107 | E82: 0 | F82: 0 | G82: 0.4205607477 | H82: 0 | I82: 0.4205607477 | J82: 0 | K82: 0.2710280374 | L82: 0.1308411215 | M82: 0.08411214953 | N82: 0.1775700935 | O82: 0.1214953271 | P82: 0.05607476636 | Q82: 0 | R82: 0 | S82: 0 | T82: 0 | U82: 0 | V82: 0 | W82: 0.07692307692 | X82: 0 | Y82: 0.2436613166 | Z82: 0 | AA82: 121386.12 | AB82: 0 | AC82: 0 | AD82: 1 | AE82: 0 | AF82: 27648 | AG82: 0 | AH82: 0 | AI82: 4265 | AJ82: 626128.9386 | AK82: 0 | AL82: 0 | AM82: 0 | AN82: 26880 | AO82: 114 | BI82: n
A83: 2345 | B83: Priory Infant School | C83: 1 | D83: 157 | E83: 0 | F83: 0 | G83: 0.3184713376 | H83: 0 | I83: 0.3248407643 | J83: 0 | K83: 0.1464968153 | L83: 0.2165605096 | M83: 0.1210191083 | N83: 0.152866242 | O83: 0.07643312102 | P83: 0.0127388535 | Q83: 0 | R83: 0 | S83: 0 | T83: 0 | U83: 0 | V83: 0 | W83: 0.1238938053 | X83: 0 | Y83: 0.2436613166 | Z83: 0 | AA83: 121386.12 | AB83: 0 | AC83: 0 | AD83: 1 | AE83: 0 | AF83: 30976 | AG83: 0 | AH83: 0 | AI83: 4265 | AJ83: 865003.2648 | AK83: 0 | AL83: 0 | AM83: 0 | AN83: 30976 | AO83: 169 | BI83: n
A84: 2431 | B84: Shears Green Junior School | C84: 1 | D84: 473 | E84: 0 | F84: 0 | G84: 0.2727272727 | H84: 0 | I84: 0.289640592 | J84: 0 | K84: 0.1310782241 | L84: 0.3509513742 | M84: 0.01057082452 | N84: 0.02325581395 | O84: 0.006342494715 | P84: 0 | Q84: 0 | R84: 0 | S84: 0 | T84: 0 | U84: 0 | V84: 0 | W84: 0.04016913319 | X84: 0 | Y84: 0.1579731744 | Z84: 0 | AA84: 121386.12 | AB84: 0 | AC84: 0 | AD84: 1 | AE84: 0 | AF84: 21760 | AG84: 0 | AH84: 0 | AI84: 4265 | AJ84: 2023980 | AK84: 0 | AL84: 0 | AM84: 0 | AN84: 21760 | AO84: 479 | BI84: n
A85: 2434 | B85: West Minster Primary School | C85: 1 | D85: 481 | E85: 0 | F85: 0 | G85: 0.5384615385 | H85: 0 | I85: 0.5550935551 | J85: 0 | K85: 0.04365904366 | L85: 0.01871101871 | M85: 0.004158004158 | N85: 0.07276507277 | O85: 0.5925155925 | P85: 0.2307692308 | Q85: 0 | R85: 0 | S85: 0 | T85: 0 | U85: 0 | V85: 0 | W85: 0.01927710843 | X85: 0 | Y85: 0.2291666667 | Z85: 0 | AA85: 121386.12 | AB85: 0 | AC85: 0 | AD85: 1 | AE85: 0 | AF85: 80384 | AG85: 0 | AH85: 0 | AI85: 4265 | AJ85: 2222537.482 | AK85: 0 | AL85: 0 | AM85: 0 | AN85: 80384 | AO85: 478 | AR85: 4.31 | AS85: 0.9 | AT85: 0.56 | BI85: y
A86: 2454 | B86: Aycliffe Community Primary School | C86: 1 | D86: 110 | E86: 0 | F86: 0 | G86: 0.5272727273 | H86: 0 | I86: 0.5454545455 | J86: 0 | K86: 0.03669724771 | L86: 0.03669724771 | M86: 0.7614678899 | N86: 0.07339449541 | O86: 0.05504587156 | P86: 0.01834862385 | Q86: 0 | R86: 0 | S86: 0 | T86: 0 | U86: 0 | V86: 0 | W86: 0.01030927835 | X86: 0 | Y86: 0.2183908046 | Z86: 0 | AA86: 121386.12 | AB86: 14184.49642 | AC86: 0 | AD86: 1 | AE86: 0 | AF86: 22829 | AG86: 0 | AH86: 0 | AI86: 4265 | AJ86: 577760.1754 | AK86: 0 | AL86: 0 | AM86: 0 | AN86: 22829 | AO86: 105 | BI86: n
A87: 2459 | B87: Riverhead Infants' School | C87: 1 | D87: 269 | E87: 0 | F87: 0 | G87: 0.04460966543 | H87: 0 | I87: 0.04832713755 | J87: 0 | K87: 0 | L87: 0 | M87: 0 | N87: 0 | O87: 0 | P87: 0 | Q87: 0 | R87: 0 | S87: 0 | T87: 0 | U87: 0 | V87: 0 | W87: 0.1111111111 | X87: 0 | Y87: 0.2436613166 | Z87: 0 | AA87: 121386.12 | AB87: 0 | AC87: 0 | AD87: 1.0373 | AE87: 0 | AF87: 38912 | AG87: 0 | AH87: 0 | AI87: 4265 | AJ87: 1163332 | AK87: 0 | AL87: 0 | AM87: 0 | AN87: 38912 | AO87: 269 | BI87: n
A88: 2465 | B88: Claremont Primary School | C88: 1 | D88: 435 | E88: 0 | F88: 0 | G88: 0.02528735632 | H88: 0 | I88: 0.02988505747 | J88: 0 | K88: 0.01379310345 | L88: 0 | M88: 0 | N88: 0 | O88: 0 | P88: 0 | Q88: 0 | R88: 0 | S88: 0 | T88: 0 | U88: 0 | V88: 0 | W88: 0.1573333333 | X88: 0 | Y88: 0.1347708895 | Z88: 0 | AA88: 121386.12 | AB88: 0 | AC88: 0 | AD88: 1 | AE88: 0 | AF88: 38656 | AG88: 0 | AH88: 0 | AI88: 4265 | AJ88: 1836056 | AK88: 0 | AL88: 0 | AM88: 0 | AN88: 38656 | AO88: 430 | BI88: n
A89: 2471 | B89: Whitfield Aspen School | C89: 1 | D89: 526 | E89: 0 | F89: 0 | G89: 0.3098859316 | H89: 0 | I89: 0.3269961977 | J89: 0 | K89: 0.2946768061 | L89: 0.08935361217 | M89: 0.05513307985 | N89: 0.06273764259 | O89: 0.06463878327 | P89: 0.01711026616 | Q89: 0 | R89: 0 | S89: 0 | T89: 0 | U89: 0 | V89: 0 | W89: 0.022172949 | X89: 0 | Y89: 0.4346793349 | Z89: 0 | AA89: 121386.12 | AB89: 0 | AC89: 0 | AD89: 1 | AE89: 33000 | AF89: 65024 | AG89: 0 | AH89: 0 | AI89: 4265 | AJ89: 2237923.25 | AK89: 0 | AL89: 0 | AM89: 0 | AN89: 65024 | AO89: 508 | BI89: y
A90: 2474 | B90: St Paul's Infant School | C90: 1 | D90: 252 | E90: 0 | F90: 0 | G90: 0.2579365079 | H90: 0 | I90: 0.2579365079 | J90: 0 | K90: 0.2976190476 | L90: 0.02777777778 | M90: 0.0119047619 | N90: 0 | O90: 0.003968253968 | P90: 0 | Q90: 0 | R90: 0 | S90: 0 | T90: 0 | U90: 0 | V90: 0 | W90: 0.3085714286 | X90: 0 | Y90: 0.2436613166 | Z90: 0 | AA90: 121386.12 | AB90: 0 | AC90: 0 | AD90: 1 | AE90: 0 | AF90: 11477 | AG90: 0 | AH90: 0 | AI90: 4265 | AJ90: 1085475.676 | AK90: 0 | AL90: 0 | AM90: 0 | AN90: 11477 | AO90: 251 | BI90: n
A91: 2482 | B91: Langton Green Primary School | C91: 1 | D91: 407 | E91: 0 | F91: 0 | G91: 0.04176904177 | H91: 0 | I91: 0.04176904177 | J91: 0 | K91: 0.05896805897 | L91: 0 | M91: 0 | N91: 0 | O91: 0 | P91: 0 | Q91: 0 | R91: 0 | S91: 0 | T91: 0 | U91: 0 | V91: 0 | W91: 0.0278551532 | X91: 0 | Y91: 0.1370262391 | Z91: 0 | AA91: 121386.12 | AB91: 0 | AC91: 0 | AD91: 1 | AE91: 0 | AF91: 39168 | AG91: 0 | AH91: 0 | AI91: 4265 | AJ91: 1778048 | AK91: 0 | AL91: 0 | AM91: 0 | AN91: 39168 | AO91: 416 | BI91: n
A92: 2490 | B92: Bishops Down Primary School | C92: 1 | D92: 203 | E92: 0 | F92: 0 | G92: 0.1477832512 | H92: 0 | I92: 0.1477832512 | J92: 0 | K92: 0.2068965517 | L92: 0 | M92: 0 | N92: 0.004926108374 | O92: 0 | P92: 0 | Q92: 0 | R92: 0 | S92: 0 | T92: 0 | U92: 0 | V92: 0 | W92: 0.06976744186 | X92: 0 | Y92: 0.2215568862 | Z92: 0 | AA92: 121386.12 | AB92: 0 | AC92: 0 | AD92: 1 | AE92: 0 | AF92: 31232 | AG92: 0 | AH92: 0 | AI92: 4265 | AJ92: 896492 | AK92: 0 | AL92: 0 | AM92: 0 | AN92: 31232 | AO92: 207 | AR92: 4.31 | AS92: 0.9 | AT92: 0 | BI92: y
A93: 2509 | B93: Singlewell Primary School | C93: 1 | D93: 370 | E93: 0 | F93: 0 | G93: 0.1864864865 | H93: 0 | I93: 0.2054054054 | J93: 0 | K93: 0.05149051491 | L93: 0.05420054201 | M93: 0.027100271 | N93: 0.108401084 | O93: 0 | P93: 0 | Q93: 0 | R93: 0 | S93: 0 | T93: 0 | U93: 0 | V93: 0 | W93: 0.1093247588 | X93: 0 | Y93: 0.2636655949 | Z93: 0 | AA93: 121386.12 | AB93: 0 | AC93: 0 | AD93: 1 | AE93: 0 | AF93: 51712 | AG93: 0 | AH93: 0 | AI93: 4265 | AJ93: 1506352 | AK93: 0 | AL93: 0 | AM93: 0 | AN93: 51712 | AO93: 348 | BI93: n
A94: 2510 | B94: Cheriton Primary School | C94: 1 | D94: 390 | E94: 0 | F94: 0 | G94: 0.2358974359 | H94: 0 | I94: 0.2512820513 | J94: 0 | K94: 0.1615384615 | L94: 0.02051282051 | M94: 0.01538461538 | N94: 0.007692307692 | O94: 0.0358974359 | P94: 0.007692307692 | Q94: 0 | R94: 0 | S94: 0 | T94: 0 | U94: 0 | V94: 0 | W94: 0.1411411411 | X94: 0 | Y94: 0.2365930599 | Z94: 0 | AA94: 121386.12 | AB94: 0 | AC94: 0 | AD94: 1 | AE94: 0 | AF94: 8909 | AG94: 0 | AH94: 0 | AI94: 4265 | AJ94: 1772869 | AK94: 0 | AL94: 0 | AM94: 0 | AN94: 8909 | AO94: 422 | BI94: n
A95: 2514 | B95: Brookfield Infant School | C95: 1 | D95: 176 | E95: 0 | F95: 0 | G95: 0.2215909091 | H95: 0 | I95: 0.2215909091 | J95: 0 | K95: 0.125 | L95: 0.005681818182 | M95: 0 | N95: 0.07954545455 | O95: 0.1022727273 | P95: 0 | Q95: 0 | R95: 0 | S95: 0 | T95: 0 | U95: 0 | V95: 0 | W95: 0.07692307692 | X95: 0 | Y95: 0.2436613166 | Z95: 0 | AA95: 121386.12 | AB95: 0 | AC95: 0 | AD95: 1 | AE95: 0 | AF95: 20210 | AG95: 0 | AH95: 0 | AI95: 4265 | AJ95: 809401.0847 | AK95: 0 | AL95: 0 | AM95: 0 | AN95: 20210 | AO95: 177 | BI95: n
A96: 2519 | B96: Vigo Village School | C96: 1 | D96: 162 | E96: 0 | F96: 0 | G96: 0.1234567901 | H96: 0 | I96: 0.1234567901 | J96: 0 | K96: 0.03086419753 | L96: 0.03086419753 | M96: 0 | N96: 0.01851851852 | O96: 0.006172839506 | P96: 0 | Q96: 0 | R96: 0 | S96: 0 | T96: 0 | U96: 0 | V96: 0 | W96: 0.006993006993 | X96: 0 | Y96: 0.2534246575 | Z96: 0 | AA96: 121386.12 | AB96: 0 | AC96: 0 | AD96: 1 | AE96: 0 | AF96: 22081 | AG96: 0 | AH96: 0 | AI96: 4265 | AJ96: 749794.1872 | AK96: 0 | AL96: 0 | AM96: 0 | AN96: 22081 | AO96: 173 | BI96: n
A97: 2520 | B97: Madginford Primary School | C97: 1 | D97: 641 | E97: 0 | F97: 0 | G97: 0.07644305772 | H97: 0 | I97: 0.08580343214 | J97: 0 | K97: 0.1251956182 | L97: 0.02034428795 | M97: 0.03129890454 | N97: 0.06103286385 | O97: 0.03286384977 | P97: 0 | Q97: 0 | R97: 0 | S97: 0 | T97: 0 | U97: 0 | V97: 0 | W97: 0.04909090909 | X97: 0 | Y97: 0.1756007394 | Z97: 0 | AA97: 121386.12 | AB97: 0 | AC97: 0 | AD97: 1 | AE97: 0 | AF97: 58880 | AG97: 0 | AH97: 0 | AI97: 4265 | AJ97: 2679740 | AK97: 0 | AL97: 0 | AM97: 0 | AN97: 58880 | AO97: 627 | BI97: n
A98: 2524 | B98: Palmarsh Primary School | C98: 1 | D98: 184 | E98: 0 | F98: 0 | G98: 0.277173913 | H98: 0 | I98: 0.2826086957 | J98: 0 | K98: 0.1467391304 | L98: 0.1304347826 | M98: 0.02717391304 | N98: 0 | O98: 0 | P98: 0.005434782609 | Q98: 0 | R98: 0 | S98: 0 | T98: 0 | U98: 0 | V98: 0 | W98: 0.0251572327 | X98: 0 | Y98: 0.3 | Z98: 0 | AA98: 121386.12 | AB98: 0 | AC98: 0 | AD98: 1 | AE98: 0 | AF98: 16218 | AG98: 0 | AH98: 0 | AI98: 4265 | AJ98: 741556.4633 | AK98: 0 | AL98: 0 | AM98: 0 | AN98: 16218 | AO98: 164 | BI98: n
A99: 2525 | B99: Painters Ash Primary School | C99: 1 | D99: 387 | E99: 0 | F99: 0 | G99: 0.1989664083 | H99: 0 | I99: 0.2144702842 | J99: 0 | K99: 0.142118863 | L99: 0.3333333333 | M99: 0.02325581395 | N99: 0.02067183463 | O99: 0.007751937984 | P99: 0 | Q99: 0 | R99: 0 | S99: 0 | T99: 0 | U99: 0 | V99: 0 | W99: 0.1253644315 | X99: 0 | Y99: 0.2170087977 | Z99: 0 | AA99: 121386.12 | AB99: 0 | AC99: 0 | AD99: 1 | AE99: 0 | AF99: 41728 | AG99: 0 | AH99: 0 | AI99: 4265 | AJ99: 1722088 | AK99: 0 | AL99: 0 | AM99: 0 | AN99: 41728 | AO99: 402 | BI99: n
A100: 2530 | B100: Tunbury Primary School | C100: 1 | D100: 589 | E100: 0 | F100: 0 | G100: 0.06791171477 | H100: 0 | I100: 0.07640067912 | J100: 0 | K100: 0.02376910017 | L100: 0.06960950764 | M100: 0.04923599321 | N100: 0.003395585739 | O100: 0.01188455008 | P100: 0 | Q100: 0 | R100: 0 | S100: 0 | T100: 0 | U100: 0 | V100: 0 | W100: 0.009671179884 | X100: 0 | Y100: 0.1384015595 | Z100: 0 | AA100: 121386.12 | AB100: 0 | AC100: 0 | AD100: 1 | AE100: 0 | AF100: 46336 | AG100: 0 | AH100: 0 | AI100: 4265 | AJ100: 2591956 | AK100: 0 | AL100: 0 | AM100: 0 | AN100: 46336 | AO100: 609 | BI100: n
A101: 2532 | B101: St Margaret's-at-Cliffe Primary School | C101: 1 | D101: 198 | E101: 0 | F101: 0 | G101: 0.08080808081 | H101: 0 | I101: 0.08585858586 | J101: 0 | K101: 0.1161616162 | L101: 0.0303030303 | M101: 0.0404040404 | N101: 0.0202020202 | O101: 0.0101010101 | P101: 0 | Q101: 0 | R101: 0 | S101: 0 | T101: 0 | U101: 0 | V101: 0 | W101: 0.01183431953 | X101: 0 | Y101: 0.1616766467 | Z101: 0 | AA101: 121386.12 | AB101: 0 | AC101: 0 | AD101: 1 | AE101: 0 | AF101: 18713 | AG101: 0 | AH101: 0 | AI101: 4265 | AJ101: 837993 | AK101: 0 | AL101: 0 | AM101: 0 | AN101: 18713 | AO101: 196 | BI101: n
A102: 2539 | B102: Stocks Green Primary School | C102: 1 | D102: 205 | E102: 0 | F102: 0 | G102: 0.05365853659 | H102: 0 | I102: 0.05853658537 | J102: 0 | K102: 0.03902439024 | L102: 0.00487804878 | M102: 0.0243902439 | N102: 0 | O102: 0 | P102: 0 | Q102: 0 | R102: 0 | S102: 0 | T102: 0 | U102: 0 | V102: 0 | W102: 0.01129943503 | X102: 0 | Y102: 0.1751412429 | Z102: 0 | AA102: 121386.12 | AB102: 0 | AC102: 0 | AD102: 1 | AE102: 0 | AF102: 23204 | AG102: 0 | AH102: 0 | AI102: 4265 | AJ102: 896824 | AK102: 0 | AL102: 0 | AM102: 0 | AN102: 23204 | AO102: 209 | BI102: n
A103: 2545 | B103: Sandgate Primary School | C103: 1 | D103: 420 | E103: 0 | F103: 0 | G103: 0.1071428571 | H103: 0 | I103: 0.1119047619 | J103: 0 | K103: 0.09047619048 | L103: 0.03571428571 | M103: 0.0119047619 | N103: 0.004761904762 | O103: 0.009523809524 | P103: 0.002380952381 | Q103: 0 | R103: 0 | S103: 0 | T103: 0 | U103: 0 | V103: 0 | W103: 0.025 | X103: 0 | Y103: 0.1532033426 | Z103: 0 | AA103: 121386.12 | AB103: 0 | AC103: 0 | AD103: 1 | AE103: 0 | AF103: 46592 | AG103: 0 | AH103: 0 | AI103: 4265 | AJ103: 1793832 | AK103: 0 | AL103: 0 | AM103: 0 | AN103: 46592 | AO103: 418 | BI103: n
A104: 2552 | B104: Sandling Primary School | C104: 1 | D104: 418 | E104: 0 | F104: 0 | G104: 0.05502392344 | H104: 0 | I104: 0.05980861244 | J104: 0 | K104: 0.06459330144 | L104: 0.00956937799 | M104: 0 | N104: 0.002392344498 | O104: 0.002392344498 | P104: 0 | Q104: 0 | R104: 0 | S104: 0 | T104: 0 | U104: 0 | V104: 0 | W104: 0.0530726257 | X104: 0 | Y104: 0.2028571429 | Z104: 0 | AA104: 121386.12 | AB104: 0 | AC104: 0 | AD104: 1 | AE104: 0 | AF104: 30720 | AG104: 0 | AH104: 0 | AI104: 4265 | AJ104: 1786320 | AK104: 0 | AL104: 0 | AM104: 0 | AN104: 30720 | AO104: 420 | BI104: n
A105: 2559 | B105: Capel-le-Ferne Primary School | C105: 1 | D105: 195 | E105: 0 | F105: 0 | G105: 0.158974359 | H105: 0 | I105: 0.1948717949 | J105: 0 | K105: 0.02564102564 | L105: 0.01025641026 | M105: 0.08205128205 | N105: 0.03076923077 | O105: 0.1538461538 | P105: 0.01025641026 | Q105: 0 | R105: 0 | S105: 0 | T105: 0 | U105: 0 | V105: 0 | W105: 0 | X105: 0 | Y105: 0.19375 | Z105: 0 | AA105: 121386.12 | AB105: 0 | AC105: 0 | AD105: 1 | AE105: 0 | AF105: 19336 | AG105: 0 | AH105: 0 | AI105: 4265 | AJ105: 836317.9247 | AK105: 0 | AL105: 0 | AM105: 0 | AN105: 19336 | AO105: 195 | BI105: n
A106: 2562 | B106: Lunsford Primary School | C106: 1 | D106: 205 | E106: 0 | F106: 0 | G106: 0.1707317073 | H106: 0 | I106: 0.1707317073 | J106: 0 | K106: 0.1170731707 | L106: 0 | M106: 0 | N106: 0.06829268293 | O106: 0.01951219512 | P106: 0 | Q106: 0 | R106: 0 | S106: 0 | T106: 0 | U106: 0 | V106: 0 | W106: 0.03977272727 | X106: 0 | Y106: 0.2742857143 | Z106: 0 | AA106: 121386.12 | AB106: 0 | AC106: 0 | AD106: 1 | AE106: 0 | AF106: 19087 | AG106: 0 | AH106: 0 | AI106: 4265 | AJ106: 875987 | AK106: 0 | AL106: 0 | AM106: 0 | AN106: 19087 | AO106: 205 | BI106: n
A107: 2574 | B107: Downs View Infant School | C107: 1 | D107: 255 | E107: 0 | F107: 0 | G107: 0.1960784314 | H107: 0 | I107: 0.1960784314 | J107: 0 | K107: 0.01968503937 | L107: 0.09448818898 | M107: 0.1181102362 | N107: 0.1102362205 | O107: 0 | P107: 0 | Q107: 0 | R107: 0 | S107: 0 | T107: 0 | U107: 0 | V107: 0 | W107: 0.05 | X107: 0 | Y107: 0.2436613166 | Z107: 0 | AA107: 121386.12 | AB107: 0 | AC107: 0 | AD107: 1 | AE107: 0 | AF107: 27648 | AG107: 0 | AH107: 0 | AI107: 4265 | AJ107: 1118628 | AK107: 0 | AL107: 0 | AM107: 0 | AN107: 27648 | AO107: 261 | BI107: n
A108: 2578 | B108: Kingswood Primary School | C108: 1 | D108: 128 | E108: 0 | F108: 0 | G108: 0.1171875 | H108: 0 | I108: 0.125 | J108: 0 | K108: 0.03174603175 | L108: 0 | M108: 0 | N108: 0.007936507937 | O108: 0.007936507937 | P108: 0 | Q108: 0 | R108: 0 | S108: 0 | T108: 0 | U108: 0 | V108: 0 | W108: 0.04672897196 | X108: 0 | Y108: 0.2574257426 | Z108: 0 | AA108: 121386.12 | AB108: 9171.092971 | AC108: 0 | AD108: 1 | AE108: 0 | AF108: 16093 | AG108: 0 | AH108: 0 | AI108: 4265 | AJ108: 563224.1146 | AK108: 0 | AL108: 0 | AM108: 0 | AN108: 16093 | AO108: 124 | BI108: n
A109: 2586 | B109: Senacre Wood Primary School | C109: 1 | D109: 209 | E109: 0 | F109: 0 | G109: 0.2918660287 | H109: 0 | I109: 0.3110047847 | J109: 0 | K109: 0.06220095694 | L109: 0.05263157895 | M109: 0.3444976077 | N109: 0.05263157895 | O109: 0.1100478469 | P109: 0 | Q109: 0 | R109: 0 | S109: 0 | T109: 0 | U109: 0 | V109: 0 | W109: 0.06145251397 | X109: 0 | Y109: 0.2485875706 | Z109: 0 | AA109: 121386.12 | AB109: 0 | AC109: 0 | AD109: 1 | AE109: 0 | AF109: 21332 | AG109: 0 | AH109: 0 | AI109: 4265 | AJ109: 950971.7915 | AK109: 0 | AL109: 0 | AM109: 0 | AN109: 21332 | AO109: 208 | BI109: n
A110: 2603 | B110: Bromstone Primary School, Broadstairs | C110: 1 | D110: 419 | E110: 0 | F110: 0 | G110: 0.369928401 | H110: 0 | I110: 0.3937947494 | J110: 0 | K110: 0.1264916468 | L110: 0.1575178998 | M110: 0.107398568 | N110: 0.05966587112 | O110: 0.1312649165 | P110: 0.03102625298 | Q110: 0 | R110: 0 | S110: 0 | T110: 0 | U110: 0 | V110: 0 | W110: 0.04582210243 | X110: 0 | Y110: 0.3416666667 | Z110: 0 | AA110: 121386.12 | AB110: 0 | AC110: 0 | AD110: 1 | AE110: 0 | AF110: 45056 | AG110: 0 | AH110: 0 | AI110: 4265 | AJ110: 1909752.151 | AK110: 0 | AL110: 0 | AM110: 0 | AN110: 45056 | AO110: 443 | BI110: n
A111: 2607 | B111: Parkside Community Primary School | C111: 1 | D111: 126 | E111: 0 | F111: 0 | G111: 0.6904761905 | H111: 0 | I111: 0.7063492063 | J111: 0 | K111: 0.02380952381 | L111: 0.2063492063 | M111: 0 | N111: 0.2857142857 | O111: 0.3412698413 | P111: 0 | Q111: 0 | R111: 0 | S111: 0 | T111: 0 | U111: 0 | V111: 0 | W111: 0.2844036697 | X111: 0 | Y111: 0.5211267606 | Z111: 0 | AA111: 121386.12 | AB111: 0 | AC111: 0 | AD111: 1 | AE111: 0 | AF111: 20958 | AG111: 0 | AH111: 0 | AI111: 4265 | AJ111: 624748.943 | AK111: 0 | AL111: 0 | AM111: 0 | AN111: 20958 | AO111: 103 | BI111: n
A112: 2615 | B112: High Firs Primary School | C112: 1 | D112: 201 | E112: 0 | F112: 0 | G112: 0.1393034826 | H112: 0 | I112: 0.1791044776 | J112: 0 | K112: 0.1741293532 | L112: 0.07960199005 | M112: 0 | N112: 0.01492537313 | O112: 0.2338308458 | P112: 0 | Q112: 0 | R112: 0 | S112: 0 | T112: 0 | U112: 0 | V112: 0 | W112: 0.0701754386 | X112: 0 | Y112: 0.2823529412 | Z112: 0 | AA112: 121386.12 | AB112: 0 | AC112: 0 | AD112: 1.0373 | AE112: 0 | AF112: 24950 | AG112: 0 | AH112: 0 | AI112: 4265 | AJ112: 944054.2639 | AK112: 0 | AL112: 0 | AM112: 0 | AN112: 24950 | AO112: 205 | BI112: n
A113: 2627 | B113: Sandwich Junior School | C113: 1 | D113: 210 | E113: 0 | F113: 0 | G113: 0.2285714286 | H113: 0 | I113: 0.2285714286 | J113: 0 | K113: 0.1052631579 | L113: 0.03827751196 | M113: 0.00956937799 | N113: 0.03349282297 | O113: 0 | P113: 0 | Q113: 0 | R113: 0 | S113: 0 | T113: 0 | U113: 0 | V113: 0 | W113: 0.02857142857 | X113: 0 | Y113: 0.2394366197 | Z113: 0 | AA113: 121386.12 | AB113: 0 | AC113: 0 | AD113: 1 | AE113: 0 | AF113: 28160 | AG113: 0 | AH113: 0 | AI113: 4265 | AJ113: 922680 | AK113: 0 | AL113: 0 | AM113: 0 | AN113: 28160 | AO113: 214 | BI113: n
A114: 2632 | B114: Sevenoaks Primary School | C114: 1 | D114: 606 | E114: 0 | F114: 0 | G114: 0.1204620462 | H114: 0 | I114: 0.1237623762 | J114: 0 | K114: 0.006600660066 | L114: 0.00495049505 | M114: 0 | N114: 0.001650165017 | O114: 0 | P114: 0 | Q114: 0 | R114: 0 | S114: 0 | T114: 0 | U114: 0 | V114: 0 | W114: 0.1003787879 | X114: 0 | Y114: 0.1684210526 | Z114: 0 | AA114: 121386.12 | AB114: 0 | AC114: 0 | AD114: 1.0373 | AE114: 0 | AF114: 75264 | AG114: 0 | AH114: 0 | AI114: 4265 | AJ114: 2599984 | AK114: 0 | AL114: 0 | AM114: 0 | AN114: 75264 | AO114: 604 | BI114: n
A115: 2643 | B115: Swalecliffe Community Primary School | C115: 1 | D115: 584 | E115: 0 | F115: 0 | G115: 0.1643835616 | H115: 0 | I115: 0.1780821918 | J115: 0 | K115: 0.07876712329 | L115: 0.01198630137 | M115: 0.03253424658 | N115: 0.0154109589 | O115: 0.01198630137 | P115: 0 | Q115: 0 | R115: 0 | S115: 0 | T115: 0 | U115: 0 | V115: 0 | W115: 0.009671179884 | X115: 0 | Y115: 0.2242063492 | Z115: 0 | AA115: 121386.12 | AB115: 0 | AC115: 0 | AD115: 1 | AE115: 0 | AF115: 11981 | AG115: 0 | AH115: 0 | AI115: 4265 | AJ115: 2580444 | AK115: 0 | AL115: 0 | AM115: 0 | AN115: 59904 | AO115: 603 | BI115: n
A116: 2648 | B116: Aylesham Primary School | C116: 1 | D116: 355 | E116: 0 | F116: 0 | G116: 0.3774647887 | H116: 0 | I116: 0.4028169014 | J116: 0 | K116: 0.5408450704 | L116: 0.3633802817 | M116: 0.002816901408 | N116: 0.008450704225 | O116: 0 | P116: 0 | Q116: 0 | R116: 0 | S116: 0 | T116: 0 | U116: 0 | V116: 0 | W116: 0.03666666667 | X116: 0 | Y116: 0.2483660131 | Z116: 0 | AA116: 121386.12 | AB116: 0 | AC116: 0 | AD116: 1 | AE116: 0 | AF116: 27136 | AG116: 0 | AH116: 0 | AI116: 4265 | AJ116: 1477484.617 | AK116: 0 | AL116: 0 | AM116: 0 | AN116: 27136 | AO116: 344 | BI116: n
A117: 2651 | B117: Broadwater Down Primary School | C117: 1 | D117: 137 | E117: 0 | F117: 0 | G117: 0.3576642336 | H117: 0 | I117: 0.3722627737 | J117: 0 | K117: 0.4306569343 | L117: 0 | M117: 0 | N117: 0.01459854015 | O117: 0 | P117: 0 | Q117: 0 | R117: 0 | S117: 0 | T117: 0 | U117: 0 | V117: 0 | W117: 0.1680672269 | X117: 0 | Y117: 0.3119266055 | Z117: 0 | AA117: 121386.12 | AB117: 0 | AC117: 0 | AD117: 1 | AE117: 0 | AF117: 18837 | AG117: 0 | AH117: 0 | AI117: 4265 | AJ117: 730561.1844 | AK117: 0 | AL117: 0 | AM117: 0 | AN117: 18837 | AO117: 152 | BI117: n
A118: 2653 | B118: West Borough Primary School | C118: 1 | D118: 452 | E118: 0 | F118: 0 | G118: 0.2278761062 | H118: 0 | I118: 0.2433628319 | J118: 0 | K118: 0.1659292035 | L118: 0.1061946903 | M118: 0.004424778761 | N118: 0.0110619469 | O118: 0.006637168142 | P118: 0 | Q118: 0 | R118: 0 | S118: 0 | T118: 0 | U118: 0 | V118: 0 | W118: 0.1326530612 | X118: 0 | Y118: 0.216802168 | Z118: 0 | AA118: 121386.12 | AB118: 0 | AC118: 0 | AD118: 1 | AE118: 0 | AF118: 58368 | AG118: 0 | AH118: 0 | AI118: 4265 | AJ118: 1935188 | AK118: 0 | AL118: 0 | AM118: 0 | AN118: 58368 | AO118: 449 | AR118: 4.31 | AS118: 0.9 | AT118: 0 | BI118: y
A119: 2662 | B119: Long Mead Community Primary School | C119: 1 | D119: 117 | E119: 0 | F119: 0 | G119: 0.5897435897 | H119: 0 | I119: 0.6068376068 | J119: 0 | K119: 0.3760683761 | L119: 0 | M119: 0.3504273504 | N119: 0 | O119: 0 | P119: 0 | Q119: 0 | R119: 0 | S119: 0 | T119: 0 | U119: 0 | V119: 0 | W119: 0.03846153846 | X119: 0 | Y119: 0.3679245283 | Z119: 0 | AA119: 121386.12 | AB119: 0 | AC119: 0 | AD119: 1 | AE119: 0 | AF119: 18463 | AG119: 0 | AH119: 0 | AI119: 4265 | AJ119: 648682.5559 | AK119: 0 | AL119: 0 | AM119: 0 | AN119: 18463 | AO119: 123 | AR119: 4.31 | AS119: 0.9 | AT119: 0.27 | BI119: y
A120: 2672 | B120: Palm Bay Primary School | C120: 1 | D120: 421 | E120: 0 | F120: 0 | G120: 0.2209026128 | H120: 0 | I120: 0.2304038005 | J120: 0 | K120: 0.01425178147 | L120: 0.04988123515 | M120: 0.01187648456 | N120: 0.05700712589 | O120: 0.1662707838 | P120: 0.02375296912 | Q120: 0 | R120: 0 | S120: 0 | T120: 0 | U120: 0 | V120: 0 | W120: 0.03055555556 | X120: 0 | Y120: 0.2457142857 | Z120: 0 | AA120: 121386.12 | AB120: 0 | AC120: 0 | AD120: 1 | AE120: 0 | AF120: 54272 | AG120: 0 | AH120: 0 | AI120: 4265 | AJ120: 1839132 | AK120: 0 | AL120: 0 | AM120: 0 | AN120: 54272 | AO120: 427 | BI120: n
A121: 2674 | B121: King's Farm Primary School | C121: 1 | D121: 376 | E121: 0 | F121: 0 | G121: 0.5478723404 | H121: 0 | I121: 0.5691489362 | J121: 0 | K121: 0.1090425532 | L121: 0.0664893617 | M121: 0.02659574468 | N121: 0.4920212766 | O121: 0.02659574468 | P121: 0 | Q121: 0 | R121: 0 | S121: 0 | T121: 0 | U121: 0 | V121: 0 | W121: 0.1041009464 | X121: 0 | Y121: 0.331147541 | Z121: 0 | AA121: 121386.12 | AB121: 0 | AC121: 0 | AD121: 1 | AE121: 0 | AF121: 43264 | AG121: 0 | AH121: 0 | AI121: 4265 | AJ121: 1995507.62 | AK121: 0 | AL121: 0 | AM121: 0 | AN121: 43264 | AO121: 378 | AR121: 4.31 | AS121: 0.9 | AT121: 0.33 | BI121: y
A122: 2680 | B122: Kings Hill School Primary and Nursery | C122: 1 | D122: 416 | E122: 0 | F122: 0 | G122: 0.08653846154 | H122: 0 | I122: 0.09134615385 | J122: 0 | K122: 0.03125 | L122: 0.009615384615 | M122: 0 | N122: 0.01201923077 | O122: 0.01442307692 | P122: 0 | Q122: 0 | R122: 0 | S122: 0 | T122: 0 | U122: 0 | V122: 0 | W122: 0.04494382022 | X122: 0 | Y122: 0.1571428571 | Z122: 0 | AA122: 121386.12 | AB122: 0 | AC122: 0 | AD122: 1 | AE122: 0 | AF122: 52224 | AG122: 0 | AH122: 0 | AI122: 4265 | AJ122: 1929044 | AK122: 0 | AL122: 0 | AM122: 0 | AN122: 52224 | AO122: 449 | BI122: y
A123: 2682 | B123: New Ash Green Primary School | C123: 1 | D123: 409 | E123: 0 | F123: 0 | G123: 0.1149144254 | H123: 0 | I123: 0.1246943765 | J123: 0 | K123: 0.01711491443 | L123: 0.00488997555 | M123: 0.007334963325 | N123: 0.002444987775 | O123: 0.002444987775 | P123: 0 | Q123: 0 | R123: 0 | S123: 0 | T123: 0 | U123: 0 | V123: 0 | W123: 0.01146131805 | X123: 0 | Y123: 0.299382716 | Z123: 0 | AA123: 121386.12 | AB123: 0 | AC123: 0 | AD123: 1.0373 | AE123: 0 | AF123: 33792 | AG123: 0 | AH123: 0 | AI123: 4265 | AJ123: 1760132 | AK123: 0 | AL123: 0 | AM123: 0 | AN123: 33792 | AO123: 413 | BI123: n
A124: 2689 | B124: The Craylands School | C124: 1 | D124: 388 | E124: 0 | F124: 0 | G124: 0.2422680412 | H124: 0 | I124: 0.2448453608 | J124: 0 | K124: 0.2345360825 | L124: 0.1958762887 | M124: 0.005154639175 | N124: 0.002577319588 | O124: 0.1391752577 | P124: 0 | Q124: 0 | R124: 0 | S124: 0 | T124: 0 | U124: 0 | V124: 0 | W124: 0.05792682927 | X124: 0 | Y124: 0.2716049383 | Z124: 0 | AA124: 121386.12 | AB124: 0 | AC124: 0 | AD124: 1.0373 | AE124: 0 | AF124: 61952 | AG124: 80549.18857 | AH124: 0 | AI124: 4265 | AJ124: 1631112.114 | AK124: 0 | AL124: 0 | AM124: 0 | AN124: 61952 | AO124: 350 | BI124: n
A125: 2692 | B125: The Churchill School | C125: 1 | D125: 378 | E125: 0 | F125: 0 | G125: 0.2195767196 | H125: 0 | I125: 0.2248677249 | J125: 0 | K125: 0.2275132275 | L125: 0.01058201058 | M125: 0.03968253968 | N125: 0.01851851852 | O125: 0.03968253968 | P125: 0.002645502646 | Q125: 0 | R125: 0 | S125: 0 | T125: 0 | U125: 0 | V125: 0 | W125: 0.05637982196 | X125: 0 | Y125: 0.1701492537 | Z125: 0 | AA125: 121386.12 | AB125: 0 | AC125: 0 | AD125: 1 | AE125: 0 | AF125: 12595 | AG125: 0 | AH125: 0 | AI125: 4265 | AJ125: 1676235 | AK125: 0 | AL125: 0 | AM125: 0 | AN125: 12595 | AO125: 398 | BI125: n
A126: 3010 | B126: St Pauls' Church of England Voluntary Controlled Primary School | C126: 1 | D126: 108 | E126: 0 | F126: 0 | G126: 0.1018518519 | H126: 0 | I126: 0.1111111111 | J126: 0 | K126: 0.07476635514 | L126: 0.1401869159 | M126: 0 | N126: 0.03738317757 | O126: 0.08411214953 | P126: 0 | Q126: 0 | R126: 0 | S126: 0 | T126: 0 | U126: 0 | V126: 0 | W126: 0.02150537634 | X126: 0 | Y126: 0.1397849462 | Z126: 0 | AA126: 121386.12 | AB126: 0 | AC126: 0 | AD126: 1.0373 | AE126: 0 | AF126: 10729 | AG126: 0 | AH126: 0 | AI126: 4265 | AJ126: 529431.512 | AK126: 0 | AL126: 0 | AM126: 0 | AN126: 10729 | AO126: 110 | BI126: n
A127: 3015 | B127: Fawkham Church of England Voluntary Controlled Primary School | C127: 1 | D127: 103 | E127: 0 | F127: 0 | G127: 0.04854368932 | H127: 0 | I127: 0.04854368932 | J127: 0 | K127: 0 | L127: 0.009708737864 | M127: 0.03883495146 | N127: 0 | O127: 0 | P127: 0 | Q127: 0 | R127: 0 | S127: 0 | T127: 0 | U127: 0 | V127: 0 | W127: 0 | X127: 0 | Y127: 0.2068965517 | Z127: 0 | AA127: 121386.12 | AB127: 7393.897478 | AC127: 0 | AD127: 1.0373 | AE127: 0 | AF127: 21083 | AG127: 0 | AH127: 0 | AI127: 4265 | AJ127: 506081.8499 | AK127: 0 | AL127: 0 | AM127: 0 | AN127: 21083 | AO127: 104 | BI127: n
A128: 3020 | B128: Sedley's Church of England Voluntary Aided Primary School | C128: 1 | D128: 93 | E128: 0 | F128: 0 | G128: 0.0752688172 | H128: 0 | I128: 0.08602150538 | J128: 0 | K128: 0.05376344086 | L128: 0.08602150538 | M128: 0.03225806452 | N128: 0 | O128: 0.03225806452 | P128: 0 | Q128: 0 | R128: 0 | S128: 0 | T128: 0 | U128: 0 | V128: 0 | W128: 0.01265822785 | X128: 0 | Y128: 0.2162162162 | Z128: 0 | AA128: 121386.12 | AB128: 11478.10362 | AC128: 0 | AD128: 1.0373 | AE128: 0 | AF128: 5863 | AG128: 0 | AH128: 0 | AI128: 4265 | AJ128: 471160.7514 | AK128: 0 | AL128: 0 | AM128: 0 | AN128: 5863 | AO128: 95 | BI128: n
A129: 3022 | B129: Benenden Church of England Primary School | C129: 1 | D129: 205 | E129: 0 | F129: 0 | G129: 0.08292682927 | H129: 0 | I129: 0.09756097561 | J129: 0 | K129: 0.137254902 | L129: 0.009803921569 | M129: 0 | N129: 0 | O129: 0 | P129: 0 | Q129: 0 | R129: 0 | S129: 0 | T129: 0 | U129: 0 | V129: 0 | W129: 0.005714285714 | X129: 0 | Y129: 0.1488095238 | Z129: 0 | AA129: 121386.12 | AB129: 0 | AC129: 0 | AD129: 1 | AE129: 0 | AF129: 34431 | AG129: 0 | AH129: 0 | AI129: 4265 | AJ129: 908948 | AK129: 0 | AL129: 0 | AM129: 0 | AN129: 35328 | AO129: 209 | BI129: n
A130: 3023 | B130: Bidborough Church of England Voluntary Controlled Primary School | C130: 1 | D130: 202 | E130: 0 | F130: 0 | G130: 0.04455445545 | H130: 0 | I130: 0.04455445545 | J130: 0 | K130: 0.1138613861 | L130: 0 | M130: 0.00495049505 | N130: 0.00495049505 | O130: 0 | P130: 0 | Q130: 0 | R130: 0 | S130: 0 | T130: 0 | U130: 0 | V130: 0 | W130: 0.06395348837 | X130: 0 | Y130: 0.1823529412 | Z130: 0 | AA130: 121386.12 | AB130: 0 | AC130: 0 | AD130: 1 | AE130: 0 | AF130: 14970 | AG130: 0 | AH130: 0 | AI130: 4265 | AJ130: 859330 | AK130: 0 | AL130: 0 | AM130: 0 | AN130: 14970 | AO130: 202 | BI130: n
A131: 3027 | B131: Cranbrook Church of England Primary School | C131: 1 | D131: 204 | E131: 0 | F131: 0 | G131: 0.3431372549 | H131: 0 | I131: 0.3529411765 | J131: 0 | K131: 0.4509803922 | L131: 0 | M131: 0 | N131: 0 | O131: 0 | P131: 0 | Q131: 0 | R131: 0 | S131: 0 | T131: 0 | U131: 0 | V131: 0 | W131: 0.02857142857 | X131: 0 | Y131: 0.1860465116 | Z131: 0 | AA131: 121386.12 | AB131: 0 | AC131: 0 | AD131: 1 | AE131: 0 | AF131: 26112 | AG131: 0 | AH131: 0 | AI131: 4265 | AJ131: 838905.3796 | AK131: 0 | AL131: 0 | AM131: 0 | AN131: 26112 | AO131: 187 | BI131: n
A132: 3029 | B132: Goudhurst and Kilndown Church of England Primary School | C132: 1 | D132: 211 | E132: 0 | F132: 0 | G132: 0.1042654028 | H132: 0 | I132: 0.1090047393 | J132: 0 | K132: 0.06161137441 | L132: 0.03791469194 | M132: 0 | N132: 0 | O132: 0 | P132: 0 | Q132: 0 | R132: 0 | S132: 0 | T132: 0 | U132: 0 | V132: 0 | W132: 0.02209944751 | X132: 0 | Y132: 0.1395348837 | Z132: 0 | AA132: 121386.12 | AB132: 0 | AC132: 0 | AD132: 1 | AE132: 0 | AF132: 27904 | AG132: 0 | AH132: 0 | AI132: 4265 | AJ132: 909884 | AK132: 0 | AL132: 0 | AM132: 0 | AN132: 27904 | AO132: 211 | BI132: n
A133: 3032 | B133: Hawkhurst Church of England Primary School | C133: 1 | D133: 194 | E133: 0 | F133: 0 | G133: 0.3917525773 | H133: 0 | I133: 0.4072164948 | J133: 0 | K133: 0.0618556701 | L133: 0.005154639175 | M133: 0 | N133: 0.005154639175 | O133: 0 | P133: 0 | Q133: 0 | R133: 0 | S133: 0 | T133: 0 | U133: 0 | V133: 0 | W133: 0.0289017341 | X133: 0 | Y133: 0.2261904762 | Z133: 0 | AA133: 121386.12 | AB133: 0 | AC133: 0 | AD133: 1 | AE133: 0 | AF133: 34560 | AG133: 0 | AH133: 0 | AI133: 4265 | AJ133: 837581.0901 | AK133: 0 | AL133: 0 | AM133: 0 | AN133: 34560 | AO133: 187 | BI133: n
A134: 3033 | B134: Hildenborough Church of England Primary School | C134: 1 | D134: 187 | E134: 0 | F134: 0 | G134: 0.03743315508 | H134: 0 | I134: 0.05347593583 | J134: 0 | K134: 0.09090909091 | L134: 0.005347593583 | M134: 0.05347593583 | N134: 0 | O134: 0 | P134: 0 | Q134: 0 | R134: 0 | S134: 0 | T134: 0 | U134: 0 | V134: 0 | W134: 0.01754385965 | X134: 0 | Y134: 0.1445783133 | Z134: 0 | AA134: 121386.12 | AB134: 0 | AC134: 0 | AD134: 1 | AE134: 0 | AF134: 22580 | AG134: 0 | AH134: 0 | AI134: 4265 | AJ134: 862760 | AK134: 0 | AL134: 0 | AM134: 0 | AN134: 22580 | AO134: 201 | BI134: n
A135: 3034 | B135: Lamberhurst St Mary's CofE (Voluntary Controlled) Primary School | C135: 1 | D135: 199 | E135: 0 | F135: 0 | G135: 0.07537688442 | H135: 0 | I135: 0.08040201005 | J135: 0 | K135: 0.01005025126 | L135: 0.01005025126 | M135: 0 | N135: 0 | O135: 0 | P135: 0 | Q135: 0 | R135: 0 | S135: 0 | T135: 0 | U135: 0 | V135: 0 | W135: 0.02325581395 | X135: 0 | Y135: 0.1823899371 | Z135: 0 | AA135: 121386.12 | AB135: 0 | AC135: 0 | AD135: 1 | AE135: 0 | AF135: 27904 | AG135: 0 | AH135: 0 | AI135: 4265 | AJ135: 863904 | AK135: 0 | AL135: 0 | AM135: 0 | AN135: 27904 | AO135: 200 | BI135: n
A136: 3035 | B136: Seal Church of England Voluntary Controlled Primary School | C136: 1 | D136: 351 | E136: 0 | F136: 0 | G136: 0.2307692308 | H136: 0 | I136: 0.2421652422 | J136: 0 | K136: 0.01994301994 | L136: 0.005698005698 | M136: 0.005698005698 | N136: 0 | O136: 0 | P136: 0 | Q136: 0 | R136: 0 | S136: 0 | T136: 0 | U136: 0 | V136: 0 | W136: 0.02990033223 | X136: 0 | Y136: 0.2147651007 | Z136: 0 | AA136: 121386.12 | AB136: 0 | AC136: 0 | AD136: 1.0373 | AE136: 0 | AF136: 17839 | AG136: 0 | AH136: 0 | AI136: 4265 | AJ136: 1430679 | AK136: 0 | AL136: 0 | AM136: 0 | AN136: 17839 | AO136: 338 | BI136: y
A137: 3037 | B137: St John's Church of England Primary School, Sevenoaks | C137: 1 | D137: 205 | E137: 0 | F137: 0 | G137: 0.08292682927 | H137: 0 | I137: 0.08780487805 | J137: 0 | K137: 0 | L137: 0 | M137: 0 | N137: 0 | O137: 0 | P137: 0 | Q137: 0 | R137: 0 | S137: 0 | T137: 0 | U137: 0 | V137: 0 | W137: 0.07428571429 | X137: 0 | Y137: 0.1180124224 | Z137: 0 | AA137: 121386.12 | AB137: 0 | AC137: 0 | AD137: 1.0373 | AE137: 0 | AF137: 22330 | AG137: 0 | AH137: 0 | AI137: 4265 | AJ137: 939827.7435 | AK137: 0 | AL137: 0 | AM137: 0 | AN137: 22330 | AO137: 211 | BI137: n
A138: 3042 | B138: Speldhurst Church of England Voluntary Aided Primary School | C138: 1 | D138: 212 | E138: 0 | F138: 0 | G138: 0.05660377358 | H138: 0 | I138: 0.05660377358 | J138: 0 | K138: 0.01886792453 | L138: 0 | M138: 0 | N138: 0 | O138: 0 | P138: 0 | Q138: 0 | R138: 0 | S138: 0 | T138: 0 | U138: 0 | V138: 0 | W138: 0.02197802198 | X138: 0 | Y138: 0.09039548023 | Z138: 0 | AA138: 121386.12 | AB138: 0 | AC138: 0 | AD138: 1 | AE138: 0 | AF138: 3840 | AG138: 0 | AH138: 0 | AI138: 4265 | AJ138: 859998 | AK138: 0 | AL138: 0 | AM138: 0 | AN138: 3098 | AO138: 205 | BI138: n
A139: 3043 | B139: Sundridge and Brasted Church of England Voluntary Controlled Primary School | C139: 1 | D139: 61 | E139: 0 | F139: 0 | G139: 0.2950819672 | H139: 0 | I139: 0.3278688525 | J139: 0 | K139: 0.1967213115 | L139: 0.01639344262 | M139: 0 | N139: 0.01639344262 | O139: 0 | P139: 0 | Q139: 0 | R139: 0 | S139: 0 | T139: 0 | U139: 0 | V139: 0 | W139: 0 | X139: 0 | Y139: 0.2340425532 | Z139: 0 | AA139: 121386.12 | AB139: 55039.05 | AC139: 0 | AD139: 1.0373 | AE139: 0 | AF139: 7485 | AG139: 0 | AH139: 0 | AI139: 4265 | AJ139: 391305.038 | AK139: 0 | AL139: 0 | AM139: 0 | AN139: 7485 | AO139: 72 | BI139: n
A140: 3050 | B140: St John's Church of England Primary School | C140: 1 | D140: 633 | E140: 0 | F140: 0 | G140: 0.1074249605 | H140: 0 | I140: 0.1137440758 | J140: 0 | K140: 0.0868878357 | L140: 0.003159557662 | M140: 0 | N140: 0.03633491311 | O140: 0 | P140: 0 | Q140: 0 | R140: 0 | S140: 0 | T140: 0 | U140: 0 | V140: 0 | W140: 0.09259259259 | X140: 0 | Y140: 0.2437619962 | Z140: 0 | AA140: 121386.12 | AB140: 0 | AC140: 0 | AD140: 1 | AE140: 0 | AF140: 73216 | AG140: 0 | AH140: 0 | AI140: 4265 | AJ140: 2744236 | AK140: 0 | AL140: 0 | AM140: 0 | AN140: 73216 | AO140: 639 | BI140: n
A141: 3052 | B141: St Mark's Church of England Primary School | C141: 1 | D141: 354 | E141: 0 | F141: 0 | G141: 0.2429378531 | H141: 0 | I141: 0.2485875706 | J141: 0 | K141: 0.3220338983 | L141: 0 | M141: 0 | N141: 0 | O141: 0 | P141: 0 | Q141: 0 | R141: 0 | S141: 0 | T141: 0 | U141: 0 | V141: 0 | W141: 0.1266666667 | X141: 0 | Y141: 0.2304832714 | Z141: 0 | AA141: 121386.12 | AB141: 0 | AC141: 0 | AD141: 1 | AE141: 0 | AF141: 45568 | AG141: 0 | AH141: 0 | AI141: 4265 | AJ141: 1429148 | AK141: 0 | AL141: 0 | AM141: 0 | AN141: 45568 | AO141: 331 | BI141: n
A142: 3053 | B142: St Peter's Church of England Primary School | C142: 1 | D142: 209 | E142: 0 | F142: 0 | G142: 0.1291866029 | H142: 0 | I142: 0.1387559809 | J142: 0 | K142: 0.02870813397 | L142: 0 | M142: 0 | N142: 0 | O142: 0 | P142: 0 | Q142: 0 | R142: 0 | S142: 0 | T142: 0 | U142: 0 | V142: 0 | W142: 0.1685393258 | X142: 0 | Y142: 0.1605839416 | Z142: 0 | AA142: 121386.12 | AB142: 0 | AC142: 0 | AD142: 1 | AE142: 0 | AF142: 36677 | AG142: 0 | AH142: 0 | AI142: 4265 | AJ142: 680277 | AK142: 0 | AL142: 0 | AM142: 0 | AN142: 11477 | AO142: 160 | BI142: n
A143: 3054 | B143: Crockham Hill Church of England Voluntary Controlled Primary School | C143: 1 | D143: 137 | E143: 0 | F143: 0 | G143: 0 | H143: 0 | I143: 0 | J143: 0 | K143: 0.07299270073 | L143: 0 | M143: 0.05109489051 | N143: 0 | O143: 0 | P143: 0 | Q143: 0 | R143: 0 | S143: 0 | T143: 0 | U143: 0 | V143: 0 | W143: 0.02542372881 | X143: 0 | Y143: 0.2 | Z143: 0 | AA143: 121386.12 | AB143: 9405.872363 | AC143: 0 | AD143: 1.0373 | AE143: 0 | AF143: 17964 | AG143: 0 | AH143: 15600 | AI143: 4265 | AJ143: 638450.5338 | AK143: 0 | AL143: 0 | AM143: 0 | AN143: 17964 | AO143: 138 | BI143: n
A144: 3055 | B144: Churchill Church of England Voluntary Controlled Primary School | C144: 1 | D144: 204 | E144: 0 | F144: 0 | G144: 0.2843137255 | H144: 0 | I144: 0.2843137255 | J144: 0 | K144: 0.4852941176 | L144: 0 | M144: 0.004901960784 | N144: 0 | O144: 0 | P144: 0 | Q144: 0 | R144: 0 | S144: 0 | T144: 0 | U144: 0 | V144: 0 | W144: 0.01704545455 | X144: 0 | Y144: 0.2242424242 | Z144: 0 | AA144: 121386.12 | AB144: 0 | AC144: 0 | AD144: 1.0373 | AE144: 0 | AF144: 28928 | AG144: 0 | AH144: 0 | AI144: 4265 | AJ144: 954100.5643 | AK144: 0 | AL144: 0 | AM144: 0 | AN144: 28928 | AO144: 213 | BI144: n
A145: 3057 | B145: St Peter's Church of England Primary School | C145: 1 | D145: 183 | E145: 0 | F145: 0 | G145: 0.1475409836 | H145: 0 | I145: 0.1584699454 | J145: 0 | K145: 0.07650273224 | L145: 0 | M145: 0 | N145: 0.1857923497 | O145: 0.02732240437 | P145: 0 | Q145: 0 | R145: 0 | S145: 0 | T145: 0 | U145: 0 | V145: 0 | W145: 0.03225806452 | X145: 0 | Y145: 0.1895424837 | Z145: 0 | AA145: 121386.12 | AB145: 0 | AC145: 0 | AD145: 1 | AE145: 0 | AF145: 16342 | AG145: 0 | AH145: 10237 | AI145: 4265 | AJ145: 774833 | AK145: 0 | AL145: 0 | AM145: 0 | AN145: 16342 | AO145: 179 | BI145: n
A146: 3061 | B146: Bredhurst Church of England Voluntary Controlled Primary School | C146: 1 | D146: 124 | E146: 0 | F146: 0 | G146: 0.08064516129 | H146: 0 | I146: 0.08870967742 | J146: 0 | K146: 0.008064516129 | L146: 0 | M146: 0 | N146: 0.008064516129 | O146: 0.008064516129 | P146: 0 | Q146: 0 | R146: 0 | S146: 0 | T146: 0 | U146: 0 | V146: 0 | W146: 0.03846153846 | X146: 0 | Y146: 0.1764705882 | Z146: 0 | AA146: 121386.12 | AB146: 0 | AC146: 0 | AD146: 1 | AE146: 0 | AF146: 15220 | AG146: 0 | AH146: 0 | AI146: 4265 | AJ146: 544793.2021 | AK146: 0 | AL146: 0 | AM146: 0 | AN146: 15220 | AO146: 120 | BI146: n
A147: 3062 | B147: Burham Church of England Primary School | C147: 1 | D147: 154 | E147: 0 | F147: 0 | G147: 0.0974025974 | H147: 0 | I147: 0.1168831169 | J147: 0 | K147: 0.02597402597 | L147: 0.03246753247 | M147: 0 | N147: 0.03246753247 | O147: 0.02597402597 | P147: 0 | Q147: 0 | R147: 0 | S147: 0 | T147: 0 | U147: 0 | V147: 0 | W147: 0.05223880597 | X147: 0 | Y147: 0.1954887218 | Z147: 0 | AA147: 121386.12 | AB147: 0 | AC147: 0 | AD147: 1 | AE147: 0 | AF147: 22081 | AG147: 0 | AH147: 0 | AI147: 4265 | AJ147: 643374.6744 | AK147: 0 | AL147: 0 | AM147: 0 | AN147: 22081 | AO147: 145 | BI147: n
A148: 3067 | B148: Harrietsham Church of England Primary School | C148: 1 | D148: 260 | E148: 0 | F148: 0 | G148: 0.1576923077 | H148: 0 | I148: 0.1615384615 | J148: 0 | K148: 0 | L148: 0 | M148: 0.003846153846 | N148: 0 | O148: 0.003846153846 | P148: 0 | Q148: 0 | R148: 0 | S148: 0 | T148: 0 | U148: 0 | V148: 0 | W148: 0.004672897196 | X148: 0 | Y148: 0.2057416268 | Z148: 0 | AA148: 121386.12 | AB148: 0 | AC148: 0 | AD148: 1 | AE148: 0 | AF148: 31232 | AG148: 0 | AH148: 0 | AI148: 4265 | AJ148: 996556 | AK148: 0 | AL148: 0 | AM148: 0 | AN148: 30976 | AO148: 231 | BI148: n
A149: 3069 | B149: Leeds and Broomfield Church of England Primary School | C149: 1 | D149: 66 | E149: 0 | F149: 0 | G149: 0.2878787879 | H149: 0 | I149: 0.303030303 | J149: 0 | K149: 0.09677419355 | L149: 0.04838709677 | M149: 0.01612903226 | N149: 0.01612903226 | O149: 0.01612903226 | P149: 0 | Q149: 0 | R149: 0 | S149: 0 | T149: 0 | U149: 0 | V149: 0 | W149: 0.03636363636 | X149: 0 | Y149: 0.2142857143 | Z149: 0 | AA149: 121386.12 | AB149: 31097.06325 | AC149: 0 | AD149: 1 | AE149: 0 | AF149: 5489 | AG149: 0 | AH149: 0 | AI149: 4265 | AJ149: 322423.0427 | AK149: 0 | AL149: 0 | AM149: 0 | AN149: 5489 | AO149: 55 | BI149: n
A150: 3072 | B150: Maidstone, St Michael's Church of England Junior School | C150: 1 | D150: 174 | E150: 0 | F150: 0 | G150: 0.1551724138 | H150: 0 | I150: 0.1551724138 | J150: 0 | K150: 0.08620689655 | L150: 0.01724137931 | M150: 0 | N150: 0.005747126437 | O150: 0.03448275862 | P150: 0 | Q150: 0 | R150: 0 | S150: 0 | T150: 0 | U150: 0 | V150: 0 | W150: 0.1436781609 | X150: 0 | Y150: 0.2408163265 | Z150: 0 | AA150: 121386.12 | AB150: 0 | AC150: 0 | AD150: 1 | AE150: 0 | AF150: 10230 | AG150: 0 | AH150: 0 | AI150: 4265 | AJ150: 730617.3404 | AK150: 0 | AL150: 0 | AM150: 0 | AN150: 10230 | AO150: 168 | BI150: n
A151: 3073 | B151: St Michael's Church of England Infant School Maidstone | C151: 1 | D151: 119 | E151: 0 | F151: 0 | G151: 0.1596638655 | H151: 0 | I151: 0.1596638655 | J151: 0 | K151: 0.03361344538 | L151: 0.008403361345 | M151: 0 | N151: 0.008403361345 | O151: 0.01680672269 | P151: 0 | Q151: 0 | R151: 0 | S151: 0 | T151: 0 | U151: 0 | V151: 0 | W151: 0.3164556962 | X151: 0 | Y151: 0.2436613166 | Z151: 0 | AA151: 121386.12 | AB151: 0 | AC151: 0 | AD151: 1 | AE151: 0 | AF151: 10105 | AG151: 0 | AH151: 0 | AI151: 4265 | AJ151: 566831.4 | AK151: 0 | AL151: 0 | AM151: 0 | AN151: 10105 | AO151: 120 | BI151: n
A152: 3081 | B152: Thurnham Church of England Infant School | C152: 1 | D152: 270 | E152: 0 | F152: 0 | G152: 0.03333333333 | H152: 0 | I152: 0.03703703704 | J152: 0 | K152: 0.01486988848 | L152: 0 | M152: 0 | N152: 0 | O152: 0 | P152: 0 | Q152: 0 | R152: 0 | S152: 0 | T152: 0 | U152: 0 | V152: 0 | W152: 0.06145251397 | X152: 0 | Y152: 0.2436613166 | Z152: 0 | AA152: 121386.12 | AB152: 0 | AC152: 0 | AD152: 1 | AE152: 0 | AF152: 26368 | AG152: 0 | AH152: 0 | AI152: 4265 | AJ152: 1154968 | AK152: 0 | AL152: 0 | AM152: 0 | AN152: 26368 | AO152: 270 | BI152: n
A153: 3082 | B153: Trottiscliffe Church of England Primary School | C153: 1 | D153: 88 | E153: 0 | F153: 0 | G153: 0.05681818182 | H153: 0 | I153: 0.07954545455 | J153: 0 | K153: 0.02272727273 | L153: 0 | M153: 0 | N153: 0 | O153: 0 | P153: 0 | Q153: 0 | R153: 0 | S153: 0 | T153: 0 | U153: 0 | V153: 0 | W153: 0.08108108108 | X153: 0 | Y153: 0.2307692308 | Z153: 0 | AA153: 121386.12 | AB153: 45412.7275 | AC153: 0 | AD153: 1 | AE153: 0 | AF153: 6362 | AG153: 0 | AH153: 0 | AI153: 4265 | AJ153: 384357.3618 | AK153: 0 | AL153: 0 | AM153: 0 | AN153: 6362 | AO153: 76 | BI153: n
A154: 3083 | B154: Ulcombe Church of England Primary School | C154: 1 | D154: 61 | E154: 0 | F154: 0 | G154: 0.5081967213 | H154: 0 | I154: 0.5245901639 | J154: 0 | K154: 0 | L154: 0 | M154: 0.3442622951 | N154: 0 | O154: 0 | P154: 0 | Q154: 0 | R154: 0 | S154: 0 | T154: 0 | U154: 0 | V154: 0 | W154: 0 | X154: 0 | Y154: 0.3442622951 | Z154: 0 | AA154: 121386.12 | AB154: 55039.05 | AC154: 0 | AD154: 1 | AE154: 0 | AF154: 7236 | AG154: 0 | AH154: 0 | AI154: 4265 | AJ154: 413477.1814 | AK154: 0 | AL154: 0 | AM154: 0 | AN154: 7236 | AO154: 71 | BI154: n
A155: 3084 | B155: Wateringbury Church of England Primary School | C155: 1 | D155: 170 | E155: 0 | F155: 0 | G155: 0.1764705882 | H155: 0 | I155: 0.1764705882 | J155: 0 | K155: 0.05988023952 | L155: 0.0119760479 | M155: 0 | N155: 0 | O155: 0.005988023952 | P155: 0 | Q155: 0 | R155: 0 | S155: 0 | T155: 0 | U155: 0 | V155: 0 | W155: 0.01282051282 | X155: 0 | Y155: 0.2155688623 | Z155: 0 | AA155: 121386.12 | AB155: 0 | AC155: 0 | AD155: 1 | AE155: 0 | AF155: 4890 | AG155: 0 | AH155: 0 | AI155: 4265 | AJ155: 765650 | AK155: 0 | AL155: 0 | AM155: 0 | AN155: 4890 | AO155: 182 | BI155: n
A156: 3088 | B156: Wouldham, All Saints Church of England Voluntary Controlled Primary School | C156: 1 | D156: 419 | E156: 0 | F156: 0 | G156: 0.1575178998 | H156: 0 | I156: 0.1837708831 | J156: 0 | K156: 0.07637231504 | L156: 0.1026252983 | M156: 0.0214797136 | N156: 0.05011933174 | O156: 0.002386634845 | P156: 0 | Q156: 0 | R156: 0 | S156: 0 | T156: 0 | U156: 0 | V156: 0 | W156: 0.02222222222 | X156: 0 | Y156: 0.2433234421 | Z156: 0 | AA156: 121386.12 | AB156: 0 | AC156: 0 | AD156: 1 | AE156: 0 | AF156: 70656 | AG156: 0 | AH156: 0 | AI156: 4265 | AJ156: 1805356 | AK156: 0 | AL156: 0 | AM156: 0 | AN156: 70656 | AO156: 415 | BI156: n
A157: 3089 | B157: St George's Church of England Voluntary Controlled Primary School | C157: 1 | D157: 199 | E157: 0 | F157: 0 | G157: 0.1909547739 | H157: 0 | I157: 0.2060301508 | J157: 0 | K157: 0.04020100503 | L157: 0.01507537688 | M157: 0 | N157: 0.005025125628 | O157: 0 | P157: 0 | Q157: 0 | R157: 0 | S157: 0 | T157: 0 | U157: 0 | V157: 0 | W157: 0.01754385965 | X157: 0 | Y157: 0.2923976608 | Z157: 0 | AA157: 121386.12 | AB157: 0 | AC157: 0 | AD157: 1 | AE157: 0 | AF157: 18214 | AG157: 0 | AH157: 0 | AI157: 4265 | AJ157: 887654 | AK157: 0 | AL157: 0 | AM157: 0 | AN157: 18214 | AO157: 208 | BI157: n
A158: 3090 | B158: St Margaret's, Collier Street Church of England Voluntary Controlled School | C158: 1 | D158: 123 | E158: 0 | F158: 0 | G158: 0.0325203252 | H158: 0 | I158: 0.0325203252 | J158: 0 | K158: 0 | L158: 0.08130081301 | M158: 0 | N158: 0.0162601626 | O158: 0.008130081301 | P158: 0 | Q158: 0 | R158: 0 | S158: 0 | T158: 0 | U158: 0 | V158: 0 | W158: 0.02857142857 | X158: 0 | Y158: 0.3364485981 | Z158: 0 | AA158: 121386.12 | AB158: 19693.54526 | AC158: 0 | AD158: 1 | AE158: 0 | AF158: 13972 | AG158: 0 | AH158: 0 | AI158: 4265 | AJ158: 578870.3678 | AK158: 0 | AL158: 0 | AM158: 0 | AN158: 13972 | AO158: 123 | BI158: n
A159: 3091 | B159: Laddingford St Mary's Church of England Voluntary Controlled Primary School | C159: 1 | D159: 74 | E159: 0 | F159: 0 | G159: 0.2297297297 | H159: 0 | I159: 0.2702702703 | J159: 0 | K159: 0.06756756757 | L159: 0.02702702703 | M159: 0.01351351351 | N159: 0 | O159: 0 | P159: 0 | Q159: 0 | R159: 0 | S159: 0 | T159: 0 | U159: 0 | V159: 0 | W159: 0.109375 | X159: 0 | Y159: 0.3333333333 | Z159: 0 | AA159: 121386.12 | AB159: 34261.80862 | AC159: 0 | AD159: 1 | AE159: 0 | AF159: 5240 | AG159: 0 | AH159: 8093 | AI159: 4265 | AJ159: 400026.1852 | AK159: 0 | AL159: 0 | AM159: 0 | AN159: 5240 | AO159: 75 | BI159: n
A160: 3092 | B160: Yalding, St Peter and St Paul Church of England Voluntary Controlled Primary School | C160: 1 | D160: 171 | E160: 0 | F160: 0 | G160: 0.1111111111 | H160: 0 | I160: 0.1111111111 | J160: 0 | K160: 0.05263157895 | L160: 0.01169590643 | M160: 0 | N160: 0.005847953216 | O160: 0 | P160: 0 | Q160: 0 | R160: 0 | S160: 0 | T160: 0 | U160: 0 | V160: 0 | W160: 0.006896551724 | X160: 0 | Y160: 0.2297297297 | Z160: 0 | AA160: 121386.12 | AB160: 0 | AC160: 0 | AD160: 1 | AE160: 0 | AF160: 14222 | AG160: 0 | AH160: 0 | AI160: 4265 | AJ160: 707854.6555 | AK160: 0 | AL160: 0 | AM160: 0 | AN160: 14222 | AO160: 164 | BI160: n
A161: 3108 | B161: Ospringe Church of England Primary School | C161: 1 | D161: 206 | E161: 0 | F161: 0 | G161: 0.3252427184 | H161: 0 | I161: 0.3349514563 | J161: 0 | K161: 0.1116504854 | L161: 0.08737864078 | M161: 0.3349514563 | N161: 0 | O161: 0.07281553398 | P161: 0 | Q161: 0 | R161: 0 | S161: 0 | T161: 0 | U161: 0 | V161: 0 | W161: 0.03977272727 | X161: 0 | Y161: 0.2427745665 | Z161: 0 | AA161: 121386.12 | AB161: 0 | AC161: 0 | AD161: 1 | AE161: 0 | AF161: 23079 | AG161: 0 | AH161: 0 | AI161: 4265 | AJ161: 990625.2023 | AK161: 0 | AL161: 0 | AM161: 0 | AN161: 23079 | AO161: 219 | BI161: n
A162: 3109 | B162: Hernhill Church of England Primary School | C162: 1 | D162: 201 | E162: 0 | F162: 0 | G162: 0.07960199005 | H162: 0 | I162: 0.09452736318 | J162: 0 | K162: 0.06467661692 | L162: 0.1094527363 | M162: 0.01492537313 | N162: 0.02487562189 | O162: 0.009950248756 | P162: 0 | Q162: 0 | R162: 0 | S162: 0 | T162: 0 | U162: 0 | V162: 0 | W162: 0.005847953216 | X162: 0 | Y162: 0.2857142857 | Z162: 0 | AA162: 121386.12 | AB162: 0 | AC162: 0 | AD162: 1 | AE162: 0 | AF162: 31744 | AG162: 0 | AH162: 0 | AI162: 4265 | AJ162: 880284 | AK162: 0 | AL162: 0 | AM162: 0 | AN162: 31744 | AO162: 203 | BI162: n
A163: 3111 | B163: Newington Church of England Primary School | C163: 1 | D163: 192 | E163: 0 | F163: 0 | G163: 0.3489583333 | H163: 0 | I163: 0.3645833333 | J163: 0 | K163: 0.375 | L163: 0.34375 | M163: 0.005208333333 | N163: 0 | O163: 0.005208333333 | P163: 0.01041666667 | Q163: 0 | R163: 0 | S163: 0 | T163: 0 | U163: 0 | V163: 0 | W163: 0.006172839506 | X163: 0 | Y163: 0.2738853503 | Z163: 0 | AA163: 121386.12 | AB163: 0 | AC163: 0 | AD163: 1 | AE163: 0 | AF163: 34048 | AG163: 0 | AH163: 0 | AI163: 4265 | AJ163: 849362.5305 | AK163: 0 | AL163: 0 | AM163: 0 | AN163: 34048 | AO163: 185 | BI163: n
A164: 3117 | B164: Teynham Parochial Church of England Primary School | C164: 1 | D164: 207 | E164: 0 | F164: 0 | G164: 0.270531401 | H164: 0 | I164: 0.2898550725 | J164: 0 | K164: 0.6570048309 | L164: 0.02898550725 | M164: 0.02415458937 | N164: 0.0193236715 | O164: 0.009661835749 | P164: 0 | Q164: 0 | R164: 0 | S164: 0 | T164: 0 | U164: 0 | V164: 0 | W164: 0.0632183908 | X164: 0 | Y164: 0.3050847458 | Z164: 0 | AA164: 121386.12 | AB164: 0 | AC164: 0 | AD164: 1 | AE164: 0 | AF164: 23827 | AG164: 0 | AH164: 0 | AI164: 4265 | AJ164: 936344.1691 | AK164: 0 | AL164: 0 | AM164: 0 | AN164: 23827 | AO164: 205 | BI164: n
A165: 3120 | B165: Barham Church of England Primary School | C165: 1 | D165: 210 | E165: 0 | F165: 0 | G165: 0.07619047619 | H165: 0 | I165: 0.08571428571 | J165: 0 | K165: 0.1714285714 | L165: 0.1 | M165: 0 | N165: 0 | O165: 0.01904761905 | P165: 0 | Q165: 0 | R165: 0 | S165: 0 | T165: 0 | U165: 0 | V165: 0 | W165: 0.03333333333 | X165: 0 | Y165: 0.1551724138 | Z165: 0 | AA165: 121386.12 | AB165: 0 | AC165: 0 | AD165: 1 | AE165: 0 | AF165: 28672 | AG165: 0 | AH165: 0 | AI165: 4265 | AJ165: 906472 | AK165: 0 | AL165: 0 | AM165: 0 | AN165: 28672 | AO165: 210 | BI165: n
A166: 3122 | B166: Bridge and Patrixbourne Church of England Primary School | C166: 1 | D166: 409 | E166: 0 | F166: 0 | G166: 0.02689486553 | H166: 0 | I166: 0.02689486553 | J166: 0 | K166: 0.02200488998 | L166: 0.03667481663 | M166: 0 | N166: 0.02200488998 | O166: 0.01222493888 | P166: 0 | Q166: 0 | R166: 0 | S166: 0 | T166: 0 | U166: 0 | V166: 0 | W166: 0.09090909091 | X166: 0 | Y166: 0.07331378299 | Z166: 0 | AA166: 121386.12 | AB166: 0 | AC166: 0 | AD166: 1 | AE166: 0 | AF166: 35072 | AG166: 0 | AH166: 0 | AI166: 4265 | AJ166: 1790672 | AK166: 0 | AL166: 0 | AM166: 0 | AN166: 35072 | AO166: 420 | BI166: n
A167: 3123 | B167: Chislet Church of England Primary School | C167: 1 | D167: 98 | E167: 0 | F167: 0 | G167: 0.1428571429 | H167: 0 | I167: 0.1836734694 | J167: 0 | K167: 0.2142857143 | L167: 0.0612244898 | M167: 0.01020408163 | N167: 0 | O167: 0.02040816327 | P167: 0 | Q167: 0 | R167: 0 | S167: 0 | T167: 0 | U167: 0 | V167: 0 | W167: 0 | X167: 0 | Y167: 0.2873563218 | Z167: 0 | AA167: 121386.12 | AB167: 21411.21922 | AC167: 0 | AD167: 1 | AE167: 0 | AF167: 6113 | AG167: 0 | AH167: 0 | AI167: 4265 | AJ167: 493465.4491 | AK167: 0 | AL167: 0 | AM167: 0 | AN167: 6113 | AO167: 102 | BI167: n
A168: 3126 | B168: Littlebourne Church of England Primary School | C168: 1 | D168: 103 | E168: 0 | F168: 0 | G168: 0.3009708738 | H168: 0 | I168: 0.3009708738 | J168: 0 | K168: 0.03883495146 | L168: 0.213592233 | M168: 0.009708737864 | N168: 0.1165048544 | O168: 0.009708737864 | P168: 0 | Q168: 0 | R168: 0 | S168: 0 | T168: 0 | U168: 0 | V168: 0 | W168: 0.1022727273 | X168: 0 | Y168: 0.2643678161 | Z168: 0 | AA168: 121386.12 | AB168: 0 | AC168: 0 | AD168: 1 | AE168: 0 | AF168: 11228 | AG168: 0 | AH168: 0 | AI168: 4265 | AJ168: 530977.1252 | AK168: 0 | AL168: 0 | AM168: 0 | AN168: 11228 | AO168: 105 | BI168: n
A169: 3129 | B169: St Alphege Church of England Infant School | C169: 1 | D169: 142 | E169: 0 | F169: 0 | G169: 0.2253521127 | H169: 0 | I169: 0.2253521127 | J169: 0 | K169: 0.007042253521 | L169: 0.007042253521 | M169: 0.1126760563 | N169: 0.01408450704 | O169: 0.01408450704 | P169: 0 | Q169: 0 | R169: 0 | S169: 0 | T169: 0 | U169: 0 | V169: 0 | W169: 0.05050505051 | X169: 0 | Y169: 0.2436613166 | Z169: 0 | AA169: 121386.12 | AB169: 0 | AC169: 0 | AD169: 1 | AE169: 0 | AF169: 31488 | AG169: 0 | AH169: 0 | AI169: 4265 | AJ169: 749725.8621 | AK169: 0 | AL169: 0 | AM169: 0 | AN169: 31488 | AO169: 161 | AR169: 4.31 | AS169: 0.9 | AT169: 0 | BI169: y
A170: 3130 | B170: Wickhambreaux Church of England Primary School | C170: 1 | D170: 129 | E170: 0 | F170: 0 | G170: 0.09302325581 | H170: 0 | I170: 0.1007751938 | J170: 0 | K170: 0.07751937984 | L170: 0.06976744186 | M170: 0 | N170: 0 | O170: 0.007751937984 | P170: 0 | Q170: 0 | R170: 0 | S170: 0 | T170: 0 | U170: 0 | V170: 0 | W170: 0.1228070175 | X170: 0 | Y170: 0.05 | Z170: 0 | AA170: 121386.12 | AB170: 0 | AC170: 0 | AD170: 1 | AE170: 0 | AF170: 8733 | AG170: 0 | AH170: 0 | AI170: 4265 | AJ170: 573033 | AK170: 0 | AL170: 0 | AM170: 0 | AN170: 8733 | AO170: 135 | BI170: n
A171: 3134 | B171: John Mayne Church of England Primary School, Biddenden | C171: 1 | D171: 97 | E171: 0 | F171: 0 | G171: 0.1134020619 | H171: 0 | I171: 0.1237113402 | J171: 0 | K171: 0 | L171: 0.01041666667 | M171: 0.04166666667 | N171: 0 | O171: 0.02083333333 | P171: 0 | Q171: 0 | R171: 0 | S171: 0 | T171: 0 | U171: 0 | V171: 0 | W171: 0.0125 | X171: 0 | Y171: 0.2253521127 | Z171: 0 | AA171: 121386.12 | AB171: 38799.2235 | AC171: 0 | AD171: 1 | AE171: 0 | AF171: 14222 | AG171: 0 | AH171: 0 | AI171: 4265 | AJ171: 481525.4732 | AK171: 0 | AL171: 0 | AM171: 0 | AN171: 14222 | AO171: 90 | BI171: n
A172: 3136 | B172: Brabourne Church of England Primary School | C172: 1 | D172: 102 | E172: 0 | F172: 0 | G172: 0.1176470588 | H172: 0 | I172: 0.1176470588 | J172: 0 | K172: 0.009803921569 | L172: 0 | M172: 0 | N172: 0 | O172: 0.009803921569 | P172: 0 | Q172: 0 | R172: 0 | S172: 0 | T172: 0 | U172: 0 | V172: 0 | W172: 0.05747126437 | X172: 0 | Y172: 0.125 | Z172: 0 | AA172: 121386.12 | AB172: 2370.941186 | AC172: 0 | AD172: 1 | AE172: 0 | AF172: 5502 | AG172: 0 | AH172: 0 | AI172: 4265 | AJ172: 476266.5911 | AK172: 0 | AL172: 0 | AM172: 0 | AN172: 5502 | AO172: 103 | BI172: n
A173: 3137 | B173: Brookland Church of England Primary School | C173: 1 | D173: 88 | E173: 0 | F173: 0 | G173: 0.1136363636 | H173: 0 | I173: 0.1477272727 | J173: 0 | K173: 0.1704545455 | L173: 0.02272727273 | M173: 0.3522727273 | N173: 0.03409090909 | O173: 0 | P173: 0 | Q173: 0 | R173: 0 | S173: 0 | T173: 0 | U173: 0 | V173: 0 | W173: 0 | X173: 0 | Y173: 0.1511627907 | Z173: 0 | AA173: 121386.12 | AB173: 0 | AC173: 0 | AD173: 1 | AE173: 0 | AF173: 11976 | AG173: 0 | AH173: 0 | AI173: 4265 | AJ173: 467551.7497 | AK173: 0 | AL173: 0 | AM173: 0 | AN173: 11976 | AO173: 93 | BI173: n
A174: 3138 | B174: Chilham, St Mary's Church of England Primary School | C174: 1 | D174: 88 | E174: 0 | F174: 0 | G174: 0.2727272727 | H174: 0 | I174: 0.2840909091 | J174: 0 | K174: 0 | L174: 0.01136363636 | M174: 0 | N174: 0 | O174: 0.02272727273 | P174: 0 | Q174: 0 | R174: 0 | S174: 0 | T174: 0 | U174: 0 | V174: 0 | W174: 0.04109589041 | X174: 0 | Y174: 0.24 | Z174: 0 | AA174: 121386.12 | AB174: 45412.7275 | AC174: 0 | AD174: 1 | AE174: 0 | AF174: 8358 | AG174: 0 | AH174: 8400 | AI174: 4265 | AJ174: 443972.7224 | AK174: 0 | AL174: 0 | AM174: 0 | AN174: 8358 | AO174: 86 | BI174: n
A175: 3139 | B175: High Halden Church of England Primary School | C175: 1 | D175: 100 | E175: 0 | F175: 0 | G175: 0.16 | H175: 0 | I175: 0.17 | J175: 0 | K175: 0 | L175: 0.02 | M175: 0 | N175: 0 | O175: 0 | P175: 0 | Q175: 0 | R175: 0 | S175: 0 | T175: 0 | U175: 0 | V175: 0 | W175: 0 | X175: 0 | Y175: 0.2702702703 | Z175: 0 | AA175: 121386.12 | AB175: 28909.83051 | AC175: 0 | AD175: 1 | AE175: 0 | AF175: 15968 | AG175: 0 | AH175: 0 | AI175: 4265 | AJ175: 456963.1398 | AK175: 0 | AL175: 0 | AM175: 0 | AN175: 15968 | AO175: 93 | BI175: n
A176: 3145 | B176: Woodchurch Church of England Primary School | C176: 1 | D176: 162 | E176: 0 | F176: 0 | G176: 0.2469135802 | H176: 0 | I176: 0.2592592593 | J176: 0 | K176: 0 | L176: 0.006172839506 | M176: 0.01851851852 | N176: 0.006172839506 | O176: 0 | P176: 0 | Q176: 0 | R176: 0 | S176: 0 | T176: 0 | U176: 0 | V176: 0 | W176: 0.007352941176 | X176: 0 | Y176: 0.3055555556 | Z176: 0 | AA176: 121386.12 | AB176: 0 | AC176: 0 | AD176: 1 | AE176: 0 | AF176: 12226 | AG176: 0 | AH176: 0 | AI176: 4265 | AJ176: 689122.4496 | AK176: 0 | AL176: 0 | AM176: 0 | AN176: 12226 | AO176: 153 | BI176: n
A177: 3146 | B177: Bodsham Church of England Primary School | C177: 1 | D177: 75 | E177: 0 | F177: 0 | G177: 0.05333333333 | H177: 0 | I177: 0.05333333333 | J177: 0 | K177: 0 | L177: 0.04054054054 | M177: 0 | N177: 0.08108108108 | O177: 0 | P177: 0 | Q177: 0 | R177: 0 | S177: 0 | T177: 0 | U177: 0 | V177: 0 | W177: 0.04918032787 | X177: 0 | Y177: 0.1428571429 | Z177: 0 | AA177: 121386.12 | AB177: 54965.56662 | AC177: 0 | AD177: 1 | AE177: 0 | AF177: 6030 | AG177: 0 | AH177: 0 | AI177: 4265 | AJ177: 422111.3387 | AK177: 0 | AL177: 0 | AM177: 0 | AN177: 6030 | AO177: 77 | BI177: n
A178: 3149 | B178: Folkestone, St Martin's Church of England Primary School | C178: 1 | D178: 208 | E178: 0 | F178: 0 | G178: 0.1923076923 | H178: 0 | I178: 0.2067307692 | J178: 0 | K178: 0.1256038647 | L178: 0.01449275362 | M178: 0.004830917874 | N178: 0.009661835749 | O178: 0.0193236715 | P178: 0 | Q178: 0 | R178: 0 | S178: 0 | T178: 0 | U178: 0 | V178: 0 | W178: 0.05056179775 | X178: 0 | Y178: 0.186440678 | Z178: 0 | AA178: 121386.12 | AB178: 0 | AC178: 0 | AD178: 1 | AE178: 0 | AF178: 19511 | AG178: 0 | AH178: 0 | AI178: 4265 | AJ178: 893131 | AK178: 0 | AL178: 0 | AM178: 0 | AN178: 19511 | AO178: 209 | BI178: n
A179: 3150 | B179: Folkestone, St Peter's Church of England Primary School | C179: 1 | D179: 104 | E179: 0 | F179: 0 | G179: 0.4326923077 | H179: 0 | I179: 0.4615384615 | J179: 0 | K179: 0.02884615385 | L179: 0.05769230769 | M179: 0.07692307692 | N179: 0.09615384615 | O179: 0.5673076923 | P179: 0.1153846154 | Q179: 0 | R179: 0 | S179: 0 | T179: 0 | U179: 0 | V179: 0 | W179: 0.05617977528 | X179: 0 | Y179: 0.3766233766 | Z179: 0 | AA179: 121386.12 | AB179: 0 | AC179: 0 | AD179: 1 | AE179: 0 | AF179: 2138 | AG179: 0 | AH179: 28830 | AI179: 4265 | AJ179: 596681.7644 | AK179: 0 | AL179: 0 | AM179: 0 | AN179: 2138 | AO179: 105 | BI179: n
A180: 3153 | B180: Seabrook Church of England Primary School | C180: 1 | D180: 106 | E180: 0 | F180: 0 | G180: 0.1226415094 | H180: 0 | I180: 0.1320754717 | J180: 0 | K180: 0.2547169811 | L180: 0.07547169811 | M180: 0.009433962264 | N180: 0.01886792453 | O180: 0.009433962264 | P180: 0 | Q180: 0 | R180: 0 | S180: 0 | T180: 0 | U180: 0 | V180: 0 | W180: 0.01098901099 | X180: 0 | Y180: 0.1707317073 | Z180: 0 | AA180: 121386.12 | AB180: 0 | AC180: 0 | AD180: 1 | AE180: 0 | AF180: 509 | AG180: 0 | AH180: 0 | AI180: 4265 | AJ180: 491002.4733 | AK180: 0 | AL180: 0 | AM180: 0 | AN180: 509 | AO180: 107 | BI180: n
A181: 3154 | B181: Lyminge Church of England Primary School | C181: 1 | D181: 196 | E181: 0 | F181: 0 | G181: 0.06632653061 | H181: 0 | I181: 0.07142857143 | J181: 0 | K181: 0.07653061224 | L181: 0 | M181: 0.005102040816 | N181: 0 | O181: 0.005102040816 | P181: 0.01020408163 | Q181: 0 | R181: 0 | S181: 0 | T181: 0 | U181: 0 | V181: 0 | W181: 0.02395209581 | X181: 0 | Y181: 0.1428571429 | Z181: 0 | AA181: 121386.12 | AB181: 0 | AC181: 0 | AD181: 1 | AE181: 0 | AF181: 28160 | AG181: 0 | AH181: 0 | AI181: 4265 | AJ181: 834900 | AK181: 0 | AL181: 0 | AM181: 0 | AN181: 28160 | AO181: 193 | BI181: n
A182: 3155 | B182: Lympne Church of England Primary School | C182: 1 | D182: 200 | E182: 0 | F182: 0 | G182: 0.065 | H182: 0 | I182: 0.065 | J182: 0 | K182: 0.075 | L182: 0.045 | M182: 0.015 | N182: 0 | O182: 0.005 | P182: 0 | Q182: 0 | R182: 0 | S182: 0 | T182: 0 | U182: 0 | V182: 0 | W182: 0 | X182: 0 | Y182: 0.1923076923 | Z182: 0 | AA182: 121386.12 | AB182: 0 | AC182: 0 | AD182: 1 | AE182: 0 | AF182: 45824 | AG182: 0 | AH182: 0 | AI182: 4265 | AJ182: 886004 | AK182: 0 | AL182: 0 | AM182: 0 | AN182: 45824 | AO182: 201 | BI182: n
A183: 3158 | B183: Stelling Minnis Church of England Primary School | C183: 1 | D183: 75 | E183: 0 | F183: 0 | G183: 0.2 | H183: 0 | I183: 0.2 | J183: 0 | K183: 0 | L183: 0 | M183: 0 | N183: 0 | O183: 0.01333333333 | P183: 0 | Q183: 0 | R183: 0 | S183: 0 | T183: 0 | U183: 0 | V183: 0 | W183: 0 | X183: 0 | Y183: 0.2448979592 | Z183: 0 | AA183: 121386.12 | AB183: 54965.56662 | AC183: 0 | AD183: 1 | AE183: 0 | AF183: 14097 | AG183: 0 | AH183: 0 | AI183: 4265 | AJ183: 444919.6157 | AK183: 0 | AL183: 0 | AM183: 0 | AN183: 14097 | AO183: 76 | BI183: n
A184: 3159 | B184: Stowting Church of England Primary School | C184: 1 | D184: 106 | E184: 0 | F184: 0 | G184: 0.08490566038 | H184: 0 | I184: 0.09433962264 | J184: 0 | K184: 0 | L184: 0.03773584906 | M184: 0.009433962264 | N184: 0.01886792453 | O184: 0 | P184: 0 | Q184: 0 | R184: 0 | S184: 0 | T184: 0 | U184: 0 | V184: 0 | W184: 0.03296703297 | X184: 0 | Y184: 0.1168831169 | Z184: 0 | AA184: 121386.12 | AB184: 32185.71949 | AC184: 0 | AD184: 1 | AE184: 0 | AF184: 13972 | AG184: 0 | AH184: 0 | AI184: 4265 | AJ184: 485306.288 | AK184: 0 | AL184: 0 | AM184: 0 | AN184: 13972 | AO184: 105 | BI184: n
A185: 3160 | B185: Selsted Church of England Primary School | C185: 1 | D185: 101 | E185: 0 | F185: 0 | G185: 0.08910891089 | H185: 0 | I185: 0.08910891089 | J185: 0 | K185: 0.2178217822 | L185: 0.009900990099 | M185: 0.0198019802 | N185: 0 | O185: 0.05940594059 | P185: 0 | Q185: 0 | R185: 0 | S185: 0 | T185: 0 | U185: 0 | V185: 0 | W185: 0 | X185: 0 | Y185: 0.1976744186 | Z185: 0 | AA185: 121386.12 | AB185: 35859.88838 | AC185: 0 | AD185: 1 | AE185: 0 | AF185: 10978 | AG185: 0 | AH185: 0 | AI185: 4265 | AJ185: 500882.6569 | AK185: 0 | AL185: 0 | AM185: 0 | AN185: 10978 | AO185: 97 | BI185: n
A186: 3167 | B186: Eastry Church of England Primary School | C186: 1 | D186: 181 | E186: 0 | F186: 0 | G186: 0.1988950276 | H186: 0 | I186: 0.2154696133 | J186: 0 | K186: 0.04419889503 | L186: 0.06077348066 | M186: 0 | N186: 0.01657458564 | O186: 0.01104972376 | P186: 0 | Q186: 0 | R186: 0 | S186: 0 | T186: 0 | U186: 0 | V186: 0 | W186: 0.01298701299 | X186: 0 | Y186: 0.35 | Z186: 0 | AA186: 121386.12 | AB186: 0 | AC186: 0 | AD186: 1 | AE186: 0 | AF186: 17465 | AG186: 0 | AH186: 0 | AI186: 4265 | AJ186: 750967.8604 | AK186: 0 | AL186: 0 | AM186: 0 | AN186: 17465 | AO186: 169 | BI186: n
A187: 3168 | B187: Goodnestone Church of England Primary School | C187: 1 | D187: 45 | E187: 0 | F187: 0 | G187: 0.1111111111 | H187: 0 | I187: 0.1555555556 | J187: 0 | K187: 0.3111111111 | L187: 0.1555555556 | M187: 0 | N187: 0 | O187: 0 | P187: 0 | Q187: 0 | R187: 0 | S187: 0 | T187: 0 | U187: 0 | V187: 0 | W187: 0 | X187: 0 | Y187: 0.6666666667 | Z187: 0 | AA187: 121386.12 | AB187: 44168.83763 | AC187: 0 | AD187: 1 | AE187: 0 | AF187: 3443 | AG187: 0 | AH187: 0 | AI187: 4265 | AJ187: 331545.9453 | AK187: 0 | AL187: 0 | AM187: 0 | AN187: 3443 | AO187: 51 | BI187: n
A188: 3169 | B188: Guston Church of England Primary School | C188: 1 | D188: 148 | E188: 0 | F188: 0 | G188: 0.1351351351 | H188: 0 | I188: 0.1351351351 | J188: 0 | K188: 0.05405405405 | L188: 0.06081081081 | M188: 0.02027027027 | N188: 0 | O188: 0.04054054054 | P188: 0.01351351351 | Q188: 0 | R188: 0 | S188: 0 | T188: 0 | U188: 0 | V188: 0 | W188: 0.3515625 | X188: 0 | Y188: 0.2831858407 | Z188: 0 | AA188: 121386.12 | AB188: 0 | AC188: 0 | AD188: 1 | AE188: 0 | AF188: 19461 | AG188: 0 | AH188: 0 | AI188: 4265 | AJ188: 701405.106 | AK188: 0 | AL188: 0 | AM188: 0 | AN188: 19461 | AO188: 152 | BI188: n
A189: 3171 | B189: Nonington Church of England Primary School | C189: 1 | D189: 45 | E189: 0 | F189: 0 | G189: 0.4666666667 | H189: 0 | I189: 0.4666666667 | J189: 0 | K189: 0.2790697674 | L189: 0.1627906977 | M189: 0 | N189: 0 | O189: 0 | P189: 0 | Q189: 0 | R189: 0 | S189: 0 | T189: 0 | U189: 0 | V189: 0 | W189: 0 | X189: 0 | Y189: 0.4545454545 | Z189: 0 | AA189: 121386.12 | AB189: 14585.34825 | AC189: 0 | AD189: 1 | AE189: 0 | AF189: 9606 | AG189: 0 | AH189: 0 | AI189: 4265 | AJ189: 329680.1888 | AK189: 0 | AL189: 0 | AM189: 0 | AN189: 9606 | AO189: 50 | BI189: n
A190: 3175 | B190: Sibertswold Church of England Primary School at Shepherdswell | C190: 1 | D190: 200 | E190: 0 | F190: 0 | G190: 0.08 | H190: 0 | I190: 0.08 | J190: 0 | K190: 0.055 | L190: 0.305 | M190: 0.015 | N190: 0 | O190: 0.005 | P190: 0 | Q190: 0 | R190: 0 | S190: 0 | T190: 0 | U190: 0 | V190: 0 | W190: 0.04046242775 | X190: 0 | Y190: 0.08791208791 | Z190: 0 | AA190: 121386.12 | AB190: 0 | AC190: 0 | AD190: 1 | AE190: 0 | AF190: 27136 | AG190: 0 | AH190: 0 | AI190: 4265 | AJ190: 858956 | AK190: 0 | AL190: 0 | AM190: 0 | AN190: 27136 | AO190: 199 | BI190: n
A191: 3178 | B191: Birchington Church of England Primary School | C191: 1 | D191: 473 | E191: 0 | F191: 0 | G191: 0.2198731501 | H191: 0 | I191: 0.2262156448 | J191: 0 | K191: 0.3699788584 | L191: 0.200845666 | M191: 0.01479915433 | N191: 0.02748414376 | O191: 0.01057082452 | P191: 0.01057082452 | Q191: 0 | R191: 0 | S191: 0 | T191: 0 | U191: 0 | V191: 0 | W191: 0.03389830508 | X191: 0 | Y191: 0.2392344498 | Z191: 0 | AA191: 121386.12 | AB191: 0 | AC191: 0 | AD191: 1 | AE191: 0 | AF191: 67072 | AG191: 0 | AH191: 0 | AI191: 4265 | AJ191: 2010772 | AK191: 0 | AL191: 0 | AM191: 0 | AN191: 67072 | AO191: 465 | BI191: n
A192: 3179 | B192: Margate, Holy Trinity and St John's Church of England Primary School | C192: 1 | D192: 395 | E192: 0 | F192: 0 | G192: 0.5240506329 | H192: 0 | I192: 0.564556962 | J192: 0 | K192: 0.04050632911 | L192: 0.2025316456 | M192: 0.06075949367 | N192: 0.2075949367 | O192: 0.3443037975 | P192: 0.1088607595 | Q192: 0 | R192: 0 | S192: 0 | T192: 0 | U192: 0 | V192: 0 | W192: 0.1646706587 | X192: 0 | Y192: 0.5792880259 | Z192: 0 | AA192: 121386.12 | AB192: 0 | AC192: 0 | AD192: 1 | AE192: 0 | AF192: 31488 | AG192: 0 | AH192: 0 | AI192: 4265 | AJ192: 1903945.789 | AK192: 0 | AL192: 0 | AM192: 0 | AN192: 31488 | AO192: 385 | BI192: n
A193: 3181 | B193: St Saviour's Church of England Junior School | C193: 1 | D193: 367 | E193: 0 | F193: 0 | G193: 0.2615803815 | H193: 0 | I193: 0.2833787466 | J193: 0 | K193: 0.08446866485 | L193: 0.2261580381 | M193: 0.008174386921 | N193: 0.03542234332 | O193: 0.0136239782 | P193: 0.00272479564 | Q193: 0 | R193: 0 | S193: 0 | T193: 0 | U193: 0 | V193: 0 | W193: 0.01634877384 | X193: 0 | Y193: 0.211026616 | Z193: 0 | AA193: 121386.12 | AB193: 0 | AC193: 0 | AD193: 1 | AE193: 0 | AF193: 50150 | AG193: 0 | AH193: 0 | AI193: 4265 | AJ193: 1634370 | AK193: 0 | AL193: 0 | AM193: 0 | AN193: 50150 | AO193: 379 | BI193: n
A194: 3182 | B194: Minster Church of England Primary School | C194: 1 | D194: 389 | E194: 0 | F194: 0 | G194: 0.2082262211 | H194: 0 | I194: 0.2236503856 | J194: 0 | K194: 0.07712082262 | L194: 0.1902313625 | M194: 0.0205655527 | N194: 0.01799485861 | O194: 0.01285347044 | P194: 0.01285347044 | Q194: 0 | R194: 0 | S194: 0 | T194: 0 | U194: 0 | V194: 0 | W194: 0.01519756839 | X194: 0 | Y194: 0.3058823529 | Z194: 0 | AA194: 121386.12 | AB194: 0 | AC194: 0 | AD194: 1 | AE194: 0 | AF194: 35072 | AG194: 0 | AH194: 0 | AI194: 4265 | AJ194: 1673632 | AK194: 0 | AL194: 0 | AM194: 0 | AN194: 35072 | AO194: 392 | BI194: n
A195: 3183 | B195: Monkton Church of England Primary School | C195: 1 | D195: 104 | E195: 0 | F195: 0 | G195: 0.1923076923 | H195: 0 | I195: 0.2211538462 | J195: 0 | K195: 0.125 | L195: 0.1442307692 | M195: 0.009615384615 | N195: 0.01923076923 | O195: 0 | P195: 0.009615384615 | Q195: 0 | R195: 0 | S195: 0 | T195: 0 | U195: 0 | V195: 0 | W195: 0.02272727273 | X195: 0 | Y195: 0.2790697674 | Z195: 0 | AA195: 121386.12 | AB195: 0 | AC195: 0 | AD195: 1 | AE195: 0 | AF195: 19087 | AG195: 0 | AH195: 0 | AI195: 4265 | AJ195: 510205.9045 | AK195: 0 | AL195: 0 | AM195: 0 | AN195: 19087 | AO195: 101 | BI195: n
A196: 3186 | B196: St Nicholas At Wade Church of England Primary School | C196: 1 | D196: 187 | E196: 0 | F196: 0 | G196: 0.08021390374 | H196: 0 | I196: 0.08556149733 | J196: 0 | K196: 0.1497326203 | L196: 0.07486631016 | M196: 0 | N196: 0.005347593583 | O196: 0 | P196: 0 | Q196: 0 | R196: 0 | S196: 0 | T196: 0 | U196: 0 | V196: 0 | W196: 0.01242236025 | X196: 0 | Y196: 0.1875 | Z196: 0 | AA196: 121386.12 | AB196: 0 | AC196: 0 | AD196: 1 | AE196: 0 | AF196: 13473 | AG196: 0 | AH196: 0 | AI196: 4265 | AJ196: 803493 | AK196: 0 | AL196: 0 | AM196: 0 | AN196: 13473 | AO196: 189 | BI196: n
A197: 3198 | B197: Frittenden Church of England Primary School | C197: 1 | D197: 101 | E197: 0 | F197: 0 | G197: 0.1485148515 | H197: 0 | I197: 0.1881188119 | J197: 0 | K197: 0.0198019802 | L197: 0 | M197: 0.09900990099 | N197: 0 | O197: 0 | P197: 0 | Q197: 0 | R197: 0 | S197: 0 | T197: 0 | U197: 0 | V197: 0 | W197: 0.02298850575 | X197: 0 | Y197: 0.2771084337 | Z197: 0 | AA197: 121386.12 | AB197: 35859.88838 | AC197: 0 | AD197: 1 | AE197: 0 | AF197: 12974 | AG197: 0 | AH197: 0 | AI197: 4265 | AJ197: 497614.3085 | AK197: 0 | AL197: 0 | AM197: 0 | AN197: 12974 | AO197: 96 | BI197: n
A198: 3199 | B198: Egerton Church of England Primary School | C198: 1 | D198: 184 | E198: 0 | F198: 0 | G198: 0.1902173913 | H198: 0 | I198: 0.1956521739 | J198: 0 | K198: 0.005434782609 | L198: 0.1684782609 | M198: 0 | N198: 0 | O198: 0 | P198: 0 | Q198: 0 | R198: 0 | S198: 0 | T198: 0 | U198: 0 | V198: 0 | W198: 0.006172839506 | X198: 0 | Y198: 0.3448275862 | Z198: 0 | AA198: 121386.12 | AB198: 0 | AC198: 0 | AD198: 1 | AE198: 0 | AF198: 11103 | AG198: 0 | AH198: 0 | AI198: 4265 | AJ198: 855789.8005 | AK198: 0 | AL198: 0 | AM198: 0 | AN198: 11103 | AO198: 200 | BI198: n
A199: 3201 | B199: St Lawrence Church of England Primary School | C199: 1 | D199: 81 | E199: 0 | F199: 0 | G199: 0.04938271605 | H199: 0 | I199: 0.04938271605 | J199: 0 | K199: 0.02469135802 | L199: 0 | M199: 0 | N199: 0 | O199: 0 | P199: 0 | Q199: 0 | R199: 0 | S199: 0 | T199: 0 | U199: 0 | V199: 0 | W199: 0.01449275362 | X199: 0 | Y199: 0.1851851852 | Z199: 0 | AA199: 121386.12 | AB199: 4423.699346 | AC199: 0 | AD199: 1.0373 | AE199: 0 | AF199: 6861 | AG199: 0 | AH199: 0 | AI199: 4265 | AJ199: 429351.3853 | AK199: 0 | AL199: 0 | AM199: 0 | AN199: 6861 | AO199: 83 | BI199: n
A200: 3282 | B200: Boughton-under-Blean and Dunkirk Primary School | C200: 1 | D200: 198 | E200: 0 | F200: 0 | G200: 0.1868686869 | H200: 0 | I200: 0.196969697 | J200: 0 | K200: 0.05050505051 | L200: 0.404040404 | M200: 0.0202020202 | N200: 0.005050505051 | O200: 0.0202020202 | P200: 0 | Q200: 0 | R200: 0 | S200: 0 | T200: 0 | U200: 0 | V200: 0 | W200: 0.01176470588 | X200: 0 | Y200: 0.1933333333 | Z200: 0 | AA200: 121386.12 | AB200: 0 | AC200: 0 | AD200: 1 | AE200: 0 | AF200: 18338 | AG200: 0 | AH200: 0 | AI200: 4265 | AJ200: 877125.886 | AK200: 0 | AL200: 0 | AM200: 0 | AN200: 18338 | AO200: 202 | BI200: n
... 89 more rows

Sheet TestArea (hidden)
A1: MI DfE no | B1: School Name | D1: Macro School Name | E1: Data Calc | F1: =SUM(F2:F302) -> 301 | H1: Macro F1 | I1: Data Calc F1 | J1: =SUM(J2:J566) -> 282656.7967 | L1: Macro F2 | M1: Data Calc F2 | N1: =SUM(N2:N566) -> 27550.95549 | P1: Macro F4 | Q1: Data Calc F4 | R1: =SUM(R2:R566) -> -0.03685374841 | T1: Macro F6 | U1: Data Calc F6 | V1: =SUM(V2:V566) -> 36835.22462 | X1: Macro F7 | Y1: Data Calc F7 | Z1: =SUM(Z2:Z566) -> 0 | AB1: Macro F8 | AC1: Data Calc F8 | AD1: =SUM(AD2:AD566) -> 0.004137016353 | AF1: Macro F9 | AG1: Data Calc F9 | AH1: =SUM(AH2:AH566) -> 0.01936436623 | AJ1: Macro F10 | AK1: Data Calc F10 | AL1: =SUM(AL2:AL566) -> 0 | AN1: Macro F11 | AO1: Data Calc F11 | AP1: =SUM(AP2:AP566) -> 0.0036393444 | AR1: Macro F12 | AS1: Data Calc F12 | AT1: =SUM(AT2:AT566) -> 0.007519749604 | AV1: Macro F13 | AW1: Data Calc F13 | AX1: =SUM(AX2:AX566) -> 0 | AZ1: Macro F14 | BA1: Data Calc F14 | BB1: =SUM(BB2:BB566) -> -0.001454415149 | BD1: Macro FFT | BE1: Data Calc FFT | BF1: =SUM(BF2:BF566) -> 347042.8331 | BH1: Macro MFG | BI1: Data Calc MFG | BJ1: =SUM(BJ2:BJ566) -> 13825.44108 | BL1: Macro SBS | BM1: Data Calc SBS | BN1: =SUM(BN2:BN566) -> 360868.2642 | BP1: Macro Growth | BQ1: Data Calc Growth | BR1: =SUM(BR2:BR566) -> 109574.21 | BT1: Macro SBS Inc Growth | BU1: Data Calc SBS Inc Growth | BV1: =SUM(BV2:BV566) -> 0 | BX1: Early years rate | BZ1: =SUM(BZ2:BZ566) -> 0 | CB1: Macro Notional SEN | CC1: Data Calc | CD1: =SUM(CD2:CD566) -> 78211 | CF1: Macro De-Delegation | CG1: Data Calc | CH1: =SUM(CH2:CH566) -> 2926009 | CJ1: SRP Element 1 | CK1: Data Calc | CL1: =SUM(CL2:CL566) -> 1284754792 | CN1: SRP Element 2 | CO1: Data Calc | CP1: =SUM(CP2:CP566) -> 1446462230 | CR1: SRP 1 Pre | CS1: Data Calc | CT1: =SUM(CT2:CT566) -> 32615606 | CV1: SRP 1 Post | CW1: Data Calc | CX1: =SUM(CX2:CX566) -> 0 | CZ1: SRP 2 Pre | DA1: Data Calc | DB1: =SUM(DB2:DB566) -> 0 | DD1: SRP 2 Post | DE1: Data Calc | DF1: =SUM(DF2:DF566) -> 0 | DH1: Qual Year1 | DI1: Data Calc | DJ1: =SUM(DJ2:DJ302) -> 29 | DL1: Orig PAN 1 | DM1: Data Calc | DN1: =SUM(DN2:DN302) -> 49 | DP1: New PAN | DQ1: Data Calc | DR1: =SUM(DR2:DR302) -> 29 | DT1: Qual Year2 | DU1: Data Calc | DV1: =SUM(DV2:DV302) -> 25 | DX1: Orig PAN2 | DY1: Data Calc | DZ1: =SUM(DZ2:DZ302) -> 25 | EB1: New PAN2 | EC1: Data Calc | ED1: =SUM(ED2:ED302) -> 25 | EF1: Qual Year3 | EG1: Data Calc | EH1: =SUM(EH2:EH302) -> 21 | EJ1: Orig PAN3 | EK1: Data Calc | EL1: =SUM(EL2:EL302) -> 21 | EN1: New PAN3 | EO1: Data Calc | EP1: =SUM(EP2:EP302) -> 21
A2: 1001 | B2: Northfleet Nursery | D2: Northfleet Nursery | F2: =IF(E2=D2,0,1) -> 1 | H2: 0 | I2: 0 | J2: =H2-I2 -> 0 | L2: 0 | M2: 0 | N2: =L2-M2 -> 0 | P2: 0 | Q2: 0 | R2: =P2-Q2 -> 0 | T2: 0 | U2: 0 | V2: =T2-U2 -> 0 | X2: 0 | Y2: 0 | Z2: =X2-Y2 -> 0 | AB2: 0 | AC2: 0 | AD2: =AB2-AC2 -> 0 | AF2: 0 | AG2: 0 | AH2: =AF2-AG2 -> 0 | AJ2: 0 | AK2: 0 | AL2: =AJ2-AK2 -> 0 | AN2: 0 | AO2: 0 | AP2: =AN2-AO2 -> 0 | AR2: 0 | AS2: 0 | AT2: =AR2-AS2 -> 0 | AV2: 0 | AW2: 0 | AX2: =AV2-AW2 -> 0 | AZ2: 0 | BA2: 0 | BB2: =AZ2-BA2 -> 0 | BD2: 0 | BE2: =I2+M2+Q2+U2+Y2+AC2+AG2+AK2+AO2+AS2+AW2+BA2 -> 0 | BF2: =BD2-BE2 -> 0 | BH2: 0 | BI2: 0 | BJ2: =BH2-BI2 -> 0 | BL2: 0 | BM2: 0 | BN2: =BL2-BM2 -> 0 | BP2: 0 | BR2: =BP2-BQ2 -> 0 | BV2: =BT2-BU2 -> 0 | BZ2: =BX2-BY2 -> 0 | CB2: 0 | CC2: 0 | CD2: =ROUND(CB2-CC2,0) -> 0 | CF2: 0 | CG2: 0 | CH2: =ROUND(CF2-CG2,0) -> 0 | CJ2: 0 | CL2: =ROUND(CJ2-CK2,0) -> 0 | CN2: 0 | CP2: =ROUND(CN2-CO2,0) -> 0 | CR2: 3680 | CT2: =ROUND(CR2-CS2,0) -> 3680 | CX2: =ROUND(CV2-CW2,0) -> 0 | DB2: =ROUND(CZ2-DA2,0) -> 0 | DF2: =ROUND(DD2-DE2,0) -> 0 | DH2: NO | DI2: =IF(ISERROR(VLOOKUP($A2+8860000,'Growth Data'!$A:$F,3,0)),"NO",VLOOKUP($A2+8860000,'Growth Data'!$A:$F,3,0)) -> NO | DJ2: =IF(DH2=DI2,0,1) -> 0 | DL2: 0 | DM2: =IF(DI2="YES",IF(ISERROR(VLOOKUP($A2+8860000,'Growth Data'!$A:$F,6,0)),0,VLOOKUP($A2+8860000,'Growth Data'!$A:$F,6,0)),0) -> 0 | DN2: =ROUND(DL2-DM2,0) -> 0 | DP2: 0 | DQ2: =IF(ISERROR(VLOOKUP($A2+8860000,'Growth Data'!$A:$Z,7,0)),0,VLOOKUP($A2+8860000,'Growth Data'!$A:$Z,7,0)) -> 0 | DR2: =IF(DP2=DQ2,0,1) -> 0 | DT2: NO | DU2: =IF(ISERROR(VLOOKUP($A2+8860000,'Growth Data'!$A:$F,4,0)),"NO",VLOOKUP($A2+8860000,'Growth Data'!$A:$F,4,0)) -> NO | DV2: =IF(DT2=DU2,0,1) -> 0 | DX2: 0 | DY2: =IF(ISERROR(VLOOKUP($A2+8860000,'Growth Data'!$A:$Z,8,0)),0,VLOOKUP($A2+8860000,'Growth Data'!$A:$Z,8,0)) -> 0 | DZ2: =IF(DX2=DY2,0,1) -> 0 | EB2: 0 | EC2: =IF(ISERROR(VLOOKUP($A2+8860000,'Growth Data'!$A:$Z,9,0)),0,VLOOKUP($A2+8860000,'Growth Data'!$A:$Z,9,0)) -> 0 | ED2: =IF(EB2=EC2,0,1) -> 0 | EF2: NO | EG2: =IF(ISERROR(VLOOKUP($A2+8860000,'Growth Data'!$A:$Z,5,0)),"NO",VLOOKUP($A2+8860000,'Growth Data'!$A:$Z,5,0)) -> NO | EH2: =IF(EF2=EG2,0,1) -> 0 | EJ2: 0 | EK2: =IF(ISERROR(VLOOKUP($A2+8860000,'Growth Data'!$A:$Z,10,0)),0,VLOOKUP($A2+8860000,'Growth Data'!$A:$Z,10,0)) -> 0 | EL2: =IF(EJ2=EK2,0,1) -> 0 | EN2: 0 | EO2: =IF(ISERROR(VLOOKUP($A2+8860000,'Growth Data'!$A:$Z,11,0)),0,VLOOKUP($A2+8860000,'Growth Data'!$A:$Z,11,0)) -> 0 | EP2: =IF(EN2=EO2,0,1) -> 0
A3: 2000 | B3: St Johns Church of England Primary School | D3: St Johns Church of England Primary School | F3: 1 | H3: 1193808 | I3: 1193808 | J3: 0 | L3: 285440.83 | M3: 285440.83 | N3: 0 | P3: 29746.61 | Q3: 29746.6104 | R3: -0.0003975535728 | T3: 166982.86 | U3: 166982.8576 | V3: 0.002435424365 | X3: 121386.12 | Y3: 121386.12 | Z3: 0 | AB3: 0 | AC3: 0 | AD3: 0 | AF3: 0 | AG3: 0 | AH3: 0 | AJ3: 0 | AK3: 0 | AL3: 0 | AN3: 24576 | AO3: 24576 | AP3: 0 | AR3: 0 | AS3: 0 | AT3: 0 | AV3: 0 | AW3: 0 | AX3: 0 | AZ3: 0 | BA3: 0 | BB3: 0 | BD3: 1821940.42 | BE3: =I3+M3+Q3+U3+Y3+AC3+AG3+AK3+AO3+AS3+AW3+BA3 -> 1821940.418 | BF3: 0.002037870698 | BH3: 0 | BI3: 0 | BJ3: 0 | BL3: 1821940.42 | BM3: 1821940.418 | BN3: 0.002037870698 | BP3: 0 | BR3: 0 | BV3: 0 | BZ3: 0 | CB3: 392995.98 | CC3: 392995.9796 | CD3: 0 | CF3: 10131.66 | CG3: 10131.66 | CH3: 0 | CJ3: 2113494.14 | CL3: 2113494 | CM3: =(CJ3-(BM3+CT3))/(BM3+CT3) -> 0.1243494713 | CN3: 2378063.36 | CP3: 2378063 | CQ3: =(CN3-CJ3)/CJ3 -> 0.1251809574 | CR3: 57808 | CT3: 57808 | CX3: 0 | DB3: 0 | DF3: 0 | DH3: NO | DI3: =IF(ISERROR(VLOOKUP($A3+8860000,'Growth Data'!$A:$F,3,0)),"NO",VLOOKUP($A3+8860000,'Growth Data'!$A:$F,3,0)) -> YES | DJ3: 1 | DL3: 0 | DM3: =IF(DI3="YES",IF(ISERROR(VLOOKUP($A3+8860000,'Growth Data'!$A:$F,6,0)),0,VLOOKUP($A3+8860000,'Growth Data'!$A:$F,6,0)),0) -> 59 | DN3: -59 | DP3: 0 | DQ3: =IF(ISERROR(VLOOKUP($A3+8860000,'Growth Data'!$A:$Z,7,0)),0,VLOOKUP($A3+8860000,'Growth Data'!$A:$Z,7,0)) -> 60 | DR3: 1 | DT3: NO | DU3: =IF(ISERROR(VLOOKUP($A3+8860000,'Growth Data'!$A:$F,4,0)),"NO",VLOOKUP($A3+8860000,'Growth Data'!$A:$F,4,0)) -> NO | DV3: 0 | DX3: 0 | DY3: =IF(ISERROR(VLOOKUP($A3+8860000,'Growth Data'!$A:$Z,8,0)),0,VLOOKUP($A3+8860000,'Growth Data'!$A:$Z,8,0)) -> 0 | DZ3: 0 | EB3: 0 | EC3: =IF(ISERROR(VLOOKUP($A3+8860000,'Growth Data'!$A:$Z,9,0)),0,VLOOKUP($A3+8860000,'Growth Data'!$A:$Z,9,0)) -> 0 | ED3: 0 | EF3: NO | EG3: =IF(ISERROR(VLOOKUP($A3+8860000,'Growth Data'!$A:$Z,5,0)),"NO",VLOOKUP($A3+8860000,'Growth Data'!$A:$Z,5,0)) -> NO | EH3: 0 | EJ3: 0 | EK3: =IF(ISERROR(VLOOKUP($A3+8860000,'Growth Data'!$A:$Z,10,0)),0,VLOOKUP($A3+8860000,'Growth Data'!$A:$Z,10,0)) -> 0 | EL3: 0 | EN3: 0 | EO3: =IF(ISERROR(VLOOKUP($A3+8860000,'Growth Data'!$A:$Z,11,0)),0,VLOOKUP($A3+8860000,'Growth Data'!$A:$Z,11,0)) -> 0 | EP3: 0
A4: 2002 | B4: Repton Manor Primary School | D4: Repton Manor Primary School | F4: 1 | H4: 1522584 | I4: 1522584 | J4: 0 | L4: 101597.27 | M4: 101597.2728 | N4: -0.002821052534 | P4: 23815.62 | Q4: 23815.61957 | R4: 0.0004295942708 | T4: 121363.11 | U4: 121363.11 | V4: 0 | X4: 121386.12 | Y4: 121386.12 | Z4: 0 | AB4: 0 | AC4: 0 | AD4: 0 | AF4: 0 | AG4: 0 | AH4: 0 | AJ4: 0 | AK4: 0 | AL4: 0 | AN4: 10650 | AO4: 10650 | AP4: 0 | AR4: 0 | AS4: 0 | AT4: 0 | AV4: 0 | AW4: 0 | AX4: 0 | AZ4: 143658.88 | BA4: 143658.8776 | BB4: 0.002391458256 | BD4: 2045055 | BE4: 2045055 | BF4: 0 | BH4: 0 | BI4: 0 | BJ4: 0 | BL4: 2045055 | BM4: 2045055 | BN4: 0 | BP4: 0 | BR4: 0 | BV4: 0 | BZ4: 0 | CB4: 353467.19 | CC4: 353467.1916 | CD4: 0 | CF4: 12921.93 | CG4: 12921.93 | CH4: 0 | CJ4: 2375570.69 | CL4: 2375571 | CM4: =(CJ4-(BM4+CT4))/(BM4+CT4) -> 0.1294766763 | CN4: 2683931.33 | CP4: 2683931 | CQ4: =(CN4-CJ4)/CJ4 -> 0.1298048681 | CR4: 58194 | CT4: 58194 | CX4: 0 | DB4: 0 | DF4: 0 | DH4: NO | DI4: =IF(ISERROR(VLOOKUP($A4+8860000,'Growth Data'!$A:$F,3,0)),"NO",VLOOKUP($A4+8860000,'Growth Data'!$A:$F,3,0)) -> NO | DJ4: 0 | DL4: 0 | DM4: =IF(DI4="YES",IF(ISERROR(VLOOKUP($A4+8860000,'Growth Data'!$A:$F,6,0)),0,VLOOKUP($A4+8860000,'Growth Data'!$A:$F,6,0)),0) -> 0 | DN4: 0 | DP4: 0 | DQ4: =IF(ISERROR(VLOOKUP($A4+8860000,'Growth Data'!$A:$Z,7,0)),0,VLOOKUP($A4+8860000,'Growth Data'!$A:$Z,7,0)) -> 0 | DR4: 0 | DT4: NO | DU4: =IF(ISERROR(VLOOKUP($A4+8860000,'Growth Data'!$A:$F,4,0)),"NO",VLOOKUP($A4+8860000,'Growth Data'!$A:$F,4,0)) -> NO | DV4: 0 | DX4: 0 | DY4: =IF(ISERROR(VLOOKUP($A4+8860000,'Growth Data'!$A:$Z,8,0)),0,VLOOKUP($A4+8860000,'Growth Data'!$A:$Z,8,0)) -> 0 | DZ4: 0 | EB4: 0 | EC4: =IF(ISERROR(VLOOKUP($A4+8860000,'Growth Data'!$A:$Z,9,0)),0,VLOOKUP($A4+8860000,'Growth Data'!$A:$Z,9,0)) -> 0 | ED4: 0 | EF4: NO | EG4: =IF(ISERROR(VLOOKUP($A4+8860000,'Growth Data'!$A:$Z,5,0)),"NO",VLOOKUP($A4+8860000,'Growth Data'!$A:$Z,5,0)) -> NO | EH4: 0 | EJ4: 0 | EK4: =IF(ISERROR(VLOOKUP($A4+8860000,'Growth Data'!$A:$Z,10,0)),0,VLOOKUP($A4+8860000,'Growth Data'!$A:$Z,10,0)) -> 0 | EL4: 0 | EN4: 0 | EO4: =IF(ISERROR(VLOOKUP($A4+8860000,'Growth Data'!$A:$Z,11,0)),0,VLOOKUP($A4+8860000,'Growth Data'!$A:$Z,11,0)) -> 0 | EP4: 0
A5: 2065 | B5: The Discovery School | D5: The Discovery School | F5: 1 | H5: 1991808 | I5: 1991808 | J5: 0 | L5: 37457.73 | M5: 37457.73 | N5: 0 | P5: 13189.14 | Q5: 13189.14393 | R5: -0.003925233659 | T5: 106108.15 | U5: 106108.1504 | V5: -0.0003759398387 | X5: 121386.12 | Y5: 121386.12 | Z5: 0 | AB5: 0 | AC5: 0 | AD5: 0 | AF5: 0 | AG5: 0 | AH5: 0 | AJ5: 0 | AK5: 0 | AL5: 0 | AN5: 75264 | AO5: 75264 | AP5: 0 | AR5: 0 | AS5: 0 | AT5: 0 | AV5: 0 | AW5: 0 | AX5: 0 | AZ5: 391410.86 | BA5: 391410.8557 | BB5: 0.004301173438 | BD5: 2736624 | BE5: 2736624 | BF5: 0 | BH5: 0 | BI5: 0 | BJ5: 0 | BL5: 2736624 | BM5: 2736624 | BN5: 0 | BP5: 0 | BR5: 0 | BV5: 0 | BZ5: 0 | CB5: 538477.33 | CC5: 538477.3316 | CD5: 0 | CF5: 16904.16 | CG5: 16904.16 | CH5: 0 | CJ5: 3159870.92 | CL5: 3159871 | CM5: 0.1269588558 | CN5: 3562987.18 | CP5: 3562987 | CQ5: 0.1275736479 | CR5: 67268 | CT5: 67268 | CX5: 0 | DB5: 0 | DF5: 0 | DH5: NO | DI5: =IF(ISERROR(VLOOKUP($A5+8860000,'Growth Data'!$A:$F,3,0)),"NO",VLOOKUP($A5+8860000,'Growth Data'!$A:$F,3,0)) -> NO | DJ5: 0 | DL5: 0 | DM5: =IF(DI5="YES",IF(ISERROR(VLOOKUP($A5+8860000,'Growth Data'!$A:$F,6,0)),0,VLOOKUP($A5+8860000,'Growth Data'!$A:$F,6,0)),0) -> 0 | DN5: 0 | DP5: 0 | DQ5: =IF(ISERROR(VLOOKUP($A5+8860000,'Growth Data'!$A:$Z,7,0)),0,VLOOKUP($A5+8860000,'Growth Data'!$A:$Z,7,0)) -> 0 | DR5: 0 | DT5: NO | DU5: =IF(ISERROR(VLOOKUP($A5+8860000,'Growth Data'!$A:$F,4,0)),"NO",VLOOKUP($A5+8860000,'Growth Data'!$A:$F,4,0)) -> NO | DV5: 0 | DX5: 0 | DY5: =IF(ISERROR(VLOOKUP($A5+8860000,'Growth Data'!$A:$Z,8,0)),0,VLOOKUP($A5+8860000,'Growth Data'!$A:$Z,8,0)) -> 0 | DZ5: 0 | EB5: 0 | EC5: =IF(ISERROR(VLOOKUP($A5+8860000,'Growth Data'!$A:$Z,9,0)),0,VLOOKUP($A5+8860000,'Growth Data'!$A:$Z,9,0)) -> 0 | ED5: 0 | EF5: NO | EG5: =IF(ISERROR(VLOOKUP($A5+8860000,'Growth Data'!$A:$Z,5,0)),"NO",VLOOKUP($A5+8860000,'Growth Data'!$A:$Z,5,0)) -> NO | EH5: 0 | EJ5: 0 | EK5: =IF(ISERROR(VLOOKUP($A5+8860000,'Growth Data'!$A:$Z,10,0)),0,VLOOKUP($A5+8860000,'Growth Data'!$A:$Z,10,0)) -> 0 | EL5: 0 | EN5: 0 | EO5: =IF(ISERROR(VLOOKUP($A5+8860000,'Growth Data'!$A:$Z,11,0)),0,VLOOKUP($A5+8860000,'Growth Data'!$A:$Z,11,0)) -> 0 | EP5: 0
A6: 2066 | B6: Maypole Primary School | D6: Maypole Primary School | F6: 1 | H6: 1299144 | I6: 1299144 | J6: 0 | L6: 62485.33 | M6: 62485.33 | N6: 0 | P6: 15961.93 | Q6: 15961.92832 | R6: 0.001676300575 | T6: 118187.39 | U6: 118187.3897 | V6: 0.0002719033073 | X6: 121386.12 | Y6: 121386.12 | Z6: 0 | AB6: 0 | AC6: 0 | AD6: 0 | AF6: 60320.25 | AG6: 60320.24585 | AH6: 0.004151668007 | AJ6: 0 | AK6: 0 | AL6: 0 | AN6: 38144 | AO6: 38144 | AP6: 0 | AR6: 0 | AS6: 0 | AT6: 0 | AV6: 0 | AW6: 0 | AX6: 0 | AZ6: 58369.99 | BA6: 58369.9861 | BB6: 0.003900128148 | BD6: 1773999 | BE6: 1773999 | BF6: 0 | BH6: 0 | BI6: 0 | BJ6: 0 | BL6: 1773999 | BM6: 1773999 | BN6: 0 | BP6: 0 | BR6: 0 | BV6: 0 | BZ6: 0 | CB6: 243507.46 | CC6: 243507.4557 | CD6: 0 | CF6: 11436.89 | CG6: 11436.886 | CH6: 0 | CJ6: 2054311.84 | CL6: 2054312 | CM6: 0.1275018976 | CN6: 2317369.41 | CP6: 2317369 | CQ6: 0.1280514306 | CR6: 48004 | CT6: 48004 | CX6: 0 | DB6: 0 | DF6: 0 | DH6: NO | DI6: =IF(ISERROR(VLOOKUP($A6+8860000,'Growth Data'!$A:$F,3,0)),"NO",VLOOKUP($A6+8860000,'Growth Data'!$A:$F,3,0)) -> NO | DJ6: 0 | DL6: 0 | DM6: =IF(DI6="YES",IF(ISERROR(VLOOKUP($A6+8860000,'Growth Data'!$A:$F,6,0)),0,VLOOKUP($A6+8860000,'Growth Data'!$A:$F,6,0)),0) -> 0 | DN6: 0 | DP6: 0 | DQ6: =IF(ISERROR(VLOOKUP($A6+8860000,'Growth Data'!$A:$Z,7,0)),0,VLOOKUP($A6+8860000,'Growth Data'!$A:$Z,7,0)) -> 0 | DR6: 0 | DT6: NO | DU6: =IF(ISERROR(VLOOKUP($A6+8860000,'Growth Data'!$A:$F,4,0)),"NO",VLOOKUP($A6+8860000,'Growth Data'!$A:$F,4,0)) -> NO | DV6: 0 | DX6: 0 | DY6: =IF(ISERROR(VLOOKUP($A6+8860000,'Growth Data'!$A:$Z,8,0)),0,VLOOKUP($A6+8860000,'Growth Data'!$A:$Z,8,0)) -> 0 | DZ6: 0 | EB6: 0 | EC6: =IF(ISERROR(VLOOKUP($A6+8860000,'Growth Data'!$A:$Z,9,0)),0,VLOOKUP($A6+8860000,'Growth Data'!$A:$Z,9,0)) -> 0 | ED6: 0 | EF6: NO | EG6: =IF(ISERROR(VLOOKUP($A6+8860000,'Growth Data'!$A:$Z,5,0)),"NO",VLOOKUP($A6+8860000,'Growth Data'!$A:$Z,5,0)) -> NO | EH6: 0 | EJ6: 0 | EK6: =IF(ISERROR(VLOOKUP($A6+8860000,'Growth Data'!$A:$Z,10,0)),0,VLOOKUP($A6+8860000,'Growth Data'!$A:$Z,10,0)) -> 0 | EL6: 0 | EN6: 0 | EO6: =IF(ISERROR(VLOOKUP($A6+8860000,'Growth Data'!$A:$Z,11,0)),0,VLOOKUP($A6+8860000,'Growth Data'!$A:$Z,11,0)) -> 0 | EP6: 0
A7: 2079 | B7: Woodlands Primary School | D7: Woodlands Primary School | F7: 1 | H7: 2039688 | I7: 2039688 | J7: 0 | L7: 158151.74 | M7: 158151.74 | N7: 0 | P7: 13185.79 | Q7: 13185.78832 | R7: 0.001678832121 | T7: 144249.11 | U7: 144249.112 | V7: -0.002014787431 | X7: 121386.12 | Y7: 121386.12 | Z7: 0 | AB7: 0 | AC7: 0 | AD7: 0 | AF7: 0 | AG7: 0 | AH7: 0 | AJ7: 0 | AK7: 0 | AL7: 0 | AN7: 57856 | AO7: 57856 | AP7: 0 | AR7: 0 | AS7: 0 | AT7: 0 | AV7: 0 | AW7: 0 | AX7: 0 | AZ7: 248674.24 | BA7: 248674.2397 | BB7: 0.0003359554103 | BD7: 2783191 | BE7: 2783191 | BF7: 0 | BH7: 0 | BI7: 0 | BJ7: 0 | BL7: 2783191 | BM7: 2783191 | BN7: 0 | BP7: 0 | BR7: 0 | BV7: 0 | BZ7: 0 | CB7: 515064.61 | CC7: 515064.6116 | CD7: 0 | CF7: 17310.51 | CG7: 17310.51 | CH7: 0 | CJ7: 3224324.75 | CL7: 3224325 | CM7: 0.1275581697 | CN7: 3637362.68 | CP7: 3637363 | CQ7: 0.1281005984 | CR7: 76373 | CT7: 76373 | CX7: 0 | DB7: 0 | DF7: 0 | DH7: NO | DI7: =IF(ISERROR(VLOOKUP($A7+8860000,'Growth Data'!$A:$F,3,0)),"NO",VLOOKUP($A7+8860000,'Growth Data'!$A:$F,3,0)) -> NO | DJ7: 0 | DL7: 0 | DM7: =IF(DI7="YES",IF(ISERROR(VLOOKUP($A7+8860000,'Growth Data'!$A:$F,6,0)),0,VLOOKUP($A7+8860000,'Growth Data'!$A:$F,6,0)),0) -> 0 | DN7: 0 | DP7: 0 | DQ7: =IF(ISERROR(VLOOKUP($A7+8860000,'Growth Data'!$A:$Z,7,0)),0,VLOOKUP($A7+8860000,'Growth Data'!$A:$Z,7,0)) -> 0 | DR7: 0 | DT7: NO | DU7: =IF(ISERROR(VLOOKUP($A7+8860000,'Growth Data'!$A:$F,4,0)),"NO",VLOOKUP($A7+8860000,'Growth Data'!$A:$F,4,0)) -> NO | DV7: 0 | DX7: 0 | DY7: =IF(ISERROR(VLOOKUP($A7+8860000,'Growth Data'!$A:$Z,8,0)),0,VLOOKUP($A7+8860000,'Growth Data'!$A:$Z,8,0)) -> 0 | DZ7: 0 | EB7: 0 | EC7: =IF(ISERROR(VLOOKUP($A7+8860000,'Growth Data'!$A:$Z,9,0)),0,VLOOKUP($A7+8860000,'Growth Data'!$A:$Z,9,0)) -> 0 | ED7: 0 | EF7: NO | EG7: =IF(ISERROR(VLOOKUP($A7+8860000,'Growth Data'!$A:$Z,5,0)),"NO",VLOOKUP($A7+8860000,'Growth Data'!$A:$Z,5,0)) -> NO | EH7: 0 | EJ7: 0 | EK7: =IF(ISERROR(VLOOKUP($A7+8860000,'Growth Data'!$A:$Z,10,0)),0,VLOOKUP($A7+8860000,'Growth Data'!$A:$Z,10,0)) -> 0 | EL7: 0 | EN7: 0 | EO7: =IF(ISERROR(VLOOKUP($A7+8860000,'Growth Data'!$A:$Z,11,0)),0,VLOOKUP($A7+8860000,'Growth Data'!$A:$Z,11,0)) -> 0 | EP7: 0
A8: 2088 | B8: Crockenhill Primary School | D8: Crockenhill Primary School | F8: 1 | H8: 647976 | I8: 647976 | J8: 0 | L8: 64281.31 | M8: 64281.31 | N8: 0 | P8: 3935.18 | Q8: 3935.184 | R8: -0.004000000002 | T8: 51157.39 | U8: 51157.392 | V8: -0.002 | X8: 121386.12 | Y8: 121386.12 | Z8: 0 | AB8: 0 | AC8: 0 | AD8: 0 | AF8: 33149.85 | AG8: 33149.85302 | AH8: -0.003023800004 | AJ8: 0 | AK8: 0 | AL8: 0 | AN8: 24116 | AO8: 24116 | AP8: 0 | AR8: 0 | AS8: 0 | AT8: 0 | AV8: 0 | AW8: 0 | AX8: 0 | AZ8: 0 | BA8: 0 | BB8: 0 | BD8: 946001.86 | BE8: 946001.859 | BF8: 0.0009761999827 | BH8: 0 | BI8: 0 | BJ8: 0 | BL8: 946001.86 | BM8: 946001.859 | BN8: 0.0009761999827 | BP8: 0 | BR8: 0 | BV8: 0 | BZ8: 0 | CB8: 102067.64 | CC8: 102067.6413 | CD8: 0 | CF8: 5704.39 | CG8: 5704.392771 | CH8: 0 | CJ8: 1088396.92 | CL8: 1088397 | CM8: 0.1171032805 | CN8: 1216194.9 | CP8: 1216195 | CQ8: 0.1174185425 | CR8: 28301 | CT8: 28301 | CX8: 0 | DB8: 0 | DF8: 0 | DH8: NO | DI8: =IF(ISERROR(VLOOKUP($A8+8860000,'Growth Data'!$A:$F,3,0)),"NO",VLOOKUP($A8+8860000,'Growth Data'!$A:$F,3,0)) -> NO | DJ8: 0 | DL8: 0 | DM8: =IF(DI8="YES",IF(ISERROR(VLOOKUP($A8+8860000,'Growth Data'!$A:$F,6,0)),0,VLOOKUP($A8+8860000,'Growth Data'!$A:$F,6,0)),0) -> 0 | DN8: 0 | DP8: 0 | DQ8: =IF(ISERROR(VLOOKUP($A8+8860000,'Growth Data'!$A:$Z,7,0)),0,VLOOKUP($A8+8860000,'Growth Data'!$A:$Z,7,0)) -> 0 | DR8: 0 | DT8: NO | DU8: =IF(ISERROR(VLOOKUP($A8+8860000,'Growth Data'!$A:$F,4,0)),"NO",VLOOKUP($A8+8860000,'Growth Data'!$A:$F,4,0)) -> NO | DV8: 0 | DX8: 0 | DY8: =IF(ISERROR(VLOOKUP($A8+8860000,'Growth Data'!$A:$Z,8,0)),0,VLOOKUP($A8+8860000,'Growth Data'!$A:$Z,8,0)) -> 0 | DZ8: 0 | EB8: 0 | EC8: =IF(ISERROR(VLOOKUP($A8+8860000,'Growth Data'!$A:$Z,9,0)),0,VLOOKUP($A8+8860000,'Growth Data'!$A:$Z,9,0)) -> 0 | ED8: 0 | EF8: NO | EG8: =IF(ISERROR(VLOOKUP($A8+8860000,'Growth Data'!$A:$Z,5,0)),"NO",VLOOKUP($A8+8860000,'Growth Data'!$A:$Z,5,0)) -> NO | EH8: 0 | EJ8: 0 | EK8: =IF(ISERROR(VLOOKUP($A8+8860000,'Growth Data'!$A:$Z,10,0)),0,VLOOKUP($A8+8860000,'Growth Data'!$A:$Z,10,0)) -> 0 | EL8: 0 | EN8: 0 | EO8: =IF(ISERROR(VLOOKUP($A8+8860000,'Growth Data'!$A:$Z,11,0)),0,VLOOKUP($A8+8860000,'Growth Data'!$A:$Z,11,0)) -> 0 | EP8: 0
A9: 2089 | B9: The Anthony Roper Primary School | D9: The Anthony Roper Primary School | F9: 1 | H9: 954408 | I9: 954408 | J9: 0 | L9: 37923.86 | M9: 37923.86 | N9: 0 | P9: 1331.14 | Q9: 1331.138583 | R9: 0.001417322834 | T9: 54714.77 | U9: 54714.7668 | V9: 0.003195020741 | X9: 121386.12 | Y9: 121386.12 | Z9: 0 | AB9: 0 | AC9: 0 | AD9: 0 | AF9: 43632.19 | AG9: 43632.19292 | AH9: -0.002924959575 | AJ9: 0 | AK9: 0 | AL9: 0 | AN9: 6656 | AO9: 6656 | AP9: 0 | AR9: 0 | AS9: 0 | AT9: 0 | AV9: 0 | AW9: 0 | AX9: 0 | AZ9: 61838.92 | BA9: 61838.92169 | BB9: -0.00168738397 | BD9: 1281891 | BE9: 1281891 | BF9: 0 | BH9: 0 | BI9: 0 | BJ9: 0 | BL9: 1281891 | BM9: 1281891 | BN9: 0 | BP9: 0 | BR9: 0 | BV9: 0 | BZ9: 0 | CB9: 151215.32 | CC9: 151215.3213 | CD9: 0 | CF9: 8402.04 | CG9: 8402.036643 | CH9: 0 | CJ9: 1488049.9 | CL9: 1488050 | CM9: 0.1295533783 | CN9: 1681310.36 | CP9: 1681310 | CQ9: 0.129874986 | CR9: 35488 | CT9: 35488 | CX9: 0 | DB9: 0 | DF9: 0 | DH9: NO | DI9: =IF(ISERROR(VLOOKUP($A9+8860000,'Growth Data'!$A:$F,3,0)),"NO",VLOOKUP($A9+8860000,'Growth Data'!$A:$F,3,0)) -> NO | DJ9: 0 | DL9: 0 | DM9: =IF(DI9="YES",IF(ISERROR(VLOOKUP($A9+8860000,'Growth Data'!$A:$F,6,0)),0,VLOOKUP($A9+8860000,'Growth Data'!$A:$F,6,0)),0) -> 0 | DN9: 0 | DP9: 0 | DQ9: =IF(ISERROR(VLOOKUP($A9+8860000,'Growth Data'!$A:$Z,7,0)),0,VLOOKUP($A9+8860000,'Growth Data'!$A:$Z,7,0)) -> 0 | DR9: 0 | DT9: NO | DU9: =IF(ISERROR(VLOOKUP($A9+8860000,'Growth Data'!$A:$F,4,0)),"NO",VLOOKUP($A9+8860000,'Growth Data'!$A:$F,4,0)) -> NO | DV9: 0 | DX9: 0 | DY9: =IF(ISERROR(VLOOKUP($A9+8860000,'Growth Data'!$A:$Z,8,0)),0,VLOOKUP($A9+8860000,'Growth Data'!$A:$Z,8,0)) -> 0 | DZ9: 0 | EB9: 0 | EC9: =IF(ISERROR(VLOOKUP($A9+8860000,'Growth Data'!$A:$Z,9,0)),0,VLOOKUP($A9+8860000,'Growth Data'!$A:$Z,9,0)) -> 0 | ED9: 0 | EF9: NO | EG9: =IF(ISERROR(VLOOKUP($A9+8860000,'Growth Data'!$A:$Z,5,0)),"NO",VLOOKUP($A9+8860000,'Growth Data'!$A:$Z,5,0)) -> NO | EH9: 0 | EJ9: 0 | EK9: =IF(ISERROR(VLOOKUP($A9+8860000,'Growth Data'!$A:$Z,10,0)),0,VLOOKUP($A9+8860000,'Growth Data'!$A:$Z,10,0)) -> 0 | EL9: 0 | EN9: 0 | EO9: =IF(ISERROR(VLOOKUP($A9+8860000,'Growth Data'!$A:$Z,11,0)),0,VLOOKUP($A9+8860000,'Growth Data'!$A:$Z,11,0)) -> 0 | EP9: 0
A10: 2094 | B10: Cobham Primary School | D10: Cobham Primary School | F10: 1 | H10: 699048 | I10: 699048 | J10: 0 | L10: 11705.33 | M10: 11705.33 | N10: 0 | P10: 1310.29 | Q10: 1310.292063 | R10: -0.002063492066 | T10: 41490.3 | U10: 41490.29529 | V10: 0.004712041882 | X10: 121386.12 | Y10: 121386.12 | Z10: 0 | AB10: 0 | AC10: 0 | AD10: 0 | AF10: 0 | AG10: 0 | AH10: 0 | AJ10: 0 | AK10: 0 | AL10: 0 | AN10: 17216 | AO10: 17216 | AP10: 0 | AR10: 0 | AS10: 0 | AT10: 0 | AV10: 0 | AW10: 0 | AX10: 0 | AZ10: 59094.96 | BA10: 59094.96265 | BB10: -0.002648549846 | BD10: 951251 | BE10: 951251 | BF10: 0 | BH10: 0 | BI10: 0 | BJ10: 0 | BL10: 951251 | BM10: 951251 | BN10: 0 | BP10: 0 | BR10: 0 | BV10: 0 | BZ10: 0 | CB10: 114259.59 | CC10: 114259.5916 | CD10: 0 | CF10: 5932.71 | CG10: 5932.71 | CH10: 0 | CJ10: 1102198.95 | CL10: 1102199 | CM10: 0.127922347 | CN10: 1243749.38 | CP10: 1243749 | CQ10: 0.1284254807 | CR10: 25943 | CT10: 25943 | CX10: 0 | DB10: 0 | DF10: 0 | DH10: NO | DI10: =IF(ISERROR(VLOOKUP($A10+8860000,'Growth Data'!$A:$F,3,0)),"NO",VLOOKUP($A10+8860000,'Growth Data'!$A:$F,3,0)) -> NO | DJ10: 0 | DL10: 0 | DM10: =IF(DI10="YES",IF(ISERROR(VLOOKUP($A10+8860000,'Growth Data'!$A:$F,6,0)),0,VLOOKUP($A10+8860000,'Growth Data'!$A:$F,6,0)),0) -> 0 | DN10: 0 | DP10: 0 | DQ10: =IF(ISERROR(VLOOKUP($A10+8860000,'Growth Data'!$A:$Z,7,0)),0,VLOOKUP($A10+8860000,'Growth Data'!$A:$Z,7,0)) -> 0 | DR10: 0 | DT10: NO | DU10: =IF(ISERROR(VLOOKUP($A10+8860000,'Growth Data'!$A:$F,4,0)),"NO",VLOOKUP($A10+8860000,'Growth Data'!$A:$F,4,0)) -> NO | DV10: 0 | DX10: 0 | DY10: =IF(ISERROR(VLOOKUP($A10+8860000,'Growth Data'!$A:$Z,8,0)),0,VLOOKUP($A10+8860000,'Growth Data'!$A:$Z,8,0)) -> 0 | DZ10: 0 | EB10: 0 | EC10: =IF(ISERROR(VLOOKUP($A10+8860000,'Growth Data'!$A:$Z,9,0)),0,VLOOKUP($A10+8860000,'Growth Data'!$A:$Z,9,0)) -> 0 | ED10: 0 | EF10: NO | EG10: =IF(ISERROR(VLOOKUP($A10+8860000,'Growth Data'!$A:$Z,5,0)),"NO",VLOOKUP($A10+8860000,'Growth Data'!$A:$Z,5,0)) -> NO | EH10: 0 | EJ10: 0 | EK10: =IF(ISERROR(VLOOKUP($A10+8860000,'Growth Data'!$A:$Z,10,0)),0,VLOOKUP($A10+8860000,'Growth Data'!$A:$Z,10,0)) -> 0 | EL10: 0 | EN10: 0 | EO10: =IF(ISERROR(VLOOKUP($A10+8860000,'Growth Data'!$A:$Z,11,0)),0,VLOOKUP($A10+8860000,'Growth Data'!$A:$Z,11,0)) -> 0 | EP10: 0
A11: 2095 | B11: Cecil Road Primary and Nursery School | D11: Cecil Road Primary and Nursery School | F11: 1 | H11: 1197000 | I11: 1197000 | J11: 0 | L11: 92265.6 | M11: 92265.60075 | N11: -0.0007506701659 | P11: 45433.93 | Q11: 45433.92857 | R11: 0.001428571493 | T11: 108353.47 | U11: 108353.47 | V11: -3.15457437e-05 | X11: 121386.12 | Y11: 121386.12 | Z11: 0 | AB11: 0 | AC11: 0 | AD11: 0 | AF11: 0 | AG11: 0 | AH11: 0 | AJ11: 0 | AK11: 0 | AL11: 0 | AN11: 34048 | AO11: 34048 | AP11: 0 | AR11: 0 | AS11: 0 | AT11: 0 | AV11: 0 | AW11: 0 | AX11: 0 | AZ11: 34935.88 | BA11: 34935.88065 | BB11: -0.0006463555692 | BD11: 1633423 | BE11: 1633423 | BF11: 0 | BH11: 0 | BI11: 0 | BJ11: 0 | BL11: 1633423 | BM11: 1633423 | BN11: 0 | BP11: 0 | BR11: 0 | BV11: 0 | BZ11: 0 | CB11: 258131.09 | CC11: 258131.0916 | CD11: 0 | CF11: 10158.75 | CG11: 10158.75 | CH11: 0 | CJ11: 1892912.18 | CL11: 1892912 | CM11: 0.1275166619 | CN11: 2135323.56 | CP11: 2135324 | CQ11: 0.1280626659 | CR11: 45410 | CT11: 45410 | CX11: 0 | DB11: 0 | DF11: 0 | DH11: NO | DI11: =IF(ISERROR(VLOOKUP($A11+8860000,'Growth Data'!$A:$F,3,0)),"NO",VLOOKUP($A11+8860000,'Growth Data'!$A:$F,3,0)) -> NO | DJ11: 0 | DL11: 0 | DM11: =IF(DI11="YES",IF(ISERROR(VLOOKUP($A11+8860000,'Growth Data'!$A:$F,6,0)),0,VLOOKUP($A11+8860000,'Growth Data'!$A:$F,6,0)),0) -> 0 | DN11: 0 | DP11: 0 | DQ11: =IF(ISERROR(VLOOKUP($A11+8860000,'Growth Data'!$A:$Z,7,0)),0,VLOOKUP($A11+8860000,'Growth Data'!$A:$Z,7,0)) -> 0 | DR11: 0 | DT11: NO | DU11: =IF(ISERROR(VLOOKUP($A11+8860000,'Growth Data'!$A:$F,4,0)),"NO",VLOOKUP($A11+8860000,'Growth Data'!$A:$F,4,0)) -> NO | DV11: 0 | DX11: 0 | DY11: =IF(ISERROR(VLOOKUP($A11+8860000,'Growth Data'!$A:$Z,8,0)),0,VLOOKUP($A11+8860000,'Growth Data'!$A:$Z,8,0)) -> 0 | DZ11: 0 | EB11: 0 | EC11: =IF(ISERROR(VLOOKUP($A11+8860000,'Growth Data'!$A:$Z,9,0)),0,VLOOKUP($A11+8860000,'Growth Data'!$A:$Z,9,0)) -> 0 | ED11: 0 | EF11: NO | EG11: =IF(ISERROR(VLOOKUP($A11+8860000,'Growth Data'!$A:$Z,5,0)),"NO",VLOOKUP($A11+8860000,'Growth Data'!$A:$Z,5,0)) -> NO | EH11: 0 | EJ11: 0 | EK11: =IF(ISERROR(VLOOKUP($A11+8860000,'Growth Data'!$A:$Z,10,0)),0,VLOOKUP($A11+8860000,'Growth Data'!$A:$Z,10,0)) -> 0 | EL11: 0 | EN11: 0 | EO11: =IF(ISERROR(VLOOKUP($A11+8860000,'Growth Data'!$A:$Z,11,0)),0,VLOOKUP($A11+8860000,'Growth Data'!$A:$Z,11,0)) -> 0 | EP11: 0
A12: 2109 | B12: Higham Primary School | D12: Higham Primary School | F12: 1 | H12: 663936 | I12: 663936 | J12: 0 | L12: 20543.07 | M12: 20543.06899 | N12: 0.001014492784 | P12: 1321.38 | Q12: 1321.38427 | R12: -0.004269662924 | T12: 65483.6 | U12: 65483.6 | V12: 0 | X12: 121386.12 | Y12: 121386.12 | Z12: 0 | AB12: 0 | AC12: 0 | AD12: 0 | AF12: 0 | AG12: 0 | AH12: 0 | AJ12: 0 | AK12: 0 | AL12: 0 | AN12: 22330 | AO12: 22330 | AP12: 0 | AR12: 0 | AS12: 0 | AT12: 0 | AV12: 0 | AW12: 0 | AX12: 0 | AZ12: 14449.83 | BA12: 14449.82674 | BB12: 0.003255170113 | BD12: 909450 | BE12: 909450 | BF12: 0 | BH12: 0 | BI12: 0 | BJ12: 0 | BL12: 909450 | BM12: 909450 | BN12: 0 | BP12: 0 | BR12: 0 | BV12: 0 | BZ12: 0 | CB12: 98693.95 | CC12: 98693.95164 | CD12: 0 | CF12: 5634.72 | CG12: 5634.72 | CH12: 0 | CJ12: 1053847.19 | CL12: 1053847 | CM12: 0.1269996075 | CN12: 1188318.72 | CP12: 1188319 | CQ12: 0.1276005964 | CR12: 25641 | CT12: 25641 | CX12: 0 | DB12: 0 | DF12: 0 | DH12: NO | DI12: =IF(ISERROR(VLOOKUP($A12+8860000,'Growth Data'!$A:$F,3,0)),"NO",VLOOKUP($A12+8860000,'Growth Data'!$A:$F,3,0)) -> NO | DJ12: 0 | DL12: 0 | DM12: =IF(DI12="YES",IF(ISERROR(VLOOKUP($A12+8860000,'Growth Data'!$A:$F,6,0)),0,VLOOKUP($A12+8860000,'Growth Data'!$A:$F,6,0)),0) -> 0 | DN12: 0 | DP12: 0 | DQ12: =IF(ISERROR(VLOOKUP($A12+8860000,'Growth Data'!$A:$Z,7,0)),0,VLOOKUP($A12+8860000,'Growth Data'!$A:$Z,7,0)) -> 0 | DR12: 0 | DT12: NO | DU12: =IF(ISERROR(VLOOKUP($A12+8860000,'Growth Data'!$A:$F,4,0)),"NO",VLOOKUP($A12+8860000,'Growth Data'!$A:$F,4,0)) -> NO | DV12: 0 | DX12: 0 | DY12: =IF(ISERROR(VLOOKUP($A12+8860000,'Growth Data'!$A:$Z,8,0)),0,VLOOKUP($A12+8860000,'Growth Data'!$A:$Z,8,0)) -> 0 | DZ12: 0 | EB12: 0 | EC12: =IF(ISERROR(VLOOKUP($A12+8860000,'Growth Data'!$A:$Z,9,0)),0,VLOOKUP($A12+8860000,'Growth Data'!$A:$Z,9,0)) -> 0 | ED12: 0 | EF12: NO | EG12: =IF(ISERROR(VLOOKUP($A12+8860000,'Growth Data'!$A:$Z,5,0)),"NO",VLOOKUP($A12+8860000,'Growth Data'!$A:$Z,5,0)) -> NO | EH12: 0 | EJ12: 0 | EK12: =IF(ISERROR(VLOOKUP($A12+8860000,'Growth Data'!$A:$Z,10,0)),0,VLOOKUP($A12+8860000,'Growth Data'!$A:$Z,10,0)) -> 0 | EL12: 0 | EN12: 0 | EO12: =IF(ISERROR(VLOOKUP($A12+8860000,'Growth Data'!$A:$Z,11,0)),0,VLOOKUP($A12+8860000,'Growth Data'!$A:$Z,11,0)) -> 0 | EP12: 0
A13: 2116 | B13: Lawn Primary School | D13: Lawn Primary School | F13: 1 | H13: 600096 | I13: 600096 | J13: 0 | L13: 168827.05 | M13: 168827.05 | N13: 0 | P13: 26408.75 | Q13: 26408.74534 | R13: 0.004658385104 | T13: 80844.24 | U13: 80844.23662 | V13: 0.003380281705 | X13: 121386.12 | Y13: 121386.12 | Z13: 0 | AB13: 0 | AC13: 0 | AD13: 0 | AF13: 0 | AG13: 0 | AH13: 0 | AJ13: 0 | AK13: 0 | AL13: 0 | AN13: 20709 | AO13: 20709 | AP13: 0 | AR13: 0 | AS13: 0 | AT13: 0 | AV13: 0 | AW13: 0 | AX13: 0 | AZ13: 0 | BA13: 0 | BB13: 0 | BD13: 1018271.15 | BE13: 1018271.152 | BF13: -0.001961333212 | BH13: 0 | BI13: 0 | BJ13: 0 | BL13: 1018271.15 | BM13: 1018271.152 | BN13: -0.001961333212 | BP13: 0 | BR13: 0 | BV13: 0 | BZ13: 0 | CB13: 231116.73 | CC13: 231116.7336 | CD13: 0 | CF13: 5092.92 | CG13: 5092.92 | CH13: 0 | CJ13: 1173668 | CL13: 1173668 | CM13: 0.1180003564 | CN13: 1313754.65 | CP13: 1313755 | CQ13: 0.1193579871 | CR13: 31521 | CT13: 31521 | CX13: 0 | DB13: 0 | DF13: 0 | DH13: NO | DI13: =IF(ISERROR(VLOOKUP($A13+8860000,'Growth Data'!$A:$F,3,0)),"NO",VLOOKUP($A13+8860000,'Growth Data'!$A:$F,3,0)) -> NO | DJ13: 0 | DL13: 0 | DM13: =IF(DI13="YES",IF(ISERROR(VLOOKUP($A13+8860000,'Growth Data'!$A:$F,6,0)),0,VLOOKUP($A13+8860000,'Growth Data'!$A:$F,6,0)),0) -> 0 | DN13: 0 | DP13: 0 | DQ13: =IF(ISERROR(VLOOKUP($A13+8860000,'Growth Data'!$A:$Z,7,0)),0,VLOOKUP($A13+8860000,'Growth Data'!$A:$Z,7,0)) -> 0 | DR13: 0 | DT13: NO | DU13: =IF(ISERROR(VLOOKUP($A13+8860000,'Growth Data'!$A:$F,4,0)),"NO",VLOOKUP($A13+8860000,'Growth Data'!$A:$F,4,0)) -> NO | DV13: 0 | DX13: 0 | DY13: =IF(ISERROR(VLOOKUP($A13+8860000,'Growth Data'!$A:$Z,8,0)),0,VLOOKUP($A13+8860000,'Growth Data'!$A:$Z,8,0)) -> 0 | DZ13: 0 | EB13: 0 | EC13: =IF(ISERROR(VLOOKUP($A13+8860000,'Growth Data'!$A:$Z,9,0)),0,VLOOKUP($A13+8860000,'Growth Data'!$A:$Z,9,0)) -> 0 | ED13: 0 | EF13: NO | EG13: =IF(ISERROR(VLOOKUP($A13+8860000,'Growth Data'!$A:$Z,5,0)),"NO",VLOOKUP($A13+8860000,'Growth Data'!$A:$Z,5,0)) -> NO | EH13: 0 | EJ13: 0 | EK13: =IF(ISERROR(VLOOKUP($A13+8860000,'Growth Data'!$A:$Z,10,0)),0,VLOOKUP($A13+8860000,'Growth Data'!$A:$Z,10,0)) -> 0 | EL13: 0 | EN13: 0 | EO13: =IF(ISERROR(VLOOKUP($A13+8860000,'Growth Data'!$A:$Z,11,0)),0,VLOOKUP($A13+8860000,'Growth Data'!$A:$Z,11,0)) -> 0 | EP13: 0
A14: 2119 | B14: Shears Green Infant School | D14: Shears Green Infant School | F14: 1 | H14: 1066128 | I14: 1066128 | J14: 0 | L14: 96763.76 | M14: 96763.76 | N14: 0 | P14: 21255.12 | Q14: 21255.12381 | R14: -0.003809523892 | T14: 92027.76 | U14: 92027.76041 | V14: -0.000409397544 | X14: 121386.12 | Y14: 121386.12 | Z14: 0 | AB14: 0 | AC14: 0 | AD14: 0 | AF14: 0 | AG14: 0 | AH14: 0 | AJ14: 0 | AK14: 0 | AL14: 0 | AN14: 21760 | AO14: 21760 | AP14: 0 | AR14: 0 | AS14: 0 | AT14: 0 | AV14: 0 | AW14: 0 | AX14: 0 | AZ14: 26949.24 | BA14: 26949.23578 | BB14: 0.004218921309 | BD14: 1446270 | BE14: 1446270 | BF14: 0 | BH14: 0 | BI14: 0 | BJ14: 0 | BL14: 1446270 | BM14: 1446270 | BN14: 0 | BP14: 0 | BR14: 0 | BV14: 0 | BZ14: 0 | CB14: 215078.75 | CC14: 215078.7516 | CD14: 0 | CF14: 9048.06 | CG14: 9048.06 | CH14: 0 | CJ14: 1678143.17 | CL14: 1678143 | CM14: 0.1282029153 | CN14: 1894073.56 | CP14: 1894074 | CQ14: 0.1286722098 | CR14: 41178 | CT14: 41178 | CX14: 0 | DB14: 0 | DF14: 0 | DH14: NO | DI14: =IF(ISERROR(VLOOKUP($A14+8860000,'Growth Data'!$A:$F,3,0)),"NO",VLOOKUP($A14+8860000,'Growth Data'!$A:$F,3,0)) -> NO | DJ14: 0 | DL14: 0 | DM14: =IF(DI14="YES",IF(ISERROR(VLOOKUP($A14+8860000,'Growth Data'!$A:$F,6,0)),0,VLOOKUP($A14+8860000,'Growth Data'!$A:$F,6,0)),0) -> 0 | DN14: 0 | DP14: 0 | DQ14: =IF(ISERROR(VLOOKUP($A14+8860000,'Growth Data'!$A:$Z,7,0)),0,VLOOKUP($A14+8860000,'Growth Data'!$A:$Z,7,0)) -> 0 | DR14: 0 | DT14: NO | DU14: =IF(ISERROR(VLOOKUP($A14+8860000,'Growth Data'!$A:$F,4,0)),"NO",VLOOKUP($A14+8860000,'Growth Data'!$A:$F,4,0)) -> NO | DV14: 0 | DX14: 0 | DY14: =IF(ISERROR(VLOOKUP($A14+8860000,'Growth Data'!$A:$Z,8,0)),0,VLOOKUP($A14+8860000,'Growth Data'!$A:$Z,8,0)) -> 0 | DZ14: 0 | EB14: 0 | EC14: =IF(ISERROR(VLOOKUP($A14+8860000,'Growth Data'!$A:$Z,9,0)),0,VLOOKUP($A14+8860000,'Growth Data'!$A:$Z,9,0)) -> 0 | ED14: 0 | EF14: NO | EG14: =IF(ISERROR(VLOOKUP($A14+8860000,'Growth Data'!$A:$Z,5,0)),"NO",VLOOKUP($A14+8860000,'Growth Data'!$A:$Z,5,0)) -> NO | EH14: 0 | EJ14: 0 | EK14: =IF(ISERROR(VLOOKUP($A14+8860000,'Growth Data'!$A:$Z,10,0)),0,VLOOKUP($A14+8860000,'Growth Data'!$A:$Z,10,0)) -> 0 | EL14: 0 | EN14: 0 | EO14: =IF(ISERROR(VLOOKUP($A14+8860000,'Growth Data'!$A:$Z,11,0)),0,VLOOKUP($A14+8860000,'Growth Data'!$A:$Z,11,0)) -> 0 | EP14: 0
A15: 2120 | B15: Bean Primary School | D15: Bean Primary School | F15: 1 | H15: 612864 | I15: 612864 | J15: 0 | L15: 58526.73 | M15: 58526.73 | N15: 0 | P15: 8552.96 | Q15: 8552.96 | R15: 0 | T15: 43422.72 | U15: 43422.72 | V15: 0 | X15: 121386.12 | Y15: 121386.12 | Z15: 0 | AB15: 0 | AC15: 0 | AD15: 0 | AF15: 31509.27 | AG15: 31509.26937 | AH15: 0.000630999999 | AJ15: 0 | AK15: 0 | AL15: 0 | AN15: 16093 | AO15: 16093 | AP15: 0 | AR15: 0 | AS15: 0 | AT15: 0 | AV15: 0 | AW15: 0 | AX15: 0 | AZ15: 0 | BA15: 0 | BB15: 0 | BD15: 892354.8 | BE15: 892354.7994 | BF15: 0.0006310000317 | BH15: 0 | BI15: 0 | BJ15: 0 | BL15: 892354.8 | BM15: 892354.7994 | BN15: 0.0006310000317 | BP15: 0 | BR15: 0 | BV15: 0 | BZ15: 0 | CB15: 102134.85 | CC15: 102134.8521 | CD15: 0 | CF15: 5395.29 | CG15: 5395.287744 | CH15: 0 | CJ15: 1025729.6 | CL15: 1025730 | CM15: 0.1171775061 | CN15: 1146259.89 | CP15: 1146260 | CQ15: 0.1175068849 | CR15: 25789 | CT15: 25789 | CX15: 0 | DB15: 0 | DF15: 0 | DH15: NO | DI15: =IF(ISERROR(VLOOKUP($A15+8860000,'Growth Data'!$A:$F,3,0)),"NO",VLOOKUP($A15+8860000,'Growth Data'!$A:$F,3,0)) -> NO | DJ15: 0 | DL15: 0 | DM15: =IF(DI15="YES",IF(ISERROR(VLOOKUP($A15+8860000,'Growth Data'!$A:$F,6,0)),0,VLOOKUP($A15+8860000,'Growth Data'!$A:$F,6,0)),0) -> 0 | DN15: 0 | DP15: 0 | DQ15: =IF(ISERROR(VLOOKUP($A15+8860000,'Growth Data'!$A:$Z,7,0)),0,VLOOKUP($A15+8860000,'Growth Data'!$A:$Z,7,0)) -> 0 | DR15: 0 | DT15: NO | DU15: =IF(ISERROR(VLOOKUP($A15+8860000,'Growth Data'!$A:$F,4,0)),"NO",VLOOKUP($A15+8860000,'Growth Data'!$A:$F,4,0)) -> NO | DV15: 0 | DX15: 0 | DY15: =IF(ISERROR(VLOOKUP($A15+8860000,'Growth Data'!$A:$Z,8,0)),0,VLOOKUP($A15+8860000,'Growth Data'!$A:$Z,8,0)) -> 0 | DZ15: 0 | EB15: 0 | EC15: =IF(ISERROR(VLOOKUP($A15+8860000,'Growth Data'!$A:$Z,9,0)),0,VLOOKUP($A15+8860000,'Growth Data'!$A:$Z,9,0)) -> 0 | ED15: 0 | EF15: NO | EG15: =IF(ISERROR(VLOOKUP($A15+8860000,'Growth Data'!$A:$Z,5,0)),"NO",VLOOKUP($A15+8860000,'Growth Data'!$A:$Z,5,0)) -> NO | EH15: 0 | EJ15: 0 | EK15: =IF(ISERROR(VLOOKUP($A15+8860000,'Growth Data'!$A:$Z,10,0)),0,VLOOKUP($A15+8860000,'Growth Data'!$A:$Z,10,0)) -> 0 | EL15: 0 | EN15: 0 | EO15: =IF(ISERROR(VLOOKUP($A15+8860000,'Growth Data'!$A:$Z,11,0)),0,VLOOKUP($A15+8860000,'Growth Data'!$A:$Z,11,0)) -> 0 | EP15: 0
A16: 2128 | B16: Capel Primary School | D16: Capel Primary School | F16: 1 | H16: 657552 | I16: 657552 | J16: 0 | L16: 34506.64 | M16: 34506.64 | N16: 0 | P16: 3970.65 | Q16: 3970.65 | R16: 0 | T16: 50327.58 | U16: 50327.58025 | V16: -0.0002469135725 | X16: 121386.12 | Y16: 121386.12 | Z16: 0 | AB16: 0 | AC16: 0 | AD16: 0 | AF16: 0 | AG16: 0 | AH16: 0 | AJ16: 0 | AK16: 0 | AL16: 0 | AN16: 21457 | AO16: 21457 | AP16: 0 | AR16: 0 | AS16: 0 | AT16: 0 | AV16: 0 | AW16: 0 | AX16: 0 | AZ16: 10847.01 | BA16: 10847.00975 | BB16: 0.0002469135707 | BD16: 900047 | BE16: 900047 | BF16: 0 | BH16: 0 | BI16: 0 | BJ16: 0 | BL16: 900047 | BM16: 900047 | BN16: 0 | BP16: 0 | BR16: 0 | BV16: 0 | BZ16: 0 | CB16: 91374.32 | CC16: 91374.32164 | CD16: 0 | CF16: 5580.54 | CG16: 5580.54 | CH16: 0 | CJ16: 1044072.93 | CL16: 1044073 | CM16: 0.1269864501 | CN16: 1177281.98 | CP16: 1177282 | CQ16: 0.1275859628 | CR16: 26382 | CT16: 26382 | CX16: 0 | DB16: 0 | DF16: 0 | DH16: NO | DI16: =IF(ISERROR(VLOOKUP($A16+8860000,'Growth Data'!$A:$F,3,0)),"NO",VLOOKUP($A16+8860000,'Growth Data'!$A:$F,3,0)) -> NO | DJ16: 0 | DL16: 0 | DM16: =IF(DI16="YES",IF(ISERROR(VLOOKUP($A16+8860000,'Growth Data'!$A:$F,6,0)),0,VLOOKUP($A16+8860000,'Growth Data'!$A:$F,6,0)),0) -> 0 | DN16: 0 | DP16: 0 | DQ16: =IF(ISERROR(VLOOKUP($A16+8860000,'Growth Data'!$A:$Z,7,0)),0,VLOOKUP($A16+8860000,'Growth Data'!$A:$Z,7,0)) -> 0 | DR16: 0 | DT16: NO | DU16: =IF(ISERROR(VLOOKUP($A16+8860000,'Growth Data'!$A:$F,4,0)),"NO",VLOOKUP($A16+8860000,'Growth Data'!$A:$F,4,0)) -> NO | DV16: 0 | DX16: 0 | DY16: =IF(ISERROR(VLOOKUP($A16+8860000,'Growth Data'!$A:$Z,8,0)),0,VLOOKUP($A16+8860000,'Growth Data'!$A:$Z,8,0)) -> 0 | DZ16: 0 | EB16: 0 | EC16: =IF(ISERROR(VLOOKUP($A16+8860000,'Growth Data'!$A:$Z,9,0)),0,VLOOKUP($A16+8860000,'Growth Data'!$A:$Z,9,0)) -> 0 | ED16: 0 | EF16: NO | EG16: =IF(ISERROR(VLOOKUP($A16+8860000,'Growth Data'!$A:$Z,5,0)),"NO",VLOOKUP($A16+8860000,'Growth Data'!$A:$Z,5,0)) -> NO | EH16: 0 | EJ16: 0 | EK16: =IF(ISERROR(VLOOKUP($A16+8860000,'Growth Data'!$A:$Z,10,0)),0,VLOOKUP($A16+8860000,'Growth Data'!$A:$Z,10,0)) -> 0 | EL16: 0 | EN16: 0 | EO16: =IF(ISERROR(VLOOKUP($A16+8860000,'Growth Data'!$A:$Z,11,0)),0,VLOOKUP($A16+8860000,'Growth Data'!$A:$Z,11,0)) -> 0 | EP16: 0
A17: 2130 | B17: Dunton Green Primary School | D17: Dunton Green Primary School | F17: 1 | H17: 564984 | I17: 564984 | J17: 0 | L17: 49875.25 | M17: 49875.25 | N17: 0 | P17: 9684.75 | Q17: 9684.754839 | R17: -0.004838709678 | T17: 43316.39 | U17: 43316.39104 | V17: -0.001044776116 | X17: 121386.12 | Y17: 121386.12 | Z17: 0 | AB17: 0 | AC17: 0 | AD17: 0 | AF17: 29438.9 | AG17: 29438.89504 | AH17: 0.004957545982 | AJ17: 0 | AK17: 0 | AL17: 0 | AN17: 24576 | AO17: 24576 | AP17: 0 | AR17: 0 | AS17: 0 | AT17: 0 | AV17: 0 | AW17: 0 | AX17: 0 | AZ17: 0 | BA17: 0 | BB17: 0 | BD17: 843261.41 | BE17: 843261.4109 | BF17: -0.000925939763 | BH17: 0 | BI17: 0 | BJ17: 0 | BL17: 843261.41 | BM17: 843261.4109 | BN17: -0.000925939763 | BP17: 0 | BR17: 0 | BV17: 0 | BZ17: 0 | CB17: 84466.92 | CC17: 84466.92151 | CD17: 0 | CF17: 4973.78 | CG17: 4973.780889 | CH17: 0 | CJ17: 969266.49 | CL17: 969266 | CM17: 0.1150024236 | CN17: 1081158.95 | CP17: 1081159 | CQ17: 0.1154403471 | CR17: 26034 | CT17: 26034 | CX17: 0 | DB17: 0 | DF17: 0 | DH17: NO | DI17: =IF(ISERROR(VLOOKUP($A17+8860000,'Growth Data'!$A:$F,3,0)),"NO",VLOOKUP($A17+8860000,'Growth Data'!$A:$F,3,0)) -> NO | DJ17: 0 | DL17: 0 | DM17: =IF(DI17="YES",IF(ISERROR(VLOOKUP($A17+8860000,'Growth Data'!$A:$F,6,0)),0,VLOOKUP($A17+8860000,'Growth Data'!$A:$F,6,0)),0) -> 0 | DN17: 0 | DP17: 0 | DQ17: =IF(ISERROR(VLOOKUP($A17+8860000,'Growth Data'!$A:$Z,7,0)),0,VLOOKUP($A17+8860000,'Growth Data'!$A:$Z,7,0)) -> 0 | DR17: 0 | DT17: NO | DU17: =IF(ISERROR(VLOOKUP($A17+8860000,'Growth Data'!$A:$F,4,0)),"NO",VLOOKUP($A17+8860000,'Growth Data'!$A:$F,4,0)) -> NO | DV17: 0 | DX17: 0 | DY17: =IF(ISERROR(VLOOKUP($A17+8860000,'Growth Data'!$A:$Z,8,0)),0,VLOOKUP($A17+8860000,'Growth Data'!$A:$Z,8,0)) -> 0 | DZ17: 0 | EB17: 0 | EC17: =IF(ISERROR(VLOOKUP($A17+8860000,'Growth Data'!$A:$Z,9,0)),0,VLOOKUP($A17+8860000,'Growth Data'!$A:$Z,9,0)) -> 0 | ED17: 0 | EF17: NO | EG17: =IF(ISERROR(VLOOKUP($A17+8860000,'Growth Data'!$A:$Z,5,0)),"NO",VLOOKUP($A17+8860000,'Growth Data'!$A:$Z,5,0)) -> NO | EH17: 0 | EJ17: 0 | EK17: =IF(ISERROR(VLOOKUP($A17+8860000,'Growth Data'!$A:$Z,10,0)),0,VLOOKUP($A17+8860000,'Growth Data'!$A:$Z,10,0)) -> 0 | EL17: 0 | EN17: 0 | EO17: =IF(ISERROR(VLOOKUP($A17+8860000,'Growth Data'!$A:$Z,11,0)),0,VLOOKUP($A17+8860000,'Growth Data'!$A:$Z,11,0)) -> 0 | EP17: 0
A18: 2132 | B18: Hadlow Primary School | D18: Hadlow Primary School | F18: 1 | H18: 568176 | I18: 568176 | J18: 0 | L18: 67785.07 | M18: 67785.07 | N18: 0 | P18: 1875.3 | Q18: 1875.301863 | R18: -0.001863354037 | T18: 61383.99 | U18: 61383.99433 | V18: -0.004326241127 | X18: 121386.12 | Y18: 121386.12 | Z18: 0 | AB18: 0 | AC18: 0 | AD18: 0 | AF18: 0 | AG18: 0 | AH18: 0 | AJ18: 0 | AK18: 0 | AL18: 0 | AN18: 24326 | AO18: 24326 | AP18: 0 | AR18: 0 | AS18: 0 | AT18: 0 | AV18: 0 | AW18: 0 | AX18: 0 | AZ18: 0 | BA18: 0 | BB18: 0 | BD18: 844932.49 | BE18: 844932.4862 | BF18: 0.0038104048 | BH18: 0 | BI18: 0 | BJ18: 0 | BL18: 844932.49 | BM18: 844932.4862 | BN18: 0.0038104048 | BP18: 0 | BR18: 0 | BV18: 0 | BZ18: 0 | CB18: 114300.87 | CC18: 114300.8678 | CD18: 0 | CF18: 4822.02 | CG18: 4822.02 | CH18: 0 | CJ18: 969820.62 | CL18: 969821 | CM18: 0.1143540238 | CN18: 1082314.51 | CP18: 1082315 | CQ18: 0.1159945331 | CR18: 25366 | CT18: 25366 | CX18: 0 | DB18: 0 | DF18: 0 | DH18: NO | DI18: =IF(ISERROR(VLOOKUP($A18+8860000,'Growth Data'!$A:$F,3,0)),"NO",VLOOKUP($A18+8860000,'Growth Data'!$A:$F,3,0)) -> NO | DJ18: 0 | DL18: 0 | DM18: =IF(DI18="YES",IF(ISERROR(VLOOKUP($A18+8860000,'Growth Data'!$A:$F,6,0)),0,VLOOKUP($A18+8860000,'Growth Data'!$A:$F,6,0)),0) -> 0 | DN18: 0 | DP18: 0 | DQ18: =IF(ISERROR(VLOOKUP($A18+8860000,'Growth Data'!$A:$Z,7,0)),0,VLOOKUP($A18+8860000,'Growth Data'!$A:$Z,7,0)) -> 0 | DR18: 0 | DT18: NO | DU18: =IF(ISERROR(VLOOKUP($A18+8860000,'Growth Data'!$A:$F,4,0)),"NO",VLOOKUP($A18+8860000,'Growth Data'!$A:$F,4,0)) -> NO | DV18: 0 | DX18: 0 | DY18: =IF(ISERROR(VLOOKUP($A18+8860000,'Growth Data'!$A:$Z,8,0)),0,VLOOKUP($A18+8860000,'Growth Data'!$A:$Z,8,0)) -> 0 | DZ18: 0 | EB18: 0 | EC18: =IF(ISERROR(VLOOKUP($A18+8860000,'Growth Data'!$A:$Z,9,0)),0,VLOOKUP($A18+8860000,'Growth Data'!$A:$Z,9,0)) -> 0 | ED18: 0 | EF18: NO | EG18: =IF(ISERROR(VLOOKUP($A18+8860000,'Growth Data'!$A:$Z,5,0)),"NO",VLOOKUP($A18+8860000,'Growth Data'!$A:$Z,5,0)) -> NO | EH18: 0 | EJ18: 0 | EK18: =IF(ISERROR(VLOOKUP($A18+8860000,'Growth Data'!$A:$Z,10,0)),0,VLOOKUP($A18+8860000,'Growth Data'!$A:$Z,10,0)) -> 0 | EL18: 0 | EN18: 0 | EO18: =IF(ISERROR(VLOOKUP($A18+8860000,'Growth Data'!$A:$Z,11,0)),0,VLOOKUP($A18+8860000,'Growth Data'!$A:$Z,11,0)) -> 0 | EP18: 0
A19: 2133 | B19: Halstead Community Primary School | D19: Halstead Community Primary School | F19: 1 | H19: 197904 | I19: 197904 | J19: 0 | L19: 16669.49 | M19: 16669.4941 | N19: -0.004098360638 | P19: 615 | Q19: 614.9964912 | R19: 0.00350877193 | T19: 17527.4 | U19: 17527.4 | V19: 0 | X19: 121386.12 | Y19: 121386.12 | Z19: 0 | AB19: 42104.87 | AC19: 42104.87325 | AD19: -0.00324999998 | AF19: 14778.52 | AG19: 14778.51677 | AH19: 0.003232783343 | AJ19: 0 | AK19: 0 | AL19: 0 | AN19: 9481 | AO19: 9481 | AP19: 0 | AR19: 0 | AS19: 0 | AT19: 0 | AV19: 0 | AW19: 0 | AX19: 0 | AZ19: 0 | BA19: 0 | BB19: 0 | BD19: 420466.4 | BE19: 420466.4006 | BF19: -0.000606805319 | BH19: 0 | BI19: 0 | BJ19: 0 | BL19: 420466.4 | BM19: 420466.4006 | BN19: -0.000606805319 | BP19: 0 | BR19: 0 | BV19: 0 | BZ19: 0 | CB19: 33866.42 | CC19: 33866.41584 | CD19: 0 | CF19: 1742.23 | CG19: 1742.228334 | CH19: 0 | CJ19: 469032.94 | CL19: 469033 | CM19: 0.08650305715 | CN19: 510593.15 | CP19: 510593 | CQ19: 0.08860829689 | CR19: 11224 | CT19: 11224 | CX19: 0 | DB19: 0 | DF19: 0 | DH19: NO | DI19: =IF(ISERROR(VLOOKUP($A19+8860000,'Growth Data'!$A:$F,3,0)),"NO",VLOOKUP($A19+8860000,'Growth Data'!$A:$F,3,0)) -> NO | DJ19: 0 | DL19: 0 | DM19: =IF(DI19="YES",IF(ISERROR(VLOOKUP($A19+8860000,'Growth Data'!$A:$F,6,0)),0,VLOOKUP($A19+8860000,'Growth Data'!$A:$F,6,0)),0) -> 0 | DN19: 0 | DP19: 0 | DQ19: =IF(ISERROR(VLOOKUP($A19+8860000,'Growth Data'!$A:$Z,7,0)),0,VLOOKUP($A19+8860000,'Growth Data'!$A:$Z,7,0)) -> 0 | DR19: 0 | DT19: NO | DU19: =IF(ISERROR(VLOOKUP($A19+8860000,'Growth Data'!$A:$F,4,0)),"NO",VLOOKUP($A19+8860000,'Growth Data'!$A:$F,4,0)) -> NO | DV19: 0 | DX19: 0 | DY19: =IF(ISERROR(VLOOKUP($A19+8860000,'Growth Data'!$A:$Z,8,0)),0,VLOOKUP($A19+8860000,'Growth Data'!$A:$Z,8,0)) -> 0 | DZ19: 0 | EB19: 0 | EC19: =IF(ISERROR(VLOOKUP($A19+8860000,'Growth Data'!$A:$Z,9,0)),0,VLOOKUP($A19+8860000,'Growth Data'!$A:$Z,9,0)) -> 0 | ED19: 0 | EF19: NO | EG19: =IF(ISERROR(VLOOKUP($A19+8860000,'Growth Data'!$A:$Z,5,0)),"NO",VLOOKUP($A19+8860000,'Growth Data'!$A:$Z,5,0)) -> NO | EH19: 0 | EJ19: 0 | EK19: =IF(ISERROR(VLOOKUP($A19+8860000,'Growth Data'!$A:$Z,10,0)),0,VLOOKUP($A19+8860000,'Growth Data'!$A:$Z,10,0)) -> 0 | EL19: 0 | EN19: 0 | EO19: =IF(ISERROR(VLOOKUP($A19+8860000,'Growth Data'!$A:$Z,11,0)),0,VLOOKUP($A19+8860000,'Growth Data'!$A:$Z,11,0)) -> 0 | EP19: 0
A20: 2134 | B20: Four Elms Primary School | D20: Four Elms Primary School | F20: 1 | H20: 344736 | I20: 344736 | J20: 0 | L20: 18961.04 | M20: 18961.04 | N20: 0 | P20: 0 | Q20: 0 | R20: 0 | T20: 36637.92 | U20: 36637.92 | V20: 0 | X20: 121386.12 | Y20: 121386.12 | Z20: 0 | AB20: 30716.05 | AC20: 30716.05194 | AD20: -0.001935914544 | AF20: 20605.91 | AG20: 20605.90502 | AH20: 0.004978790388 | AJ20: 0 | AK20: 0 | AL20: 0 | AN20: 13348 | AO20: 13348 | AP20: 0 | AR20: 0 | AS20: 0 | AT20: 0 | AV20: 0 | AW20: 0 | AX20: 0 | AZ20: 0 | BA20: 0 | BB20: 0 | BD20: 586391.04 | BE20: 586391.037 | BF20: 0.003042875906 | BH20: 0 | BI20: 0 | BJ20: 0 | BL20: 586391.04 | BM20: 586391.037 | BN20: 0.003042875906 | BP20: 0 | BR20: 0 | BV20: 0 | BZ20: 0 | CB20: 59331.83 | CC20: 59331.82941 | CD20: 0 | CF20: 3034.85 | CG20: 3034.849356 | CH20: 0 | CJ20: 662527.29 | CL20: 662527 | CM20: 0.1016470805 | CN20: 730879.15 | CP20: 730879 | CQ20: 0.1031683691 | CR20: 15006 | CT20: 15006 | CX20: 0 | DB20: 0 | DF20: 0 | DH20: YES | DI20: =IF(ISERROR(VLOOKUP($A20+8860000,'Growth Data'!$A:$F,3,0)),"NO",VLOOKUP($A20+8860000,'Growth Data'!$A:$F,3,0)) -> NO | DJ20: 1 | DL20: 31 | DM20: =IF(DI20="YES",IF(ISERROR(VLOOKUP($A20+8860000,'Growth Data'!$A:$F,6,0)),0,VLOOKUP($A20+8860000,'Growth Data'!$A:$F,6,0)),0) -> 0 | DN20: 31 | DP20: 60 | DQ20: =IF(ISERROR(VLOOKUP($A20+8860000,'Growth Data'!$A:$Z,7,0)),0,VLOOKUP($A20+8860000,'Growth Data'!$A:$Z,7,0)) -> 0 | DR20: 1 | DT20: YES | DU20: =IF(ISERROR(VLOOKUP($A20+8860000,'Growth Data'!$A:$F,4,0)),"NO",VLOOKUP($A20+8860000,'Growth Data'!$A:$F,4,0)) -> NO | DV20: 1 | DX20: 32 | DY20: =IF(ISERROR(VLOOKUP($A20+8860000,'Growth Data'!$A:$Z,8,0)),0,VLOOKUP($A20+8860000,'Growth Data'!$A:$Z,8,0)) -> 0 | DZ20: 1 | EB20: 60 | EC20: =IF(ISERROR(VLOOKUP($A20+8860000,'Growth Data'!$A:$Z,9,0)),0,VLOOKUP($A20+8860000,'Growth Data'!$A:$Z,9,0)) -> 0 | ED20: 1 | EF20: NO | EG20: =IF(ISERROR(VLOOKUP($A20+8860000,'Growth Data'!$A:$Z,5,0)),"NO",VLOOKUP($A20+8860000,'Growth Data'!$A:$Z,5,0)) -> NO | EH20: 0 | EJ20: 0 | EK20: =IF(ISERROR(VLOOKUP($A20+8860000,'Growth Data'!$A:$Z,10,0)),0,VLOOKUP($A20+8860000,'Growth Data'!$A:$Z,10,0)) -> 0 | EL20: 0 | EN20: 0 | EO20: =IF(ISERROR(VLOOKUP($A20+8860000,'Growth Data'!$A:$Z,11,0)),0,VLOOKUP($A20+8860000,'Growth Data'!$A:$Z,11,0)) -> 0 | EP20: 0
A21: 2136 | B21: Kemsing Primary School | D21: Kemsing Primary School | F21: 1 | H21: 542640 | I21: 542640 | J21: 0 | L21: 20291.19 | M21: 20291.19365 | N21: -0.003652694566 | P21: 1281.57 | Q21: 1281.573333 | R21: -0.00333333333 | T21: 46645.5 | U21: 46645.5 | V21: 0 | X21: 121386.12 | Y21: 121386.12 | Z21: 0 | AB21: 0 | AC21: 0 | AD21: 0 | AF21: 27312.72 | AG21: 27312.71563 | AH21: 0.004365421159 | AJ21: 0 | AK21: 0 | AL21: 0 | AN21: 21956 | AO21: 21956 | AP21: 0 | AR21: 0 | AS21: 0 | AT21: 0 | AV21: 0 | AW21: 0 | AX21: 0 | AZ21: 0 | BA21: 0 | BB21: 0 | BD21: 781513.1 | BE21: 781513.1026 | BF21: -0.0026206068 | BH21: 0 | BI21: 0 | BJ21: 0 | BL21: 781513.1 | BM21: 781513.1026 | BN21: -0.0026206068 | BP21: 0 | BR21: 0 | BV21: 0 | BZ21: 0 | CB21: 65591.61 | CC21: 65591.61022 | CD21: 0 | CF21: 4777.08 | CG21: 4777.07769 | CH21: 0 | CJ21: 895159.92 | CL21: 895160 | CM21: 0.113766566 | CN21: 997544.67 | CP21: 997545 | CQ21: 0.1143759318 | CR21: 22210 | CT21: 22210 | CX21: 0 | DB21: 0 | DF21: 0 | DH21: NO | DI21: =IF(ISERROR(VLOOKUP($A21+8860000,'Growth Data'!$A:$F,3,0)),"NO",VLOOKUP($A21+8860000,'Growth Data'!$A:$F,3,0)) -> NO | DJ21: 0 | DL21: 0 | DM21: =IF(DI21="YES",IF(ISERROR(VLOOKUP($A21+8860000,'Growth Data'!$A:$F,6,0)),0,VLOOKUP($A21+8860000,'Growth Data'!$A:$F,6,0)),0) -> 0 | DN21: 0 | DP21: 0 | DQ21: =IF(ISERROR(VLOOKUP($A21+8860000,'Growth Data'!$A:$Z,7,0)),0,VLOOKUP($A21+8860000,'Growth Data'!$A:$Z,7,0)) -> 0 | DR21: 0 | DT21: NO | DU21: =IF(ISERROR(VLOOKUP($A21+8860000,'Growth Data'!$A:$F,4,0)),"NO",VLOOKUP($A21+8860000,'Growth Data'!$A:$F,4,0)) -> NO | DV21: 0 | DX21: 0 | DY21: =IF(ISERROR(VLOOKUP($A21+8860000,'Growth Data'!$A:$Z,8,0)),0,VLOOKUP($A21+8860000,'Growth Data'!$A:$Z,8,0)) -> 0 | DZ21: 0 | EB21: 0 | EC21: =IF(ISERROR(VLOOKUP($A21+8860000,'Growth Data'!$A:$Z,9,0)),0,VLOOKUP($A21+8860000,'Growth Data'!$A:$Z,9,0)) -> 0 | ED21: 0 | EF21: NO | EG21: =IF(ISERROR(VLOOKUP($A21+8860000,'Growth Data'!$A:$Z,5,0)),"NO",VLOOKUP($A21+8860000,'Growth Data'!$A:$Z,5,0)) -> NO | EH21: 0 | EJ21: 0 | EK21: =IF(ISERROR(VLOOKUP($A21+8860000,'Growth Data'!$A:$Z,10,0)),0,VLOOKUP($A21+8860000,'Growth Data'!$A:$Z,10,0)) -> 0 | EL21: 0 | EN21: 0 | EO21: =IF(ISERROR(VLOOKUP($A21+8860000,'Growth Data'!$A:$Z,11,0)),0,VLOOKUP($A21+8860000,'Growth Data'!$A:$Z,11,0)) -> 0 | EP21: 0
A22: 2137 | B22: Leigh Primary School | D22: Leigh Primary School | F22: 1 | H22: 517104 | I22: 517104 | J22: 0 | L22: 23725.16 | M22: 23725.16 | N22: -2.910383046e-11 | P22: 0 | Q22: 0 | R22: 0 | T22: 39351.84 | U22: 39351.84 | V22: 0 | X22: 121386.12 | Y22: 121386.12 | Z22: 0 | AB22: 0 | AC22: 0 | AD22: 0 | AF22: 26168.45 | AG22: 26168.45358 | AH22: -0.003575999999 | AJ22: 0 | AK22: 0 | AL22: 0 | AN22: 12200 | AO22: 12200 | AP22: 0 | AR22: 0 | AS22: 0 | AT22: 0 | AV22: 0 | AW22: 0 | AX22: 0 | AZ22: 0 | BA22: 0 | BB22: 0 | BD22: 739935.57 | BE22: 739935.5736 | BF22: -0.003576000105 | BH22: 0 | BI22: 0 | BJ22: 0 | BL22: 739935.57 | BM22: 739935.5736 | BN22: -0.003576000105 | BP22: 0 | BR22: 0 | BV22: 0 | BZ22: 0 | CB22: 59282.83 | CC22: 59282.82736 | CD22: 0 | CF22: 4552.27 | CG22: 4552.274034 | CH22: 0 | CJ22: 848737.82 | CL22: 848738 | CM22: 0.1143781982 | CN22: 946245.97 | CP22: 946246 | CQ22: 0.1148860669 | CR22: 21689 | CT22: 21689 | CX22: 0 | DB22: 0 | DF22: 0 | DH22: NO | DI22: =IF(ISERROR(VLOOKUP($A22+8860000,'Growth Data'!$A:$F,3,0)),"NO",VLOOKUP($A22+8860000,'Growth Data'!$A:$F,3,0)) -> NO | DJ22: 0 | DL22: 0 | DM22: =IF(DI22="YES",IF(ISERROR(VLOOKUP($A22+8860000,'Growth Data'!$A:$F,6,0)),0,VLOOKUP($A22+8860000,'Growth Data'!$A:$F,6,0)),0) -> 0 | DN22: 0 | DP22: 0 | DQ22: =IF(ISERROR(VLOOKUP($A22+8860000,'Growth Data'!$A:$Z,7,0)),0,VLOOKUP($A22+8860000,'Growth Data'!$A:$Z,7,0)) -> 0 | DR22: 0 | DT22: NO | DU22: =IF(ISERROR(VLOOKUP($A22+8860000,'Growth Data'!$A:$F,4,0)),"NO",VLOOKUP($A22+8860000,'Growth Data'!$A:$F,4,0)) -> NO | DV22: 0 | DX22: 0 | DY22: =IF(ISERROR(VLOOKUP($A22+8860000,'Growth Data'!$A:$Z,8,0)),0,VLOOKUP($A22+8860000,'Growth Data'!$A:$Z,8,0)) -> 0 | DZ22: 0 | EB22: 0 | EC22: =IF(ISERROR(VLOOKUP($A22+8860000,'Growth Data'!$A:$Z,9,0)),0,VLOOKUP($A22+8860000,'Growth Data'!$A:$Z,9,0)) -> 0 | ED22: 0 | EF22: NO | EG22: =IF(ISERROR(VLOOKUP($A22+8860000,'Growth Data'!$A:$Z,5,0)),"NO",VLOOKUP($A22+8860000,'Growth Data'!$A:$Z,5,0)) -> NO | EH22: 0 | EJ22: 0 | EK22: =IF(ISERROR(VLOOKUP($A22+8860000,'Growth Data'!$A:$Z,10,0)),0,VLOOKUP($A22+8860000,'Growth Data'!$A:$Z,10,0)) -> 0 | EL22: 0 | EN22: 0 | EO22: =IF(ISERROR(VLOOKUP($A22+8860000,'Growth Data'!$A:$Z,11,0)),0,VLOOKUP($A22+8860000,'Growth Data'!$A:$Z,11,0)) -> 0 | EP22: 0
A23: 2138 | B23: Otford Primary School | D23: Otford Primary School | F23: 1 | H23: 1174656 | I23: 1174656 | J23: 0 | L23: 35480.02 | M23: 35480.02 | N23: 0 | P23: 1981.59 | Q23: 1981.592381 | R23: -0.00238095238 | T23: 58336.6 | U23: 58336.59813 | V23: 0.001869158885 | X23: 121386.12 | Y23: 121386.12 | Z23: 0 | AB23: 0 | AC23: 0 | AD23: 0 | AF23: 51915.64 | AG23: 51915.64433 | AH23: -0.004328089897 | AJ23: 0 | AK23: 0 | AL23: 0 | AN23: 29440 | AO23: 29440 | AP23: 0 | AR23: 0 | AS23: 0 | AT23: 0 | AV23: 0 | AW23: 0 | AX23: 0 | AZ23: 125764.03 | BA23: 125764.0252 | BB23: 0.00483988339 | BD23: 1598960 | BE23: 1598960 | BF23: 0 | BH23: 0 | BI23: 0 | BJ23: 0 | BL23: 1598960 | BM23: 1598960 | BN23: 0 | BP23: 0 | BR23: 0 | BV23: 0 | BZ23: 0 | CB23: 212158.34 | CC23: 212158.3379 | CD23: 0 | CF23: 10340.97 | CG23: 10340.96818 | CH23: 0 | CJ23: 1851852.99 | CL23: 1851853 | CM23: 0.1279262417 | CN23: 2089686.79 | CP23: 2089687 | CQ23: 0.1284301731 | CR23: 42861 | CT23: 42861 | CX23: 0 | DB23: 0 | DF23: 0 | DH23: NO | DI23: =IF(ISERROR(VLOOKUP($A23+8860000,'Growth Data'!$A:$F,3,0)),"NO",VLOOKUP($A23+8860000,'Growth Data'!$A:$F,3,0)) -> NO | DJ23: 0 | DL23: 0 | DM23: =IF(DI23="YES",IF(ISERROR(VLOOKUP($A23+8860000,'Growth Data'!$A:$F,6,0)),0,VLOOKUP($A23+8860000,'Growth Data'!$A:$F,6,0)),0) -> 0 | DN23: 0 | DP23: 0 | DQ23: =IF(ISERROR(VLOOKUP($A23+8860000,'Growth Data'!$A:$Z,7,0)),0,VLOOKUP($A23+8860000,'Growth Data'!$A:$Z,7,0)) -> 0 | DR23: 0 | DT23: NO | DU23: =IF(ISERROR(VLOOKUP($A23+8860000,'Growth Data'!$A:$F,4,0)),"NO",VLOOKUP($A23+8860000,'Growth Data'!$A:$F,4,0)) -> NO | DV23: 0 | DX23: 0 | DY23: =IF(ISERROR(VLOOKUP($A23+8860000,'Growth Data'!$A:$Z,8,0)),0,VLOOKUP($A23+8860000,'Growth Data'!$A:$Z,8,0)) -> 0 | DZ23: 0 | EB23: 0 | EC23: =IF(ISERROR(VLOOKUP($A23+8860000,'Growth Data'!$A:$Z,9,0)),0,VLOOKUP($A23+8860000,'Growth Data'!$A:$Z,9,0)) -> 0 | ED23: 0 | EF23: NO | EG23: =IF(ISERROR(VLOOKUP($A23+8860000,'Growth Data'!$A:$Z,5,0)),"NO",VLOOKUP($A23+8860000,'Growth Data'!$A:$Z,5,0)) -> NO | EH23: 0 | EJ23: 0 | EK23: =IF(ISERROR(VLOOKUP($A23+8860000,'Growth Data'!$A:$Z,10,0)),0,VLOOKUP($A23+8860000,'Growth Data'!$A:$Z,10,0)) -> 0 | EL23: 0 | EN23: 0 | EO23: =IF(ISERROR(VLOOKUP($A23+8860000,'Growth Data'!$A:$Z,11,0)),0,VLOOKUP($A23+8860000,'Growth Data'!$A:$Z,11,0)) -> 0 | EP23: 0
A24: 2139 | B24: Pembury School | D24: Pembury School | F24: 1 | H24: 1254456 | I24: 1254456 | J24: 0 | L24: 39435.91 | M24: 39435.91023 | N24: -0.0002295918021 | P24: 16101.61 | Q24: 16101.6087 | R24: 0.001304347832 | T24: 67858.16 | U24: 67858.15689 | V24: 0.003113772458 | X24: 121386.12 | Y24: 121386.12 | Z24: 0 | AB24: 0 | AC24: 0 | AD24: 0 | AF24: 0 | AG24: 0 | AH24: 0 | AJ24: 0 | AK24: 0 | AL24: 0 | AN24: 42496 | AO24: 42496 | AP24: 0 | AR24: 0 | AS24: 0 | AT24: 0 | AV24: 0 | AW24: 0 | AX24: 0 | AZ24: 176907.2 | BA24: 176907.2042 | BB24: -0.004188528459 | BD24: 1718641 | BE24: 1718641 | BF24: 0 | BH24: 0 | BI24: 0 | BJ24: 0 | BL24: 1718641 | BM24: 1718641 | BN24: 0 | BP24: 0 | BR24: 0 | BV24: 0 | BZ24: 0 | CB24: 287322.02 | CC24: 287322.0216 | CD24: 0 | CF24: 10646.37 | CG24: 10646.37 | CH24: 0 | CJ24: 1988387.97 | CL24: 1988388 | CM24: 0.1271420846 | CN24: 2242369.17 | CP24: 2242369 | CQ24: 0.1277322152 | CR24: 45456 | CT24: 45456 | CX24: 0 | DB24: 0 | DF24: 0 | DH24: NO | DI24: =IF(ISERROR(VLOOKUP($A24+8860000,'Growth Data'!$A:$F,3,0)),"NO",VLOOKUP($A24+8860000,'Growth Data'!$A:$F,3,0)) -> NO | DJ24: 0 | DL24: 0 | DM24: =IF(DI24="YES",IF(ISERROR(VLOOKUP($A24+8860000,'Growth Data'!$A:$F,6,0)),0,VLOOKUP($A24+8860000,'Growth Data'!$A:$F,6,0)),0) -> 0 | DN24: 0 | DP24: 0 | DQ24: =IF(ISERROR(VLOOKUP($A24+8860000,'Growth Data'!$A:$Z,7,0)),0,VLOOKUP($A24+8860000,'Growth Data'!$A:$Z,7,0)) -> 0 | DR24: 0 | DT24: NO | DU24: =IF(ISERROR(VLOOKUP($A24+8860000,'Growth Data'!$A:$F,4,0)),"NO",VLOOKUP($A24+8860000,'Growth Data'!$A:$F,4,0)) -> NO | DV24: 0 | DX24: 0 | DY24: =IF(ISERROR(VLOOKUP($A24+8860000,'Growth Data'!$A:$Z,8,0)),0,VLOOKUP($A24+8860000,'Growth Data'!$A:$Z,8,0)) -> 0 | DZ24: 0 | EB24: 0 | EC24: =IF(ISERROR(VLOOKUP($A24+8860000,'Growth Data'!$A:$Z,9,0)),0,VLOOKUP($A24+8860000,'Growth Data'!$A:$Z,9,0)) -> 0 | ED24: 0 | EF24: NO | EG24: =IF(ISERROR(VLOOKUP($A24+8860000,'Growth Data'!$A:$Z,5,0)),"NO",VLOOKUP($A24+8860000,'Growth Data'!$A:$Z,5,0)) -> NO | EH24: 0 | EJ24: 0 | EK24: =IF(ISERROR(VLOOKUP($A24+8860000,'Growth Data'!$A:$Z,10,0)),0,VLOOKUP($A24+8860000,'Growth Data'!$A:$Z,10,0)) -> 0 | EL24: 0 | EN24: 0 | EO24: =IF(ISERROR(VLOOKUP($A24+8860000,'Growth Data'!$A:$Z,11,0)),0,VLOOKUP($A24+8860000,'Growth Data'!$A:$Z,11,0)) -> 0 | EP24: 0
A25: 2142 | B25: Sandhurst Primary School | D25: Sandhurst Primary School | F25: 1 | H25: 510720 | I25: 510720 | J25: 0 | L25: 33519.14 | M25: 33519.14 | N25: 0 | P25: 2584.69 | Q25: 2584.685714 | R25: 0.004285714283 | T25: 42478.75 | U25: 42478.74783 | V25: 0.002173913039 | X25: 121386.12 | Y25: 121386.12 | Z25: 0 | AB25: 0 | AC25: 0 | AD25: 0 | AF25: 0 | AG25: 0 | AH25: 0 | AJ25: 0 | AK25: 0 | AL25: 0 | AN25: 21582 | AO25: 21582 | AP25: 0 | AR25: 0 | AS25: 0 | AT25: 0 | AV25: 0 | AW25: 0 | AX25: 0 | AZ25: 0 | BA25: 0 | BB25: 0 | BD25: 732270.69 | BE25: 732270.6935 | BF25: -0.003540372709 | BH25: 0 | BI25: 0 | BJ25: 0 | BL25: 732270.69 | BM25: 732270.6935 | BN25: -0.003540372709 | BP25: 0 | BR25: 0 | BV25: 0 | BZ25: 0 | CB25: 67483.04 | CC25: 67483.03518 | CD25: 0 | CF25: 4334.4 | CG25: 4334.4 | CH25: 0 | CJ25: 839309.57 | CL25: 839310 | CM25: 0.1119839408 | CN25: 934810.45 | CP25: 934810 | CQ25: 0.1137850483 | CR25: 22515 | CT25: 22515 | CX25: 0 | DB25: 0 | DF25: 0 | DH25: NO | DI25: =IF(ISERROR(VLOOKUP($A25+8860000,'Growth Data'!$A:$F,3,0)),"NO",VLOOKUP($A25+8860000,'Growth Data'!$A:$F,3,0)) -> NO | DJ25: 0 | DL25: 0 | DM25: =IF(DI25="YES",IF(ISERROR(VLOOKUP($A25+8860000,'Growth Data'!$A:$F,6,0)),0,VLOOKUP($A25+8860000,'Growth Data'!$A:$F,6,0)),0) -> 0 | DN25: 0 | DP25: 0 | DQ25: =IF(ISERROR(VLOOKUP($A25+8860000,'Growth Data'!$A:$Z,7,0)),0,VLOOKUP($A25+8860000,'Growth Data'!$A:$Z,7,0)) -> 0 | DR25: 0 | DT25: NO | DU25: =IF(ISERROR(VLOOKUP($A25+8860000,'Growth Data'!$A:$F,4,0)),"NO",VLOOKUP($A25+8860000,'Growth Data'!$A:$F,4,0)) -> NO | DV25: 0 | DX25: 0 | DY25: =IF(ISERROR(VLOOKUP($A25+8860000,'Growth Data'!$A:$Z,8,0)),0,VLOOKUP($A25+8860000,'Growth Data'!$A:$Z,8,0)) -> 0 | DZ25: 0 | EB25: 0 | EC25: =IF(ISERROR(VLOOKUP($A25+8860000,'Growth Data'!$A:$Z,9,0)),0,VLOOKUP($A25+8860000,'Growth Data'!$A:$Z,9,0)) -> 0 | ED25: 0 | EF25: NO | EG25: =IF(ISERROR(VLOOKUP($A25+8860000,'Growth Data'!$A:$Z,5,0)),"NO",VLOOKUP($A25+8860000,'Growth Data'!$A:$Z,5,0)) -> NO | EH25: 0 | EJ25: 0 | EK25: =IF(ISERROR(VLOOKUP($A25+8860000,'Growth Data'!$A:$Z,10,0)),0,VLOOKUP($A25+8860000,'Growth Data'!$A:$Z,10,0)) -> 0 | EL25: 0 | EN25: 0 | EO25: =IF(ISERROR(VLOOKUP($A25+8860000,'Growth Data'!$A:$Z,11,0)),0,VLOOKUP($A25+8860000,'Growth Data'!$A:$Z,11,0)) -> 0 | EP25: 0
A26: 2147 | B26: Weald Community Primary School | D26: Weald Community Primary School | F26: 1 | H26: 373464 | I26: 373464 | J26: 0 | L26: 13550.9 | M26: 13550.9 | N26: 2.182787284e-11 | P26: 3091.21 | Q26: 3091.205607 | R26: 0.004392523366 | T26: 30928.11 | U26: 30928.11429 | V26: -0.00428571428 | X26: 121386.12 | Y26: 121386.12 | Z26: 0 | AB26: 24102.55 | AC26: 24102.54793 | AD26: 0.002069425911 | AF26: 21131.3 | AG26: 21131.30372 | AH26: -0.003715826431 | AJ26: 0 | AK26: 0 | AL26: 0 | AN26: 15220 | AO26: 15220 | AP26: 0 | AR26: 0 | AS26: 0 | AT26: 0 | AV26: 0 | AW26: 0 | AX26: 0 | AZ26: 0 | BA26: 0 | BB26: 0 | BD26: 602874.19 | BE26: 602874.1915 | BF26: -0.001539591467 | BH26: 0 | BI26: 0 | BJ26: 0 | BL26: 602874.19 | BM26: 602874.1915 | BN26: -0.001539591467 | BP26: 0 | BR26: 0 | BV26: 0 | BZ26: 0 | CB26: 48564.25 | CC26: 48564.25075 | CD26: 0 | CF26: 3287.75 | CG26: 3287.753469 | CH26: 0 | CJ26: 683391.62 | CL26: 683392 | CM26: 0.10370751 | CN26: 755181.86 | CP26: 755182 | CQ26: 0.1050499273 | CR26: 16304 | CT26: 16304 | CX26: 0 | DB26: 0 | DF26: 0 | DH26: NO | DI26: =IF(ISERROR(VLOOKUP($A26+8860000,'Growth Data'!$A:$F,3,0)),"NO",VLOOKUP($A26+8860000,'Growth Data'!$A:$F,3,0)) -> NO | DJ26: 0 | DL26: 0 | DM26: =IF(DI26="YES",IF(ISERROR(VLOOKUP($A26+8860000,'Growth Data'!$A:$F,6,0)),0,VLOOKUP($A26+8860000,'Growth Data'!$A:$F,6,0)),0) -> 0 | DN26: 0 | DP26: 0 | DQ26: =IF(ISERROR(VLOOKUP($A26+8860000,'Growth Data'!$A:$Z,7,0)),0,VLOOKUP($A26+8860000,'Growth Data'!$A:$Z,7,0)) -> 0 | DR26: 0 | DT26: NO | DU26: =IF(ISERROR(VLOOKUP($A26+8860000,'Growth Data'!$A:$F,4,0)),"NO",VLOOKUP($A26+8860000,'Growth Data'!$A:$F,4,0)) -> NO | DV26: 0 | DX26: 0 | DY26: =IF(ISERROR(VLOOKUP($A26+8860000,'Growth Data'!$A:$Z,8,0)),0,VLOOKUP($A26+8860000,'Growth Data'!$A:$Z,8,0)) -> 0 | DZ26: 0 | EB26: 0 | EC26: =IF(ISERROR(VLOOKUP($A26+8860000,'Growth Data'!$A:$Z,9,0)),0,VLOOKUP($A26+8860000,'Growth Data'!$A:$Z,9,0)) -> 0 | ED26: 0 | EF26: NO | EG26: =IF(ISERROR(VLOOKUP($A26+8860000,'Growth Data'!$A:$Z,5,0)),"NO",VLOOKUP($A26+8860000,'Growth Data'!$A:$Z,5,0)) -> NO | EH26: 0 | EJ26: 0 | EK26: =IF(ISERROR(VLOOKUP($A26+8860000,'Growth Data'!$A:$Z,10,0)),0,VLOOKUP($A26+8860000,'Growth Data'!$A:$Z,10,0)) -> 0 | EL26: 0 | EN26: 0 | EO26: =IF(ISERROR(VLOOKUP($A26+8860000,'Growth Data'!$A:$Z,11,0)),0,VLOOKUP($A26+8860000,'Growth Data'!$A:$Z,11,0)) -> 0 | EP26: 0
A27: 2148 | B27: Shoreham Village School | D27: Shoreham Village School | F27: 1 | H27: 293664 | I27: 293664 | J27: 0 | L27: 13750.56 | M27: 13750.56 | N27: 2.000888344e-11 | P27: 1351.09 | Q27: 1351.085714 | R27: 0.004285714284 | T27: 25631.47 | U27: 25631.46667 | V27: 0.003333333334 | X27: 121386.12 | Y27: 121386.12 | Z27: 0 | AB27: 42473.39 | AC27: 42473.39239 | AD27: -0.002389853136 | AF27: 18584.97 | AG27: 18584.9721 | AH27: -0.002103951047 | AJ27: 0 | AK27: 0 | AL27: 0 | AN27: 14097 | AO27: 14097 | AP27: 0 | AR27: 0 | AS27: 0 | AT27: 0 | AV27: 0 | AW27: 0 | AX27: 0 | AZ27: 0 | BA27: 0 | BB27: 0 | BD27: 530938.6 | BE27: 530938.5969 | BF27: 0.003125243471 | BH27: 0 | BI27: 0 | BJ27: 0 | BL27: 530938.6 | BM27: 530938.5969 | BN27: 0.003125243471 | BP27: 0 | BR27: 0 | BV27: 0 | BZ27: 0 | CB27: 41959.99 | CC27: 41959.99244 | CD27: 0 | CF27: 2585.24 | CG27: 2585.242044 | CH27: 0 | CJ27: 596853.28 | CL27: 596853 | CM27: 0.0951685569 | CN27: 654748.82 | CP27: 654749 | CQ27: 0.09700129318 | CR27: 14049 | CT27: 14049 | CX27: 0 | DB27: 0 | DF27: 0 | DH27: NO | DI27: =IF(ISERROR(VLOOKUP($A27+8860000,'Growth Data'!$A:$F,3,0)),"NO",VLOOKUP($A27+8860000,'Growth Data'!$A:$F,3,0)) -> NO | DJ27: 0 | DL27: 0 | DM27: =IF(DI27="YES",IF(ISERROR(VLOOKUP($A27+8860000,'Growth Data'!$A:$F,6,0)),0,VLOOKUP($A27+8860000,'Growth Data'!$A:$F,6,0)),0) -> 0 | DN27: 0 | DP27: 0 | DQ27: =IF(ISERROR(VLOOKUP($A27+8860000,'Growth Data'!$A:$Z,7,0)),0,VLOOKUP($A27+8860000,'Growth Data'!$A:$Z,7,0)) -> 0 | DR27: 0 | DT27: NO | DU27: =IF(ISERROR(VLOOKUP($A27+8860000,'Growth Data'!$A:$F,4,0)),"NO",VLOOKUP($A27+8860000,'Growth Data'!$A:$F,4,0)) -> NO | DV27: 0 | DX27: 0 | DY27: =IF(ISERROR(VLOOKUP($A27+8860000,'Growth Data'!$A:$Z,8,0)),0,VLOOKUP($A27+8860000,'Growth Data'!$A:$Z,8,0)) -> 0 | DZ27: 0 | EB27: 0 | EC27: =IF(ISERROR(VLOOKUP($A27+8860000,'Growth Data'!$A:$Z,9,0)),0,VLOOKUP($A27+8860000,'Growth Data'!$A:$Z,9,0)) -> 0 | ED27: 0 | EF27: NO | EG27: =IF(ISERROR(VLOOKUP($A27+8860000,'Growth Data'!$A:$Z,5,0)),"NO",VLOOKUP($A27+8860000,'Growth Data'!$A:$Z,5,0)) -> NO | EH27: 0 | EJ27: 0 | EK27: =IF(ISERROR(VLOOKUP($A27+8860000,'Growth Data'!$A:$Z,10,0)),0,VLOOKUP($A27+8860000,'Growth Data'!$A:$Z,10,0)) -> 0 | EL27: 0 | EN27: 0 | EO27: =IF(ISERROR(VLOOKUP($A27+8860000,'Growth Data'!$A:$Z,11,0)),0,VLOOKUP($A27+8860000,'Growth Data'!$A:$Z,11,0)) -> 0 | EP27: 0
A28: 2155 | B28: Slade Primary School and Attached Unit for Children with Hearing Impairment | D28: Slade Primary School and Attached Unit for Children with Hearing Impairment | F28: 1 | H28: 1334256 | I28: 1334256 | J28: 0 | L28: 61122.79 | M28: 61122.79 | N28: 0 | P28: 41590.07 | Q28: 41590.06592 | R28: 0.004078212267 | T28: 143983.89 | U28: 143983.8942 | V28: -0.004153846152 | X28: 121386.12 | Y28: 121386.12 | Z28: 0 | AB28: 0 | AC28: 0 | AD28: 0 | AF28: 0 | AG28: 0 | AH28: 0 | AJ28: 0 | AK28: 0 | AL28: 0 | AN28: 29952 | AO28: 29952 | AP28: 0 | AR28: 0 | AS28: 0 | AT28: 0 | AV28: 0 | AW28: 0 | AX28: 0 | AZ28: 80431.13 | BA28: 80431.12992 | BB28: 7.563395775e-05 | BD28: 1812722 | BE28: 1812722 | BF28: 0 | BH28: 0 | BI28: 0 | BJ28: 0 | BL28: 1812722 | BM28: 1812722 | BN28: 0 | BP28: 0 | BR28: 0 | BV28: 0 | BZ28: 0 | CB28: 312736.03 | CC28: 312736.0316 | CD28: 0 | CF28: 11323.62 | CG28: 11323.62 | CH28: 0 | CJ28: 2099235.39 | CL28: 2099235 | CM28: 0.1282038633 | CN28: 2369361.37 | CP28: 2369361 | CQ28: 0.1286782708 | CR28: 47966 | CT28: 47966 | CX28: 0 | DB28: 0 | DF28: 0 | DH28: NO | DI28: =IF(ISERROR(VLOOKUP($A28+8860000,'Growth Data'!$A:$F,3,0)),"NO",VLOOKUP($A28+8860000,'Growth Data'!$A:$F,3,0)) -> NO | DJ28: 0 | DL28: 0 | DM28: =IF(DI28="YES",IF(ISERROR(VLOOKUP($A28+8860000,'Growth Data'!$A:$F,6,0)),0,VLOOKUP($A28+8860000,'Growth Data'!$A:$F,6,0)),0) -> 0 | DN28: 0 | DP28: 0 | DQ28: =IF(ISERROR(VLOOKUP($A28+8860000,'Growth Data'!$A:$Z,7,0)),0,VLOOKUP($A28+8860000,'Growth Data'!$A:$Z,7,0)) -> 0 | DR28: 0 | DT28: NO | DU28: =IF(ISERROR(VLOOKUP($A28+8860000,'Growth Data'!$A:$F,4,0)),"NO",VLOOKUP($A28+8860000,'Growth Data'!$A:$F,4,0)) -> NO | DV28: 0 | DX28: 0 | DY28: =IF(ISERROR(VLOOKUP($A28+8860000,'Growth Data'!$A:$Z,8,0)),0,VLOOKUP($A28+8860000,'Growth Data'!$A:$Z,8,0)) -> 0 | DZ28: 0 | EB28: 0 | EC28: =IF(ISERROR(VLOOKUP($A28+8860000,'Growth Data'!$A:$Z,9,0)),0,VLOOKUP($A28+8860000,'Growth Data'!$A:$Z,9,0)) -> 0 | ED28: 0 | EF28: NO | EG28: =IF(ISERROR(VLOOKUP($A28+8860000,'Growth Data'!$A:$Z,5,0)),"NO",VLOOKUP($A28+8860000,'Growth Data'!$A:$Z,5,0)) -> NO | EH28: 0 | EJ28: 0 | EK28: =IF(ISERROR(VLOOKUP($A28+8860000,'Growth Data'!$A:$Z,10,0)),0,VLOOKUP($A28+8860000,'Growth Data'!$A:$Z,10,0)) -> 0 | EL28: 0 | EN28: 0 | EO28: =IF(ISERROR(VLOOKUP($A28+8860000,'Growth Data'!$A:$Z,11,0)),0,VLOOKUP($A28+8860000,'Growth Data'!$A:$Z,11,0)) -> 0 | EP28: 0
A29: 2156 | B29: Sussex Road Community Primary School | D29: Sussex Road Community Primary School | F29: 1 | H29: 1430016 | I29: 1430016 | J29: 0 | L29: 72014.95 | M29: 72014.95 | N29: 0 | P29: 22849.15 | Q29: 22849.15464 | R29: -0.004639175251 | T29: 90032.08 | U29: 90032.07639 | V29: 0.003607427061 | X29: 121386.12 | Y29: 121386.12 | Z29: 0 | AB29: 0 | AC29: 0 | AD29: 0 | AF29: 0 | AG29: 0 | AH29: 0 | AJ29: 0 | AK29: 0 | AL29: 0 | AN29: 44544 | AO29: 44544 | AP29: 0 | AR29: 0 | AS29: 0 | AT29: 0 | AV29: 0 | AW29: 0 | AX29: 0 | AZ29: 174421.7 | BA29: 174421.699 | BB29: 0.001031748194 | BD29: 1955264 | BE29: 1955264 | BF29: 0 | BH29: 0 | BI29: 0 | BJ29: 0 | BL29: 1955264 | BM29: 1955264 | BN29: 0 | BP29: 0 | BR29: 0 | BV29: 0 | BZ29: 0 | CB29: 337400.75 | CC29: 337400.7516 | CD29: 0 | CF29: 12136.32 | CG29: 12136.32 | CH29: 0 | CJ29: 2263718.14 | CL29: 2263718 | CM29: 0.1273440571 | CN29: 2553272.48 | CP29: 2553272 | CQ29: 0.127910951 | CR29: 52746 | CT29: 52746 | CX29: 0 | DB29: 0 | DF29: 0 | DH29: NO | DI29: =IF(ISERROR(VLOOKUP($A29+8860000,'Growth Data'!$A:$F,3,0)),"NO",VLOOKUP($A29+8860000,'Growth Data'!$A:$F,3,0)) -> NO | DJ29: 0 | DL29: 0 | DM29: =IF(DI29="YES",IF(ISERROR(VLOOKUP($A29+8860000,'Growth Data'!$A:$F,6,0)),0,VLOOKUP($A29+8860000,'Growth Data'!$A:$F,6,0)),0) -> 0 | DN29: 0 | DP29: 0 | DQ29: =IF(ISERROR(VLOOKUP($A29+8860000,'Growth Data'!$A:$Z,7,0)),0,VLOOKUP($A29+8860000,'Growth Data'!$A:$Z,7,0)) -> 0 | DR29: 0 | DT29: NO | DU29: =IF(ISERROR(VLOOKUP($A29+8860000,'Growth Data'!$A:$F,4,0)),"NO",VLOOKUP($A29+8860000,'Growth Data'!$A:$F,4,0)) -> NO | DV29: 0 | DX29: 0 | DY29: =IF(ISERROR(VLOOKUP($A29+8860000,'Growth Data'!$A:$Z,8,0)),0,VLOOKUP($A29+8860000,'Growth Data'!$A:$Z,8,0)) -> 0 | DZ29: 0 | EB29: 0 | EC29: =IF(ISERROR(VLOOKUP($A29+8860000,'Growth Data'!$A:$Z,9,0)),0,VLOOKUP($A29+8860000,'Growth Data'!$A:$Z,9,0)) -> 0 | ED29: 0 | EF29: NO | EG29: =IF(ISERROR(VLOOKUP($A29+8860000,'Growth Data'!$A:$Z,5,0)),"NO",VLOOKUP($A29+8860000,'Growth Data'!$A:$Z,5,0)) -> NO | EH29: 0 | EJ29: 0 | EK29: =IF(ISERROR(VLOOKUP($A29+8860000,'Growth Data'!$A:$Z,10,0)),0,VLOOKUP($A29+8860000,'Growth Data'!$A:$Z,10,0)) -> 0 | EL29: 0 | EN29: 0 | EO29: =IF(ISERROR(VLOOKUP($A29+8860000,'Growth Data'!$A:$Z,11,0)),0,VLOOKUP($A29+8860000,'Growth Data'!$A:$Z,11,0)) -> 0 | EP29: 0
A30: 2161 | B30: Boughton Monchelsea Primary School | D30: Boughton Monchelsea Primary School | F30: 1 | H30: 663936 | I30: 663936 | J30: 0 | L30: 35632.73 | M30: 35632.73 | N30: 0 | P30: 1321.38 | Q30: 1321.38427 | R30: -0.004269662924 | T30: 57140.54 | U30: 57140.53785 | V30: 0.00214689265 | X30: 121386.12 | Y30: 121386.12 | Z30: 0 | AB30: 0 | AC30: 0 | AD30: 0 | AF30: 0 | AG30: 0 | AH30: 0 | AJ30: 0 | AK30: 0 | AL30: 0 | AN30: 22580 | AO30: 22580 | AP30: 0 | AR30: 0 | AS30: 0 | AT30: 0 | AV30: 0 | AW30: 0 | AX30: 0 | AZ30: 7703.23 | BA30: 7703.227877 | BB30: 0.002122770256 | BD30: 909700 | BE30: 909700 | BF30: 0 | BH30: 0 | BI30: 0 | BJ30: 0 | BL30: 909700 | BM30: 909700 | BN30: 0 | BP30: 0 | BR30: 0 | BV30: 0 | BZ30: 0 | CB30: 93990.65 | CC30: 93990.65164 | CD30: 0 | CF30: 5634.72 | CG30: 5634.72 | CH30: 0 | CJ30: 1054972.69 | CL30: 1054973 | CM30: 0.1268776243 | CN30: 1189470.49 | CP30: 1189470 | CQ30: 0.1274893666 | CR30: 26491 | CT30: 26491 | CX30: 0 | DB30: 0 | DF30: 0 | DH30: NO | DI30: =IF(ISERROR(VLOOKUP($A30+8860000,'Growth Data'!$A:$F,3,0)),"NO",VLOOKUP($A30+8860000,'Growth Data'!$A:$F,3,0)) -> NO | DJ30: 0 | DL30: 0 | DM30: =IF(DI30="YES",IF(ISERROR(VLOOKUP($A30+8860000,'Growth Data'!$A:$F,6,0)),0,VLOOKUP($A30+8860000,'Growth Data'!$A:$F,6,0)),0) -> 0 | DN30: 0 | DP30: 0 | DQ30: =IF(ISERROR(VLOOKUP($A30+8860000,'Growth Data'!$A:$Z,7,0)),0,VLOOKUP($A30+8860000,'Growth Data'!$A:$Z,7,0)) -> 0 | DR30: 0 | DT30: NO | DU30: =IF(ISERROR(VLOOKUP($A30+8860000,'Growth Data'!$A:$F,4,0)),"NO",VLOOKUP($A30+8860000,'Growth Data'!$A:$F,4,0)) -> NO | DV30: 0 | DX30: 0 | DY30: =IF(ISERROR(VLOOKUP($A30+8860000,'Growth Data'!$A:$Z,8,0)),0,VLOOKUP($A30+8860000,'Growth Data'!$A:$Z,8,0)) -> 0 | DZ30: 0 | EB30: 0 | EC30: =IF(ISERROR(VLOOKUP($A30+8860000,'Growth Data'!$A:$Z,9,0)),0,VLOOKUP($A30+8860000,'Growth Data'!$A:$Z,9,0)) -> 0 | ED30: 0 | EF30: NO | EG30: =IF(ISERROR(VLOOKUP($A30+8860000,'Growth Data'!$A:$Z,5,0)),"NO",VLOOKUP($A30+8860000,'Growth Data'!$A:$Z,5,0)) -> NO | EH30: 0 | EJ30: 0 | EK30: =IF(ISERROR(VLOOKUP($A30+8860000,'Growth Data'!$A:$Z,10,0)),0,VLOOKUP($A30+8860000,'Growth Data'!$A:$Z,10,0)) -> 0 | EL30: 0 | EN30: 0 | EO30: =IF(ISERROR(VLOOKUP($A30+8860000,'Growth Data'!$A:$Z,11,0)),0,VLOOKUP($A30+8860000,'Growth Data'!$A:$Z,11,0)) -> 0 | EP30: 0
A31: 2163 | B31: East Farleigh Primary School | D31: East Farleigh Primary School | F31: 1 | H31: 654360 | I31: 654360 | J31: 0 | L31: 31226.29 | M31: 31226.29 | N31: 0 | P31: 3292.81 | Q31: 3292.8125 | R31: -0.002499999999 | T31: 51958.31 | U31: 51958.31034 | V31: -0.0003448275893 | X31: 121386.12 | Y31: 121386.12 | Z31: 0 | AB31: 0 | AC31: 0 | AD31: 0 | AF31: 0 | AG31: 0 | AH31: 0 | AJ31: 0 | AK31: 0 | AL31: 0 | AN31: 16717 | AO31: 16717 | AP31: 0 | AR31: 0 | AS31: 0 | AT31: 0 | AV31: 0 | AW31: 0 | AX31: 0 | AZ31: 12101.47 | BA31: 12101.46716 | BB31: 0.002844827597 | BD31: 891042 | BE31: 891042 | BF31: 0 | BH31: 0 | BI31: 0 | BJ31: 0 | BL31: 891042 | BM31: 891042 | BN31: 0 | BP31: 0 | BR31: 0 | BV31: 0 | BZ31: 0 | CB31: 94534.29 | CC31: 94534.29164 | CD31: 0 | CF31: 5553.45 | CG31: 5553.45 | CH31: 0 | CJ31: 1033700.38 | CL31: 1033700 | CM31: 0.1276973361 | CN31: 1166242.73 | CP31: 1166243 | CQ31: 0.1282212453 | CR31: 25605 | CT31: 25605 | CX31: 0 | DB31: 0 | DF31: 0 | DH31: NO | DI31: =IF(ISERROR(VLOOKUP($A31+8860000,'Growth Data'!$A:$F,3,0)),"NO",VLOOKUP($A31+8860000,'Growth Data'!$A:$F,3,0)) -> NO | DJ31: 0 | DL31: 0 | DM31: =IF(DI31="YES",IF(ISERROR(VLOOKUP($A31+8860000,'Growth Data'!$A:$F,6,0)),0,VLOOKUP($A31+8860000,'Growth Data'!$A:$F,6,0)),0) -> 0 | DN31: 0 | DP31: 0 | DQ31: =IF(ISERROR(VLOOKUP($A31+8860000,'Growth Data'!$A:$Z,7,0)),0,VLOOKUP($A31+8860000,'Growth Data'!$A:$Z,7,0)) -> 0 | DR31: 0 | DT31: NO | DU31: =IF(ISERROR(VLOOKUP($A31+8860000,'Growth Data'!$A:$F,4,0)),"NO",VLOOKUP($A31+8860000,'Growth Data'!$A:$F,4,0)) -> NO | DV31: 0 | DX31: 0 | DY31: =IF(ISERROR(VLOOKUP($A31+8860000,'Growth Data'!$A:$Z,8,0)),0,VLOOKUP($A31+8860000,'Growth Data'!$A:$Z,8,0)) -> 0 | DZ31: 0 | EB31: 0 | EC31: =IF(ISERROR(VLOOKUP($A31+8860000,'Growth Data'!$A:$Z,9,0)),0,VLOOKUP($A31+8860000,'Growth Data'!$A:$Z,9,0)) -> 0 | ED31: 0 | EF31: NO | EG31: =IF(ISERROR(VLOOKUP($A31+8860000,'Growth Data'!$A:$Z,5,0)),"NO",VLOOKUP($A31+8860000,'Growth Data'!$A:$Z,5,0)) -> NO | EH31: 0 | EJ31: 0 | EK31: =IF(ISERROR(VLOOKUP($A31+8860000,'Growth Data'!$A:$Z,10,0)),0,VLOOKUP($A31+8860000,'Growth Data'!$A:$Z,10,0)) -> 0 | EL31: 0 | EN31: 0 | EO31: =IF(ISERROR(VLOOKUP($A31+8860000,'Growth Data'!$A:$Z,11,0)),0,VLOOKUP($A31+8860000,'Growth Data'!$A:$Z,11,0)) -> 0 | EP31: 0
A32: 2164 | B32: East Peckham Primary School | D32: East Peckham Primary School | F32: 1 | H32: 497952 | I32: 497952 | J32: 0 | L32: 41738.73 | M32: 41738.73 | N32: 5.820766091e-11 | P32: 1346.6 | Q32: 1346.601527 | R32: -0.001526717559 | T32: 32340.88 | U32: 32340.88 | V32: 0 | X32: 121386.12 | Y32: 121386.12 | Z32: 0 | AB32: 0 | AC32: 0 | AD32: 0 | AF32: 0 | AG32: 0 | AH32: 0 | AJ32: 0 | AK32: 0 | AL32: 0 | AN32: 20709 | AO32: 20709 | AP32: 0 | AR32: 0 | AS32: 0 | AT32: 0 | AV32: 0 | AW32: 0 | AX32: 0 | AZ32: 0 | BA32: 0 | BB32: 0 | BD32: 715473.33 | BE32: 715473.3315 | BF32: -0.001526717562 | BH32: 0 | BI32: 0 | BJ32: 0 | BL32: 715473.33 | BM32: 715473.3315 | BN32: -0.001526717562 | BP32: 0 | BR32: 0 | BV32: 0 | BZ32: 0 | CB32: 70911.29 | CC32: 70911.29317 | CD32: 0 | CF32: 4226.04 | CG32: 4226.04 | CH32: 0 | CJ32: 818606.4 | CL32: 818606 | CM32: 0.1116172125 | CN32: 911469.86 | CP32: 911470 | CQ32: 0.1134409162 | CR32: 20937 | CT32: 20937 | CX32: 0 | DB32: 0 | DF32: 0 | DH32: NO | DI32: =IF(ISERROR(VLOOKUP($A32+8860000,'Growth Data'!$A:$F,3,0)),"NO",VLOOKUP($A32+8860000,'Growth Data'!$A:$F,3,0)) -> NO | DJ32: 0 | DL32: 0 | DM32: =IF(DI32="YES",IF(ISERROR(VLOOKUP($A32+8860000,'Growth Data'!$A:$F,6,0)),0,VLOOKUP($A32+8860000,'Growth Data'!$A:$F,6,0)),0) -> 0 | DN32: 0 | DP32: 0 | DQ32: =IF(ISERROR(VLOOKUP($A32+8860000,'Growth Data'!$A:$Z,7,0)),0,VLOOKUP($A32+8860000,'Growth Data'!$A:$Z,7,0)) -> 0 | DR32: 0 | DT32: NO | DU32: =IF(ISERROR(VLOOKUP($A32+8860000,'Growth Data'!$A:$F,4,0)),"NO",VLOOKUP($A32+8860000,'Growth Data'!$A:$F,4,0)) -> NO | DV32: 0 | DX32: 0 | DY32: =IF(ISERROR(VLOOKUP($A32+8860000,'Growth Data'!$A:$Z,8,0)),0,VLOOKUP($A32+8860000,'Growth Data'!$A:$Z,8,0)) -> 0 | DZ32: 0 | EB32: 0 | EC32: =IF(ISERROR(VLOOKUP($A32+8860000,'Growth Data'!$A:$Z,9,0)),0,VLOOKUP($A32+8860000,'Growth Data'!$A:$Z,9,0)) -> 0 | ED32: 0 | EF32: NO | EG32: =IF(ISERROR(VLOOKUP($A32+8860000,'Growth Data'!$A:$Z,5,0)),"NO",VLOOKUP($A32+8860000,'Growth Data'!$A:$Z,5,0)) -> NO | EH32: 0 | EJ32: 0 | EK32: =IF(ISERROR(VLOOKUP($A32+8860000,'Growth Data'!$A:$Z,10,0)),0,VLOOKUP($A32+8860000,'Growth Data'!$A:$Z,10,0)) -> 0 | EL32: 0 | EN32: 0 | EO32: =IF(ISERROR(VLOOKUP($A32+8860000,'Growth Data'!$A:$Z,11,0)),0,VLOOKUP($A32+8860000,'Growth Data'!$A:$Z,11,0)) -> 0 | EP32: 0
A33: 2165 | B33: Headcorn Primary School | D33: Headcorn Primary School | F33: 1 | H33: 1117200 | I33: 1117200 | J33: 0 | L33: 89118.03 | M33: 89118.03 | N33: 0 | P33: 6800.34 | Q33: 6800.343643 | R33: -0.003642611689 | T33: 72083.64 | U33: 72083.64261 | V33: -0.002611683842 | X33: 121386.12 | Y33: 121386.12 | Z33: 0 | AB33: 0 | AC33: 0 | AD33: 0 | AF33: 0 | AG33: 0 | AH33: 0 | AJ33: 0 | AK33: 0 | AL33: 0 | AN33: 40918 | AO33: 40918 | AP33: 0 | AR33: 0 | AS33: 0 | AT33: 0 | AV33: 0 | AW33: 0 | AX33: 0 | AZ33: 86161.86 | BA33: 86161.86375 | BB33: -0.003745704438 | BD33: 1533668 | BE33: 1533668 | BF33: 0 | BH33: 0 | BI33: 0 | BJ33: 0 | BL33: 1533668 | BM33: 1533668 | BN33: 0 | BP33: 0 | BR33: 0 | BV33: 0 | BZ33: 0 | CB33: 233187.41 | CC33: 233187.4116 | CD33: 0 | CF33: 9481.5 | CG33: 9481.5 | CH33: 0 | CJ33: 1776390.75 | CL33: 1776391 | CM33: 0.1267454052 | CN33: 2002657.36 | CP33: 2002657 | CQ33: 0.127374346 | CR33: 42900 | CT33: 42900 | CX33: 0 | DB33: 0 | DF33: 0 | DH33: NO | DI33: =IF(ISERROR(VLOOKUP($A33+8860000,'Growth Data'!$A:$F,3,0)),"NO",VLOOKUP($A33+8860000,'Growth Data'!$A:$F,3,0)) -> YES | DJ33: 1 | DL33: 0 | DM33: =IF(DI33="YES",IF(ISERROR(VLOOKUP($A33+8860000,'Growth Data'!$A:$F,6,0)),0,VLOOKUP($A33+8860000,'Growth Data'!$A:$F,6,0)),0) -> 31 | DN33: -31 | DP33: 0 | DQ33: =IF(ISERROR(VLOOKUP($A33+8860000,'Growth Data'!$A:$Z,7,0)),0,VLOOKUP($A33+8860000,'Growth Data'!$A:$Z,7,0)) -> 60 | DR33: 1 | DT33: NO | DU33: =IF(ISERROR(VLOOKUP($A33+8860000,'Growth Data'!$A:$F,4,0)),"NO",VLOOKUP($A33+8860000,'Growth Data'!$A:$F,4,0)) -> YES | DV33: 1 | DX33: 0 | DY33: =IF(ISERROR(VLOOKUP($A33+8860000,'Growth Data'!$A:$Z,8,0)),0,VLOOKUP($A33+8860000,'Growth Data'!$A:$Z,8,0)) -> 30 | DZ33: 1 | EB33: 0 | EC33: =IF(ISERROR(VLOOKUP($A33+8860000,'Growth Data'!$A:$Z,9,0)),0,VLOOKUP($A33+8860000,'Growth Data'!$A:$Z,9,0)) -> 60 | ED33: 1 | EF33: NO | EG33: =IF(ISERROR(VLOOKUP($A33+8860000,'Growth Data'!$A:$Z,5,0)),"NO",VLOOKUP($A33+8860000,'Growth Data'!$A:$Z,5,0)) -> NO | EH33: 0 | EJ33: 0 | EK33: =IF(ISERROR(VLOOKUP($A33+8860000,'Growth Data'!$A:$Z,10,0)),0,VLOOKUP($A33+8860000,'Growth Data'!$A:$Z,10,0)) -> 0 | EL33: 0 | EN33: 0 | EO33: =IF(ISERROR(VLOOKUP($A33+8860000,'Growth Data'!$A:$Z,11,0)),0,VLOOKUP($A33+8860000,'Growth Data'!$A:$Z,11,0)) -> 0 | EP33: 0
A34: 2166 | B34: Hollingbourne Primary School | D34: Hollingbourne Primary School | F34: 1 | H34: 319200 | I34: 319200 | J34: 0 | L34: 14571.12 | M34: 14571.12 | N34: 0 | P34: 2629.77 | Q34: 2629.767442 | R34: 0.002558139538 | T34: 39991.71 | U34: 39991.70732 | V34: 0.002682926832 | X34: 121386.12 | Y34: 121386.12 | Z34: 0 | AB34: 36594.72 | AC34: 36594.72216 | AD34: -0.002162883837 | AF34: 0 | AG34: 0 | AH34: 0 | AJ34: 0 | AK34: 0 | AL34: 0 | AN34: 13723 | AO34: 13723 | AP34: 0 | AR34: 0 | AS34: 0 | AT34: 0 | AV34: 0 | AW34: 0 | AX34: 0 | AZ34: 0 | BA34: 0 | BB34: 0 | BD34: 548096.44 | BE34: 548096.4369 | BF34: 0.003078182461 | BH34: 0 | BI34: 0 | BJ34: 0 | BL34: 548096.44 | BM34: 548096.4369 | BN34: 0.003078182461 | BP34: 0 | BR34: 0 | BV34: 0 | BZ34: 0 | CB34: 55499.66 | CC34: 55499.6564 | CD34: 0 | CF34: 2709 | CG34: 2709 | CH34: 0 | CJ34: 618105.52 | CL34: 618106 | CM34: 0.09803158924 | CN34: 680364.4 | CP34: 680364 | CQ34: 0.100725326 | CR34: 14825 | CT34: 14825 | CX34: 0 | DB34: 0 | DF34: 0 | DH34: NO | DI34: =IF(ISERROR(VLOOKUP($A34+8860000,'Growth Data'!$A:$F,3,0)),"NO",VLOOKUP($A34+8860000,'Growth Data'!$A:$F,3,0)) -> NO | DJ34: 0 | DL34: 0 | DM34: =IF(DI34="YES",IF(ISERROR(VLOOKUP($A34+8860000,'Growth Data'!$A:$F,6,0)),0,VLOOKUP($A34+8860000,'Growth Data'!$A:$F,6,0)),0) -> 0 | DN34: 0 | DP34: 0 | DQ34: =IF(ISERROR(VLOOKUP($A34+8860000,'Growth Data'!$A:$Z,7,0)),0,VLOOKUP($A34+8860000,'Growth Data'!$A:$Z,7,0)) -> 0 | DR34: 0 | DT34: NO | DU34: =IF(ISERROR(VLOOKUP($A34+8860000,'Growth Data'!$A:$F,4,0)),"NO",VLOOKUP($A34+8860000,'Growth Data'!$A:$F,4,0)) -> NO | DV34: 0 | DX34: 0 | DY34: =IF(ISERROR(VLOOKUP($A34+8860000,'Growth Data'!$A:$Z,8,0)),0,VLOOKUP($A34+8860000,'Growth Data'!$A:$Z,8,0)) -> 0 | DZ34: 0 | EB34: 0 | EC34: =IF(ISERROR(VLOOKUP($A34+8860000,'Growth Data'!$A:$Z,9,0)),0,VLOOKUP($A34+8860000,'Growth Data'!$A:$Z,9,0)) -> 0 | ED34: 0 | EF34: NO | EG34: =IF(ISERROR(VLOOKUP($A34+8860000,'Growth Data'!$A:$Z,5,0)),"NO",VLOOKUP($A34+8860000,'Growth Data'!$A:$Z,5,0)) -> NO | EH34: 0 | EJ34: 0 | EK34: =IF(ISERROR(VLOOKUP($A34+8860000,'Growth Data'!$A:$Z,10,0)),0,VLOOKUP($A34+8860000,'Growth Data'!$A:$Z,10,0)) -> 0 | EL34: 0 | EN34: 0 | EO34: =IF(ISERROR(VLOOKUP($A34+8860000,'Growth Data'!$A:$Z,11,0)),0,VLOOKUP($A34+8860000,'Growth Data'!$A:$Z,11,0)) -> 0 | EP34: 0
A35: 2167 | B35: Ightham Primary School | D35: Ightham Primary School | F35: 1 | H35: 638400 | I35: 638400 | J35: 0 | L35: 8005.35 | M35: 8005.353737 | N35: -0.003737373736 | P35: 1330.35 | Q35: 1330.352941 | R35: -0.002941176466 | T35: 25765.06 | U35: 25765.06329 | V35: -0.003291139237 | X35: 121386.12 | Y35: 121386.12 | Z35: 0 | AB35: 0 | AC35: 0 | AD35: 0 | AF35: 0 | AG35: 0 | AH35: 0 | AJ35: 0 | AK35: 0 | AL35: 0 | AN35: 21457 | AO35: 21457 | AP35: 0 | AR35: 0 | AS35: 0 | AT35: 0 | AV35: 0 | AW35: 0 | AX35: 0 | AZ35: 58113.11 | BA35: 58113.11003 | BB35: -3.031054803e-05 | BD35: 874457 | BE35: 874457 | BF35: 0 | BH35: 0 | BI35: 0 | BJ35: 0 | BL35: 874457 | BM35: 874457 | BN35: 0 | BP35: 0 | BR35: 0 | BV35: 0 | BZ35: 0 | CB35: 96694.57 | CC35: 96694.57164 | CD35: 0 | CF35: 5418 | CG35: 5418 | CH35: 0 | CJ35: 1012203.7 | CL35: 1012204 | CM35: 0.1271166208 | CN35: 1141470.35 | CP35: 1141470 | CQ35: 0.1277081382 | CR35: 23590 | CT35: 23590 | CX35: 0 | DB35: 0 | DF35: 0 | DH35: NO | DI35: =IF(ISERROR(VLOOKUP($A35+8860000,'Growth Data'!$A:$F,3,0)),"NO",VLOOKUP($A35+8860000,'Growth Data'!$A:$F,3,0)) -> NO | DJ35: 0 | DL35: 0 | DM35: =IF(DI35="YES",IF(ISERROR(VLOOKUP($A35+8860000,'Growth Data'!$A:$F,6,0)),0,VLOOKUP($A35+8860000,'Growth Data'!$A:$F,6,0)),0) -> 0 | DN35: 0 | DP35: 0 | DQ35: =IF(ISERROR(VLOOKUP($A35+8860000,'Growth Data'!$A:$Z,7,0)),0,VLOOKUP($A35+8860000,'Growth Data'!$A:$Z,7,0)) -> 0 | DR35: 0 | DT35: NO | DU35: =IF(ISERROR(VLOOKUP($A35+8860000,'Growth Data'!$A:$F,4,0)),"NO",VLOOKUP($A35+8860000,'Growth Data'!$A:$F,4,0)) -> NO | DV35: 0 | DX35: 0 | DY35: =IF(ISERROR(VLOOKUP($A35+8860000,'Growth Data'!$A:$Z,8,0)),0,VLOOKUP($A35+8860000,'Growth Data'!$A:$Z,8,0)) -> 0 | DZ35: 0 | EB35: 0 | EC35: =IF(ISERROR(VLOOKUP($A35+8860000,'Growth Data'!$A:$Z,9,0)),0,VLOOKUP($A35+8860000,'Growth Data'!$A:$Z,9,0)) -> 0 | ED35: 0 | EF35: NO | EG35: =IF(ISERROR(VLOOKUP($A35+8860000,'Growth Data'!$A:$Z,5,0)),"NO",VLOOKUP($A35+8860000,'Growth Data'!$A:$Z,5,0)) -> NO | EH35: 0 | EJ35: 0 | EK35: =IF(ISERROR(VLOOKUP($A35+8860000,'Growth Data'!$A:$Z,10,0)),0,VLOOKUP($A35+8860000,'Growth Data'!$A:$Z,10,0)) -> 0 | EL35: 0 | EN35: 0 | EO35: =IF(ISERROR(VLOOKUP($A35+8860000,'Growth Data'!$A:$Z,11,0)),0,VLOOKUP($A35+8860000,'Growth Data'!$A:$Z,11,0)) -> 0 | EP35: 0
A36: 2168 | B36: Lenham Primary School | D36: Lenham Primary School | F36: 1 | H36: 663936 | I36: 663936 | J36: 0 | L36: 30661.36 | M36: 30661.35676 | N36: 0.003236714962 | P36: 660.69 | Q36: 660.6921348 | R36: -0.002134831461 | T36: 65639 | U36: 65638.99535 | V36: 0.004651162802 | X36: 121386.12 | Y36: 121386.12 | Z36: 0 | AB36: 0 | AC36: 0 | AD36: 0 | AF36: 0 | AG36: 0 | AH36: 0 | AJ36: 0 | AK36: 0 | AL36: 0 | AN36: 18837 | AO36: 18837 | AP36: 0 | AR36: 0 | AS36: 0 | AT36: 0 | AV36: 0 | AW36: 0 | AX36: 0 | AZ36: 4836.84 | BA36: 4836.835753 | BB36: 0.004246953675 | BD36: 905957 | BE36: 905957 | BF36: 0 | BH36: 0 | BI36: 0 | BJ36: 0 | BL36: 905957 | BM36: 905957 | BN36: 0 | BP36: 0 | BR36: 0 | BV36: 0 | BZ36: 0 | CB36: 91639 | CC36: 91639.00164 | CD36: 0 | CF36: 5634.72 | CG36: 5634.72 | CH36: 0 | CJ36: 1051667.44 | CL36: 1051667 | CM36: 0.1273425643 | CN36: 1186178.37 | CP36: 1186178 | CQ36: 0.1279025335 | CR36: 26916 | CT36: 26916 | CX36: 0 | DB36: 0 | DF36: 0 | DH36: NO | DI36: =IF(ISERROR(VLOOKUP($A36+8860000,'Growth Data'!$A:$F,3,0)),"NO",VLOOKUP($A36+8860000,'Growth Data'!$A:$F,3,0)) -> NO | DJ36: 0 | DL36: 0 | DM36: =IF(DI36="YES",IF(ISERROR(VLOOKUP($A36+8860000,'Growth Data'!$A:$F,6,0)),0,VLOOKUP($A36+8860000,'Growth Data'!$A:$F,6,0)),0) -> 0 | DN36: 0 | DP36: 0 | DQ36: =IF(ISERROR(VLOOKUP($A36+8860000,'Growth Data'!$A:$Z,7,0)),0,VLOOKUP($A36+8860000,'Growth Data'!$A:$Z,7,0)) -> 0 | DR36: 0 | DT36: NO | DU36: =IF(ISERROR(VLOOKUP($A36+8860000,'Growth Data'!$A:$F,4,0)),"NO",VLOOKUP($A36+8860000,'Growth Data'!$A:$F,4,0)) -> NO | DV36: 0 | DX36: 0 | DY36: =IF(ISERROR(VLOOKUP($A36+8860000,'Growth Data'!$A:$Z,8,0)),0,VLOOKUP($A36+8860000,'Growth Data'!$A:$Z,8,0)) -> 0 | DZ36: 0 | EB36: 0 | EC36: =IF(ISERROR(VLOOKUP($A36+8860000,'Growth Data'!$A:$Z,9,0)),0,VLOOKUP($A36+8860000,'Growth Data'!$A:$Z,9,0)) -> 0 | ED36: 0 | EF36: NO | EG36: =IF(ISERROR(VLOOKUP($A36+8860000,'Growth Data'!$A:$Z,5,0)),"NO",VLOOKUP($A36+8860000,'Growth Data'!$A:$Z,5,0)) -> NO | EH36: 0 | EJ36: 0 | EK36: =IF(ISERROR(VLOOKUP($A36+8860000,'Growth Data'!$A:$Z,10,0)),0,VLOOKUP($A36+8860000,'Growth Data'!$A:$Z,10,0)) -> 0 | EL36: 0 | EN36: 0 | EO36: =IF(ISERROR(VLOOKUP($A36+8860000,'Growth Data'!$A:$Z,11,0)),0,VLOOKUP($A36+8860000,'Growth Data'!$A:$Z,11,0)) -> 0 | EP36: 0
A37: 2169 | B37: Platts Heath Primary School | D37: Platts Heath Primary School | F37: 1 | H37: 162792 | I37: 162792 | J37: 0 | L37: 15421.25 | M37: 15421.25 | N37: 1.455191523e-11 | P37: 0 | Q37: 0 | R37: 0 | T37: 21359.56 | U37: 21359.55556 | V37: 0.004444444447 | X37: 121386.12 | Y37: 121386.12 | Z37: 0 | AB37: 22290.82 | AC37: 22290.81525 | AD37: 0.004750000004 | AF37: 0 | AG37: 0 | AH37: 0 | AJ37: 0 | AK37: 0 | AL37: 0 | AN37: 2345 | AO37: 2345 | AP37: 0 | AR37: 0 | AS37: 0 | AT37: 0 | AV37: 0 | AW37: 0 | AX37: 0 | AZ37: 0 | BA37: 0 | BB37: 0 | BD37: 345594.74 | BE37: 345594.7408 | BF37: -0.0008055555518 | BH37: 0 | BI37: 0 | BJ37: 0 | BL37: 345594.74 | BM37: 345594.7408 | BN37: -0.0008055555518 | BP37: 0 | BR37: 0 | BV37: 0 | BZ37: 0 | CB37: 35558.2 | CC37: 35558.1972 | CD37: 0 | CF37: 1381.59 | CG37: 1381.59 | CH37: 0 | CJ37: 386894.25 | CL37: 386894 | CM37: 0.08728022049 | CN37: 421817.73 | CP37: 421818 | CQ37: 0.09026621616 | CR37: 10242 | CT37: 10242 | CX37: 0 | DB37: 0 | DF37: 0 | DH37: NO | DI37: =IF(ISERROR(VLOOKUP($A37+8860000,'Growth Data'!$A:$F,3,0)),"NO",VLOOKUP($A37+8860000,'Growth Data'!$A:$F,3,0)) -> NO | DJ37: 0 | DL37: 0 | DM37: =IF(DI37="YES",IF(ISERROR(VLOOKUP($A37+8860000,'Growth Data'!$A:$F,6,0)),0,VLOOKUP($A37+8860000,'Growth Data'!$A:$F,6,0)),0) -> 0 | DN37: 0 | DP37: 0 | DQ37: =IF(ISERROR(VLOOKUP($A37+8860000,'Growth Data'!$A:$Z,7,0)),0,VLOOKUP($A37+8860000,'Growth Data'!$A:$Z,7,0)) -> 0 | DR37: 0 | DT37: NO | DU37: =IF(ISERROR(VLOOKUP($A37+8860000,'Growth Data'!$A:$F,4,0)),"NO",VLOOKUP($A37+8860000,'Growth Data'!$A:$F,4,0)) -> NO | DV37: 0 | DX37: 0 | DY37: =IF(ISERROR(VLOOKUP($A37+8860000,'Growth Data'!$A:$Z,8,0)),0,VLOOKUP($A37+8860000,'Growth Data'!$A:$Z,8,0)) -> 0 | DZ37: 0 | EB37: 0 | EC37: =IF(ISERROR(VLOOKUP($A37+8860000,'Growth Data'!$A:$Z,9,0)),0,VLOOKUP($A37+8860000,'Growth Data'!$A:$Z,9,0)) -> 0 | ED37: 0 | EF37: NO | EG37: =IF(ISERROR(VLOOKUP($A37+8860000,'Growth Data'!$A:$Z,5,0)),"NO",VLOOKUP($A37+8860000,'Growth Data'!$A:$Z,5,0)) -> NO | EH37: 0 | EJ37: 0 | EK37: =IF(ISERROR(VLOOKUP($A37+8860000,'Growth Data'!$A:$Z,10,0)),0,VLOOKUP($A37+8860000,'Growth Data'!$A:$Z,10,0)) -> 0 | EL37: 0 | EN37: 0 | EO37: =IF(ISERROR(VLOOKUP($A37+8860000,'Growth Data'!$A:$Z,11,0)),0,VLOOKUP($A37+8860000,'Growth Data'!$A:$Z,11,0)) -> 0 | EP37: 0
A38: 2171 | B38: Brunswick House Primary School | D38: Brunswick House Primary School | F38: 1 | H38: 1337448 | I38: 1337448 | J38: 0 | L38: 89443.32 | M38: 89443.32065 | N38: -0.0006506024656 | P38: 32334.9 | Q38: 32334.89526 | R38: 0.004735376009 | T38: 110414.78 | U38: 110414.7811 | V38: -0.001120943954 | X38: 121386.12 | Y38: 121386.12 | Z38: 0 | AB38: 0 | AC38: 0 | AD38: 0 | AF38: 0 | AG38: 0 | AH38: 0 | AJ38: 0 | AK38: 0 | AL38: 0 | AN38: 66048 | AO38: 66048 | AP38: 0 | AR38: 0 | AS38: 0 | AT38: 0 | AV38: 0 | AW38: 0 | AX38: 0 | AZ38: 96007.88 | BA38: 96007.88296 | BB38: -0.002963829611 | BD38: 1853083 | BE38: 1853083 | BF38: 0 | BH38: 0 | BI38: 0 | BJ38: 0 | BL38: 1853083 | BM38: 1853083 | BN38: 0 | BP38: 0 | BR38: 0 | BV38: 0 | BZ38: 0 | CB38: 292173.85 | CC38: 292173.8516 | CD38: 0 | CF38: 11350.71 | CG38: 11350.71 | CH38: 0 | CJ38: 2144816.15 | CL38: 2144816 | CM38: 0.1255533264 | CN38: 2415724.39 | CP38: 2415724 | CQ38: 0.1263083738 | CR38: 52483 | CT38: 52483 | CX38: 0 | DB38: 0 | DF38: 0 | DH38: NO | DI38: =IF(ISERROR(VLOOKUP($A38+8860000,'Growth Data'!$A:$F,3,0)),"NO",VLOOKUP($A38+8860000,'Growth Data'!$A:$F,3,0)) -> NO | DJ38: 0 | DL38: 0 | DM38: =IF(DI38="YES",IF(ISERROR(VLOOKUP($A38+8860000,'Growth Data'!$A:$F,6,0)),0,VLOOKUP($A38+8860000,'Growth Data'!$A:$F,6,0)),0) -> 0 | DN38: 0 | DP38: 0 | DQ38: =IF(ISERROR(VLOOKUP($A38+8860000,'Growth Data'!$A:$Z,7,0)),0,VLOOKUP($A38+8860000,'Growth Data'!$A:$Z,7,0)) -> 0 | DR38: 0 | DT38: NO | DU38: =IF(ISERROR(VLOOKUP($A38+8860000,'Growth Data'!$A:$F,4,0)),"NO",VLOOKUP($A38+8860000,'Growth Data'!$A:$F,4,0)) -> NO | DV38: 0 | DX38: 0 | DY38: =IF(ISERROR(VLOOKUP($A38+8860000,'Growth Data'!$A:$Z,8,0)),0,VLOOKUP($A38+8860000,'Growth Data'!$A:$Z,8,0)) -> 0 | DZ38: 0 | EB38: 0 | EC38: =IF(ISERROR(VLOOKUP($A38+8860000,'Growth Data'!$A:$Z,9,0)),0,VLOOKUP($A38+8860000,'Growth Data'!$A:$Z,9,0)) -> 0 | ED38: 0 | EF38: NO | EG38: =IF(ISERROR(VLOOKUP($A38+8860000,'Growth Data'!$A:$Z,5,0)),"NO",VLOOKUP($A38+8860000,'Growth Data'!$A:$Z,5,0)) -> NO | EH38: 0 | EJ38: 0 | EK38: =IF(ISERROR(VLOOKUP($A38+8860000,'Growth Data'!$A:$Z,10,0)),0,VLOOKUP($A38+8860000,'Growth Data'!$A:$Z,10,0)) -> 0 | EL38: 0 | EN38: 0 | EO38: =IF(ISERROR(VLOOKUP($A38+8860000,'Growth Data'!$A:$Z,11,0)),0,VLOOKUP($A38+8860000,'Growth Data'!$A:$Z,11,0)) -> 0 | EP38: 0
A39: 2175 | B39: North Borough Junior School | D39: North Borough Junior School | F39: 1 | H39: 1085280 | I39: 1085280 | J39: 0 | L39: 91464.44 | M39: 91464.44 | N39: 0 | P39: 25518.05 | Q39: 25518.0531 | R39: -0.003097345052 | T39: 105775.79 | U39: 105775.7895 | V39: 0.00052631578 | X39: 121386.12 | Y39: 121386.12 | Z39: 0 | AB39: 0 | AC39: 0 | AD39: 0 | AF39: 0 | AG39: 0 | AH39: 0 | AJ39: 0 | AK39: 0 | AL39: 0 | AN39: 23328 | AO39: 23328 | AP39: 0 | AR39: 0 | AS39: 0 | AT39: 0 | AV39: 0 | AW39: 0 | AX39: 0 | AZ39: 20675.6 | BA39: 20675.59743 | BB39: 0.002571029319 | BD39: 1473428 | BE39: 1473428 | BF39: 0 | BH39: 0 | BI39: 0 | BJ39: 0 | BL39: 1473428 | BM39: 1473428 | BN39: 0 | BP39: 0 | BR39: 0 | BV39: 0 | BZ39: 0 | CB39: 214461.8 | CC39: 214461.8016 | CD39: 0 | CF39: 9210.6 | CG39: 9210.6 | CH39: 0 | CJ39: 1711405.3 | CL39: 1711405 | CM39: 0.1279816217 | CN39: 1931272.84 | CP39: 1931273 | CQ39: 0.1284719289 | CR39: 43800 | CT39: 43800 | CX39: 0 | DB39: 0 | DF39: 0 | DH39: NO | DI39: =IF(ISERROR(VLOOKUP($A39+8860000,'Growth Data'!$A:$F,3,0)),"NO",VLOOKUP($A39+8860000,'Growth Data'!$A:$F,3,0)) -> NO | DJ39: 0 | DL39: 0 | DM39: =IF(DI39="YES",IF(ISERROR(VLOOKUP($A39+8860000,'Growth Data'!$A:$F,6,0)),0,VLOOKUP($A39+8860000,'Growth Data'!$A:$F,6,0)),0) -> 0 | DN39: 0 | DP39: 0 | DQ39: =IF(ISERROR(VLOOKUP($A39+8860000,'Growth Data'!$A:$Z,7,0)),0,VLOOKUP($A39+8860000,'Growth Data'!$A:$Z,7,0)) -> 0 | DR39: 0 | DT39: NO | DU39: =IF(ISERROR(VLOOKUP($A39+8860000,'Growth Data'!$A:$F,4,0)),"NO",VLOOKUP($A39+8860000,'Growth Data'!$A:$F,4,0)) -> NO | DV39: 0 | DX39: 0 | DY39: =IF(ISERROR(VLOOKUP($A39+8860000,'Growth Data'!$A:$Z,8,0)),0,VLOOKUP($A39+8860000,'Growth Data'!$A:$Z,8,0)) -> 0 | DZ39: 0 | EB39: 0 | EC39: =IF(ISERROR(VLOOKUP($A39+8860000,'Growth Data'!$A:$Z,9,0)),0,VLOOKUP($A39+8860000,'Growth Data'!$A:$Z,9,0)) -> 0 | ED39: 0 | EF39: NO | EG39: =IF(ISERROR(VLOOKUP($A39+8860000,'Growth Data'!$A:$Z,5,0)),"NO",VLOOKUP($A39+8860000,'Growth Data'!$A:$Z,5,0)) -> NO | EH39: 0 | EJ39: 0 | EK39: =IF(ISERROR(VLOOKUP($A39+8860000,'Growth Data'!$A:$Z,10,0)),0,VLOOKUP($A39+8860000,'Growth Data'!$A:$Z,10,0)) -> 0 | EL39: 0 | EN39: 0 | EO39: =IF(ISERROR(VLOOKUP($A39+8860000,'Growth Data'!$A:$Z,11,0)),0,VLOOKUP($A39+8860000,'Growth Data'!$A:$Z,11,0)) -> 0 | EP39: 0
A40: 2176 | B40: Park Way Primary School | D40: Park Way Primary School | F40: 1 | H40: 986328 | I40: 986328 | J40: 0 | L40: 128997.94 | M40: 128997.94 | N40: 0 | P40: 27794.55 | Q40: 27794.55 | R40: 0 | T40: 101443.7 | U40: 101443.7032 | V40: -0.00322580646 | X40: 121386.12 | Y40: 121386.12 | Z40: 0 | AB40: 0 | AC40: 0 | AD40: 0 | AF40: 0 | AG40: 0 | AH40: 0 | AJ40: 0 | AK40: 0 | AL40: 0 | AN40: 28416 | AO40: 28416 | AP40: 0 | AR40: 0 | AS40: 0 | AT40: 0 | AV40: 0 | AW40: 0 | AX40: 0 | AZ40: 0 | BA40: 0 | BB40: 0 | BD40: 1394366.31 | BE40: 1394366.313 | BF40: -0.003225806169 | BH40: 0 | BI40: 0 | BJ40: 0 | BL40: 1394366.31 | BM40: 1394366.313 | BN40: -0.003225806169 | BP40: 0 | BR40: 0 | BV40: 0 | BZ40: 0 | CB40: 222679.49 | CC40: 222679.4949 | CD40: 0 | CF40: 8370.81 | CG40: 8370.81 | CH40: 0 | CJ40: 1610419.62 | CL40: 1610420 | CM40: 0.1213221115 | CN40: 1807569.21 | CP40: 1807569 | CQ40: 0.1224212544 | CR40: 41813 | CT40: 41813 | CX40: 0 | DB40: 0 | DF40: 0 | DH40: NO | DI40: =IF(ISERROR(VLOOKUP($A40+8860000,'Growth Data'!$A:$F,3,0)),"NO",VLOOKUP($A40+8860000,'Growth Data'!$A:$F,3,0)) -> NO | DJ40: 0 | DL40: 0 | DM40: =IF(DI40="YES",IF(ISERROR(VLOOKUP($A40+8860000,'Growth Data'!$A:$F,6,0)),0,VLOOKUP($A40+8860000,'Growth Data'!$A:$F,6,0)),0) -> 0 | DN40: 0 | DP40: 0 | DQ40: =IF(ISERROR(VLOOKUP($A40+8860000,'Growth Data'!$A:$Z,7,0)),0,VLOOKUP($A40+8860000,'Growth Data'!$A:$Z,7,0)) -> 0 | DR40: 0 | DT40: NO | DU40: =IF(ISERROR(VLOOKUP($A40+8860000,'Growth Data'!$A:$F,4,0)),"NO",VLOOKUP($A40+8860000,'Growth Data'!$A:$F,4,0)) -> NO | DV40: 0 | DX40: 0 | DY40: =IF(ISERROR(VLOOKUP($A40+8860000,'Growth Data'!$A:$Z,8,0)),0,VLOOKUP($A40+8860000,'Growth Data'!$A:$Z,8,0)) -> 0 | DZ40: 0 | EB40: 0 | EC40: =IF(ISERROR(VLOOKUP($A40+8860000,'Growth Data'!$A:$Z,9,0)),0,VLOOKUP($A40+8860000,'Growth Data'!$A:$Z,9,0)) -> 0 | ED40: 0 | EF40: NO | EG40: =IF(ISERROR(VLOOKUP($A40+8860000,'Growth Data'!$A:$Z,5,0)),"NO",VLOOKUP($A40+8860000,'Growth Data'!$A:$Z,5,0)) -> NO | EH40: 0 | EJ40: 0 | EK40: =IF(ISERROR(VLOOKUP($A40+8860000,'Growth Data'!$A:$Z,10,0)),0,VLOOKUP($A40+8860000,'Growth Data'!$A:$Z,10,0)) -> 0 | EL40: 0 | EN40: 0 | EO40: =IF(ISERROR(VLOOKUP($A40+8860000,'Growth Data'!$A:$Z,11,0)),0,VLOOKUP($A40+8860000,'Growth Data'!$A:$Z,11,0)) -> 0 | EP40: 0
A41: 2185 | B41: Mereworth Community Primary School | D41: Mereworth Community Primary School | F41: 1 | H41: 667128 | I41: 667128 | J41: 0 | L41: 36402.1 | M41: 36402.10462 | N41: -0.004615384678 | P41: 649.28 | Q41: 649.278022 | R41: 0.001978021979 | T41: 44150.91 | U41: 44150.90549 | V41: 0.004505494508 | X41: 121386.12 | Y41: 121386.12 | Z41: 0 | AB41: 0 | AC41: 0 | AD41: 0 | AF41: 0 | AG41: 0 | AH41: 0 | AJ41: 0 | AK41: 0 | AL41: 0 | AN41: 26368 | AO41: 26368 | AP41: 0 | AR41: 0 | AS41: 0 | AT41: 0 | AV41: 0 | AW41: 0 | AX41: 0 | AZ41: 21668.59 | BA41: 21668.59187 | BB41: -0.001868131829 | BD41: 917753 | BE41: 917753 | BF41: 0 | BH41: 0 | BI41: 0 | BJ41: 0 | BL41: 917753 | BM41: 917753 | BN41: 0 | BP41: 0 | BR41: 0 | BV41: 0 | BZ41: 0 | CB41: 93182.33 | CC41: 93182.33164 | CD41: 0 | CF41: 5661.81 | CG41: 5661.81 | CH41: 0 | CJ41: 1064043.05 | CL41: 1064043 | CM41: 0.1263516997 | CN41: 1199197.03 | CP41: 1199197 | CQ41: 0.127019278 | CR41: 26928 | CT41: 26928 | CX41: 0 | DB41: 0 | DF41: 0 | DH41: NO | DI41: =IF(ISERROR(VLOOKUP($A41+8860000,'Growth Data'!$A:$F,3,0)),"NO",VLOOKUP($A41+8860000,'Growth Data'!$A:$F,3,0)) -> NO | DJ41: 0 | DL41: 0 | DM41: =IF(DI41="YES",IF(ISERROR(VLOOKUP($A41+8860000,'Growth Data'!$A:$F,6,0)),0,VLOOKUP($A41+8860000,'Growth Data'!$A:$F,6,0)),0) -> 0 | DN41: 0 | DP41: 0 | DQ41: =IF(ISERROR(VLOOKUP($A41+8860000,'Growth Data'!$A:$Z,7,0)),0,VLOOKUP($A41+8860000,'Growth Data'!$A:$Z,7,0)) -> 0 | DR41: 0 | DT41: NO | DU41: =IF(ISERROR(VLOOKUP($A41+8860000,'Growth Data'!$A:$F,4,0)),"NO",VLOOKUP($A41+8860000,'Growth Data'!$A:$F,4,0)) -> NO | DV41: 0 | DX41: 0 | DY41: =IF(ISERROR(VLOOKUP($A41+8860000,'Growth Data'!$A:$Z,8,0)),0,VLOOKUP($A41+8860000,'Growth Data'!$A:$Z,8,0)) -> 0 | DZ41: 0 | EB41: 0 | EC41: =IF(ISERROR(VLOOKUP($A41+8860000,'Growth Data'!$A:$Z,9,0)),0,VLOOKUP($A41+8860000,'Growth Data'!$A:$Z,9,0)) -> 0 | ED41: 0 | EF41: NO | EG41: =IF(ISERROR(VLOOKUP($A41+8860000,'Growth Data'!$A:$Z,5,0)),"NO",VLOOKUP($A41+8860000,'Growth Data'!$A:$Z,5,0)) -> NO | EH41: 0 | EJ41: 0 | EK41: =IF(ISERROR(VLOOKUP($A41+8860000,'Growth Data'!$A:$Z,10,0)),0,VLOOKUP($A41+8860000,'Growth Data'!$A:$Z,10,0)) -> 0 | EL41: 0 | EN41: 0 | EO41: =IF(ISERROR(VLOOKUP($A41+8860000,'Growth Data'!$A:$Z,11,0)),0,VLOOKUP($A41+8860000,'Growth Data'!$A:$Z,11,0)) -> 0 | EP41: 0
A42: 2187 | B42: Offham Primary School | D42: Offham Primary School | F42: 1 | H42: 679896 | I42: 679896 | J42: 0 | L42: 15911.71 | M42: 15911.70891 | N42: 0.001090047392 | P42: 1316.18 | Q42: 1316.177049 | R42: 0.00295081967 | T42: 30438.4 | U42: 30438.4022 | V42: -0.002197802194 | X42: 121386.12 | Y42: 121386.12 | Z42: 0 | AB42: 0 | AC42: 0 | AD42: 0 | AF42: 0 | AG42: 0 | AH42: 0 | AJ42: 0 | AK42: 0 | AL42: 0 | AN42: 23827 | AO42: 23827 | AP42: 0 | AR42: 0 | AS42: 0 | AT42: 0 | AV42: 0 | AW42: 0 | AX42: 0 | AZ42: 59496.59 | BA42: 59496.59184 | BB42: -0.001843064878 | BD42: 932272 | BE42: 932272 | BF42: 0 | BH42: 0 | BI42: 0 | BJ42: 0 | BL42: 932272 | BM42: 932272 | BN42: 0 | BP42: 0 | BR42: 0 | BV42: 0 | BZ42: 0 | CB42: 108762.25 | CC42: 108762.2516 | CD42: 0 | CF42: 5770.17 | CG42: 5770.17 | CH42: 0 | CJ42: 1079041.92 | CL42: 1079042 | CM42: 0.1269802802 | CN42: 1216712.99 | CP42: 1216713 | CQ42: 0.1275863963 | CR42: 25191 | CT42: 25191 | CX42: 0 | DB42: 0 | DF42: 0 | DH42: NO | DI42: =IF(ISERROR(VLOOKUP($A42+8860000,'Growth Data'!$A:$F,3,0)),"NO",VLOOKUP($A42+8860000,'Growth Data'!$A:$F,3,0)) -> NO | DJ42: 0 | DL42: 0 | DM42: =IF(DI42="YES",IF(ISERROR(VLOOKUP($A42+8860000,'Growth Data'!$A:$F,6,0)),0,VLOOKUP($A42+8860000,'Growth Data'!$A:$F,6,0)),0) -> 0 | DN42: 0 | DP42: 0 | DQ42: =IF(ISERROR(VLOOKUP($A42+8860000,'Growth Data'!$A:$Z,7,0)),0,VLOOKUP($A42+8860000,'Growth Data'!$A:$Z,7,0)) -> 0 | DR42: 0 | DT42: NO | DU42: =IF(ISERROR(VLOOKUP($A42+8860000,'Growth Data'!$A:$F,4,0)),"NO",VLOOKUP($A42+8860000,'Growth Data'!$A:$F,4,0)) -> NO | DV42: 0 | DX42: 0 | DY42: =IF(ISERROR(VLOOKUP($A42+8860000,'Growth Data'!$A:$Z,8,0)),0,VLOOKUP($A42+8860000,'Growth Data'!$A:$Z,8,0)) -> 0 | DZ42: 0 | EB42: 0 | EC42: =IF(ISERROR(VLOOKUP($A42+8860000,'Growth Data'!$A:$Z,9,0)),0,VLOOKUP($A42+8860000,'Growth Data'!$A:$Z,9,0)) -> 0 | ED42: 0 | EF42: NO | EG42: =IF(ISERROR(VLOOKUP($A42+8860000,'Growth Data'!$A:$Z,5,0)),"NO",VLOOKUP($A42+8860000,'Growth Data'!$A:$Z,5,0)) -> NO | EH42: 0 | EJ42: 0 | EK42: =IF(ISERROR(VLOOKUP($A42+8860000,'Growth Data'!$A:$Z,10,0)),0,VLOOKUP($A42+8860000,'Growth Data'!$A:$Z,10,0)) -> 0 | EL42: 0 | EN42: 0 | EO42: =IF(ISERROR(VLOOKUP($A42+8860000,'Growth Data'!$A:$Z,11,0)),0,VLOOKUP($A42+8860000,'Growth Data'!$A:$Z,11,0)) -> 0 | EP42: 0
A43: 2188 | B43: Plaxtol Primary School | D43: Plaxtol Primary School | F43: 1 | H43: 312816 | I43: 312816 | J43: 0 | L43: 10930.05 | M43: 10930.05 | N43: -2.728484105e-11 | P43: 667.58 | Q43: 667.5807229 | R43: -0.0007228915641 | T43: 18007.99 | U43: 18007.99 | V43: 0 | X43: 121386.12 | Y43: 121386.12 | Z43: 0 | AB43: 38064.39 | AC43: 38064.38972 | AD43: 0.0002803738389 | AF43: 0 | AG43: 0 | AH43: 0 | AJ43: 0 | AK43: 0 | AL43: 0 | AN43: 13847 | AO43: 13847 | AP43: 0 | AR43: 0 | AS43: 0 | AT43: 0 | AV43: 0 | AW43: 0 | AX43: 0 | AZ43: 0 | BA43: 0 | BB43: 0 | BD43: 515719.13 | BE43: 515719.1304 | BF43: -0.0004425177467 | BH43: 0 | BI43: 0 | BJ43: 0 | BL43: 515719.13 | BM43: 515719.1304 | BN43: -0.0004425177467 | BP43: 0 | BR43: 0 | BV43: 0 | BZ43: 0 | CB43: 30734.66 | CC43: 30734.66236 | CD43: 0 | CF43: 2654.82 | CG43: 2654.82 | CH43: 0 | CJ43: 580412.44 | CL43: 580412 | CM43: 0.09544824307 | CN43: 637446.19 | CP43: 637446 | CQ43: 0.09826417573 | CR43: 14121 | CT43: 14121 | CX43: 0 | DB43: 0 | DF43: 0 | DH43: NO | DI43: =IF(ISERROR(VLOOKUP($A43+8860000,'Growth Data'!$A:$F,3,0)),"NO",VLOOKUP($A43+8860000,'Growth Data'!$A:$F,3,0)) -> NO | DJ43: 0 | DL43: 0 | DM43: =IF(DI43="YES",IF(ISERROR(VLOOKUP($A43+8860000,'Growth Data'!$A:$F,6,0)),0,VLOOKUP($A43+8860000,'Growth Data'!$A:$F,6,0)),0) -> 0 | DN43: 0 | DP43: 0 | DQ43: =IF(ISERROR(VLOOKUP($A43+8860000,'Growth Data'!$A:$Z,7,0)),0,VLOOKUP($A43+8860000,'Growth Data'!$A:$Z,7,0)) -> 0 | DR43: 0 | DT43: NO | DU43: =IF(ISERROR(VLOOKUP($A43+8860000,'Growth Data'!$A:$F,4,0)),"NO",VLOOKUP($A43+8860000,'Growth Data'!$A:$F,4,0)) -> NO | DV43: 0 | DX43: 0 | DY43: =IF(ISERROR(VLOOKUP($A43+8860000,'Growth Data'!$A:$Z,8,0)),0,VLOOKUP($A43+8860000,'Growth Data'!$A:$Z,8,0)) -> 0 | DZ43: 0 | EB43: 0 | EC43: =IF(ISERROR(VLOOKUP($A43+8860000,'Growth Data'!$A:$Z,9,0)),0,VLOOKUP($A43+8860000,'Growth Data'!$A:$Z,9,0)) -> 0 | ED43: 0 | EF43: NO | EG43: =IF(ISERROR(VLOOKUP($A43+8860000,'Growth Data'!$A:$Z,5,0)),"NO",VLOOKUP($A43+8860000,'Growth Data'!$A:$Z,5,0)) -> NO | EH43: 0 | EJ43: 0 | EK43: =IF(ISERROR(VLOOKUP($A43+8860000,'Growth Data'!$A:$Z,10,0)),0,VLOOKUP($A43+8860000,'Growth Data'!$A:$Z,10,0)) -> 0 | EL43: 0 | EN43: 0 | EO43: =IF(ISERROR(VLOOKUP($A43+8860000,'Growth Data'!$A:$Z,11,0)),0,VLOOKUP($A43+8860000,'Growth Data'!$A:$Z,11,0)) -> 0 | EP43: 0
A44: 2189 | B44: Ryarsh Primary School | D44: Ryarsh Primary School | F44: 1 | H44: 670320 | I44: 670320 | J44: 0 | L44: 12085.62 | M44: 12085.62 | N44: 0 | P44: 659.63 | Q44: 659.6333333 | R44: -0.003333333334 | T44: 40897.27 | U44: 40897.26667 | V44: 0.003333333334 | X44: 121386.12 | Y44: 121386.12 | Z44: 0 | AB44: 0 | AC44: 0 | AD44: 0 | AF44: 0 | AG44: 0 | AH44: 0 | AJ44: 0 | AK44: 0 | AL44: 0 | AN44: 17964 | AO44: 17964 | AP44: 0 | AR44: 0 | AS44: 0 | AT44: 0 | AV44: 0 | AW44: 0 | AX44: 0 | AZ44: 50301.36 | BA44: 50301.36 | BB44: 0 | BD44: 913614 | BE44: 913614 | BF44: 0 | BH44: 0 | BI44: 0 | BJ44: 0 | BL44: 913614 | BM44: 913614 | BN44: 0 | BP44: 0 | BR44: 0 | BV44: 0 | BZ44: 0 | CB44: 104602.59 | CC44: 104602.5916 | CD44: 0 | CF44: 5688.9 | CG44: 5688.9 | CH44: 0 | CJ44: 1058557.55 | CL44: 1058558 | CM44: 0.1277038386 | CN44: 1194296.82 | CP44: 1194297 | CQ44: 0.1282304113 | CR44: 25070 | CT44: 25070 | CX44: 0 | DB44: 0 | DF44: 0 | DH44: NO | DI44: =IF(ISERROR(VLOOKUP($A44+8860000,'Growth Data'!$A:$F,3,0)),"NO",VLOOKUP($A44+8860000,'Growth Data'!$A:$F,3,0)) -> NO | DJ44: 0 | DL44: 0 | DM44: =IF(DI44="YES",IF(ISERROR(VLOOKUP($A44+8860000,'Growth Data'!$A:$F,6,0)),0,VLOOKUP($A44+8860000,'Growth Data'!$A:$F,6,0)),0) -> 0 | DN44: 0 | DP44: 0 | DQ44: =IF(ISERROR(VLOOKUP($A44+8860000,'Growth Data'!$A:$Z,7,0)),0,VLOOKUP($A44+8860000,'Growth Data'!$A:$Z,7,0)) -> 0 | DR44: 0 | DT44: YES | DU44: =IF(ISERROR(VLOOKUP($A44+8860000,'Growth Data'!$A:$F,4,0)),"NO",VLOOKUP($A44+8860000,'Growth Data'!$A:$F,4,0)) -> NO | DV44: 1 | DX44: 64 | DY44: =IF(ISERROR(VLOOKUP($A44+8860000,'Growth Data'!$A:$Z,8,0)),0,VLOOKUP($A44+8860000,'Growth Data'!$A:$Z,8,0)) -> 0 | DZ44: 1 | EB44: 82 | EC44: =IF(ISERROR(VLOOKUP($A44+8860000,'Growth Data'!$A:$Z,9,0)),0,VLOOKUP($A44+8860000,'Growth Data'!$A:$Z,9,0)) -> 0 | ED44: 1 | EF44: YES | EG44: =IF(ISERROR(VLOOKUP($A44+8860000,'Growth Data'!$A:$Z,5,0)),"NO",VLOOKUP($A44+8860000,'Growth Data'!$A:$Z,5,0)) -> NO | EH44: 1 | EJ44: 67 | EK44: =IF(ISERROR(VLOOKUP($A44+8860000,'Growth Data'!$A:$Z,10,0)),0,VLOOKUP($A44+8860000,'Growth Data'!$A:$Z,10,0)) -> 0 | EL44: 1 | EN44: 82 | EO44: =IF(ISERROR(VLOOKUP($A44+8860000,'Growth Data'!$A:$Z,11,0)),0,VLOOKUP($A44+8860000,'Growth Data'!$A:$Z,11,0)) -> 0 | EP44: 1
A45: 2190 | B45: Shipbourne School | D45: Shipbourne School | F45: 1 | H45: 191520 | I45: 191520 | J45: 0 | L45: 11075.4 | M45: 11075.4 | N45: 0 | P45: 2713.92 | Q45: 2713.92 | R45: 0 | T45: 5025.78 | U45: 5025.777778 | V45: 0.002222222222 | X45: 121386.12 | Y45: 121386.12 | Z45: 0 | AB45: 0 | AC45: 0 | AD45: 0 | AF45: 0 | AG45: 0 | AH45: 0 | AJ45: 0 | AK45: 0 | AL45: 0 | AN45: 6737 | AO45: 6737 | AP45: 0 | AR45: 0 | AS45: 0 | AT45: 0 | AV45: 0 | AW45: 0 | AX45: 0 | AZ45: 0 | BA45: 0 | BB45: 0 | BD45: 338458.22 | BE45: 338458.2178 | BF45: 0.00222222216 | BH45: 0 | BI45: 0 | BJ45: 0 | BL45: 338458.22 | BM45: 338458.2178 | BN45: 0.00222222216 | BP45: 0 | BR45: 0 | BV45: 0 | BZ45: 0 | CB45: 20884.8 | CC45: 20884.79942 | CD45: 0 | CF45: 1625.4 | CG45: 1625.4 | CH45: 0 | CJ45: 381311.48 | CL45: 381311 | CM45: 0.09318376278 | CN45: 417872.99 | CP45: 417873 | CQ45: 0.09588358053 | CR45: 10350 | CT45: 10350 | CX45: 0 | DB45: 0 | DF45: 0 | DH45: NO | DI45: =IF(ISERROR(VLOOKUP($A45+8860000,'Growth Data'!$A:$F,3,0)),"NO",VLOOKUP($A45+8860000,'Growth Data'!$A:$F,3,0)) -> NO | DJ45: 0 | DL45: 0 | DM45: =IF(DI45="YES",IF(ISERROR(VLOOKUP($A45+8860000,'Growth Data'!$A:$F,6,0)),0,VLOOKUP($A45+8860000,'Growth Data'!$A:$F,6,0)),0) -> 0 | DN45: 0 | DP45: 0 | DQ45: =IF(ISERROR(VLOOKUP($A45+8860000,'Growth Data'!$A:$Z,7,0)),0,VLOOKUP($A45+8860000,'Growth Data'!$A:$Z,7,0)) -> 0 | DR45: 0 | DT45: NO | DU45: =IF(ISERROR(VLOOKUP($A45+8860000,'Growth Data'!$A:$F,4,0)),"NO",VLOOKUP($A45+8860000,'Growth Data'!$A:$F,4,0)) -> NO | DV45: 0 | DX45: 0 | DY45: =IF(ISERROR(VLOOKUP($A45+8860000,'Growth Data'!$A:$Z,8,0)),0,VLOOKUP($A45+8860000,'Growth Data'!$A:$Z,8,0)) -> 0 | DZ45: 0 | EB45: 0 | EC45: =IF(ISERROR(VLOOKUP($A45+8860000,'Growth Data'!$A:$Z,9,0)),0,VLOOKUP($A45+8860000,'Growth Data'!$A:$Z,9,0)) -> 0 | ED45: 0 | EF45: NO | EG45: =IF(ISERROR(VLOOKUP($A45+8860000,'Growth Data'!$A:$Z,5,0)),"NO",VLOOKUP($A45+8860000,'Growth Data'!$A:$Z,5,0)) -> NO | EH45: 0 | EJ45: 0 | EK45: =IF(ISERROR(VLOOKUP($A45+8860000,'Growth Data'!$A:$Z,10,0)),0,VLOOKUP($A45+8860000,'Growth Data'!$A:$Z,10,0)) -> 0 | EL45: 0 | EN45: 0 | EO45: =IF(ISERROR(VLOOKUP($A45+8860000,'Growth Data'!$A:$Z,11,0)),0,VLOOKUP($A45+8860000,'Growth Data'!$A:$Z,11,0)) -> 0 | EP45: 0
A46: 2192 | B46: Staplehurst School | D46: Staplehurst School | F46: 1 | H46: 1181040 | I46: 1181040 | J46: 0 | L46: 59489.61 | M46: 59489.61 | N46: 0 | P46: 4590.55 | Q46: 4590.551724 | R46: -0.001724137931 | T46: 127623.94 | U46: 127623.9371 | V46: 0.002893081779 | X46: 121386.12 | Y46: 121386.12 | Z46: 0 | AB46: 0 | AC46: 0 | AD46: 0 | AF46: 0 | AG46: 0 | AH46: 0 | AJ46: 0 | AK46: 0 | AL46: 0 | AN46: 37632 | AO46: 37632 | AP46: 0 | AR46: 0 | AS46: 0 | AT46: 0 | AV46: 0 | AW46: 0 | AX46: 0 | AZ46: 83919.78 | BA46: 83919.78117 | BB46: -0.001168943883 | BD46: 1615682 | BE46: 1615682 | BF46: 0 | BH46: 0 | BI46: 0 | BJ46: 0 | BL46: 1615682 | BM46: 1615682 | BN46: 0 | BP46: 0 | BR46: 0 | BV46: 0 | BZ46: 0 | CB46: 250414.44 | CC46: 250414.4416 | CD46: 0 | CF46: 10023.3 | CG46: 10023.3 | CH46: 0 | CJ46: 1872535.8 | CL46: 1872536 | CM46: 0.1271597262 | CN46: 2111739.77 | CP46: 2111740 | CQ46: 0.1277433361 | CR46: 45605 | CT46: 45605 | CX46: 0 | DB46: 0 | DF46: 0 | DH46: NO | DI46: =IF(ISERROR(VLOOKUP($A46+8860000,'Growth Data'!$A:$F,3,0)),"NO",VLOOKUP($A46+8860000,'Growth Data'!$A:$F,3,0)) -> NO | DJ46: 0 | DL46: 0 | DM46: =IF(DI46="YES",IF(ISERROR(VLOOKUP($A46+8860000,'Growth Data'!$A:$F,6,0)),0,VLOOKUP($A46+8860000,'Growth Data'!$A:$F,6,0)),0) -> 0 | DN46: 0 | DP46: 0 | DQ46: =IF(ISERROR(VLOOKUP($A46+8860000,'Growth Data'!$A:$Z,7,0)),0,VLOOKUP($A46+8860000,'Growth Data'!$A:$Z,7,0)) -> 0 | DR46: 0 | DT46: NO | DU46: =IF(ISERROR(VLOOKUP($A46+8860000,'Growth Data'!$A:$F,4,0)),"NO",VLOOKUP($A46+8860000,'Growth Data'!$A:$F,4,0)) -> NO | DV46: 0 | DX46: 0 | DY46: =IF(ISERROR(VLOOKUP($A46+8860000,'Growth Data'!$A:$Z,8,0)),0,VLOOKUP($A46+8860000,'Growth Data'!$A:$Z,8,0)) -> 0 | DZ46: 0 | EB46: 0 | EC46: =IF(ISERROR(VLOOKUP($A46+8860000,'Growth Data'!$A:$Z,9,0)),0,VLOOKUP($A46+8860000,'Growth Data'!$A:$Z,9,0)) -> 0 | ED46: 0 | EF46: NO | EG46: =IF(ISERROR(VLOOKUP($A46+8860000,'Growth Data'!$A:$Z,5,0)),"NO",VLOOKUP($A46+8860000,'Growth Data'!$A:$Z,5,0)) -> NO | EH46: 0 | EJ46: 0 | EK46: =IF(ISERROR(VLOOKUP($A46+8860000,'Growth Data'!$A:$Z,10,0)),0,VLOOKUP($A46+8860000,'Growth Data'!$A:$Z,10,0)) -> 0 | EL46: 0 | EN46: 0 | EO46: =IF(ISERROR(VLOOKUP($A46+8860000,'Growth Data'!$A:$Z,11,0)),0,VLOOKUP($A46+8860000,'Growth Data'!$A:$Z,11,0)) -> 0 | EP46: 0
A47: 2193 | B47: Sutton Valence Primary School | D47: Sutton Valence Primary School | F47: 1 | H47: 651168 | I47: 651168 | J47: 0 | L47: 48269.21 | M47: 48269.21 | N47: 0 | P47: 4640.18 | Q47: 4640.17931 | R47: 0.0006896551695 | T47: 44648.36 | U47: 44648.36129 | V47: -0.00129032258 | X47: 121386.12 | Y47: 121386.12 | Z47: 0 | AB47: 0 | AC47: 0 | AD47: 0 | AF47: 0 | AG47: 0 | AH47: 0 | AJ47: 0 | AK47: 0 | AL47: 0 | AN47: 19835 | AO47: 19835 | AP47: 0 | AR47: 0 | AS47: 0 | AT47: 0 | AV47: 0 | AW47: 0 | AX47: 0 | AZ47: 0 | BA47: 0 | BB47: 0 | BD47: 889946.87 | BE47: 889946.8706 | BF47: -0.0006006674375 | BH47: 0 | BI47: 0 | BJ47: 0 | BL47: 889946.87 | BM47: 889946.8706 | BN47: -0.0006006674375 | BP47: 0 | BR47: 0 | BV47: 0 | BZ47: 0 | CB47: 85517.55 | CC47: 85517.55224 | CD47: 0 | CF47: 5526.36 | CG47: 5526.36 | CH47: 0 | CJ47: 1033374.57 | CL47: 1033375 | CM47: 0.1270309912 | CN47: 1165315.89 | CP47: 1165316 | CQ47: 0.1276800531 | CR47: 26953 | CT47: 26953 | CX47: 0 | DB47: 0 | DF47: 0 | DH47: NO | DI47: =IF(ISERROR(VLOOKUP($A47+8860000,'Growth Data'!$A:$F,3,0)),"NO",VLOOKUP($A47+8860000,'Growth Data'!$A:$F,3,0)) -> NO | DJ47: 0 | DL47: 0 | DM47: =IF(DI47="YES",IF(ISERROR(VLOOKUP($A47+8860000,'Growth Data'!$A:$F,6,0)),0,VLOOKUP($A47+8860000,'Growth Data'!$A:$F,6,0)),0) -> 0 | DN47: 0 | DP47: 0 | DQ47: =IF(ISERROR(VLOOKUP($A47+8860000,'Growth Data'!$A:$Z,7,0)),0,VLOOKUP($A47+8860000,'Growth Data'!$A:$Z,7,0)) -> 0 | DR47: 0 | DT47: NO | DU47: =IF(ISERROR(VLOOKUP($A47+8860000,'Growth Data'!$A:$F,4,0)),"NO",VLOOKUP($A47+8860000,'Growth Data'!$A:$F,4,0)) -> NO | DV47: 0 | DX47: 0 | DY47: =IF(ISERROR(VLOOKUP($A47+8860000,'Growth Data'!$A:$Z,8,0)),0,VLOOKUP($A47+8860000,'Growth Data'!$A:$Z,8,0)) -> 0 | DZ47: 0 | EB47: 0 | EC47: =IF(ISERROR(VLOOKUP($A47+8860000,'Growth Data'!$A:$Z,9,0)),0,VLOOKUP($A47+8860000,'Growth Data'!$A:$Z,9,0)) -> 0 | ED47: 0 | EF47: NO | EG47: =IF(ISERROR(VLOOKUP($A47+8860000,'Growth Data'!$A:$Z,5,0)),"NO",VLOOKUP($A47+8860000,'Growth Data'!$A:$Z,5,0)) -> NO | EH47: 0 | EJ47: 0 | EK47: =IF(ISERROR(VLOOKUP($A47+8860000,'Growth Data'!$A:$Z,10,0)),0,VLOOKUP($A47+8860000,'Growth Data'!$A:$Z,10,0)) -> 0 | EL47: 0 | EN47: 0 | EO47: =IF(ISERROR(VLOOKUP($A47+8860000,'Growth Data'!$A:$Z,11,0)),0,VLOOKUP($A47+8860000,'Growth Data'!$A:$Z,11,0)) -> 0 | EP47: 0
A48: 2226 | B48: Eastling Primary School | D48: Eastling Primary School | F48: 1 | H48: 309624 | I48: 309624 | J48: 0 | L48: 20185.15 | M48: 20185.15 | N48: 0 | P48: 1290.44 | Q48: 1290.442353 | R48: -0.002352941177 | T48: 25808.85 | U48: 25808.84706 | V48: 0.00294117647 | X48: 121386.12 | Y48: 121386.12 | Z48: 0 | AB48: 38799.22 | AC48: 38799.2235 | AD48: -0.003497997321 | AF48: 0 | AG48: 0 | AH48: 0 | AJ48: 0 | AK48: 0 | AL48: 0 | AN48: 12974 | AO48: 12974 | AP48: 0 | AR48: 0 | AS48: 0 | AT48: 0 | AV48: 0 | AW48: 0 | AX48: 0 | AZ48: 0 | BA48: 0 | BB48: 0 | BD48: 530067.78 | BE48: 530067.7829 | BF48: -0.002909762086 | BH48: 0 | BI48: 0 | BJ48: 0 | BL48: 530067.78 | BM48: 530067.7829 | BN48: -0.002909762086 | BP48: 0 | BR48: 0 | BV48: 0 | BZ48: 0 | CB48: 45591.5 | CC48: 45591.50105 | CD48: 0 | CF48: 2627.73 | CG48: 2627.73 | CH48: 0 | CJ48: 597155.77 | CL48: 597156 | CM48: 0.096499844 | CN48: 656434.76 | CP48: 656435 | CQ48: 0.09926888925 | CR48: 14534 | CT48: 14534 | CX48: 0 | DB48: 0 | DF48: 0 | DH48: NO | DI48: =IF(ISERROR(VLOOKUP($A48+8860000,'Growth Data'!$A:$F,3,0)),"NO",VLOOKUP($A48+8860000,'Growth Data'!$A:$F,3,0)) -> NO | DJ48: 0 | DL48: 0 | DM48: =IF(DI48="YES",IF(ISERROR(VLOOKUP($A48+8860000,'Growth Data'!$A:$F,6,0)),0,VLOOKUP($A48+8860000,'Growth Data'!$A:$F,6,0)),0) -> 0 | DN48: 0 | DP48: 0 | DQ48: =IF(ISERROR(VLOOKUP($A48+8860000,'Growth Data'!$A:$Z,7,0)),0,VLOOKUP($A48+8860000,'Growth Data'!$A:$Z,7,0)) -> 0 | DR48: 0 | DT48: NO | DU48: =IF(ISERROR(VLOOKUP($A48+8860000,'Growth Data'!$A:$F,4,0)),"NO",VLOOKUP($A48+8860000,'Growth Data'!$A:$F,4,0)) -> NO | DV48: 0 | DX48: 0 | DY48: =IF(ISERROR(VLOOKUP($A48+8860000,'Growth Data'!$A:$Z,8,0)),0,VLOOKUP($A48+8860000,'Growth Data'!$A:$Z,8,0)) -> 0 | DZ48: 0 | EB48: 0 | EC48: =IF(ISERROR(VLOOKUP($A48+8860000,'Growth Data'!$A:$Z,9,0)),0,VLOOKUP($A48+8860000,'Growth Data'!$A:$Z,9,0)) -> 0 | ED48: 0 | EF48: NO | EG48: =IF(ISERROR(VLOOKUP($A48+8860000,'Growth Data'!$A:$Z,5,0)),"NO",VLOOKUP($A48+8860000,'Growth Data'!$A:$Z,5,0)) -> NO | EH48: 0 | EJ48: 0 | EK48: =IF(ISERROR(VLOOKUP($A48+8860000,'Growth Data'!$A:$Z,10,0)),0,VLOOKUP($A48+8860000,'Growth Data'!$A:$Z,10,0)) -> 0 | EL48: 0 | EN48: 0 | EO48: =IF(ISERROR(VLOOKUP($A48+8860000,'Growth Data'!$A:$Z,11,0)),0,VLOOKUP($A48+8860000,'Growth Data'!$A:$Z,11,0)) -> 0 | EP48: 0
A49: 2227 | B49: Ethelbert Road Primary School | D49: Ethelbert Road Primary School | F49: 1 | H49: 667128 | I49: 667128 | J49: 0 | L49: 21976.9 | M49: 21976.9 | N49: 0 | P49: 4647.08 | Q49: 4647.079775 | R49: 0.0002247191032 | T49: 44890.86 | U49: 44890.8648 | V49: -0.004804469274 | X49: 121386.12 | Y49: 121386.12 | Z49: 0 | AB49: 0 | AC49: 0 | AD49: 0 | AF49: 0 | AG49: 0 | AH49: 0 | AJ49: 0 | AK49: 0 | AL49: 0 | AN49: 11477 | AO49: 11477 | AP49: 0 | AR49: 0 | AS49: 0 | AT49: 0 | AV49: 0 | AW49: 0 | AX49: 0 | AZ49: 31356.04 | BA49: 31356.03542 | BB49: 0.004579750173 | BD49: 902862 | BE49: 902862 | BF49: 0 | BH49: 0 | BI49: 0 | BJ49: 0 | BL49: 902862 | BM49: 902862 | BN49: 0 | BP49: 0 | BR49: 0 | BV49: 0 | BZ49: 0 | CB49: 102588.93 | CC49: 102588.9316 | CD49: 0 | CF49: 5661.81 | CG49: 5661.81 | CH49: 0 | CJ49: 1047401.05 | CL49: 1047401 | CM49: 0.1285554741 | CN49: 1182502.5 | CP49: 1182503 | CQ49: 0.1289873158 | CR49: 25228 | CT49: 25228 | CX49: 0 | DB49: 0 | DF49: 0 | DH49: NO | DI49: =IF(ISERROR(VLOOKUP($A49+8860000,'Growth Data'!$A:$F,3,0)),"NO",VLOOKUP($A49+8860000,'Growth Data'!$A:$F,3,0)) -> NO | DJ49: 0 | DL49: 0 | DM49: =IF(DI49="YES",IF(ISERROR(VLOOKUP($A49+8860000,'Growth Data'!$A:$F,6,0)),0,VLOOKUP($A49+8860000,'Growth Data'!$A:$F,6,0)),0) -> 0 | DN49: 0 | DP49: 0 | DQ49: =IF(ISERROR(VLOOKUP($A49+8860000,'Growth Data'!$A:$Z,7,0)),0,VLOOKUP($A49+8860000,'Growth Data'!$A:$Z,7,0)) -> 0 | DR49: 0 | DT49: NO | DU49: =IF(ISERROR(VLOOKUP($A49+8860000,'Growth Data'!$A:$F,4,0)),"NO",VLOOKUP($A49+8860000,'Growth Data'!$A:$F,4,0)) -> NO | DV49: 0 | DX49: 0 | DY49: =IF(ISERROR(VLOOKUP($A49+8860000,'Growth Data'!$A:$Z,8,0)),0,VLOOKUP($A49+8860000,'Growth Data'!$A:$Z,8,0)) -> 0 | DZ49: 0 | EB49: 0 | EC49: =IF(ISERROR(VLOOKUP($A49+8860000,'Growth Data'!$A:$Z,9,0)),0,VLOOKUP($A49+8860000,'Growth Data'!$A:$Z,9,0)) -> 0 | ED49: 0 | EF49: NO | EG49: =IF(ISERROR(VLOOKUP($A49+8860000,'Growth Data'!$A:$Z,5,0)),"NO",VLOOKUP($A49+8860000,'Growth Data'!$A:$Z,5,0)) -> NO | EH49: 0 | EJ49: 0 | EK49: =IF(ISERROR(VLOOKUP($A49+8860000,'Growth Data'!$A:$Z,10,0)),0,VLOOKUP($A49+8860000,'Growth Data'!$A:$Z,10,0)) -> 0 | EL49: 0 | EN49: 0 | EO49: =IF(ISERROR(VLOOKUP($A49+8860000,'Growth Data'!$A:$Z,11,0)),0,VLOOKUP($A49+8860000,'Growth Data'!$A:$Z,11,0)) -> 0 | EP49: 0
A50: 2228 | B50: Davington Primary School | D50: Davington Primary School | F50: 1 | H50: 1318296 | I50: 1318296 | J50: 0 | L50: 163976.96 | M50: 163976.96 | N50: 2.910383046e-10 | P50: 7893.3 | Q50: 7893.302535 | R50: -0.002535211254 | T50: 127608.39 | U50: 127608.391 | V50: -0.0009859154961 | X50: 121386.12 | Y50: 121386.12 | Z50: 0 | AB50: 0 | AC50: 0 | AD50: 0 | AF50: 0 | AG50: 0 | AH50: 0 | AJ50: 0 | AK50: 0 | AL50: 0 | AN50: 39424 | AO50: 39424 | AP50: 0 | AR50: 0 | AS50: 0 | AT50: 0 | AV50: 0 | AW50: 0 | AX50: 0 | AZ50: 22284.23 | BA50: 22284.22648 | BB50: 0.00352112648 | BD50: 1800869 | BE50: 1800869 | BF50: 0 | BH50: 0 | BI50: 0 | BJ50: 0 | BL50: 1800869 | BM50: 1800869 | BN50: 0 | BP50: 0 | BR50: 0 | BV50: 0 | BZ50: 0 | CB50: 290439.15 | CC50: 290439.1516 | CD50: 0 | CF50: 11188.17 | CG50: 11188.17 | CH50: 0 | CJ50: 2087198.42 | CL50: 2087198 | CM50: 0.127356134 | CN50: 2354190.52 | CP50: 2354191 | CQ50: 0.1279188876 | CR50: 50541 | CT50: 50541 | CX50: 0 | DB50: 0 | DF50: 0 | DH50: NO | DI50: =IF(ISERROR(VLOOKUP($A50+8860000,'Growth Data'!$A:$F,3,0)),"NO",VLOOKUP($A50+8860000,'Growth Data'!$A:$F,3,0)) -> NO | DJ50: 0 | DL50: 0 | DM50: =IF(DI50="YES",IF(ISERROR(VLOOKUP($A50+8860000,'Growth Data'!$A:$F,6,0)),0,VLOOKUP($A50+8860000,'Growth Data'!$A:$F,6,0)),0) -> 0 | DN50: 0 | DP50: 0 | DQ50: =IF(ISERROR(VLOOKUP($A50+8860000,'Growth Data'!$A:$Z,7,0)),0,VLOOKUP($A50+8860000,'Growth Data'!$A:$Z,7,0)) -> 0 | DR50: 0 | DT50: NO | DU50: =IF(ISERROR(VLOOKUP($A50+8860000,'Growth Data'!$A:$F,4,0)),"NO",VLOOKUP($A50+8860000,'Growth Data'!$A:$F,4,0)) -> NO | DV50: 0 | DX50: 0 | DY50: =IF(ISERROR(VLOOKUP($A50+8860000,'Growth Data'!$A:$Z,8,0)),0,VLOOKUP($A50+8860000,'Growth Data'!$A:$Z,8,0)) -> 0 | DZ50: 0 | EB50: 0 | EC50: =IF(ISERROR(VLOOKUP($A50+8860000,'Growth Data'!$A:$Z,9,0)),0,VLOOKUP($A50+8860000,'Growth Data'!$A:$Z,9,0)) -> 0 | ED50: 0 | EF50: NO | EG50: =IF(ISERROR(VLOOKUP($A50+8860000,'Growth Data'!$A:$Z,5,0)),"NO",VLOOKUP($A50+8860000,'Growth Data'!$A:$Z,5,0)) -> NO | EH50: 0 | EJ50: 0 | EK50: =IF(ISERROR(VLOOKUP($A50+8860000,'Growth Data'!$A:$Z,10,0)),0,VLOOKUP($A50+8860000,'Growth Data'!$A:$Z,10,0)) -> 0 | EL50: 0 | EN50: 0 | EO50: =IF(ISERROR(VLOOKUP($A50+8860000,'Growth Data'!$A:$Z,11,0)),0,VLOOKUP($A50+8860000,'Growth Data'!$A:$Z,11,0)) -> 0 | EP50: 0
A51: 2231 | B51: Lower Halstow Primary School | D51: Lower Halstow Primary School | F51: 1 | H51: 526680 | I51: 526680 | J51: 0 | L51: 28099.56 | M51: 28099.55951 | N51: 0.0004907975999 | P51: 676.02 | Q51: 676.0217391 | R51: -0.001739130435 | T51: 42794.04 | U51: 42794.0367 | V51: 0.003302752295 | X51: 121386.12 | Y51: 121386.12 | Z51: 0 | AB51: 0 | AC51: 0 | AD51: 0 | AF51: 0 | AG51: 0 | AH51: 0 | AJ51: 0 | AK51: 0 | AL51: 0 | AN51: 20833 | AO51: 20833 | AP51: 0 | AR51: 0 | AS51: 0 | AT51: 0 | AV51: 0 | AW51: 0 | AX51: 0 | AZ51: 0 | BA51: 0 | BB51: 0 | BD51: 740468.74 | BE51: 740468.7379 | BF51: 0.002054419485 | BH51: 0 | BI51: 0 | BJ51: 0 | BL51: 740468.74 | BM51: 740468.7379 | BN51: 0.002054419485 | BP51: 0 | BR51: 0 | BV51: 0 | BZ51: 0 | CB51: 68465.69 | CC51: 68465.68959 | CD51: 0 | CF51: 4469.85 | CG51: 4469.85 | CH51: 0 | CJ51: 847706.2 | CL51: 847706 | CM51: 0.1123165997 | CN51: 947154.92 | CP51: 947155 | CQ51: 0.1173150792 | CR51: 21640 | CT51: 21640 | CX51: 0 | DB51: 0 | DF51: 0 | DH51: NO | DI51: =IF(ISERROR(VLOOKUP($A51+8860000,'Growth Data'!$A:$F,3,0)),"NO",VLOOKUP($A51+8860000,'Growth Data'!$A:$F,3,0)) -> YES | DJ51: 1 | DL51: 0 | DM51: =IF(DI51="YES",IF(ISERROR(VLOOKUP($A51+8860000,'Growth Data'!$A:$F,6,0)),0,VLOOKUP($A51+8860000,'Growth Data'!$A:$F,6,0)),0) -> 20 | DN51: -20 | DP51: 0 | DQ51: =IF(ISERROR(VLOOKUP($A51+8860000,'Growth Data'!$A:$Z,7,0)),0,VLOOKUP($A51+8860000,'Growth Data'!$A:$Z,7,0)) -> 30 | DR51: 1 | DT51: NO | DU51: =IF(ISERROR(VLOOKUP($A51+8860000,'Growth Data'!$A:$F,4,0)),"NO",VLOOKUP($A51+8860000,'Growth Data'!$A:$F,4,0)) -> NO | DV51: 0 | DX51: 0 | DY51: =IF(ISERROR(VLOOKUP($A51+8860000,'Growth Data'!$A:$Z,8,0)),0,VLOOKUP($A51+8860000,'Growth Data'!$A:$Z,8,0)) -> 0 | DZ51: 0 | EB51: 0 | EC51: =IF(ISERROR(VLOOKUP($A51+8860000,'Growth Data'!$A:$Z,9,0)),0,VLOOKUP($A51+8860000,'Growth Data'!$A:$Z,9,0)) -> 0 | ED51: 0 | EF51: NO | EG51: =IF(ISERROR(VLOOKUP($A51+8860000,'Growth Data'!$A:$Z,5,0)),"NO",VLOOKUP($A51+8860000,'Growth Data'!$A:$Z,5,0)) -> NO | EH51: 0 | EJ51: 0 | EK51: =IF(ISERROR(VLOOKUP($A51+8860000,'Growth Data'!$A:$Z,10,0)),0,VLOOKUP($A51+8860000,'Growth Data'!$A:$Z,10,0)) -> 0 | EL51: 0 | EN51: 0 | EO51: =IF(ISERROR(VLOOKUP($A51+8860000,'Growth Data'!$A:$Z,11,0)),0,VLOOKUP($A51+8860000,'Growth Data'!$A:$Z,11,0)) -> 0 | EP51: 0
A52: 2239 | B52: Rodmersham School | D52: Rodmersham School | F52: 1 | H52: 325584 | I52: 325584 | J52: 0 | L52: 9405.69 | M52: 9405.69 | N52: 0 | P52: 1310.7 | Q52: 1310.7 | R52: 1.818989404e-12 | T52: 21969.83 | U52: 21969.82857 | V52: 0.001428571431 | X52: 121386.12 | Y52: 121386.12 | Z52: 0 | AB52: 0 | AC52: 0 | AD52: 0 | AF52: 0 | AG52: 0 | AH52: 0 | AJ52: 0 | AK52: 0 | AL52: 0 | AN52: 5863 | AO52: 5863 | AP52: 0 | AR52: 0 | AS52: 0 | AT52: 0 | AV52: 6870 | AW52: 6870 | AX52: 0 | AZ52: 0 | BA52: 0 | BB52: 0 | BD52: 492389.34 | BE52: 492389.3386 | BF52: 0.001428571471 | BH52: 0 | BI52: 0 | BJ52: 0 | BL52: 492389.34 | BM52: 492389.3386 | BN52: 0.001428571471 | BP52: 0 | BR52: 0 | BV52: 0 | BZ52: 0 | CB52: 38048.23 | CC52: 38048.23021 | CD52: 0 | CF52: 2763.18 | CG52: 2763.18 | CH52: 0 | CJ52: 558955.98 | CL52: 558956 | CM52: 0.1039942608 | CN52: 618346.75 | CP52: 618347 | CQ52: 0.1062530362 | CR52: 13914 | CT52: 13914 | CX52: 0 | DB52: 0 | DF52: 0 | DH52: NO | DI52: =IF(ISERROR(VLOOKUP($A52+8860000,'Growth Data'!$A:$F,3,0)),"NO",VLOOKUP($A52+8860000,'Growth Data'!$A:$F,3,0)) -> NO | DJ52: 0 | DL52: 0 | DM52: =IF(DI52="YES",IF(ISERROR(VLOOKUP($A52+8860000,'Growth Data'!$A:$F,6,0)),0,VLOOKUP($A52+8860000,'Growth Data'!$A:$F,6,0)),0) -> 0 | DN52: 0 | DP52: 0 | DQ52: =IF(ISERROR(VLOOKUP($A52+8860000,'Growth Data'!$A:$Z,7,0)),0,VLOOKUP($A52+8860000,'Growth Data'!$A:$Z,7,0)) -> 0 | DR52: 0 | DT52: NO | DU52: =IF(ISERROR(VLOOKUP($A52+8860000,'Growth Data'!$A:$F,4,0)),"NO",VLOOKUP($A52+8860000,'Growth Data'!$A:$F,4,0)) -> NO | DV52: 0 | DX52: 0 | DY52: =IF(ISERROR(VLOOKUP($A52+8860000,'Growth Data'!$A:$Z,8,0)),0,VLOOKUP($A52+8860000,'Growth Data'!$A:$Z,8,0)) -> 0 | DZ52: 0 | EB52: 0 | EC52: =IF(ISERROR(VLOOKUP($A52+8860000,'Growth Data'!$A:$Z,9,0)),0,VLOOKUP($A52+8860000,'Growth Data'!$A:$Z,9,0)) -> 0 | ED52: 0 | EF52: NO | EG52: =IF(ISERROR(VLOOKUP($A52+8860000,'Growth Data'!$A:$Z,5,0)),"NO",VLOOKUP($A52+8860000,'Growth Data'!$A:$Z,5,0)) -> NO | EH52: 0 | EJ52: 0 | EK52: =IF(ISERROR(VLOOKUP($A52+8860000,'Growth Data'!$A:$Z,10,0)),0,VLOOKUP($A52+8860000,'Growth Data'!$A:$Z,10,0)) -> 0 | EL52: 0 | EN52: 0 | EO52: =IF(ISERROR(VLOOKUP($A52+8860000,'Growth Data'!$A:$Z,11,0)),0,VLOOKUP($A52+8860000,'Growth Data'!$A:$Z,11,0)) -> 0 | EP52: 0
A53: 2245 | B53: Rose Street Primary School | D53: Rose Street Primary School | F53: 1 | H53: 1232112 | I53: 1232112 | J53: 0 | L53: 390278.69 | M53: 390278.69 | N53: 0 | P53: 12013.45 | Q53: 12013.45321 | R53: -0.003211009167 | T53: 140756.97 | U53: 140756.9746 | V53: -0.004592833866 | X53: 121386.12 | Y53: 121386.12 | Z53: 0 | AB53: 0 | AC53: 0 | AD53: 0 | AF53: 0 | AG53: 0 | AH53: 0 | AJ53: 0 | AK53: 0 | AL53: 0 | AN53: 79872 | AO53: 79872 | AP53: 0 | AR53: 0 | AS53: 0 | AT53: 0 | AV53: 0 | AW53: 0 | AX53: 0 | AZ53: 0 | BA53: 0 | BB53: 0 | BD53: 1976419.24 | BE53: 1976419.238 | BF53: 0.002196157118 | BH53: 0 | BI53: 0 | BJ53: 0 | BL53: 1976419.24 | BM53: 1976419.238 | BN53: 0.002196157118 | BP53: 0 | BR53: 0 | BV53: 0 | BZ53: 0 | CB53: 442586.88 | CC53: 442586.8794 | CD53: 0 | CF53: 10456.74 | CG53: 10456.74 | CH53: 0 | CJ53: 2284794.41 | CL53: 2284794 | CM53: 0.1214093352 | CN53: 2564792.19 | CP53: 2564792 | CQ53: 0.1225483478 | CR53: 61012 | CT53: 61012 | CX53: 0 | DB53: 0 | DF53: 0 | DH53: NO | DI53: =IF(ISERROR(VLOOKUP($A53+8860000,'Growth Data'!$A:$F,3,0)),"NO",VLOOKUP($A53+8860000,'Growth Data'!$A:$F,3,0)) -> NO | DJ53: 0 | DL53: 0 | DM53: =IF(DI53="YES",IF(ISERROR(VLOOKUP($A53+8860000,'Growth Data'!$A:$F,6,0)),0,VLOOKUP($A53+8860000,'Growth Data'!$A:$F,6,0)),0) -> 0 | DN53: 0 | DP53: 0 | DQ53: =IF(ISERROR(VLOOKUP($A53+8860000,'Growth Data'!$A:$Z,7,0)),0,VLOOKUP($A53+8860000,'Growth Data'!$A:$Z,7,0)) -> 0 | DR53: 0 | DT53: YES | DU53: =IF(ISERROR(VLOOKUP($A53+8860000,'Growth Data'!$A:$F,4,0)),"NO",VLOOKUP($A53+8860000,'Growth Data'!$A:$F,4,0)) -> NO | DV53: 1 | DX53: 30 | DY53: =IF(ISERROR(VLOOKUP($A53+8860000,'Growth Data'!$A:$Z,8,0)),0,VLOOKUP($A53+8860000,'Growth Data'!$A:$Z,8,0)) -> 0 | DZ53: 1 | EB53: 60 | EC53: =IF(ISERROR(VLOOKUP($A53+8860000,'Growth Data'!$A:$Z,9,0)),0,VLOOKUP($A53+8860000,'Growth Data'!$A:$Z,9,0)) -> 0 | ED53: 1 | EF53: YES | EG53: =IF(ISERROR(VLOOKUP($A53+8860000,'Growth Data'!$A:$Z,5,0)),"NO",VLOOKUP($A53+8860000,'Growth Data'!$A:$Z,5,0)) -> NO | EH53: 1 | EJ53: 30 | EK53: =IF(ISERROR(VLOOKUP($A53+8860000,'Growth Data'!$A:$Z,10,0)),0,VLOOKUP($A53+8860000,'Growth Data'!$A:$Z,10,0)) -> 0 | EL53: 1 | EN53: 60 | EO53: =IF(ISERROR(VLOOKUP($A53+8860000,'Growth Data'!$A:$Z,11,0)),0,VLOOKUP($A53+8860000,'Growth Data'!$A:$Z,11,0)) -> 0 | EP53: 1
A54: 2254 | B54: Canterbury Road Primary School | D54: Canterbury Road Primary School | F54: 1 | H54: 657552 | I54: 657552 | J54: 0 | L54: 100421.5 | M54: 100421.5 | N54: 0 | P54: 10588.4 | Q54: 10588.4 | R54: 0 | T54: 82060.1 | U54: 82060.1 | V54: 0 | X54: 121386.12 | Y54: 121386.12 | Z54: 0 | AB54: 0 | AC54: 0 | AD54: 0 | AF54: 0 | AG54: 0 | AH54: 0 | AJ54: 0 | AK54: 0 | AL54: 0 | AN54: 29952 | AO54: 29952 | AP54: 0 | AR54: 0 | AS54: 0 | AT54: 0 | AV54: 0 | AW54: 0 | AX54: 0 | AZ54: 0 | BA54: 0 | BB54: 0 | BD54: 1001960.12 | BE54: 1001960.12 | BF54: 0 | BH54: 0 | BI54: 0 | BJ54: 0 | BL54: 1001960.12 | BM54: 1001960.12 | BN54: 0 | BP54: 0 | BR54: 0 | BV54: 0 | BZ54: 0 | CB54: 173974.85 | CC54: 173974.8516 | CD54: 0 | CF54: 5580.54 | CG54: 5580.54 | CH54: 0 | CJ54: 1150736.03 | CL54: 1150736 | CM54: 0.1165288031 | CN54: 1286543.41 | CP54: 1286543 | CQ54: 0.1180178394 | CR54: 28677 | CT54: 28677 | CX54: 0 | DB54: 0 | DF54: 0 | DH54: NO | DI54: =IF(ISERROR(VLOOKUP($A54+8860000,'Growth Data'!$A:$F,3,0)),"NO",VLOOKUP($A54+8860000,'Growth Data'!$A:$F,3,0)) -> NO | DJ54: 0 | DL54: 0 | DM54: =IF(DI54="YES",IF(ISERROR(VLOOKUP($A54+8860000,'Growth Data'!$A:$F,6,0)),0,VLOOKUP($A54+8860000,'Growth Data'!$A:$F,6,0)),0) -> 0 | DN54: 0 | DP54: 0 | DQ54: =IF(ISERROR(VLOOKUP($A54+8860000,'Growth Data'!$A:$Z,7,0)),0,VLOOKUP($A54+8860000,'Growth Data'!$A:$Z,7,0)) -> 0 | DR54: 0 | DT54: NO | DU54: =IF(ISERROR(VLOOKUP($A54+8860000,'Growth Data'!$A:$F,4,0)),"NO",VLOOKUP($A54+8860000,'Growth Data'!$A:$F,4,0)) -> NO | DV54: 0 | DX54: 0 | DY54: =IF(ISERROR(VLOOKUP($A54+8860000,'Growth Data'!$A:$Z,8,0)),0,VLOOKUP($A54+8860000,'Growth Data'!$A:$Z,8,0)) -> 0 | DZ54: 0 | EB54: 0 | EC54: =IF(ISERROR(VLOOKUP($A54+8860000,'Growth Data'!$A:$Z,9,0)),0,VLOOKUP($A54+8860000,'Growth Data'!$A:$Z,9,0)) -> 0 | ED54: 0 | EF54: NO | EG54: =IF(ISERROR(VLOOKUP($A54+8860000,'Growth Data'!$A:$Z,5,0)),"NO",VLOOKUP($A54+8860000,'Growth Data'!$A:$Z,5,0)) -> NO | EH54: 0 | EJ54: 0 | EK54: =IF(ISERROR(VLOOKUP($A54+8860000,'Growth Data'!$A:$Z,10,0)),0,VLOOKUP($A54+8860000,'Growth Data'!$A:$Z,10,0)) -> 0 | EL54: 0 | EN54: 0 | EO54: =IF(ISERROR(VLOOKUP($A54+8860000,'Growth Data'!$A:$Z,11,0)),0,VLOOKUP($A54+8860000,'Growth Data'!$A:$Z,11,0)) -> 0 | EP54: 0
A55: 2258 | B55: Blean Primary School | D55: Blean Primary School | F55: 1 | H55: 1362984 | I55: 1362984 | J55: 0 | L55: 53283.27 | M55: 53283.27 | N55: 0 | P55: 28866.13 | Q55: 28866.12826 | R55: 0.001739130519 | T55: 73361.43 | U55: 73361.43094 | V55: -0.0009392265347 | X55: 121386.12 | Y55: 121386.12 | Z55: 0 | AB55: 0 | AC55: 0 | AD55: 0 | AF55: 0 | AG55: 0 | AH55: 0 | AJ55: 0 | AK55: 0 | AL55: 0 | AN55: 37632 | AO55: 37632 | AP55: 0 | AR55: 0 | AS55: 0 | AT55: 0 | AV55: 0 | AW55: 0 | AX55: 0 | AZ55: 181274.05 | BA55: 181274.0508 | BB55: -0.0007999039954 | BD55: 1858787 | BE55: 1858787 | BF55: 0 | BH55: 0 | BI55: 0 | BJ55: 0 | BL55: 1858787 | BM55: 1858787 | BN55: 0 | BP55: 0 | BR55: 0 | BV55: 0 | BZ55: 0 | CB55: 327566.66 | CC55: 327566.6616 | CD55: 0 | CF55: 11567.43 | CG55: 11567.43 | CH55: 0 | CJ55: 2150867.04 | CL55: 2150867 | CM55: 0.1277610698 | CN55: 2426791.05 | CP55: 2426791 | CQ55: 0.1282850148 | CR55: 48414 | CT55: 48414 | CX55: 0 | DB55: 0 | DF55: 0 | DH55: NO | DI55: =IF(ISERROR(VLOOKUP($A55+8860000,'Growth Data'!$A:$F,3,0)),"NO",VLOOKUP($A55+8860000,'Growth Data'!$A:$F,3,0)) -> NO | DJ55: 0 | DL55: 0 | DM55: =IF(DI55="YES",IF(ISERROR(VLOOKUP($A55+8860000,'Growth Data'!$A:$F,6,0)),0,VLOOKUP($A55+8860000,'Growth Data'!$A:$F,6,0)),0) -> 0 | DN55: 0 | DP55: 0 | DQ55: =IF(ISERROR(VLOOKUP($A55+8860000,'Growth Data'!$A:$Z,7,0)),0,VLOOKUP($A55+8860000,'Growth Data'!$A:$Z,7,0)) -> 0 | DR55: 0 | DT55: NO | DU55: =IF(ISERROR(VLOOKUP($A55+8860000,'Growth Data'!$A:$F,4,0)),"NO",VLOOKUP($A55+8860000,'Growth Data'!$A:$F,4,0)) -> NO | DV55: 0 | DX55: 0 | DY55: =IF(ISERROR(VLOOKUP($A55+8860000,'Growth Data'!$A:$Z,8,0)),0,VLOOKUP($A55+8860000,'Growth Data'!$A:$Z,8,0)) -> 0 | DZ55: 0 | EB55: 0 | EC55: =IF(ISERROR(VLOOKUP($A55+8860000,'Growth Data'!$A:$Z,9,0)),0,VLOOKUP($A55+8860000,'Growth Data'!$A:$Z,9,0)) -> 0 | ED55: 0 | EF55: NO | EG55: =IF(ISERROR(VLOOKUP($A55+8860000,'Growth Data'!$A:$Z,5,0)),"NO",VLOOKUP($A55+8860000,'Growth Data'!$A:$Z,5,0)) -> NO | EH55: 0 | EJ55: 0 | EK55: =IF(ISERROR(VLOOKUP($A55+8860000,'Growth Data'!$A:$Z,10,0)),0,VLOOKUP($A55+8860000,'Growth Data'!$A:$Z,10,0)) -> 0 | EL55: 0 | EN55: 0 | EO55: =IF(ISERROR(VLOOKUP($A55+8860000,'Growth Data'!$A:$Z,11,0)),0,VLOOKUP($A55+8860000,'Growth Data'!$A:$Z,11,0)) -> 0 | EP55: 0
A56: 2263 | B56: Herne Bay Infant School | D56: Herne Bay Infant School | F56: 1 | H56: 845880 | I56: 845880 | J56: 0 | L56: 123959.66 | M56: 123959.66 | N56: 0 | P56: 15499.76 | Q56: 15499.75862 | R56: 0.001379310339 | T56: 73016.04 | U56: 73016.03745 | V56: 0.002549430093 | X56: 121386.12 | Y56: 121386.12 | Z56: 0 | AB56: 0 | AC56: 0 | AD56: 0 | AF56: 0 | AG56: 0 | AH56: 0 | AJ56: 0 | AK56: 0 | AL56: 0 | AN56: 15968 | AO56: 15968 | AP56: 0 | AR56: 0 | AS56: 0 | AT56: 0 | AV56: 0 | AW56: 0 | AX56: 0 | AZ56: 0 | BA56: 0 | BB56: 0 | BD56: 1195709.58 | BE56: 1195709.576 | BF56: 0.003928740509 | BH56: 0 | BI56: 0 | BJ56: 0 | BL56: 1195709.58 | BM56: 1195709.576 | BN56: 0.003928740509 | BP56: 0 | BR56: 0 | BV56: 0 | BZ56: 0 | CB56: 174096.78 | CC56: 174096.7777 | CD56: 0 | CF56: 7178.85 | CG56: 7178.85 | CH56: 0 | CJ56: 1382065.18 | CL56: 1382065 | CM56: 0.120742197 | CN56: 1550499.21 | CP56: 1550499 | CQ56: 0.1218712637 | CR56: 37460 | CT56: 37460 | CX56: 0 | DB56: 0 | DF56: 0 | DH56: NO | DI56: =IF(ISERROR(VLOOKUP($A56+8860000,'Growth Data'!$A:$F,3,0)),"NO",VLOOKUP($A56+8860000,'Growth Data'!$A:$F,3,0)) -> NO | DJ56: 0 | DL56: 0 | DM56: =IF(DI56="YES",IF(ISERROR(VLOOKUP($A56+8860000,'Growth Data'!$A:$F,6,0)),0,VLOOKUP($A56+8860000,'Growth Data'!$A:$F,6,0)),0) -> 0 | DN56: 0 | DP56: 0 | DQ56: =IF(ISERROR(VLOOKUP($A56+8860000,'Growth Data'!$A:$Z,7,0)),0,VLOOKUP($A56+8860000,'Growth Data'!$A:$Z,7,0)) -> 0 | DR56: 0 | DT56: YES | DU56: =IF(ISERROR(VLOOKUP($A56+8860000,'Growth Data'!$A:$F,4,0)),"NO",VLOOKUP($A56+8860000,'Growth Data'!$A:$F,4,0)) -> NO | DV56: 1 | DX56: 44 | DY56: =IF(ISERROR(VLOOKUP($A56+8860000,'Growth Data'!$A:$Z,8,0)),0,VLOOKUP($A56+8860000,'Growth Data'!$A:$Z,8,0)) -> 0 | DZ56: 1 | EB56: 60 | EC56: =IF(ISERROR(VLOOKUP($A56+8860000,'Growth Data'!$A:$Z,9,0)),0,VLOOKUP($A56+8860000,'Growth Data'!$A:$Z,9,0)) -> 0 | ED56: 1 | EF56: YES | EG56: =IF(ISERROR(VLOOKUP($A56+8860000,'Growth Data'!$A:$Z,5,0)),"NO",VLOOKUP($A56+8860000,'Growth Data'!$A:$Z,5,0)) -> NO | EH56: 1 | EJ56: 31 | EK56: =IF(ISERROR(VLOOKUP($A56+8860000,'Growth Data'!$A:$Z,10,0)),0,VLOOKUP($A56+8860000,'Growth Data'!$A:$Z,10,0)) -> 0 | EL56: 1 | EN56: 60 | EO56: =IF(ISERROR(VLOOKUP($A56+8860000,'Growth Data'!$A:$Z,11,0)),0,VLOOKUP($A56+8860000,'Growth Data'!$A:$Z,11,0)) -> 0 | EP56: 1
A57: 2265 | B57: Hoath Primary School | D57: Hoath Primary School | F57: 1 | H57: 303240 | I57: 303240 | J57: 0 | L57: 19915.98 | M57: 19915.98 | N57: 0 | P57: 1342.83 | Q57: 1342.825 | R57: 0.005 | T57: 26507.71 | U57: 26507.71429 | V57: -0.004285714287 | X57: 121386.12 | Y57: 121386.12 | Z57: 0 | AB57: 201.34 | AC57: 201.3444553 | AD57: -0.004455273698 | AF57: 0 | AG57: 0 | AH57: 0 | AJ57: 0 | AK57: 0 | AL57: 0 | AN57: 14346 | AO57: 14346 | AP57: 0 | AR57: 0 | AS57: 0 | AT57: 0 | AV57: 0 | AW57: 0 | AX57: 0 | AZ57: 0 | BA57: 0 | BB57: 0 | BD57: 486939.98 | BE57: 486939.9837 | BF57: -0.003740987973 | BH57: 0 | BI57: 0 | BJ57: 0 | BL57: 486939.98 | BM57: 486939.9837 | BN57: -0.003740987973 | BP57: 17689 | BR57: 17689 | BV57: 0 | BZ57: 0 | CB57: 48425.23 | CC57: 48425.23093 | CD57: 0 | CF57: 2573.55 | CG57: 2573.55 | CH57: 0 | CJ57: 552637.99 | CL57: 552638 | CM57: 0.1032019961 | CN57: 610947.16 | CP57: 610947 | CQ57: 0.1055106074 | CR57: 14000 | CT57: 14000 | CX57: 0 | DB57: 0 | DF57: 0 | DH57: NO | DI57: =IF(ISERROR(VLOOKUP($A57+8860000,'Growth Data'!$A:$F,3,0)),"NO",VLOOKUP($A57+8860000,'Growth Data'!$A:$F,3,0)) -> YES | DJ57: 1 | DL57: 0 | DM57: =IF(DI57="YES",IF(ISERROR(VLOOKUP($A57+8860000,'Growth Data'!$A:$F,6,0)),0,VLOOKUP($A57+8860000,'Growth Data'!$A:$F,6,0)),0) -> 95 | DN57: -95 | DP57: 0 | DQ57: =IF(ISERROR(VLOOKUP($A57+8860000,'Growth Data'!$A:$Z,7,0)),0,VLOOKUP($A57+8860000,'Growth Data'!$A:$Z,7,0)) -> 105 | DR57: 1 | DT57: NO | DU57: =IF(ISERROR(VLOOKUP($A57+8860000,'Growth Data'!$A:$F,4,0)),"NO",VLOOKUP($A57+8860000,'Growth Data'!$A:$F,4,0)) -> NO | DV57: 0 | DX57: 0 | DY57: =IF(ISERROR(VLOOKUP($A57+8860000,'Growth Data'!$A:$Z,8,0)),0,VLOOKUP($A57+8860000,'Growth Data'!$A:$Z,8,0)) -> 0 | DZ57: 0 | EB57: 0 | EC57: =IF(ISERROR(VLOOKUP($A57+8860000,'Growth Data'!$A:$Z,9,0)),0,VLOOKUP($A57+8860000,'Growth Data'!$A:$Z,9,0)) -> 0 | ED57: 0 | EF57: NO | EG57: =IF(ISERROR(VLOOKUP($A57+8860000,'Growth Data'!$A:$Z,5,0)),"NO",VLOOKUP($A57+8860000,'Growth Data'!$A:$Z,5,0)) -> NO | EH57: 0 | EJ57: 0 | EK57: =IF(ISERROR(VLOOKUP($A57+8860000,'Growth Data'!$A:$Z,10,0)),0,VLOOKUP($A57+8860000,'Growth Data'!$A:$Z,10,0)) -> 0 | EL57: 0 | EN57: 0 | EO57: =IF(ISERROR(VLOOKUP($A57+8860000,'Growth Data'!$A:$Z,11,0)),0,VLOOKUP($A57+8860000,'Growth Data'!$A:$Z,11,0)) -> 0 | EP57: 0
A58: 2268 | B58: Westmeads Community Infant School | D58: Westmeads Community Infant School | F58: 1 | H58: 497952 | I58: 497952 | J58: 0 | L58: 26026.78 | M58: 26026.78 | N58: 0 | P58: 3266.76 | Q58: 3266.755556 | R58: 0.004444444448 | T58: 42983.03 | U58: 42983.02582 | V58: 0.004180041869 | X58: 121386.12 | Y58: 121386.12 | Z58: 0 | AB58: 0 | AC58: 0 | AD58: 0 | AF58: 0 | AG58: 0 | AH58: 0 | AJ58: 0 | AK58: 0 | AL58: 0 | AN58: 19711 | AO58: 19711 | AP58: 0 | AR58: 0 | AS58: 0 | AT58: 0 | AV58: 0 | AW58: 0 | AX58: 0 | AZ58: 0 | BA58: 0 | BB58: 0 | BD58: 711325.68 | BE58: 711325.6814 | BF58: -0.001375513617 | BH58: 0 | BI58: 0 | BJ58: 0 | BL58: 711325.68 | BM58: 711325.6814 | BN58: -0.001375513617 | BP58: 0 | BR58: 0 | BV58: 0 | BZ58: 0 | CB58: 66820.98 | CC58: 66820.98302 | CD58: 0 | CF58: 4226.04 | CG58: 4226.04 | CH58: 0 | CJ58: 814232.45 | CL58: 814232 | CM58: 0.111682303 | CN58: 906646.91 | CP58: 906647 | CQ58: 0.1134988663 | CR58: 21107 | CT58: 21107 | CX58: 0 | DB58: 0 | DF58: 0 | DH58: NO | DI58: =IF(ISERROR(VLOOKUP($A58+8860000,'Growth Data'!$A:$F,3,0)),"NO",VLOOKUP($A58+8860000,'Growth Data'!$A:$F,3,0)) -> NO | DJ58: 0 | DL58: 0 | DM58: =IF(DI58="YES",IF(ISERROR(VLOOKUP($A58+8860000,'Growth Data'!$A:$F,6,0)),0,VLOOKUP($A58+8860000,'Growth Data'!$A:$F,6,0)),0) -> 0 | DN58: 0 | DP58: 0 | DQ58: =IF(ISERROR(VLOOKUP($A58+8860000,'Growth Data'!$A:$Z,7,0)),0,VLOOKUP($A58+8860000,'Growth Data'!$A:$Z,7,0)) -> 0 | DR58: 0 | DT58: NO | DU58: =IF(ISERROR(VLOOKUP($A58+8860000,'Growth Data'!$A:$F,4,0)),"NO",VLOOKUP($A58+8860000,'Growth Data'!$A:$F,4,0)) -> NO | DV58: 0 | DX58: 0 | DY58: =IF(ISERROR(VLOOKUP($A58+8860000,'Growth Data'!$A:$Z,8,0)),0,VLOOKUP($A58+8860000,'Growth Data'!$A:$Z,8,0)) -> 0 | DZ58: 0 | EB58: 0 | EC58: =IF(ISERROR(VLOOKUP($A58+8860000,'Growth Data'!$A:$Z,9,0)),0,VLOOKUP($A58+8860000,'Growth Data'!$A:$Z,9,0)) -> 0 | ED58: 0 | EF58: NO | EG58: =IF(ISERROR(VLOOKUP($A58+8860000,'Growth Data'!$A:$Z,5,0)),"NO",VLOOKUP($A58+8860000,'Growth Data'!$A:$Z,5,0)) -> NO | EH58: 0 | EJ58: 0 | EK58: =IF(ISERROR(VLOOKUP($A58+8860000,'Growth Data'!$A:$Z,10,0)),0,VLOOKUP($A58+8860000,'Growth Data'!$A:$Z,10,0)) -> 0 | EL58: 0 | EN58: 0 | EO58: =IF(ISERROR(VLOOKUP($A58+8860000,'Growth Data'!$A:$Z,11,0)),0,VLOOKUP($A58+8860000,'Growth Data'!$A:$Z,11,0)) -> 0 | EP58: 0
A59: 2269 | B59: Whitstable Junior School | D59: Whitstable Junior School | F59: 1 | H59: 813960 | I59: 813960 | J59: 0 | L59: 66526.18 | M59: 66526.18 | N59: 0 | P59: 2261.6 | Q59: 2261.6 | R59: 0 | T59: 83823.84 | U59: 83823.83721 | V59: 0.002790697676 | X59: 121386.12 | Y59: 121386.12 | Z59: 0 | AB59: 0 | AC59: 0 | AD59: 0 | AF59: 0 | AG59: 0 | AH59: 0 | AJ59: 0 | AK59: 0 | AL59: 0 | AN59: 3866 | AO59: 3866 | AP59: 0 | AR59: 0 | AS59: 0 | AT59: 0 | AV59: 0 | AW59: 0 | AX59: 0 | AZ59: 0 | BA59: 0 | BB59: 0 | BD59: 1091823.74 | BE59: 1091823.737 | BF59: 0.002790697617 | BH59: 0 | BI59: 0 | BJ59: 0 | BL59: 1091823.74 | BM59: 1091823.737 | BN59: 0.002790697617 | BP59: 0 | BR59: 0 | BV59: 0 | BZ59: 0 | CB59: 133516.47 | CC59: 133516.4689 | CD59: 0 | CF59: 6907.95 | CG59: 6907.95 | CH59: 0 | CJ59: 1271046.68 | CL59: 1271047 | CM59: 0.1290527826 | CN59: 1435981.01 | CP59: 1435981 | CQ59: 0.1297626064 | CR59: 33940 | CT59: 33940 | CX59: 0 | DB59: 0 | DF59: 0 | DH59: NO | DI59: =IF(ISERROR(VLOOKUP($A59+8860000,'Growth Data'!$A:$F,3,0)),"NO",VLOOKUP($A59+8860000,'Growth Data'!$A:$F,3,0)) -> NO | DJ59: 0 | DL59: 0 | DM59: =IF(DI59="YES",IF(ISERROR(VLOOKUP($A59+8860000,'Growth Data'!$A:$F,6,0)),0,VLOOKUP($A59+8860000,'Growth Data'!$A:$F,6,0)),0) -> 0 | DN59: 0 | DP59: 0 | DQ59: =IF(ISERROR(VLOOKUP($A59+8860000,'Growth Data'!$A:$Z,7,0)),0,VLOOKUP($A59+8860000,'Growth Data'!$A:$Z,7,0)) -> 0 | DR59: 0 | DT59: NO | DU59: =IF(ISERROR(VLOOKUP($A59+8860000,'Growth Data'!$A:$F,4,0)),"NO",VLOOKUP($A59+8860000,'Growth Data'!$A:$F,4,0)) -> NO | DV59: 0 | DX59: 0 | DY59: =IF(ISERROR(VLOOKUP($A59+8860000,'Growth Data'!$A:$Z,8,0)),0,VLOOKUP($A59+8860000,'Growth Data'!$A:$Z,8,0)) -> 0 | DZ59: 0 | EB59: 0 | EC59: =IF(ISERROR(VLOOKUP($A59+8860000,'Growth Data'!$A:$Z,9,0)),0,VLOOKUP($A59+8860000,'Growth Data'!$A:$Z,9,0)) -> 0 | ED59: 0 | EF59: NO | EG59: =IF(ISERROR(VLOOKUP($A59+8860000,'Growth Data'!$A:$Z,5,0)),"NO",VLOOKUP($A59+8860000,'Growth Data'!$A:$Z,5,0)) -> NO | EH59: 0 | EJ59: 0 | EK59: =IF(ISERROR(VLOOKUP($A59+8860000,'Growth Data'!$A:$Z,10,0)),0,VLOOKUP($A59+8860000,'Growth Data'!$A:$Z,10,0)) -> 0 | EL59: 0 | EN59: 0 | EO59: =IF(ISERROR(VLOOKUP($A59+8860000,'Growth Data'!$A:$Z,11,0)),0,VLOOKUP($A59+8860000,'Growth Data'!$A:$Z,11,0)) -> 0 | EP59: 0
A60: 2270 | B60: Aldington Primary School | D60: Aldington Primary School | F60: 1 | H60: 644784 | I60: 644784 | J60: 0 | L60: 25110.88 | M60: 25110.88 | N60: -5.09317033e-11 | P60: 664.02 | Q60: 664.0162791 | R60: 0.003720930233 | T60: 64462.54 | U60: 64462.53742 | V60: 0.002576687119 | X60: 121386.12 | Y60: 121386.12 | Z60: 0 | AB60: 0 | AC60: 0 | AD60: 0 | AF60: 0 | AG60: 0 | AH60: 0 | AJ60: 0 | AK60: 0 | AL60: 0 | AN60: 29952 | AO60: 29952 | AP60: 0 | AR60: 0 | AS60: 0 | AT60: 0 | AV60: 0 | AW60: 0 | AX60: 0 | AZ60: 5122.45 | BA60: 5122.446298 | BB60: 0.003702382705 | BD60: 891482 | BE60: 891482 | BF60: 0 | BH60: 0 | BI60: 0 | BJ60: 0 | BL60: 891482 | BM60: 891482 | BN60: 0 | BP60: 0 | BR60: 0 | BV60: 0 | BZ60: 0 | CB60: 88963.64 | CC60: 88963.64164 | CD60: 0 | CF60: 5472.18 | CG60: 5472.18 | CH60: 0 | CJ60: 1032489.11 | CL60: 1032489 | CM60: 0.1257753594 | CN60: 1163104.91 | CP60: 1163105 | CQ60: 0.1265057411 | CR60: 25654 | CT60: 25654 | CX60: 0 | DB60: 0 | DF60: 0 | DH60: NO | DI60: =IF(ISERROR(VLOOKUP($A60+8860000,'Growth Data'!$A:$F,3,0)),"NO",VLOOKUP($A60+8860000,'Growth Data'!$A:$F,3,0)) -> NO | DJ60: 0 | DL60: 0 | DM60: =IF(DI60="YES",IF(ISERROR(VLOOKUP($A60+8860000,'Growth Data'!$A:$F,6,0)),0,VLOOKUP($A60+8860000,'Growth Data'!$A:$F,6,0)),0) -> 0 | DN60: 0 | DP60: 0 | DQ60: =IF(ISERROR(VLOOKUP($A60+8860000,'Growth Data'!$A:$Z,7,0)),0,VLOOKUP($A60+8860000,'Growth Data'!$A:$Z,7,0)) -> 0 | DR60: 0 | DT60: NO | DU60: =IF(ISERROR(VLOOKUP($A60+8860000,'Growth Data'!$A:$F,4,0)),"NO",VLOOKUP($A60+8860000,'Growth Data'!$A:$F,4,0)) -> NO | DV60: 0 | DX60: 0 | DY60: =IF(ISERROR(VLOOKUP($A60+8860000,'Growth Data'!$A:$Z,8,0)),0,VLOOKUP($A60+8860000,'Growth Data'!$A:$Z,8,0)) -> 0 | DZ60: 0 | EB60: 0 | EC60: =IF(ISERROR(VLOOKUP($A60+8860000,'Growth Data'!$A:$Z,9,0)),0,VLOOKUP($A60+8860000,'Growth Data'!$A:$Z,9,0)) -> 0 | ED60: 0 | EF60: NO | EG60: =IF(ISERROR(VLOOKUP($A60+8860000,'Growth Data'!$A:$Z,5,0)),"NO",VLOOKUP($A60+8860000,'Growth Data'!$A:$Z,5,0)) -> NO | EH60: 0 | EJ60: 0 | EK60: =IF(ISERROR(VLOOKUP($A60+8860000,'Growth Data'!$A:$Z,10,0)),0,VLOOKUP($A60+8860000,'Growth Data'!$A:$Z,10,0)) -> 0 | EL60: 0 | EN60: 0 | EO60: =IF(ISERROR(VLOOKUP($A60+8860000,'Growth Data'!$A:$Z,11,0)),0,VLOOKUP($A60+8860000,'Growth Data'!$A:$Z,11,0)) -> 0 | EP60: 0
A61: 2272 | B61: East Stour Primary School | D61: East Stour Primary School | F61: 1 | H61: 1232112 | I61: 1232112 | J61: 0 | L61: 181252.23 | M61: 181252.23 | N61: 0 | P61: 25714.6 | Q61: 25714.59698 | R61: 0.003021148099 | T61: 123226.43 | U61: 123226.4299 | V61: 6.802722055e-05 | X61: 121386.12 | Y61: 121386.12 | Z61: 0 | AB61: 0 | AC61: 0 | AD61: 0 | AF61: 0 | AG61: 0 | AH61: 0 | AJ61: 0 | AK61: 0 | AL61: 0 | AN61: 53760 | AO61: 53760 | AP61: 0 | AR61: 0 | AS61: 0 | AT61: 0 | AV61: 0 | AW61: 0 | AX61: 0 | AZ61: 0 | BA61: 0 | BB61: 0 | BD61: 1737451.38 | BE61: 1737451.377 | BF61: 0.003089175094 | BH61: 0 | BI61: 0 | BJ61: 0 | BL61: 1737451.38 | BM61: 1737451.377 | BN61: 0.003089175094 | BP61: 0 | BR61: 0 | BV61: 0 | BZ61: 0 | CB61: 263124.45 | CC61: 263124.4486 | CD61: 0 | CF61: 10456.74 | CG61: 10456.74 | CH61: 0 | CJ61: 2011064.28 | CL61: 2011064 | CM61: 0.1217646997 | CN61: 2258128.86 | CP61: 2258129 | CQ61: 0.1228526519 | CR61: 55317 | CT61: 55317 | CX61: 0 | DB61: 0 | DF61: 0 | DH61: NO | DI61: =IF(ISERROR(VLOOKUP($A61+8860000,'Growth Data'!$A:$F,3,0)),"NO",VLOOKUP($A61+8860000,'Growth Data'!$A:$F,3,0)) -> NO | DJ61: 0 | DL61: 0 | DM61: =IF(DI61="YES",IF(ISERROR(VLOOKUP($A61+8860000,'Growth Data'!$A:$F,6,0)),0,VLOOKUP($A61+8860000,'Growth Data'!$A:$F,6,0)),0) -> 0 | DN61: 0 | DP61: 0 | DQ61: =IF(ISERROR(VLOOKUP($A61+8860000,'Growth Data'!$A:$Z,7,0)),0,VLOOKUP($A61+8860000,'Growth Data'!$A:$Z,7,0)) -> 0 | DR61: 0 | DT61: NO | DU61: =IF(ISERROR(VLOOKUP($A61+8860000,'Growth Data'!$A:$F,4,0)),"NO",VLOOKUP($A61+8860000,'Growth Data'!$A:$F,4,0)) -> NO | DV61: 0 | DX61: 0 | DY61: =IF(ISERROR(VLOOKUP($A61+8860000,'Growth Data'!$A:$Z,8,0)),0,VLOOKUP($A61+8860000,'Growth Data'!$A:$Z,8,0)) -> 0 | DZ61: 0 | EB61: 0 | EC61: =IF(ISERROR(VLOOKUP($A61+8860000,'Growth Data'!$A:$Z,9,0)),0,VLOOKUP($A61+8860000,'Growth Data'!$A:$Z,9,0)) -> 0 | ED61: 0 | EF61: NO | EG61: =IF(ISERROR(VLOOKUP($A61+8860000,'Growth Data'!$A:$Z,5,0)),"NO",VLOOKUP($A61+8860000,'Growth Data'!$A:$Z,5,0)) -> NO | EH61: 0 | EJ61: 0 | EK61: =IF(ISERROR(VLOOKUP($A61+8860000,'Growth Data'!$A:$Z,10,0)),0,VLOOKUP($A61+8860000,'Growth Data'!$A:$Z,10,0)) -> 0 | EL61: 0 | EN61: 0 | EO61: =IF(ISERROR(VLOOKUP($A61+8860000,'Growth Data'!$A:$Z,11,0)),0,VLOOKUP($A61+8860000,'Growth Data'!$A:$Z,11,0)) -> 0 | EP61: 0
A62: 2275 | B62: Victoria Road Primary School | D62: Victoria Road Primary School | F62: 1 | H62: 670320 | I62: 670320 | J62: 0 | L62: 58227.48 | M62: 58227.48 | N62: 0 | P62: 9894.5 | Q62: 9894.5 | R62: 0 | T62: 57651.19 | U62: 57651.19075 | V62: -0.0007514450845 | X62: 121386.12 | Y62: 121386.12 | Z62: 0 | AB62: 0 | AC62: 0 | AD62: 0 | AF62: 0 | AG62: 0 | AH62: 0 | AJ62: 0 | AK62: 0 | AL62: 0 | AN62: 15095 | AO62: 15095 | AP62: 0 | AR62: 0 | AS62: 0 | AT62: 0 | AV62: 0 | AW62: 0 | AX62: 0 | AZ62: 0 | BA62: 0 | BB62: 0 | BD62: 932574.29 | BE62: 932574.2908 | BF62: -0.0007514450699 | BH62: 0 | BI62: 0 | BJ62: 0 | BL62: 932574.29 | BM62: 932574.2908 | BN62: -0.0007514450699 | BP62: 0 | BR62: 0 | BV62: 0 | BZ62: 0 | CB62: 106678.02 | CC62: 106678.0224 | CD62: 0 | CF62: 5688.9 | CG62: 5688.9 | CH62: 0 | CJ62: 1074248.56 | CL62: 1074249 | CM62: 0.1173976633 | CN62: 1201859.09 | CP62: 1201859 | CQ62: 0.118790506 | CR62: 28810 | CT62: 28810 | CX62: 0 | DB62: 0 | DF62: 0 | DH62: NO | DI62: =IF(ISERROR(VLOOKUP($A62+8860000,'Growth Data'!$A:$F,3,0)),"NO",VLOOKUP($A62+8860000,'Growth Data'!$A:$F,3,0)) -> NO | DJ62: 0 | DL62: 0 | DM62: =IF(DI62="YES",IF(ISERROR(VLOOKUP($A62+8860000,'Growth Data'!$A:$F,6,0)),0,VLOOKUP($A62+8860000,'Growth Data'!$A:$F,6,0)),0) -> 0 | DN62: 0 | DP62: 0 | DQ62: =IF(ISERROR(VLOOKUP($A62+8860000,'Growth Data'!$A:$Z,7,0)),0,VLOOKUP($A62+8860000,'Growth Data'!$A:$Z,7,0)) -> 0 | DR62: 0 | DT62: NO | DU62: =IF(ISERROR(VLOOKUP($A62+8860000,'Growth Data'!$A:$F,4,0)),"NO",VLOOKUP($A62+8860000,'Growth Data'!$A:$F,4,0)) -> NO | DV62: 0 | DX62: 0 | DY62: =IF(ISERROR(VLOOKUP($A62+8860000,'Growth Data'!$A:$Z,8,0)),0,VLOOKUP($A62+8860000,'Growth Data'!$A:$Z,8,0)) -> 0 | DZ62: 0 | EB62: 0 | EC62: =IF(ISERROR(VLOOKUP($A62+8860000,'Growth Data'!$A:$Z,9,0)),0,VLOOKUP($A62+8860000,'Growth Data'!$A:$Z,9,0)) -> 0 | ED62: 0 | EF62: NO | EG62: =IF(ISERROR(VLOOKUP($A62+8860000,'Growth Data'!$A:$Z,5,0)),"NO",VLOOKUP($A62+8860000,'Growth Data'!$A:$Z,5,0)) -> NO | EH62: 0 | EJ62: 0 | EK62: =IF(ISERROR(VLOOKUP($A62+8860000,'Growth Data'!$A:$Z,10,0)),0,VLOOKUP($A62+8860000,'Growth Data'!$A:$Z,10,0)) -> 0 | EL62: 0 | EN62: 0 | EO62: =IF(ISERROR(VLOOKUP($A62+8860000,'Growth Data'!$A:$Z,11,0)),0,VLOOKUP($A62+8860000,'Growth Data'!$A:$Z,11,0)) -> 0 | EP62: 0
A63: 2276 | B63: Willesborough Infant School | D63: Willesborough Infant School | F63: 1 | H63: 1129968 | I63: 1129968 | J63: 0 | L63: 76013.87 | M63: 76013.87 | N63: 0 | P63: 26911.14 | Q63: 26911.1395 | R63: 0.0005042016892 | T63: 97538.4 | U63: 97538.40475 | V63: -0.004745289596 | X63: 121386.12 | Y63: 121386.12 | Z63: 0 | AB63: 0 | AC63: 0 | AD63: 0 | AF63: 0 | AG63: 0 | AH63: 0 | AJ63: 0 | AK63: 0 | AL63: 0 | AN63: 23079 | AO63: 23079 | AP63: 0 | AR63: 0 | AS63: 0 | AT63: 0 | AV63: 0 | AW63: 0 | AX63: 0 | AZ63: 57992.47 | BA63: 57992.46576 | BB63: 0.004241087852 | BD63: 1532889 | BE63: 1532889 | BF63: 0 | BH63: 0 | BI63: 0 | BJ63: 0 | BL63: 1532889 | BM63: 1532889 | BN63: 0 | BP63: 0 | BR63: 0 | BV63: 0 | BZ63: 0 | CB63: 236068.42 | CC63: 236068.4216 | CD63: 0 | CF63: 9589.86 | CG63: 9589.86 | CH63: 0 | CJ63: 1778192.82 | CL63: 1778193 | CM63: 0.1282290755 | CN63: 2007039.55 | CP63: 2007040 | CQ63: 0.12869624 | CR63: 43203 | CT63: 43203 | CX63: 0 | DB63: 0 | DF63: 0 | DH63: NO | DI63: =IF(ISERROR(VLOOKUP($A63+8860000,'Growth Data'!$A:$F,3,0)),"NO",VLOOKUP($A63+8860000,'Growth Data'!$A:$F,3,0)) -> NO | DJ63: 0 | DL63: 0 | DM63: =IF(DI63="YES",IF(ISERROR(VLOOKUP($A63+8860000,'Growth Data'!$A:$F,6,0)),0,VLOOKUP($A63+8860000,'Growth Data'!$A:$F,6,0)),0) -> 0 | DN63: 0 | DP63: 0 | DQ63: =IF(ISERROR(VLOOKUP($A63+8860000,'Growth Data'!$A:$Z,7,0)),0,VLOOKUP($A63+8860000,'Growth Data'!$A:$Z,7,0)) -> 0 | DR63: 0 | DT63: NO | DU63: =IF(ISERROR(VLOOKUP($A63+8860000,'Growth Data'!$A:$F,4,0)),"NO",VLOOKUP($A63+8860000,'Growth Data'!$A:$F,4,0)) -> NO | DV63: 0 | DX63: 0 | DY63: =IF(ISERROR(VLOOKUP($A63+8860000,'Growth Data'!$A:$Z,8,0)),0,VLOOKUP($A63+8860000,'Growth Data'!$A:$Z,8,0)) -> 0 | DZ63: 0 | EB63: 0 | EC63: =IF(ISERROR(VLOOKUP($A63+8860000,'Growth Data'!$A:$Z,9,0)),0,VLOOKUP($A63+8860000,'Growth Data'!$A:$Z,9,0)) -> 0 | ED63: 0 | EF63: NO | EG63: =IF(ISERROR(VLOOKUP($A63+8860000,'Growth Data'!$A:$Z,5,0)),"NO",VLOOKUP($A63+8860000,'Growth Data'!$A:$Z,5,0)) -> NO | EH63: 0 | EJ63: 0 | EK63: =IF(ISERROR(VLOOKUP($A63+8860000,'Growth Data'!$A:$Z,10,0)),0,VLOOKUP($A63+8860000,'Growth Data'!$A:$Z,10,0)) -> 0 | EL63: 0 | EN63: 0 | EO63: =IF(ISERROR(VLOOKUP($A63+8860000,'Growth Data'!$A:$Z,11,0)),0,VLOOKUP($A63+8860000,'Growth Data'!$A:$Z,11,0)) -> 0 | EP63: 0
A64: 2278 | B64: Bethersden Primary School | D64: Bethersden Primary School | F64: 1 | H64: 408576 | I64: 408576 | J64: 0 | L64: 27952.9 | M64: 27952.9 | N64: 0 | P64: 2029.1 | Q64: 2029.099065 | R64: 0.0009345794388 | T64: 30395.9 | U64: 30395.904 | V64: -0.003999999997 | X64: 121386.12 | Y64: 121386.12 | Z64: 0 | AB64: 16019.38 | AC64: 16019.37637 | AD64: 0.00363150868 | AF64: 0 | AG64: 0 | AH64: 0 | AJ64: 0 | AK64: 0 | AL64: 0 | AN64: 10978 | AO64: 10978 | AP64: 0 | AR64: 0 | AS64: 0 | AT64: 0 | AV64: 0 | AW64: 0 | AX64: 0 | AZ64: 0 | BA64: 0 | BB64: 0 | BD64: 617337.4 | BE64: 617337.3994 | BF64: 0.0005660881288 | BH64: 0 | BI64: 0 | BJ64: 0 | BL64: 617337.4 | BM64: 617337.3994 | BN64: 0.0005660881288 | BP64: 0 | BR64: 0 | BV64: 0 | BZ64: 0 | CB64: 53511.33 | CC64: 53511.33471 | CD64: 0 | CF64: 3467.52 | CG64: 3467.52 | CH64: 0 | CJ64: 703793.72 | CL64: 703794 | CM64: 0.1069186661 | CN64: 780550.74 | CP64: 780551 | CQ64: 0.1090618143 | CR64: 18476 | CT64: 18476 | CX64: 0 | DB64: 0 | DF64: 0 | DH64: NO | DI64: =IF(ISERROR(VLOOKUP($A64+8860000,'Growth Data'!$A:$F,3,0)),"NO",VLOOKUP($A64+8860000,'Growth Data'!$A:$F,3,0)) -> NO | DJ64: 0 | DL64: 0 | DM64: =IF(DI64="YES",IF(ISERROR(VLOOKUP($A64+8860000,'Growth Data'!$A:$F,6,0)),0,VLOOKUP($A64+8860000,'Growth Data'!$A:$F,6,0)),0) -> 0 | DN64: 0 | DP64: 0 | DQ64: =IF(ISERROR(VLOOKUP($A64+8860000,'Growth Data'!$A:$Z,7,0)),0,VLOOKUP($A64+8860000,'Growth Data'!$A:$Z,7,0)) -> 0 | DR64: 0 | DT64: NO | DU64: =IF(ISERROR(VLOOKUP($A64+8860000,'Growth Data'!$A:$F,4,0)),"NO",VLOOKUP($A64+8860000,'Growth Data'!$A:$F,4,0)) -> NO | DV64: 0 | DX64: 0 | DY64: =IF(ISERROR(VLOOKUP($A64+8860000,'Growth Data'!$A:$Z,8,0)),0,VLOOKUP($A64+8860000,'Growth Data'!$A:$Z,8,0)) -> 0 | DZ64: 0 | EB64: 0 | EC64: =IF(ISERROR(VLOOKUP($A64+8860000,'Growth Data'!$A:$Z,9,0)),0,VLOOKUP($A64+8860000,'Growth Data'!$A:$Z,9,0)) -> 0 | ED64: 0 | EF64: NO | EG64: =IF(ISERROR(VLOOKUP($A64+8860000,'Growth Data'!$A:$Z,5,0)),"NO",VLOOKUP($A64+8860000,'Growth Data'!$A:$Z,5,0)) -> NO | EH64: 0 | EJ64: 0 | EK64: =IF(ISERROR(VLOOKUP($A64+8860000,'Growth Data'!$A:$Z,10,0)),0,VLOOKUP($A64+8860000,'Growth Data'!$A:$Z,10,0)) -> 0 | EL64: 0 | EN64: 0 | EO64: =IF(ISERROR(VLOOKUP($A64+8860000,'Growth Data'!$A:$Z,11,0)),0,VLOOKUP($A64+8860000,'Growth Data'!$A:$Z,11,0)) -> 0 | EP64: 0
A65: 2279 | B65: Brook Community Primary School | D65: Brook Community Primary School | F65: 1 | H65: 271320 | I65: 271320 | J65: 0 | L65: 7888.38 | M65: 7888.38 | N65: 1.455191523e-11 | P65: 1264.71 | Q65: 1264.710526 | R65: -0.0005263157889 | T65: 10679.78 | U65: 10679.77778 | V65: 0.002222222223 | X65: 121386.12 | Y65: 121386.12 | Z65: 0 | AB65: 47617.23 | AC65: 47617.22884 | AD65: 0.001161548738 | AF65: 0 | AG65: 0 | AH65: 0 | AJ65: 0 | AK65: 0 | AL65: 0 | AN65: 8608 | AO65: 8608 | AP65: 0 | AR65: 0 | AS65: 0 | AT65: 0 | AV65: 0 | AW65: 0 | AX65: 0 | AZ65: 0 | BA65: 0 | BB65: 0 | BD65: 468764.22 | BE65: 468764.2171 | BF65: 0.002857455169 | BH65: 0 | BI65: 0 | BJ65: 0 | BL65: 468764.22 | BM65: 468764.2171 | BN65: 0.002857455169 | BP65: 0 | BR65: 0 | BV65: 0 | BZ65: 0 | CB65: 23313.56 | CC65: 23313.55995 | CD65: 0 | CF65: 2302.65 | CG65: 2302.65 | CH65: 0 | CJ65: 525017.46 | CL65: 525017 | CM65: 0.09048262806 | CN65: 574109.94 | CP65: 574110 | CQ65: 0.09350637596 | CR65: 12690 | CT65: 12690 | CX65: 0 | DB65: 0 | DF65: 0 | DH65: NO | DI65: =IF(ISERROR(VLOOKUP($A65+8860000,'Growth Data'!$A:$F,3,0)),"NO",VLOOKUP($A65+8860000,'Growth Data'!$A:$F,3,0)) -> NO | DJ65: 0 | DL65: 0 | DM65: =IF(DI65="YES",IF(ISERROR(VLOOKUP($A65+8860000,'Growth Data'!$A:$F,6,0)),0,VLOOKUP($A65+8860000,'Growth Data'!$A:$F,6,0)),0) -> 0 | DN65: 0 | DP65: 0 | DQ65: =IF(ISERROR(VLOOKUP($A65+8860000,'Growth Data'!$A:$Z,7,0)),0,VLOOKUP($A65+8860000,'Growth Data'!$A:$Z,7,0)) -> 0 | DR65: 0 | DT65: NO | DU65: =IF(ISERROR(VLOOKUP($A65+8860000,'Growth Data'!$A:$F,4,0)),"NO",VLOOKUP($A65+8860000,'Growth Data'!$A:$F,4,0)) -> NO | DV65: 0 | DX65: 0 | DY65: =IF(ISERROR(VLOOKUP($A65+8860000,'Growth Data'!$A:$Z,8,0)),0,VLOOKUP($A65+8860000,'Growth Data'!$A:$Z,8,0)) -> 0 | DZ65: 0 | EB65: 0 | EC65: =IF(ISERROR(VLOOKUP($A65+8860000,'Growth Data'!$A:$Z,9,0)),0,VLOOKUP($A65+8860000,'Growth Data'!$A:$Z,9,0)) -> 0 | ED65: 0 | EF65: NO | EG65: =IF(ISERROR(VLOOKUP($A65+8860000,'Growth Data'!$A:$Z,5,0)),"NO",VLOOKUP($A65+8860000,'Growth Data'!$A:$Z,5,0)) -> NO | EH65: 0 | EJ65: 0 | EK65: =IF(ISERROR(VLOOKUP($A65+8860000,'Growth Data'!$A:$Z,10,0)),0,VLOOKUP($A65+8860000,'Growth Data'!$A:$Z,10,0)) -> 0 | EL65: 0 | EN65: 0 | EO65: =IF(ISERROR(VLOOKUP($A65+8860000,'Growth Data'!$A:$Z,11,0)),0,VLOOKUP($A65+8860000,'Growth Data'!$A:$Z,11,0)) -> 0 | EP65: 0
A66: 2280 | B66: Challock Primary School | D66: Challock Primary School | F66: =IF(E66=D66,0,1) -> 1 | H66: 667128 | I66: 667128 | J66: =H66-I66 -> 0 | L66: 18950.45 | M66: 18950.45 | N66: =L66-M66 -> 0 | P66: 2640.64 | Q66: 2640.639106 | R66: =P66-Q66 -> 0.0008938547489 | T66: 47539.09 | U66: 47539.09195 | V66: =T66-U66 -> -0.001954022991 | X66: 121386.12 | Y66: 121386.12 | Z66: =X66-Y66 -> 0 | AB66: 0 | AC66: 0 | AD66: =AB66-AC66 -> 0 | AF66: 0 | AG66: 0 | AH66: =AF66-AG66 -> 0 | AJ66: 0 | AK66: 0 | AL66: =AJ66-AK66 -> 0 | AN66: 19711 | AO66: 19711 | AP66: =AN66-AO66 -> 0 | AR66: 0 | AS66: 0 | AT66: =AR66-AS66 -> 0 | AV66: 0 | AW66: 0 | AX66: =AV66-AW66 -> 0 | AZ66: 33740.7 | BA66: 33740.69894 | BB66: =AZ66-BA66 -> 0.001060168244 | BD66: 911096 | BE66: 911096 | BF66: =BD66-BE66 -> 0 | BH66: 0 | BI66: 0 | BJ66: =BH66-BI66 -> 0 | BL66: 911096 | BM66: 911096 | BN66: =BL66-BM66 -> 0 | BP66: 0 | BR66: =BP66-BQ66 -> 0 | BV66: =BT66-BU66 -> 0 | BZ66: =BX66-BY66 -> 0 | CB66: 103529.59 | CC66: 103529.5916 | CD66: =ROUND(CB66-CC66,0) -> 0 | CF66: 5661.81 | CG66: 5661.81 | CH66: =ROUND(CF66-CG66,0) -> 0 | CJ66: 1055372.4 | CL66: =ROUND(CJ66-CK66,0) -> 1055372 | CM66: 0.127451502 | CN66: 1190465.98 | CP66: =ROUND(CN66-CO66,0) -> 1190466 | CQ66: 0.1280056026 | CR66: 24973 | CT66: =ROUND(CR66-CS66,0) -> 24973 | CX66: =ROUND(CV66-CW66,0) -> 0 | DB66: =ROUND(CZ66-DA66,0) -> 0 | DF66: =ROUND(DD66-DE66,0) -> 0 | DH66: NO | DI66: =IF(ISERROR(VLOOKUP($A66+8860000,'Growth Data'!$A:$F,3,0)),"NO",VLOOKUP($A66+8860000,'Growth Data'!$A:$F,3,0)) -> NO | DJ66: =IF(DH66=DI66,0,1) -> 0 | DL66: 0 | DM66: =IF(DI66="YES",IF(ISERROR(VLOOKUP($A66+8860000,'Growth Data'!$A:$F,6,0)),0,VLOOKUP($A66+8860000,'Growth Data'!$A:$F,6,0)),0) -> 0 | DN66: =ROUND(DL66-DM66,0) -> 0 | DP66: 0 | DQ66: =IF(ISERROR(VLOOKUP($A66+8860000,'Growth Data'!$A:$Z,7,0)),0,VLOOKUP($A66+8860000,'Growth Data'!$A:$Z,7,0)) -> 0 | DR66: =IF(DP66=DQ66,0,1) -> 0 | DT66: NO | DU66: =IF(ISERROR(VLOOKUP($A66+8860000,'Growth Data'!$A:$F,4,0)),"NO",VLOOKUP($A66+8860000,'Growth Data'!$A:$F,4,0)) -> NO | DV66: =IF(DT66=DU66,0,1) -> 0 | DX66: 0 | DY66: =IF(ISERROR(VLOOKUP($A66+8860000,'Growth Data'!$A:$Z,8,0)),0,VLOOKUP($A66+8860000,'Growth Data'!$A:$Z,8,0)) -> 0 | DZ66: =IF(DX66=DY66,0,1) -> 0 | EB66: 0 | EC66: =IF(ISERROR(VLOOKUP($A66+8860000,'Growth Data'!$A:$Z,9,0)),0,VLOOKUP($A66+8860000,'Growth Data'!$A:$Z,9,0)) -> 0 | ED66: =IF(EB66=EC66,0,1) -> 0 | EF66: NO | EG66: =IF(ISERROR(VLOOKUP($A66+8860000,'Growth Data'!$A:$Z,5,0)),"NO",VLOOKUP($A66+8860000,'Growth Data'!$A:$Z,5,0)) -> NO | EH66: =IF(EF66=EG66,0,1) -> 0 | EJ66: 0 | EK66: =IF(ISERROR(VLOOKUP($A66+8860000,'Growth Data'!$A:$Z,10,0)),0,VLOOKUP($A66+8860000,'Growth Data'!$A:$Z,10,0)) -> 0 | EL66: =IF(EJ66=EK66,0,1) -> 0 | EN66: 0 | EO66: =IF(ISERROR(VLOOKUP($A66+8860000,'Growth Data'!$A:$Z,11,0)),0,VLOOKUP($A66+8860000,'Growth Data'!$A:$Z,11,0)) -> 0 | EP66: =IF(EN66=EO66,0,1) -> 0
A67: 2282 | B67: Great Chart Primary School | D67: Great Chart Primary School | F67: 1 | H67: 1347024 | I67: 1347024 | J67: 0 | L67: 68992.11 | M67: 68992.11 | N67: 0 | P67: 22471.91 | Q67: 22471.90914 | R67: 0.0008587257726 | T67: 73206.45 | U67: 73206.45 | V67: 0 | X67: 121386.12 | Y67: 121386.12 | Z67: 0 | AB67: 0 | AC67: 0 | AD67: 0 | AF67: 0 | AG67: 0 | AH67: 0 | AJ67: 0 | AK67: 0 | AL67: 0 | AN67: 38656 | AO67: 38656 | AP67: 0 | AR67: 0 | AS67: 0 | AT67: 0 | AV67: 0 | AW67: 0 | AX67: 0 | AZ67: 166749.41 | BA67: 166749.4109 | BB67: -0.0008587258344 | BD67: 1838486 | BE67: =I67+M67+Q67+U67+Y67+AC67+AG67+AK67+AO67+AS67+AW67+BA67 -> 1838486 | BF67: 0 | BH67: 0 | BI67: 0 | BJ67: 0 | BL67: 1838486 | BM67: 1838486 | BN67: 0 | BP67: 0 | BR67: 0 | BV67: 0 | BZ67: 0 | CB67: 307151.1 | CC67: 307151.1016 | CD67: 0 | CF67: 11431.98 | CG67: 11431.98 | CH67: 0 | CJ67: 2129769.21 | CL67: 2129769 | CM67: 0.1275301819 | CN67: 2402540.97 | CP67: 2402541 | CQ67: 0.1280757364 | CR67: 50394 | CT67: 50394 | CX67: 0 | DB67: 0 | DF67: 0 | DH67: YES | DI67: =IF(ISERROR(VLOOKUP($A67+8860000,'Growth Data'!$A:$F,3,0)),"NO",VLOOKUP($A67+8860000,'Growth Data'!$A:$F,3,0)) -> NO | DJ67: 1 | DL67: 46 | DM67: =IF(DI67="YES",IF(ISERROR(VLOOKUP($A67+8860000,'Growth Data'!$A:$F,6,0)),0,VLOOKUP($A67+8860000,'Growth Data'!$A:$F,6,0)),0) -> 0 | DN67: 46 | DP67: 60 | DQ67: =IF(ISERROR(VLOOKUP($A67+8860000,'Growth Data'!$A:$Z,7,0)),0,VLOOKUP($A67+8860000,'Growth Data'!$A:$Z,7,0)) -> 0 | DR67: 1 | DT67: YES | DU67: =IF(ISERROR(VLOOKUP($A67+8860000,'Growth Data'!$A:$F,4,0)),"NO",VLOOKUP($A67+8860000,'Growth Data'!$A:$F,4,0)) -> NO | DV67: 1 | DX67: 46 | DY67: =IF(ISERROR(VLOOKUP($A67+8860000,'Growth Data'!$A:$Z,8,0)),0,VLOOKUP($A67+8860000,'Growth Data'!$A:$Z,8,0)) -> 0 | DZ67: 1 | EB67: 60 | EC67: =IF(ISERROR(VLOOKUP($A67+8860000,'Growth Data'!$A:$Z,9,0)),0,VLOOKUP($A67+8860000,'Growth Data'!$A:$Z,9,0)) -> 0 | ED67: 1 | EF67: YES | EG67: =IF(ISERROR(VLOOKUP($A67+8860000,'Growth Data'!$A:$Z,5,0)),"NO",VLOOKUP($A67+8860000,'Growth Data'!$A:$Z,5,0)) -> NO | EH67: 1 | EJ67: 47 | EK67: =IF(ISERROR(VLOOKUP($A67+8860000,'Growth Data'!$A:$Z,10,0)),0,VLOOKUP($A67+8860000,'Growth Data'!$A:$Z,10,0)) -> 0 | EL67: 1 | EN67: 60 | EO67: =IF(ISERROR(VLOOKUP($A67+8860000,'Growth Data'!$A:$Z,11,0)),0,VLOOKUP($A67+8860000,'Growth Data'!$A:$Z,11,0)) -> 0 | EP67: 1
A68: 2285 | B68: Mersham Primary School | D68: Mersham Primary School | F68: 1 | H68: 564984 | I68: 564984 | J68: 0 | L68: 32200.71 | M68: 32200.71 | N68: 0 | P68: 2616.36 | Q68: 2616.360784 | R68: -0.000784313725 | T68: 52742.65 | U68: 52742.65135 | V68: -0.00135135134 | X68: 121386.12 | Y68: 121386.12 | Z68: 0 | AB68: 0 | AC68: 0 | AD68: 0 | AF68: 0 | AG68: 0 | AH68: 0 | AJ68: 0 | AK68: 0 | AL68: 0 | AN68: 7859 | AO68: 7859 | AP68: 0 | AR68: 0 | AS68: 0 | AT68: 0 | AV68: 0 | AW68: 0 | AX68: 0 | AZ68: 0 | BA68: 0 | BB68: 0 | BD68: 781788.84 | BE68: 781788.8421 | BF68: -0.00213566504 | BH68: 0 | BI68: 0 | BJ68: 0 | BL68: 781788.84 | BM68: 781788.8421 | BN68: -0.00213566504 | BP68: 0 | BR68: 0 | BV68: 0 | BZ68: 0 | CB68: 82104.14 | CC68: 82104.14378 | CD68: 0 | CF68: 4794.93 | CG68: 4794.93 | CH68: 0 | CJ68: 898144.06 | CL68: 898144 | CM68: =(CJ68-(BM68+CT68))/(BM68+CT68) -> 0.1155643888 | CN68: 1003295.08 | CP68: 1003295 | CQ68: =(CN68-CJ68)/CJ68 -> 0.1170758954 | CR68: 23314 | CT68: 23314 | CX68: 0 | DB68: 0 | DF68: 0 | DH68: NO | DI68: =IF(ISERROR(VLOOKUP($A68+8860000,'Growth Data'!$A:$F,3,0)),"NO",VLOOKUP($A68+8860000,'Growth Data'!$A:$F,3,0)) -> NO | DJ68: 0 | DL68: 0 | DM68: =IF(DI68="YES",IF(ISERROR(VLOOKUP($A68+8860000,'Growth Data'!$A:$F,6,0)),0,VLOOKUP($A68+8860000,'Growth Data'!$A:$F,6,0)),0) -> 0 | DN68: 0 | DP68: 0 | DQ68: =IF(ISERROR(VLOOKUP($A68+8860000,'Growth Data'!$A:$Z,7,0)),0,VLOOKUP($A68+8860000,'Growth Data'!$A:$Z,7,0)) -> 0 | DR68: 0 | DT68: NO | DU68: =IF(ISERROR(VLOOKUP($A68+8860000,'Growth Data'!$A:$F,4,0)),"NO",VLOOKUP($A68+8860000,'Growth Data'!$A:$F,4,0)) -> NO | DV68: 0 | DX68: 0 | DY68: =IF(ISERROR(VLOOKUP($A68+8860000,'Growth Data'!$A:$Z,8,0)),0,VLOOKUP($A68+8860000,'Growth Data'!$A:$Z,8,0)) -> 0 | DZ68: 0 | EB68: 0 | EC68: =IF(ISERROR(VLOOKUP($A68+8860000,'Growth Data'!$A:$Z,9,0)),0,VLOOKUP($A68+8860000,'Growth Data'!$A:$Z,9,0)) -> 0 | ED68: 0 | EF68: NO | EG68: =IF(ISERROR(VLOOKUP($A68+8860000,'Growth Data'!$A:$Z,5,0)),"NO",VLOOKUP($A68+8860000,'Growth Data'!$A:$Z,5,0)) -> NO | EH68: 0 | EJ68: 0 | EK68: =IF(ISERROR(VLOOKUP($A68+8860000,'Growth Data'!$A:$Z,10,0)),0,VLOOKUP($A68+8860000,'Growth Data'!$A:$Z,10,0)) -> 0 | EL68: 0 | EN68: 0 | EO68: =IF(ISERROR(VLOOKUP($A68+8860000,'Growth Data'!$A:$Z,11,0)),0,VLOOKUP($A68+8860000,'Growth Data'!$A:$Z,11,0)) -> 0 | EP68: 0
A69: 2289 | B69: Smeeth Community Primary School | D69: Smeeth Community Primary School | F69: 1 | H69: 408576 | I69: 408576 | J69: 0 | L69: 15136.8 | M69: 15136.8 | N69: 0 | P69: 676.37 | Q69: 676.3663551 | R69: 0.003644859813 | T69: 28948.48 | U69: 28948.48 | V69: 0 | X69: 121386.12 | Y69: 121386.12 | Z69: 0 | AB69: 0 | AC69: 0 | AD69: 0 | AF69: 0 | AG69: 0 | AH69: 0 | AJ69: 0 | AK69: 0 | AL69: 0 | AN69: 14845 | AO69: 14845 | AP69: 0 | AR69: 0 | AS69: 0 | AT69: 0 | AV69: 0 | AW69: 0 | AX69: 0 | AZ69: 0 | BA69: 0 | BB69: 0 | BD69: 589568.77 | BE69: 589568.7664 | BF69: 0.003644859884 | BH69: 0 | BI69: 0 | BJ69: 0 | BL69: 589568.77 | BM69: 589568.7664 | BN69: 0.003644859884 | BP69: 0 | BR69: 0 | BV69: 0 | BZ69: 0 | CB69: 44479.7 | CC69: 44479.698 | CD69: 0 | CF69: 3467.52 | CG69: 3467.52 | CH69: 0 | CJ69: 672792.46 | CL69: 672792 | CM69: 0.1083443334 | CN69: 747042.58 | CP69: 747043 | CQ69: 0.110361106 | CR69: 17456 | CT69: 17456 | CX69: 0 | DB69: 0 | DF69: 0 | DH69: NO | DI69: =IF(ISERROR(VLOOKUP($A69+8860000,'Growth Data'!$A:$F,3,0)),"NO",VLOOKUP($A69+8860000,'Growth Data'!$A:$F,3,0)) -> NO | DJ69: 0 | DL69: 0 | DM69: =IF(DI69="YES",IF(ISERROR(VLOOKUP($A69+8860000,'Growth Data'!$A:$F,6,0)),0,VLOOKUP($A69+8860000,'Growth Data'!$A:$F,6,0)),0) -> 0 | DN69: 0 | DP69: 0 | DQ69: =IF(ISERROR(VLOOKUP($A69+8860000,'Growth Data'!$A:$Z,7,0)),0,VLOOKUP($A69+8860000,'Growth Data'!$A:$Z,7,0)) -> 0 | DR69: 0 | DT69: NO | DU69: =IF(ISERROR(VLOOKUP($A69+8860000,'Growth Data'!$A:$F,4,0)),"NO",VLOOKUP($A69+8860000,'Growth Data'!$A:$F,4,0)) -> NO | DV69: 0 | DX69: 0 | DY69: =IF(ISERROR(VLOOKUP($A69+8860000,'Growth Data'!$A:$Z,8,0)),0,VLOOKUP($A69+8860000,'Growth Data'!$A:$Z,8,0)) -> 0 | DZ69: 0 | EB69: 0 | EC69: =IF(ISERROR(VLOOKUP($A69+8860000,'Growth Data'!$A:$Z,9,0)),0,VLOOKUP($A69+8860000,'Growth Data'!$A:$Z,9,0)) -> 0 | ED69: 0 | EF69: NO | EG69: =IF(ISERROR(VLOOKUP($A69+8860000,'Growth Data'!$A:$Z,5,0)),"NO",VLOOKUP($A69+8860000,'Growth Data'!$A:$Z,5,0)) -> NO | EH69: 0 | EJ69: 0 | EK69: =IF(ISERROR(VLOOKUP($A69+8860000,'Growth Data'!$A:$Z,10,0)),0,VLOOKUP($A69+8860000,'Growth Data'!$A:$Z,10,0)) -> 0 | EL69: 0 | EN69: 0 | EO69: =IF(ISERROR(VLOOKUP($A69+8860000,'Growth Data'!$A:$Z,11,0)),0,VLOOKUP($A69+8860000,'Growth Data'!$A:$Z,11,0)) -> 0 | EP69: 0
A70: 2298 | B70: Hawkinge Primary School | D70: Hawkinge Primary School | F70: 1 | H70: 1260840 | I70: 1260840 | J70: 0 | L70: 98632.66 | M70: 98632.66 | N70: 0 | P70: 7333.32 | Q70: 7333.322388 | R70: -0.002388059705 | T70: 141882.14 | U70: 141882.1412 | V70: -0.00117647057 | X70: 121386.12 | Y70: 121386.12 | Z70: 0 | AB70: 0 | AC70: 0 | AD70: 0 | AF70: 0 | AG70: 0 | AH70: 0 | AJ70: 0 | AK70: 0 | AL70: 0 | AN70: 8243 | AO70: 8243 | AP70: 0 | AR70: 0 | AS70: 0 | AT70: 0 | AV70: 0 | AW70: 0 | AX70: 0 | AZ70: 54600.76 | BA70: 54600.75644 | BB70: 0.003564530307 | BD70: 1692918 | BE70: 1692918 | BF70: 0 | BH70: 0 | BI70: 0 | BJ70: 0 | BL70: 1692918 | BM70: 1692918 | BN70: 0 | BP70: 0 | BR70: 0 | BV70: 0 | BZ70: 0 | CB70: 277239.44 | CC70: 277239.4416 | CD70: 0 | CF70: 10700.55 | CG70: 10700.55 | CH70: 0 | CJ70: 1966538.23 | CL70: 1966538 | CM70: 0.1295238114 | CN70: 2221886.97 | CP70: 2221887 | CQ70: 0.1298468223 | CR70: 48115 | CT70: 48115 | CX70: 0 | DB70: 0 | DF70: 0 | DH70: NO | DI70: =IF(ISERROR(VLOOKUP($A70+8860000,'Growth Data'!$A:$F,3,0)),"NO",VLOOKUP($A70+8860000,'Growth Data'!$A:$F,3,0)) -> NO | DJ70: 0 | DL70: 0 | DM70: =IF(DI70="YES",IF(ISERROR(VLOOKUP($A70+8860000,'Growth Data'!$A:$F,6,0)),0,VLOOKUP($A70+8860000,'Growth Data'!$A:$F,6,0)),0) -> 0 | DN70: 0 | DP70: 0 | DQ70: =IF(ISERROR(VLOOKUP($A70+8860000,'Growth Data'!$A:$Z,7,0)),0,VLOOKUP($A70+8860000,'Growth Data'!$A:$Z,7,0)) -> 0 | DR70: 0 | DT70: NO | DU70: =IF(ISERROR(VLOOKUP($A70+8860000,'Growth Data'!$A:$F,4,0)),"NO",VLOOKUP($A70+8860000,'Growth Data'!$A:$F,4,0)) -> NO | DV70: 0 | DX70: 0 | DY70: =IF(ISERROR(VLOOKUP($A70+8860000,'Growth Data'!$A:$Z,8,0)),0,VLOOKUP($A70+8860000,'Growth Data'!$A:$Z,8,0)) -> 0 | DZ70: 0 | EB70: 0 | EC70: =IF(ISERROR(VLOOKUP($A70+8860000,'Growth Data'!$A:$Z,9,0)),0,VLOOKUP($A70+8860000,'Growth Data'!$A:$Z,9,0)) -> 0 | ED70: 0 | EF70: NO | EG70: =IF(ISERROR(VLOOKUP($A70+8860000,'Growth Data'!$A:$Z,5,0)),"NO",VLOOKUP($A70+8860000,'Growth Data'!$A:$Z,5,0)) -> NO | EH70: 0 | EJ70: 0 | EK70: =IF(ISERROR(VLOOKUP($A70+8860000,'Growth Data'!$A:$Z,10,0)),0,VLOOKUP($A70+8860000,'Growth Data'!$A:$Z,10,0)) -> 0 | EL70: 0 | EN70: 0 | EO70: =IF(ISERROR(VLOOKUP($A70+8860000,'Growth Data'!$A:$Z,11,0)),0,VLOOKUP($A70+8860000,'Growth Data'!$A:$Z,11,0)) -> 0 | EP70: 0
A71: 2300 | B71: Sellindge Primary School | D71: Sellindge Primary School | F71: 1 | H71: 376656 | I71: 376656 | J71: 0 | L71: 9408.95 | M71: 9408.95 | N71: 0 | P71: 0 | Q71: 0 | R71: 0 | T71: 24131.75 | U71: 24131.75319 | V71: -0.003191489363 | X71: 121386.12 | Y71: 121386.12 | Z71: 0 | AB71: 23367.71 | AC71: 23367.71415 | AD71: -0.004152202931 | AF71: 0 | AG71: 0 | AH71: 0 | AJ71: 0 | AK71: 0 | AL71: 0 | AN71: 17216 | AO71: 17216 | AP71: 0 | AR71: 0 | AS71: 0 | AT71: 0 | AV71: 0 | AW71: 0 | AX71: 0 | AZ71: 0 | BA71: 0 | BB71: 0 | BD71: 572166.54 | BE71: 572166.5373 | BF71: 0.00265630777 | BH71: 0 | BI71: 0 | BJ71: 0 | BL71: 572166.54 | BM71: 572166.5373 | BN71: 0.00265630777 | BP71: 0 | BR71: 0 | BV71: 0 | BZ71: 0 | CB71: 34669.74 | CC71: 34669.74483 | CD71: 0 | CF71: 3196.62 | CG71: 3196.62 | CH71: 0 | CJ71: 648071.96 | CL71: 648072 | CM71: 0.1017368601 | CN71: 715611 | CP71: 715611 | CQ71: 0.1042153405 | CR71: 16061 | CT71: 16061 | CX71: 0 | DB71: 0 | DF71: 0 | DH71: NO | DI71: =IF(ISERROR(VLOOKUP($A71+8860000,'Growth Data'!$A:$F,3,0)),"NO",VLOOKUP($A71+8860000,'Growth Data'!$A:$F,3,0)) -> NO | DJ71: 0 | DL71: 0 | DM71: =IF(DI71="YES",IF(ISERROR(VLOOKUP($A71+8860000,'Growth Data'!$A:$F,6,0)),0,VLOOKUP($A71+8860000,'Growth Data'!$A:$F,6,0)),0) -> 0 | DN71: 0 | DP71: 0 | DQ71: =IF(ISERROR(VLOOKUP($A71+8860000,'Growth Data'!$A:$Z,7,0)),0,VLOOKUP($A71+8860000,'Growth Data'!$A:$Z,7,0)) -> 0 | DR71: 0 | DT71: NO | DU71: =IF(ISERROR(VLOOKUP($A71+8860000,'Growth Data'!$A:$F,4,0)),"NO",VLOOKUP($A71+8860000,'Growth Data'!$A:$F,4,0)) -> NO | DV71: 0 | DX71: 0 | DY71: =IF(ISERROR(VLOOKUP($A71+8860000,'Growth Data'!$A:$Z,8,0)),0,VLOOKUP($A71+8860000,'Growth Data'!$A:$Z,8,0)) -> 0 | DZ71: 0 | EB71: 0 | EC71: =IF(ISERROR(VLOOKUP($A71+8860000,'Growth Data'!$A:$Z,9,0)),0,VLOOKUP($A71+8860000,'Growth Data'!$A:$Z,9,0)) -> 0 | ED71: 0 | EF71: NO | EG71: =IF(ISERROR(VLOOKUP($A71+8860000,'Growth Data'!$A:$Z,5,0)),"NO",VLOOKUP($A71+8860000,'Growth Data'!$A:$Z,5,0)) -> NO | EH71: 0 | EJ71: 0 | EK71: =IF(ISERROR(VLOOKUP($A71+8860000,'Growth Data'!$A:$Z,10,0)),0,VLOOKUP($A71+8860000,'Growth Data'!$A:$Z,10,0)) -> 0 | EL71: 0 | EN71: 0 | EO71: =IF(ISERROR(VLOOKUP($A71+8860000,'Growth Data'!$A:$Z,11,0)),0,VLOOKUP($A71+8860000,'Growth Data'!$A:$Z,11,0)) -> 0 | EP71: 0
A72: 2312 | B72: River Primary School | D72: River Primary School | F72: 1 | H72: 1311912 | I72: 1311912 | J72: 0 | L72: 116780.45 | M72: 116780.4458 | N72: 0.004170731845 | P72: 3949.79 | Q72: 3949.791501 | R72: -0.001501416431 | T72: 100919.05 | U72: 100919.0537 | V72: -0.003714285704 | X72: 121386.12 | Y72: 121386.12 | Z72: 0 | AB72: 0 | AC72: 0 | AD72: 0 | AF72: 0 | AG72: 0 | AH72: 0 | AJ72: 0 | AK72: 0 | AL72: 0 | AN72: 40960 | AO72: 40960 | AP72: 0 | AR72: 0 | AS72: 0 | AT72: 0 | AV72: 0 | AW72: 0 | AX72: 0 | AZ72: 97967.59 | BA72: 97967.58896 | BB72: 0.001044970268 | BD72: 1793875 | BE72: 1793875 | BF72: 0 | BH72: 0 | BI72: 0 | BJ72: 0 | BL72: 1793875 | BM72: 1793875 | BN72: 0 | BP72: 0 | BR72: 0 | BV72: 0 | BZ72: 0 | CB72: 294407.44 | CC72: 294407.4416 | CD72: 0 | CF72: 11133.99 | CG72: 11133.99 | CH72: 0 | CJ72: 2077907.06 | CL72: 2077907 | CM72: 0.1272835212 | CN72: 2343578.89 | CP72: 2343579 | CQ72: 0.1278554922 | CR72: 49412 | CT72: 49412 | CX72: 0 | DB72: 0 | DF72: 0 | DH72: NO | DI72: =IF(ISERROR(VLOOKUP($A72+8860000,'Growth Data'!$A:$F,3,0)),"NO",VLOOKUP($A72+8860000,'Growth Data'!$A:$F,3,0)) -> NO | DJ72: 0 | DL72: 0 | DM72: =IF(DI72="YES",IF(ISERROR(VLOOKUP($A72+8860000,'Growth Data'!$A:$F,6,0)),0,VLOOKUP($A72+8860000,'Growth Data'!$A:$F,6,0)),0) -> 0 | DN72: 0 | DP72: 0 | DQ72: =IF(ISERROR(VLOOKUP($A72+8860000,'Growth Data'!$A:$Z,7,0)),0,VLOOKUP($A72+8860000,'Growth Data'!$A:$Z,7,0)) -> 0 | DR72: 0 | DT72: NO | DU72: =IF(ISERROR(VLOOKUP($A72+8860000,'Growth Data'!$A:$F,4,0)),"NO",VLOOKUP($A72+8860000,'Growth Data'!$A:$F,4,0)) -> NO | DV72: 0 | DX72: 0 | DY72: =IF(ISERROR(VLOOKUP($A72+8860000,'Growth Data'!$A:$Z,8,0)),0,VLOOKUP($A72+8860000,'Growth Data'!$A:$Z,8,0)) -> 0 | DZ72: 0 | EB72: 0 | EC72: =IF(ISERROR(VLOOKUP($A72+8860000,'Growth Data'!$A:$Z,9,0)),0,VLOOKUP($A72+8860000,'Growth Data'!$A:$Z,9,0)) -> 0 | ED72: 0 | EF72: NO | EG72: =IF(ISERROR(VLOOKUP($A72+8860000,'Growth Data'!$A:$Z,5,0)),"NO",VLOOKUP($A72+8860000,'Growth Data'!$A:$Z,5,0)) -> NO | EH72: 0 | EJ72: 0 | EK72: =IF(ISERROR(VLOOKUP($A72+8860000,'Growth Data'!$A:$Z,10,0)),0,VLOOKUP($A72+8860000,'Growth Data'!$A:$Z,10,0)) -> 0 | EL72: 0 | EN72: 0 | EO72: =IF(ISERROR(VLOOKUP($A72+8860000,'Growth Data'!$A:$Z,11,0)),0,VLOOKUP($A72+8860000,'Growth Data'!$A:$Z,11,0)) -> 0 | EP72: 0
A73: 2318 | B73: Langdon Primary School | D73: Langdon Primary School | F73: 1 | H73: 280896 | I73: 280896 | J73: 0 | L73: 21752 | M73: 21752 | N73: 0 | P73: 0 | Q73: 0 | R73: 0 | T73: 17414.32 | U73: 17414.32 | V73: 0 | X73: 121386.12 | Y73: 121386.12 | Z73: 0 | AB73: 45412.73 | AC73: 45412.7275 | AD73: 0.002496662222 | AF73: 0 | AG73: 0 | AH73: 0 | AJ73: 0 | AK73: 0 | AL73: 0 | AN73: 4990 | AO73: 4990 | AP73: 0 | AR73: 0 | AS73: 0 | AT73: 0 | AV73: 0 | AW73: 0 | AX73: 0 | AZ73: 0 | BA73: 0 | BB73: 0 | BD73: 491851.17 | BE73: 491851.1675 | BF73: 0.0024966622 | BH73: 0 | BI73: 0 | BJ73: 0 | BL73: 491851.17 | BM73: 491851.1675 | BN73: 0.0024966622 | BP73: 0 | BR73: 0 | BV73: 0 | BZ73: 0 | CB73: 38884.37 | CC73: 38884.37164 | CD73: 0 | CF73: 2383.92 | CG73: 2383.92 | CH73: 0 | CJ73: 552760.6 | CL73: 552761 | CM73: 0.09401832483 | CN73: 606317.3 | CP73: 606317 | CQ73: 0.09688950334 | CR73: 13406 | CT73: 13406 | CX73: 0 | DB73: 0 | DF73: 0 | DH73: NO | DI73: =IF(ISERROR(VLOOKUP($A73+8860000,'Growth Data'!$A:$F,3,0)),"NO",VLOOKUP($A73+8860000,'Growth Data'!$A:$F,3,0)) -> NO | DJ73: 0 | DL73: 0 | DM73: =IF(DI73="YES",IF(ISERROR(VLOOKUP($A73+8860000,'Growth Data'!$A:$F,6,0)),0,VLOOKUP($A73+8860000,'Growth Data'!$A:$F,6,0)),0) -> 0 | DN73: 0 | DP73: 0 | DQ73: =IF(ISERROR(VLOOKUP($A73+8860000,'Growth Data'!$A:$Z,7,0)),0,VLOOKUP($A73+8860000,'Growth Data'!$A:$Z,7,0)) -> 0 | DR73: 0 | DT73: NO | DU73: =IF(ISERROR(VLOOKUP($A73+8860000,'Growth Data'!$A:$F,4,0)),"NO",VLOOKUP($A73+8860000,'Growth Data'!$A:$F,4,0)) -> NO | DV73: 0 | DX73: 0 | DY73: =IF(ISERROR(VLOOKUP($A73+8860000,'Growth Data'!$A:$Z,8,0)),0,VLOOKUP($A73+8860000,'Growth Data'!$A:$Z,8,0)) -> 0 | DZ73: 0 | EB73: 0 | EC73: =IF(ISERROR(VLOOKUP($A73+8860000,'Growth Data'!$A:$Z,9,0)),0,VLOOKUP($A73+8860000,'Growth Data'!$A:$Z,9,0)) -> 0 | ED73: 0 | EF73: NO | EG73: =IF(ISERROR(VLOOKUP($A73+8860000,'Growth Data'!$A:$Z,5,0)),"NO",VLOOKUP($A73+8860000,'Growth Data'!$A:$Z,5,0)) -> NO | EH73: 0 | EJ73: 0 | EK73: =IF(ISERROR(VLOOKUP($A73+8860000,'Growth Data'!$A:$Z,10,0)),0,VLOOKUP($A73+8860000,'Growth Data'!$A:$Z,10,0)) -> 0 | EL73: 0 | EN73: 0 | EO73: =IF(ISERROR(VLOOKUP($A73+8860000,'Growth Data'!$A:$Z,11,0)),0,VLOOKUP($A73+8860000,'Growth Data'!$A:$Z,11,0)) -> 0 | EP73: 0
A74: 2320 | B74: Eythorne Elvington Community Primary School | D74: Eythorne Elvington Community Primary School | F74: 1 | H74: 351120 | I74: 351120 | J74: 0 | L74: 62235.4 | M74: 62235.4 | N74: 0 | P74: 0 | Q74: 0 | R74: 0 | T74: 32510.5 | U74: 32510.5 | V74: 0 | X74: 121386.12 | Y74: 121386.12 | Z74: 0 | AB74: 29246.38 | AC74: 29246.38438 | AD74: -0.004379172227 | AF74: 0 | AG74: 0 | AH74: 0 | AJ74: 0 | AK74: 0 | AL74: 0 | AN74: 17340 | AO74: 17340 | AP74: 0 | AR74: 0 | AS74: 0 | AT74: 0 | AV74: 0 | AW74: 0 | AX74: 0 | AZ74: 0 | BA74: 0 | BB74: 0 | BD74: 613838.4 | BE74: 613838.4044 | BF74: -0.004379172227 | BH74: 0 | BI74: 0 | BJ74: 0 | BL74: 613838.4 | BM74: 613838.4044 | BN74: -0.004379172227 | BP74: 0 | BR74: 0 | BV74: 0 | BZ74: 0 | CB74: 75180.42 | CC74: 75180.42164 | CD74: 0 | CF74: 2979.9 | CG74: 2979.9 | CH74: 0 | CJ74: 697846.04 | CL74: 697846 | CM74: 0.1026803496 | CN74: 771206.68 | CP74: 771207 | CQ74: 0.105124391 | CR74: 19025 | CT74: 19025 | CX74: 0 | DB74: 0 | DF74: 0 | DH74: NO | DI74: =IF(ISERROR(VLOOKUP($A74+8860000,'Growth Data'!$A:$F,3,0)),"NO",VLOOKUP($A74+8860000,'Growth Data'!$A:$F,3,0)) -> NO | DJ74: 0 | DL74: 0 | DM74: =IF(DI74="YES",IF(ISERROR(VLOOKUP($A74+8860000,'Growth Data'!$A:$F,6,0)),0,VLOOKUP($A74+8860000,'Growth Data'!$A:$F,6,0)),0) -> 0 | DN74: 0 | DP74: 0 | DQ74: =IF(ISERROR(VLOOKUP($A74+8860000,'Growth Data'!$A:$Z,7,0)),0,VLOOKUP($A74+8860000,'Growth Data'!$A:$Z,7,0)) -> 0 | DR74: 0 | DT74: NO | DU74: =IF(ISERROR(VLOOKUP($A74+8860000,'Growth Data'!$A:$F,4,0)),"NO",VLOOKUP($A74+8860000,'Growth Data'!$A:$F,4,0)) -> NO | DV74: 0 | DX74: 0 | DY74: =IF(ISERROR(VLOOKUP($A74+8860000,'Growth Data'!$A:$Z,8,0)),0,VLOOKUP($A74+8860000,'Growth Data'!$A:$Z,8,0)) -> 0 | DZ74: 0 | EB74: 0 | EC74: =IF(ISERROR(VLOOKUP($A74+8860000,'Growth Data'!$A:$Z,9,0)),0,VLOOKUP($A74+8860000,'Growth Data'!$A:$Z,9,0)) -> 0 | ED74: 0 | EF74: NO | EG74: =IF(ISERROR(VLOOKUP($A74+8860000,'Growth Data'!$A:$Z,5,0)),"NO",VLOOKUP($A74+8860000,'Growth Data'!$A:$Z,5,0)) -> NO | EH74: 0 | EJ74: 0 | EK74: =IF(ISERROR(VLOOKUP($A74+8860000,'Growth Data'!$A:$Z,10,0)),0,VLOOKUP($A74+8860000,'Growth Data'!$A:$Z,10,0)) -> 0 | EL74: 0 | EN74: 0 | EO74: =IF(ISERROR(VLOOKUP($A74+8860000,'Growth Data'!$A:$Z,11,0)),0,VLOOKUP($A74+8860000,'Growth Data'!$A:$Z,11,0)) -> 0 | EP74: 0
A75: 2321 | B75: Lydden Primary School | D75: Lydden Primary School | F75: 1 | H75: 258552 | I75: 258552 | J75: 0 | L75: 18139.42 | M75: 18139.42 | N75: 0 | P75: 0 | Q75: 0 | R75: 0 | T75: 10320.54 | U75: 10320.54085 | V75: -0.0008450704208 | X75: 121386.12 | Y75: 121386.12 | Z75: 0 | AB75: 28058.89 | AC75: 28058.89299 | AD75: -0.002993324433 | AF75: 0 | AG75: 0 | AH75: 0 | AJ75: 0 | AK75: 0 | AL75: 0 | AN75: 8483 | AO75: 8483 | AP75: 0 | AR75: 0 | AS75: 0 | AT75: 0 | AV75: 0 | AW75: 0 | AX75: 0 | AZ75: 0 | BA75: 0 | BB75: 0 | BD75: 444939.97 | BE75: 444939.9738 | BF75: -0.003838394885 | BH75: 0 | BI75: 0 | BJ75: 0 | BL75: 444939.97 | BM75: 444939.9738 | BN75: -0.003838394885 | BP75: 0 | BR75: 0 | BV75: 0 | BZ75: 0 | CB75: 28648.34 | CC75: 28648.34249 | CD75: 0 | CF75: 2194.29 | CG75: 2194.29 | CH75: 0 | CJ75: 500684.4 | CL75: 500684 | CM75: 0.09399285642 | CN75: 549158.46 | CP75: 549158 | CQ75: 0.09681559881 | CR75: 12727 | CT75: 12727 | CX75: 0 | DB75: 0 | DF75: 0 | DH75: NO | DI75: =IF(ISERROR(VLOOKUP($A75+8860000,'Growth Data'!$A:$F,3,0)),"NO",VLOOKUP($A75+8860000,'Growth Data'!$A:$F,3,0)) -> NO | DJ75: 0 | DL75: 0 | DM75: =IF(DI75="YES",IF(ISERROR(VLOOKUP($A75+8860000,'Growth Data'!$A:$F,6,0)),0,VLOOKUP($A75+8860000,'Growth Data'!$A:$F,6,0)),0) -> 0 | DN75: 0 | DP75: 0 | DQ75: =IF(ISERROR(VLOOKUP($A75+8860000,'Growth Data'!$A:$Z,7,0)),0,VLOOKUP($A75+8860000,'Growth Data'!$A:$Z,7,0)) -> 0 | DR75: 0 | DT75: NO | DU75: =IF(ISERROR(VLOOKUP($A75+8860000,'Growth Data'!$A:$F,4,0)),"NO",VLOOKUP($A75+8860000,'Growth Data'!$A:$F,4,0)) -> NO | DV75: 0 | DX75: 0 | DY75: =IF(ISERROR(VLOOKUP($A75+8860000,'Growth Data'!$A:$Z,8,0)),0,VLOOKUP($A75+8860000,'Growth Data'!$A:$Z,8,0)) -> 0 | DZ75: 0 | EB75: 0 | EC75: =IF(ISERROR(VLOOKUP($A75+8860000,'Growth Data'!$A:$Z,9,0)),0,VLOOKUP($A75+8860000,'Growth Data'!$A:$Z,9,0)) -> 0 | ED75: 0 | EF75: NO | EG75: =IF(ISERROR(VLOOKUP($A75+8860000,'Growth Data'!$A:$Z,5,0)),"NO",VLOOKUP($A75+8860000,'Growth Data'!$A:$Z,5,0)) -> NO | EH75: 0 | EJ75: 0 | EK75: =IF(ISERROR(VLOOKUP($A75+8860000,'Growth Data'!$A:$Z,10,0)),0,VLOOKUP($A75+8860000,'Growth Data'!$A:$Z,10,0)) -> 0 | EL75: 0 | EN75: 0 | EO75: =IF(ISERROR(VLOOKUP($A75+8860000,'Growth Data'!$A:$Z,11,0)),0,VLOOKUP($A75+8860000,'Growth Data'!$A:$Z,11,0)) -> 0 | EP75: 0
A76: 2322 | B76: Preston Primary School | D76: Preston Primary School | F76: 1 | H76: 414960 | I76: 414960 | J76: 0 | L76: 19393.03 | M76: 19393.03047 | N76: -0.0004687499677 | P76: 1868.69 | Q76: 1868.694915 | R76: -0.004915254235 | T76: 31411.11 | U76: 31411.11111 | V76: -0.001111111105 | X76: 121386.12 | Y76: 121386.12 | Z76: 0 | AB76: 14549.71 | AC76: 14549.70881 | AD76: 0.001188251015 | AF76: 0 | AG76: 0 | AH76: 0 | AJ76: 0 | AK76: 0 | AL76: 0 | AN76: 17964 | AO76: 17964 | AP76: 0 | AR76: 0 | AS76: 0 | AT76: 0 | AV76: 0 | AW76: 0 | AX76: 0 | AZ76: 0 | BA76: 0 | BB76: 0 | BD76: 621532.67 | BE76: 621532.6653 | BF76: 0.004693135736 | BH76: 0 | BI76: 0 | BJ76: 0 | BL76: 621532.67 | BM76: 621532.6653 | BN76: 0.004693135736 | BP76: 0 | BR76: 0 | BV76: 0 | BZ76: 0 | CB76: 51920.56 | CC76: 51920.55814 | CD76: 0 | CF76: 3521.7 | CG76: 3521.7 | CH76: 0 | CJ76: 707166.34 | CL76: 707166 | CM76: 0.1059191198 | CN76: 783638.25 | CP76: 783638 | CQ76: 0.1081385039 | CR76: 17905 | CT76: 17905 | CX76: 0 | DB76: 0 | DF76: 0 | DH76: NO | DI76: =IF(ISERROR(VLOOKUP($A76+8860000,'Growth Data'!$A:$F,3,0)),"NO",VLOOKUP($A76+8860000,'Growth Data'!$A:$F,3,0)) -> NO | DJ76: 0 | DL76: 0 | DM76: =IF(DI76="YES",IF(ISERROR(VLOOKUP($A76+8860000,'Growth Data'!$A:$F,6,0)),0,VLOOKUP($A76+8860000,'Growth Data'!$A:$F,6,0)),0) -> 0 | DN76: 0 | DP76: 0 | DQ76: =IF(ISERROR(VLOOKUP($A76+8860000,'Growth Data'!$A:$Z,7,0)),0,VLOOKUP($A76+8860000,'Growth Data'!$A:$Z,7,0)) -> 0 | DR76: 0 | DT76: NO | DU76: =IF(ISERROR(VLOOKUP($A76+8860000,'Growth Data'!$A:$F,4,0)),"NO",VLOOKUP($A76+8860000,'Growth Data'!$A:$F,4,0)) -> NO | DV76: 0 | DX76: 0 | DY76: =IF(ISERROR(VLOOKUP($A76+8860000,'Growth Data'!$A:$Z,8,0)),0,VLOOKUP($A76+8860000,'Growth Data'!$A:$Z,8,0)) -> 0 | DZ76: 0 | EB76: 0 | EC76: =IF(ISERROR(VLOOKUP($A76+8860000,'Growth Data'!$A:$Z,9,0)),0,VLOOKUP($A76+8860000,'Growth Data'!$A:$Z,9,0)) -> 0 | ED76: 0 | EF76: NO | EG76: =IF(ISERROR(VLOOKUP($A76+8860000,'Growth Data'!$A:$Z,5,0)),"NO",VLOOKUP($A76+8860000,'Growth Data'!$A:$Z,5,0)) -> NO | EH76: 0 | EJ76: 0 | EK76: =IF(ISERROR(VLOOKUP($A76+8860000,'Growth Data'!$A:$Z,10,0)),0,VLOOKUP($A76+8860000,'Growth Data'!$A:$Z,10,0)) -> 0 | EL76: 0 | EN76: 0 | EO76: =IF(ISERROR(VLOOKUP($A76+8860000,'Growth Data'!$A:$Z,11,0)),0,VLOOKUP($A76+8860000,'Growth Data'!$A:$Z,11,0)) -> 0 | EP76: 0
A77: 2326 | B77: Wingham Primary School | D77: Wingham Primary School | F77: 1 | H77: 622440 | I77: 622440 | J77: 0 | L77: 35616.94 | M77: 35616.94 | N77: 5.820766091e-11 | P77: 2549.2 | Q77: 2549.202312 | R77: -0.002312138729 | T77: 48862.13 | U77: 48862.125 | V77: 0.004999999997 | X77: 121386.12 | Y77: 121386.12 | Z77: 0 | AB77: 0 | AC77: 0 | AD77: 0 | AF77: 0 | AG77: 0 | AH77: 0 | AJ77: 0 | AK77: 0 | AL77: 0 | AN77: 31232 | AO77: 31232 | AP77: 0 | AR77: 0 | AS77: 0 | AT77: 0 | AV77: 0 | AW77: 0 | AX77: 0 | AZ77: 820.61 | BA77: 820.6126879 | BB77: -0.002687861343 | BD77: 862907 | BE77: 862907 | BF77: 0 | BH77: 0 | BI77: 0 | BJ77: 0 | BL77: 862907 | BM77: 862907 | BN77: 0 | BP77: 0 | BR77: 0 | BV77: 0 | BZ77: 0 | CB77: 79100.99 | CC77: 79100.99164 | CD77: 0 | CF77: 5282.55 | CG77: 5282.55 | CH77: 0 | CJ77: 999769.33 | CL77: 999769 | CM77: 0.1253695778 | CN77: 1125881.09 | CP77: 1125881 | CQ77: 0.1261408569 | CR77: 25485 | CT77: 25485 | CX77: 0 | DB77: 0 | DF77: 0 | DH77: NO | DI77: =IF(ISERROR(VLOOKUP($A77+8860000,'Growth Data'!$A:$F,3,0)),"NO",VLOOKUP($A77+8860000,'Growth Data'!$A:$F,3,0)) -> NO | DJ77: 0 | DL77: 0 | DM77: =IF(DI77="YES",IF(ISERROR(VLOOKUP($A77+8860000,'Growth Data'!$A:$F,6,0)),0,VLOOKUP($A77+8860000,'Growth Data'!$A:$F,6,0)),0) -> 0 | DN77: 0 | DP77: 0 | DQ77: =IF(ISERROR(VLOOKUP($A77+8860000,'Growth Data'!$A:$Z,7,0)),0,VLOOKUP($A77+8860000,'Growth Data'!$A:$Z,7,0)) -> 0 | DR77: 0 | DT77: NO | DU77: =IF(ISERROR(VLOOKUP($A77+8860000,'Growth Data'!$A:$F,4,0)),"NO",VLOOKUP($A77+8860000,'Growth Data'!$A:$F,4,0)) -> NO | DV77: 0 | DX77: 0 | DY77: =IF(ISERROR(VLOOKUP($A77+8860000,'Growth Data'!$A:$Z,8,0)),0,VLOOKUP($A77+8860000,'Growth Data'!$A:$Z,8,0)) -> 0 | DZ77: 0 | EB77: 0 | EC77: =IF(ISERROR(VLOOKUP($A77+8860000,'Growth Data'!$A:$Z,9,0)),0,VLOOKUP($A77+8860000,'Growth Data'!$A:$Z,9,0)) -> 0 | ED77: 0 | EF77: NO | EG77: =IF(ISERROR(VLOOKUP($A77+8860000,'Growth Data'!$A:$Z,5,0)),"NO",VLOOKUP($A77+8860000,'Growth Data'!$A:$Z,5,0)) -> NO | EH77: 0 | EJ77: 0 | EK77: =IF(ISERROR(VLOOKUP($A77+8860000,'Growth Data'!$A:$Z,10,0)),0,VLOOKUP($A77+8860000,'Growth Data'!$A:$Z,10,0)) -> 0 | EL77: 0 | EN77: 0 | EO77: =IF(ISERROR(VLOOKUP($A77+8860000,'Growth Data'!$A:$Z,11,0)),0,VLOOKUP($A77+8860000,'Growth Data'!$A:$Z,11,0)) -> 0 | EP77: 0
A78: 2328 | B78: St Mildred's Primary Infant School | D78: St Mildred's Primary Infant School | F78: 1 | H78: 861840 | I78: 861840 | J78: 0 | L78: 71981 | M78: 71981 | N78: 0 | P78: 13569.6 | Q78: 13569.6 | R78: 0 | T78: 74393.7 | U78: 74393.69853 | V78: 0.00146545707 | X78: 121386.12 | Y78: 121386.12 | Z78: 0 | AB78: 0 | AC78: 0 | AD78: 0 | AF78: 0 | AG78: 0 | AH78: 0 | AJ78: 0 | AK78: 0 | AL78: 0 | AN78: 24950 | AO78: 24950 | AP78: 0 | AR78: 0 | AS78: 0 | AT78: 0 | AV78: 0 | AW78: 0 | AX78: 0 | AZ78: 8379.58 | BA78: 8379.581465 | BB78: -0.001465457071 | BD78: 1176500 | BE78: 1176500 | BF78: 0 | BH78: 0 | BI78: 0 | BJ78: 0 | BL78: 1176500 | BM78: 1176500 | BN78: 0 | BP78: 0 | BR78: 0 | BV78: 0 | BZ78: 0 | CB78: 146406.75 | CC78: 146406.7516 | CD78: 0 | CF78: 7314.3 | CG78: 7314.3 | CH78: 0 | CJ78: 1365762.8 | CL78: 1365763 | CM78: 0.1272808911 | CN78: 1540371.92 | CP78: 1540372 | CQ78: 0.1278473246 | CR78: 35055 | CT78: 35055 | CX78: 0 | DB78: 0 | DF78: 0 | DH78: NO | DI78: =IF(ISERROR(VLOOKUP($A78+8860000,'Growth Data'!$A:$F,3,0)),"NO",VLOOKUP($A78+8860000,'Growth Data'!$A:$F,3,0)) -> NO | DJ78: 0 | DL78: 0 | DM78: =IF(DI78="YES",IF(ISERROR(VLOOKUP($A78+8860000,'Growth Data'!$A:$F,6,0)),0,VLOOKUP($A78+8860000,'Growth Data'!$A:$F,6,0)),0) -> 0 | DN78: 0 | DP78: 0 | DQ78: =IF(ISERROR(VLOOKUP($A78+8860000,'Growth Data'!$A:$Z,7,0)),0,VLOOKUP($A78+8860000,'Growth Data'!$A:$Z,7,0)) -> 0 | DR78: 0 | DT78: NO | DU78: =IF(ISERROR(VLOOKUP($A78+8860000,'Growth Data'!$A:$F,4,0)),"NO",VLOOKUP($A78+8860000,'Growth Data'!$A:$F,4,0)) -> NO | DV78: 0 | DX78: 0 | DY78: =IF(ISERROR(VLOOKUP($A78+8860000,'Growth Data'!$A:$Z,8,0)),0,VLOOKUP($A78+8860000,'Growth Data'!$A:$Z,8,0)) -> 0 | DZ78: 0 | EB78: 0 | EC78: =IF(ISERROR(VLOOKUP($A78+8860000,'Growth Data'!$A:$Z,9,0)),0,VLOOKUP($A78+8860000,'Growth Data'!$A:$Z,9,0)) -> 0 | ED78: 0 | EF78: NO | EG78: =IF(ISERROR(VLOOKUP($A78+8860000,'Growth Data'!$A:$Z,5,0)),"NO",VLOOKUP($A78+8860000,'Growth Data'!$A:$Z,5,0)) -> NO | EH78: 0 | EJ78: 0 | EK78: =IF(ISERROR(VLOOKUP($A78+8860000,'Growth Data'!$A:$Z,10,0)),0,VLOOKUP($A78+8860000,'Growth Data'!$A:$Z,10,0)) -> 0 | EL78: 0 | EN78: 0 | EO78: =IF(ISERROR(VLOOKUP($A78+8860000,'Growth Data'!$A:$Z,11,0)),0,VLOOKUP($A78+8860000,'Growth Data'!$A:$Z,11,0)) -> 0 | EP78: 0
A79: 2329 | B79: Callis Grange Nursery and Infant School | D79: Callis Grange Nursery and Infant School | F79: 1 | H79: 820344 | I79: 820344 | J79: 0 | L79: 97227.7 | M79: 97227.7 | N79: 0 | P79: 10919.08 | Q79: 10919.08324 | R79: -0.003236994213 | T79: 70811.78 | U79: 70811.77972 | V79: 0.0002837869397 | X79: 121386.12 | Y79: 121386.12 | Z79: 0 | AB79: 0 | AC79: 0 | AD79: 0 | AF79: 0 | AG79: 0 | AH79: 0 | AJ79: 0 | AK79: 0 | AL79: 0 | AN79: 43520 | AO79: 43520 | AP79: 0 | AR79: 0 | AS79: 0 | AT79: 0 | AV79: 0 | AW79: 0 | AX79: 0 | AZ79: 0 | BA79: 0 | BB79: 0 | BD79: 1164208.68 | BE79: 1164208.683 | BF79: -0.002953207353 | BH79: 0 | BI79: 0 | BJ79: 0 | BL79: 1164208.68 | BM79: 1164208.683 | BN79: -0.002953207353 | BP79: 0 | BR79: 0 | BV79: 0 | BZ79: 0 | CB79: 155160.11 | CC79: 155160.1146 | CD79: 0 | CF79: 6962.13 | CG79: 6962.13 | CH79: 0 | CJ79: 1338941.89 | CL79: 1338942 | CM79: 0.1173280473 | CN79: 1497976.11 | CP79: 1497976 | CQ79: 0.1187760434 | CR79: 34134 | CT79: 34134 | CX79: 0 | DB79: 0 | DF79: 0 | DH79: NO | DI79: =IF(ISERROR(VLOOKUP($A79+8860000,'Growth Data'!$A:$F,3,0)),"NO",VLOOKUP($A79+8860000,'Growth Data'!$A:$F,3,0)) -> NO | DJ79: 0 | DL79: 0 | DM79: =IF(DI79="YES",IF(ISERROR(VLOOKUP($A79+8860000,'Growth Data'!$A:$F,6,0)),0,VLOOKUP($A79+8860000,'Growth Data'!$A:$F,6,0)),0) -> 0 | DN79: 0 | DP79: 0 | DQ79: =IF(ISERROR(VLOOKUP($A79+8860000,'Growth Data'!$A:$Z,7,0)),0,VLOOKUP($A79+8860000,'Growth Data'!$A:$Z,7,0)) -> 0 | DR79: 0 | DT79: NO | DU79: =IF(ISERROR(VLOOKUP($A79+8860000,'Growth Data'!$A:$F,4,0)),"NO",VLOOKUP($A79+8860000,'Growth Data'!$A:$F,4,0)) -> NO | DV79: 0 | DX79: 0 | DY79: =IF(ISERROR(VLOOKUP($A79+8860000,'Growth Data'!$A:$Z,8,0)),0,VLOOKUP($A79+8860000,'Growth Data'!$A:$Z,8,0)) -> 0 | DZ79: 0 | EB79: 0 | EC79: =IF(ISERROR(VLOOKUP($A79+8860000,'Growth Data'!$A:$Z,9,0)),0,VLOOKUP($A79+8860000,'Growth Data'!$A:$Z,9,0)) -> 0 | ED79: 0 | EF79: NO | EG79: =IF(ISERROR(VLOOKUP($A79+8860000,'Growth Data'!$A:$Z,5,0)),"NO",VLOOKUP($A79+8860000,'Growth Data'!$A:$Z,5,0)) -> NO | EH79: 0 | EJ79: 0 | EK79: =IF(ISERROR(VLOOKUP($A79+8860000,'Growth Data'!$A:$Z,10,0)),0,VLOOKUP($A79+8860000,'Growth Data'!$A:$Z,10,0)) -> 0 | EL79: 0 | EN79: 0 | EO79: =IF(ISERROR(VLOOKUP($A79+8860000,'Growth Data'!$A:$Z,11,0)),0,VLOOKUP($A79+8860000,'Growth Data'!$A:$Z,11,0)) -> 0 | EP79: 0
A80: 2337 | B80: St Crispin's Community Primary Infant School | D80: St Crispin's Community Primary Infant School | F80: 1 | H80: 855456 | I80: 855456 | J80: 0 | L80: 94857.46 | M80: 94857.46 | N80: 0 | P80: 2568.26 | Q80: 2568.257627 | R80: 0.002372881353 | T80: 73842.63 | U80: 73842.6341 | V80: -0.004100953709 | X80: 121386.12 | Y80: 121386.12 | Z80: 0 | AB80: 0 | AC80: 0 | AD80: 0 | AF80: 0 | AG80: 0 | AH80: 0 | AJ80: 0 | AK80: 0 | AL80: 0 | AN80: 20085 | AO80: 20085 | AP80: 0 | AR80: 0 | AS80: 0 | AT80: 0 | AV80: 0 | AW80: 0 | AX80: 0 | AZ80: 0 | BA80: 0 | BB80: 0 | BD80: 1168195.47 | BE80: 1168195.472 | BF80: -0.001728072297 | BH80: 0 | BI80: 0 | BJ80: 0 | BL80: 1168195.47 | BM80: 1168195.472 | BN80: -0.001728072297 | BP80: 0 | BR80: 0 | BV80: 0 | BZ80: 0 | CB80: 141825.94 | CC80: 141825.9434 | CD80: 0 | CF80: 7260.12 | CG80: 7260.12 | CH80: 0 | CJ80: 1352696.94 | CL80: 1352697 | CM80: 0.1228762129 | CN80: 1526064.59 | CP80: 1526065 | CQ80: 0.1281644431 | CR80: 36476 | CT80: 36476 | CX80: 0 | DB80: 0 | DF80: 0 | DH80: NO | DI80: =IF(ISERROR(VLOOKUP($A80+8860000,'Growth Data'!$A:$F,3,0)),"NO",VLOOKUP($A80+8860000,'Growth Data'!$A:$F,3,0)) -> NO | DJ80: 0 | DL80: 0 | DM80: =IF(DI80="YES",IF(ISERROR(VLOOKUP($A80+8860000,'Growth Data'!$A:$F,6,0)),0,VLOOKUP($A80+8860000,'Growth Data'!$A:$F,6,0)),0) -> 0 | DN80: 0 | DP80: 0 | DQ80: =IF(ISERROR(VLOOKUP($A80+8860000,'Growth Data'!$A:$Z,7,0)),0,VLOOKUP($A80+8860000,'Growth Data'!$A:$Z,7,0)) -> 0 | DR80: 0 | DT80: NO | DU80: =IF(ISERROR(VLOOKUP($A80+8860000,'Growth Data'!$A:$F,4,0)),"NO",VLOOKUP($A80+8860000,'Growth Data'!$A:$F,4,0)) -> NO | DV80: 0 | DX80: 0 | DY80: =IF(ISERROR(VLOOKUP($A80+8860000,'Growth Data'!$A:$Z,8,0)),0,VLOOKUP($A80+8860000,'Growth Data'!$A:$Z,8,0)) -> 0 | DZ80: 0 | EB80: 0 | EC80: =IF(ISERROR(VLOOKUP($A80+8860000,'Growth Data'!$A:$Z,9,0)),0,VLOOKUP($A80+8860000,'Growth Data'!$A:$Z,9,0)) -> 0 | ED80: 0 | EF80: NO | EG80: =IF(ISERROR(VLOOKUP($A80+8860000,'Growth Data'!$A:$Z,5,0)),"NO",VLOOKUP($A80+8860000,'Growth Data'!$A:$Z,5,0)) -> NO | EH80: 0 | EJ80: 0 | EK80: =IF(ISERROR(VLOOKUP($A80+8860000,'Growth Data'!$A:$Z,10,0)),0,VLOOKUP($A80+8860000,'Growth Data'!$A:$Z,10,0)) -> 0 | EL80: 0 | EN80: 0 | EO80: =IF(ISERROR(VLOOKUP($A80+8860000,'Growth Data'!$A:$Z,11,0)),0,VLOOKUP($A80+8860000,'Growth Data'!$A:$Z,11,0)) -> 0 | EP80: 0
